Workbook

Sheet Anexo12_Saúde
B1: Tabela 12.2 - Demonstrativo das Despesas com Saúde - Municípios
B3: PREFEITURA DO MUNICÍPIO DE SÃO PAULO
B4: RELATÓRIO RESUMIDO DA EXECUÇÃO ORÇAMENTÁRIA
B5: DEMONSTRATIVO DAS RECEITAS E DESPESAS COM AÇÕES E SERVIÇOS PÚBLICOS DE SAÚDE
B6: ORÇAMENTOS FISCAL E DA SEGURIDADE SOCIAL
B7: 2º BIMESTRE (01/01/2025 A 30/04/2025)
B9: RREO – ANEXO XII (LC n° 141/2012 art.35) | P9: R$ 1.00
B10: RECEITAS RESULTANTES DE IMPOSTOS E TRANSFERÊNCIAS CONSTITUCIONAIS E LEGAIS | H10: PREVISÃO INICIAL | J10: PREVISÃO ATUALIZADA (a) | L10: RECEITAS REALIZADAS
L11: Até o Bimestre (b) | O11: % (b/a) x 100
B12: RECEITA DE IMPOSTOS (I) | H12: =VLOOKUP($B12,Receita_Consolidada!$B:$F,2,0) -> 65,077,314,081.00 | J12: =VLOOKUP($B12,Receita_Consolidada!$B:$F,3,0) -> 65,077,314,081.00 | L12: =VLOOKUP($B12,Receita_Consolidada!$B:$F,4,0) -> 23,152,788,245.77 | O12: =IFERROR(L12/J12*100,0) -> 35.58
B13: Receita Resultante do Imposto Predial e Territorial Urbano - IPTU | H13: =VLOOKUP($B13,Receita_Consolidada!$B:$F,2,0) -> 17,596,243,214.00 | J13: =VLOOKUP($B13,Receita_Consolidada!$B:$F,3,0) -> 17,596,243,214.00 | L13: =VLOOKUP($B13,Receita_Consolidada!$B:$F,4,0) -> 7,638,126,745.18 | O13: 43.41
B14: IPTU | H14: =VLOOKUP($B14,Receita_Consolidada!$B:$F,2,0) -> 15,697,308,008.00 | J14: =VLOOKUP($B14,Receita_Consolidada!$B:$F,3,0) -> 15,697,308,008.00 | L14: =VLOOKUP($B14,Receita_Consolidada!$B:$F,4,0) -> 7,047,992,445.23 | O14: 44.90
B15: Multas, Juros de Mora, Divida Ativa e Outros Encargos do IPTU | H15: =VLOOKUP($B15,Receita_Consolidada!$B:$F,2,0) -> 1,898,935,206.00 | J15: =VLOOKUP($B15,Receita_Consolidada!$B:$F,3,0) -> 1,898,935,206.00 | L15: =VLOOKUP($B15,Receita_Consolidada!$B:$F,4,0) -> 590,134,299.95 | O15: 31.08
B16: Receita Resultante do Imposto sobre Serviços de Qualquer Natureza - ITBI | H16: =VLOOKUP($B16,Receita_Consolidada!$B:$F,2,0) -> 4,399,222,246.00 | J16: =VLOOKUP($B16,Receita_Consolidada!$B:$F,3,0) -> 4,399,222,246.00 | L16: =VLOOKUP($B16,Receita_Consolidada!$B:$F,4,0) -> 1,319,244,262.11 | O16: 29.99
B17: ITBI | H17: =VLOOKUP($B17,Receita_Consolidada!$B:$F,2,0) -> 4,334,222,428.00 | J17: =VLOOKUP($B17,Receita_Consolidada!$B:$F,3,0) -> 4,334,222,428.00 | L17: =VLOOKUP($B17,Receita_Consolidada!$B:$F,4,0) -> 1,284,574,914.23 | O17: 29.64
B18: Multas, Juros de Mora, Dívida Ativa e Outros Encargos do ITBI | H18: =VLOOKUP($B18,Receita_Consolidada!$B:$F,2,0) -> 64,999,818.00 | J18: =VLOOKUP($B18,Receita_Consolidada!$B:$F,3,0) -> 64,999,818.00 | L18: =VLOOKUP($B18,Receita_Consolidada!$B:$F,4,0) -> 34,669,347.88 | O18: 53.34
B19: Receita Resultante do Imposto sobre Serviços de Qualquer Natureza - ISS | H19: =VLOOKUP($B19,Receita_Consolidada!$B:$F,2,0) -> 37,559,875,557.00 | J19: =VLOOKUP($B19,Receita_Consolidada!$B:$F,3,0) -> 37,559,875,557.00 | L19: =VLOOKUP($B19,Receita_Consolidada!$B:$F,4,0) -> 12,727,874,255.96 | O19: 33.89
B20: ISS | H20: =VLOOKUP($B20,Receita_Consolidada!$B:$F,2,0) -> 36,466,235,277.00 | J20: =VLOOKUP($B20,Receita_Consolidada!$B:$F,3,0) -> 36,466,235,277.00 | L20: =VLOOKUP($B20,Receita_Consolidada!$B:$F,4,0) -> 12,185,057,707.54 | O20: 33.41
B21: Multas, Juros de Mora, Dívida Ativa e Outros Encargos do ISS | H21: =VLOOKUP($B21,Receita_Consolidada!$B:$F,2,0) -> 1,093,640,280.00 | J21: =VLOOKUP($B21,Receita_Consolidada!$B:$F,3,0) -> 1,093,640,280.00 | L21: =VLOOKUP($B21,Receita_Consolidada!$B:$F,4,0) -> 542,816,548.42 | O21: 49.63
B22: Receita Resultante do Imposto sobre a Renda e Proventos de Qualquer Natureza Retido na Fonte – IRRF | H22: =VLOOKUP($B22,Receita_Consolidada!$B:$F,2,0) -> 5,521,973,064.00 | J22: =VLOOKUP($B22,Receita_Consolidada!$B:$F,3,0) -> 5,521,973,064.00 | L22: =VLOOKUP($B22,Receita_Consolidada!$B:$F,4,0) -> 1,467,542,982.52 | O22: 26.58
B23: RECEITA DE TRANSFERÊNCIAS CONSTITUCIONAIS E LEGAIS (II) | H23: =VLOOKUP($B23,Receita_Consolidada!$B:$F,2,0) -> 15,436,606,033.00 | J23: =VLOOKUP($B23,Receita_Consolidada!$B:$F,3,0) -> 15,436,606,033.00 | L23: =VLOOKUP($B23,Receita_Consolidada!$B:$F,4,0) -> 6,781,956,388.58 | O23: 43.93
B24: Cota-Parte FPM | H24: =VLOOKUP($B24,Receita_Consolidada!$B:$F,2,0) -> 600,006,885.00 | J24: =VLOOKUP($B24,Receita_Consolidada!$B:$F,3,0) -> 600,006,885.00 | L24: =VLOOKUP($B24,Receita_Consolidada!$B:$F,4,0) -> 221,887,116.01 | O24: 36.98
B25: Cota-Parte ITR | H25: =VLOOKUP($B25,Receita_Consolidada!$B:$F,2,0) -> 19,439,666.00 | J25: =VLOOKUP($B25,Receita_Consolidada!$B:$F,3,0) -> 19,439,666.00 | L25: =VLOOKUP($B25,Receita_Consolidada!$B:$F,4,0) -> 1,785,550.22 | O25: 9.19
B26: Cota-Parte IPVA | H26: =VLOOKUP($B26,Receita_Consolidada!$B:$F,2,0) -> 4,553,894,634.00 | J26: =VLOOKUP($B26,Receita_Consolidada!$B:$F,3,0) -> 4,553,894,634.00 | L26: =VLOOKUP($B26,Receita_Consolidada!$B:$F,4,0) -> 3,366,467,455.65 | O26: 73.93
B27: Cota-Parte ICMS | H27: =VLOOKUP($B27,Receita_Consolidada!$B:$F,2,0) -> 10,203,805,236.00 | J27: =VLOOKUP($B27,Receita_Consolidada!$B:$F,3,0) -> 10,203,805,236.00 | L27: =VLOOKUP($B27,Receita_Consolidada!$B:$F,4,0) -> 3,169,029,328.90 | O27: 31.06
B28: Cota-Parte IPI-Exportação | H28: =VLOOKUP($B28,Receita_Consolidada!$B:$F,2,0) -> 59,459,612.00 | J28: =VLOOKUP($B28,Receita_Consolidada!$B:$F,3,0) -> 59,459,612.00 | L28: =VLOOKUP($B28,Receita_Consolidada!$B:$F,4,0) -> 22,786,937.80 | O28: 38.32
B29: Outras Transferências ou Compensações Financeiras Provenientes de Impostos e Transferências Constitucionais | H29: =VLOOKUP($B29,Receita_Consolidada!$B:$F,2,0) -> 0 | J29: =VLOOKUP($B29,Receita_Consolidada!$B:$F,3,0) -> 0 | L29: =VLOOKUP($B29,Receita_Consolidada!$B:$F,4,0) -> 0 | O29: 0
B30: TOTAL DAS RECEITAS RESULTANTES DE IMPOSTOS E TRANFERÊNCIAS CONSTITUCIONAIS E LEGAIS - (III) = (I) + (II) | H30: =H12+H23 -> 80,513,920,114.00 | J30: =J12+J23 -> 80,513,920,114.00 | L30: =L12+L23 -> 29,934,744,634.35 | O30: =L30/J30*100 -> 37.18
B32: DESPESAS COM AÇÕES E SERVIÇOS PÚBLICOS DE SAÚDE (ASPS) – POR SUBFUNÇÃO E CATEGORIA ECONÔMICA | H32: DOTAÇÃO INICIAL | I32: DOTAÇÃO ATUALIZADA (c) | J32: DESPESAS EMPENHADAS | L32: DESPESAS LIQUIDADAS | N32: DESPESAS PAGAS | P32: Inscritas em Restos a Pagar Não Processados (g)
J33: Até o bimestre (d) | K33: % (d/c) x 100 | L33: Até o bimestre (e) | M33: % (e/c) x 100 | N33: Até o bimestre (f) | O33: % (f/c) x 100
A34: 301 | B34: ATENÇÃO BÁSICA (IV) | H34: =VLOOKUP($A34,Despesas_ASPS!$N$5:$T$25,3,FALSE) -> 7,953,763,446.00 | I34: =VLOOKUP($A34,Despesas_ASPS!$N$5:$T$25,4,FALSE) -> 7,965,069,370.01 | J34: =VLOOKUP($A34,Despesas_ASPS!$N$5:$T$25,5,FALSE) -> 3,883,617,887.72 | K34: =IFERROR(J34/I34*100,0) -> 48.76 | L34: =VLOOKUP($A34,Despesas_ASPS!$N$5:$T$25,6,FALSE) -> 2,714,064,427.83 | M34: =IFERROR(L34/I34*100,0) -> 34.07 | N34: =VLOOKUP($A34,Despesas_ASPS!$N$5:$T$25,7,FALSE) -> 2,542,797,893.13 | O34: =IFERROR($N34/$I34*100,0) -> 31.92 | P34: =J34-L34 -> 1,169,553,459.89
A35: 301.3 | B35: Despesas Correntes | H35: =VLOOKUP($A35,Despesas_ASPS!$N$5:$T$25,3,FALSE) -> 7,888,278,428.00 | I35: =VLOOKUP($A35,Despesas_ASPS!$N$5:$T$25,4,FALSE) -> 7,886,198,238.05 | J35: =VLOOKUP($A35,Despesas_ASPS!$N$5:$T$25,5,FALSE) -> 3,864,530,292.04 | K35: =IFERROR(J35/I35*100,0) -> 49.00 | L35: =VLOOKUP($A35,Despesas_ASPS!$N$5:$T$25,6,FALSE) -> 2,711,567,811.12 | M35: =IFERROR(L35/I35*100,0) -> 34.38 | N35: =VLOOKUP($A35,Despesas_ASPS!$N$5:$T$25,7,FALSE) -> 2,541,123,315.22 | O35: =IFERROR($N35/$I35*100,0) -> 32.22 | P35: 1,152,962,480.92
A36: 301.4 | B36: Despesas de Capital | H36: =VLOOKUP($A36,Despesas_ASPS!$N$5:$T$25,3,FALSE) -> 65,485,018.00 | I36: =VLOOKUP($A36,Despesas_ASPS!$N$5:$T$25,4,FALSE) -> 78,871,131.96 | J36: =VLOOKUP($A36,Despesas_ASPS!$N$5:$T$25,5,FALSE) -> 19,087,595.68 | K36: 24.20 | L36: =VLOOKUP($A36,Despesas_ASPS!$N$5:$T$25,6,FALSE) -> 2,496,616.71 | M36: 3.17 | N36: =VLOOKUP($A36,Despesas_ASPS!$N$5:$T$25,7,FALSE) -> 1,674,577.91 | O36: 2.12 | P36: =J36-L36 -> 16,590,978.97
A37: 302 | B37: ASSISTÊNCIA HOSPITALAR E AMBULATORIAL (V) | H37: =VLOOKUP($A37,Despesas_ASPS!$N$5:$T$25,3,FALSE) -> 6,137,512,971.00 | I37: =VLOOKUP($A37,Despesas_ASPS!$N$5:$T$25,4,FALSE) -> 6,139,967,698.24 | J37: =VLOOKUP($A37,Despesas_ASPS!$N$5:$T$25,5,FALSE) -> 3,936,211,794.95 | K37: 64.11 | L37: =VLOOKUP($A37,Despesas_ASPS!$N$5:$T$25,6,FALSE) -> 2,278,767,578.62 | M37: 37.11 | N37: =VLOOKUP($A37,Despesas_ASPS!$N$5:$T$25,7,FALSE) -> 2,208,283,538.00 | O37: 35.97 | P37: =J37-L37 -> 1,657,444,216.33
A38: 302.3 | B38: Despesas Correntes | H38: =VLOOKUP($A38,Despesas_ASPS!$N$5:$T$25,3,FALSE) -> 6,129,055,780.00 | I38: =VLOOKUP($A38,Despesas_ASPS!$N$5:$T$25,4,FALSE) -> 6,096,107,385.02 | J38: =VLOOKUP($A38,Despesas_ASPS!$N$5:$T$25,5,FALSE) -> 3,904,192,531.58 | K38: 64.04 | L38: =VLOOKUP($A38,Despesas_ASPS!$N$5:$T$25,6,FALSE) -> 2,273,713,770.90 | M38: 37.30 | N38: =VLOOKUP($A38,Despesas_ASPS!$N$5:$T$25,7,FALSE) -> 2,203,233,338.97 | O38: 36.14 | P38: 1,630,478,760.68
A39: 302.4 | B39: Despesas de Capital | H39: =VLOOKUP($A39,Despesas_ASPS!$N$5:$T$25,3,FALSE) -> 8,457,191.00 | I39: =VLOOKUP($A39,Despesas_ASPS!$N$5:$T$25,4,FALSE) -> 43,860,313.22 | J39: =VLOOKUP($A39,Despesas_ASPS!$N$5:$T$25,5,FALSE) -> 32,019,263.37 | K39: 73.00 | L39: =VLOOKUP($A39,Despesas_ASPS!$N$5:$T$25,6,FALSE) -> 5,053,807.72 | M39: 11.52 | N39: =VLOOKUP($A39,Despesas_ASPS!$N$5:$T$25,7,FALSE) -> 5,050,199.03 | O39: 11.51 | P39: 26,965,455.65
A40: 303 | B40: SUPORTE PROFILÁTICO E TERAPÊUTICO (VI) | H40: =VLOOKUP($A40,Despesas_ASPS!$N$5:$T$25,3,FALSE) -> 453,390,546.00 | I40: =VLOOKUP($A40,Despesas_ASPS!$N$5:$T$25,4,FALSE) -> 453,390,546.00 | J40: =VLOOKUP($A40,Despesas_ASPS!$N$5:$T$25,5,FALSE) -> 250,536,062.61 | K40: 55.26 | L40: =VLOOKUP($A40,Despesas_ASPS!$N$5:$T$25,6,FALSE) -> 165,478,716.92 | M40: 36.50 | N40: =VLOOKUP($A40,Despesas_ASPS!$N$5:$T$25,7,FALSE) -> 154,429,602.08 | O40: 34.06 | P40: 85,057,345.69
A41: 303.3 | B41: Despesas Correntes | H41: =VLOOKUP($A41,Despesas_ASPS!$N$5:$T$25,3,FALSE) -> 453,390,546.00 | I41: =VLOOKUP($A41,Despesas_ASPS!$N$5:$T$25,4,FALSE) -> 453,390,546.00 | J41: =VLOOKUP($A41,Despesas_ASPS!$N$5:$T$25,5,FALSE) -> 250,536,062.61 | K41: 55.26 | L41: =VLOOKUP($A41,Despesas_ASPS!$N$5:$T$25,6,FALSE) -> 165,478,716.92 | M41: 36.50 | N41: =VLOOKUP($A41,Despesas_ASPS!$N$5:$T$25,7,FALSE) -> 154,429,602.08 | O41: 34.06 | P41: 85,057,345.69
A42: 303.4 | B42: Despesas de Capital | H42: =VLOOKUP($A42,Despesas_ASPS!$N$5:$T$25,3,FALSE) -> 0 | I42: =VLOOKUP($A42,Despesas_ASPS!$N$5:$T$25,4,FALSE) -> 0 | J42: =VLOOKUP($A42,Despesas_ASPS!$N$5:$T$25,5,FALSE) -> 0 | K42: 0 | L42: =VLOOKUP($A42,Despesas_ASPS!$N$5:$T$25,6,FALSE) -> 0 | M42: 0 | N42: =VLOOKUP($A42,Despesas_ASPS!$N$5:$T$25,7,FALSE) -> 0 | O42: 0 | P42: 0
A43: 304 | B43: VIGILÂNCIA SANITÁRIA (VII) | H43: =VLOOKUP($A43,Despesas_ASPS!$N$5:$T$25,3,FALSE) -> 108,512,728.00 | I43: =VLOOKUP($A43,Despesas_ASPS!$N$5:$T$25,4,FALSE) -> 108,512,728.00 | J43: =VLOOKUP($A43,Despesas_ASPS!$N$5:$T$25,5,FALSE) -> 53,547,505.51 | K43: 49.35 | L43: =VLOOKUP($A43,Despesas_ASPS!$N$5:$T$25,6,FALSE) -> 23,976,258.95 | M43: 22.10 | N43: =VLOOKUP($A43,Despesas_ASPS!$N$5:$T$25,7,FALSE) -> 18,558,832.92 | O43: 17.10 | P43: 29,571,246.56
A44: 304.3 | B44: Despesas Correntes | H44: =VLOOKUP($A44,Despesas_ASPS!$N$5:$T$25,3,FALSE) -> 107,154,317.00 | I44: =VLOOKUP($A44,Despesas_ASPS!$N$5:$T$25,4,FALSE) -> 107,154,317.00 | J44: =VLOOKUP($A44,Despesas_ASPS!$N$5:$T$25,5,FALSE) -> 53,475,857.96 | K44: 49.91 | L44: =VLOOKUP($A44,Despesas_ASPS!$N$5:$T$25,6,FALSE) -> 23,966,103.95 | M44: 22.37 | N44: =VLOOKUP($A44,Despesas_ASPS!$N$5:$T$25,7,FALSE) -> 18,558,832.92 | O44: 17.32 | P44: 29,509,754.01
A45: 304.4 | B45: Despesas de Capital | H45: =VLOOKUP($A45,Despesas_ASPS!$N$5:$T$25,3,FALSE) -> 1,358,411.00 | I45: =VLOOKUP($A45,Despesas_ASPS!$N$5:$T$25,4,FALSE) -> 1,358,411.00 | J45: =VLOOKUP($A45,Despesas_ASPS!$N$5:$T$25,5,FALSE) -> 71,647.55 | K45: 5.27 | L45: =VLOOKUP($A45,Despesas_ASPS!$N$5:$T$25,6,FALSE) -> 10,155.00 | M45: 0.75 | N45: =VLOOKUP($A45,Despesas_ASPS!$N$5:$T$25,7,FALSE) -> 0 | O45: 0 | P45: 61,492.55
A46: 305 | B46: VIGILÂNCIA EPIDEMIOLÓGICA (VIII) | H46: =VLOOKUP($A46,Despesas_ASPS!$N$5:$T$25,3,FALSE) -> 0 | I46: =VLOOKUP($A46,Despesas_ASPS!$N$5:$T$25,4,FALSE) -> 0 | J46: =VLOOKUP($A46,Despesas_ASPS!$N$5:$T$25,5,FALSE) -> 0 | K46: 0 | L46: =VLOOKUP($A46,Despesas_ASPS!$N$5:$T$25,6,FALSE) -> 0 | M46: 0 | N46: =VLOOKUP($A46,Despesas_ASPS!$N$5:$T$25,7,FALSE) -> 0 | O46: 0 | P46: 0
A47: 305.3 | B47: Despesas Correntes | H47: =VLOOKUP($A47,Despesas_ASPS!$N$5:$T$25,3,FALSE) -> 0 | I47: =VLOOKUP($A47,Despesas_ASPS!$N$5:$T$25,4,FALSE) -> 0 | J47: =VLOOKUP($A47,Despesas_ASPS!$N$5:$T$25,5,FALSE) -> 0 | K47: 0 | L47: =VLOOKUP($A47,Despesas_ASPS!$N$5:$T$25,6,FALSE) -> 0 | M47: 0 | N47: =VLOOKUP($A47,Despesas_ASPS!$N$5:$T$25,7,FALSE) -> 0 | O47: 0 | P47: 0
A48: 305.4 | B48: Despesas de Capital | H48: =VLOOKUP($A48,Despesas_ASPS!$N$5:$T$25,3,FALSE) -> 0 | I48: =VLOOKUP($A48,Despesas_ASPS!$N$5:$T$25,4,FALSE) -> 0 | J48: =VLOOKUP($A48,Despesas_ASPS!$N$5:$T$25,5,FALSE) -> 0 | K48: 0 | L48: =VLOOKUP($A48,Despesas_ASPS!$N$5:$T$25,6,FALSE) -> 0 | M48: 0 | N48: =VLOOKUP($A48,Despesas_ASPS!$N$5:$T$25,7,FALSE) -> 0 | O48: 0 | P48: 0
A49: 306 | B49: ALIMENTAÇÃO E NUTRIÇÃO (IX) | H49: =VLOOKUP($A49,Despesas_ASPS!$N$5:$T$25,3,FALSE) -> 0 | I49: =VLOOKUP($A49,Despesas_ASPS!$N$5:$T$25,4,FALSE) -> 0 | J49: =VLOOKUP($A49,Despesas_ASPS!$N$5:$T$25,5,FALSE) -> 0 | K49: 0 | L49: =VLOOKUP($A49,Despesas_ASPS!$N$5:$T$25,6,FALSE) -> 0 | M49: 0 | N49: =VLOOKUP($A49,Despesas_ASPS!$N$5:$T$25,7,FALSE) -> 0 | O49: 0 | P49: 0
A50: 306.3 | B50: Despesas Correntes | H50: =VLOOKUP($A50,Despesas_ASPS!$N$5:$T$25,3,FALSE) -> 0 | I50: =VLOOKUP($A50,Despesas_ASPS!$N$5:$T$25,4,FALSE) -> 0 | J50: =VLOOKUP($A50,Despesas_ASPS!$N$5:$T$25,5,FALSE) -> 0 | K50: 0 | L50: =VLOOKUP($A50,Despesas_ASPS!$N$5:$T$25,6,FALSE) -> 0 | M50: 0 | N50: =VLOOKUP($A50,Despesas_ASPS!$N$5:$T$25,7,FALSE) -> 0 | O50: 0 | P50: 0
A51: 306.4 | B51: Despesas de Capital | H51: =VLOOKUP($A51,Despesas_ASPS!$N$5:$T$25,3,FALSE) -> 0 | I51: =VLOOKUP($A51,Despesas_ASPS!$N$5:$T$25,4,FALSE) -> 0 | J51: =VLOOKUP($A51,Despesas_ASPS!$N$5:$T$25,5,FALSE) -> 0 | K51: 0 | L51: =VLOOKUP($A51,Despesas_ASPS!$N$5:$T$25,6,FALSE) -> 0 | M51: 0 | N51: =VLOOKUP($A51,Despesas_ASPS!$N$5:$T$25,7,FALSE) -> 0 | O51: 0 | P51: 0
A52: Outras | B52: OUTRAS SUBFUNÇÕES (X) | H52: =VLOOKUP($A52,Despesas_ASPS!$N$5:$T$25,3,FALSE) -> 3,714,476,217.00 | I52: =VLOOKUP($A52,Despesas_ASPS!$N$5:$T$25,4,FALSE) -> 3,714,215,620.37 | J52: =VLOOKUP($A52,Despesas_ASPS!$N$5:$T$25,5,FALSE) -> 1,894,103,976.42 | K52: 51.00 | L52: =VLOOKUP($A52,Despesas_ASPS!$N$5:$T$25,6,FALSE) -> 1,068,560,022.49 | M52: 28.77 | N52: =VLOOKUP($A52,Despesas_ASPS!$N$5:$T$25,7,FALSE) -> 1,055,747,418.78 | O52: 28.42 | P52: 825,543,953.93
A53: Outras.3 | B53: Despesas Correntes | H53: =VLOOKUP($A53,Despesas_ASPS!$N$5:$T$25,3,FALSE) -> 3,704,933,694.00 | I53: =VLOOKUP($A53,Despesas_ASPS!$N$5:$T$25,4,FALSE) -> 3,704,707,971.37 | J53: =VLOOKUP($A53,Despesas_ASPS!$N$5:$T$25,5,FALSE) -> 1,893,944,573.10 | K53: 51.12 | L53: =VLOOKUP($A53,Despesas_ASPS!$N$5:$T$25,6,FALSE) -> 1,068,543,107.79 | M53: 28.84 | N53: =VLOOKUP($A53,Despesas_ASPS!$N$5:$T$25,7,FALSE) -> 1,055,744,725.80 | O53: 28.50 | P53: 825,401,465.31
A54: Outras.4 | B54: Despesas de Capital | H54: =VLOOKUP($A54,Despesas_ASPS!$N$5:$T$25,3,FALSE) -> 9,542,523.00 | I54: =VLOOKUP($A54,Despesas_ASPS!$N$5:$T$25,4,FALSE) -> 9,507,649.00 | J54: =VLOOKUP($A54,Despesas_ASPS!$N$5:$T$25,5,FALSE) -> 159,403.32 | K54: 1.68 | L54: =VLOOKUP($A54,Despesas_ASPS!$N$5:$T$25,6,FALSE) -> 16,914.70 | M54: 0.18 | N54: =VLOOKUP($A54,Despesas_ASPS!$N$5:$T$25,7,FALSE) -> 2,692.98 | O54: 0.03 | P54: 142,488.62
B55: TOTAL (XI) = (IV + V + VI + VII + VIII + IX + X) | H55: =SUM(H34,H37,H40,H43,H46,H49,H52) -> 18,367,655,908.00 | I55: =SUM(I34,I37,I40,I43,I46,I49,I52) -> 18,381,155,962.62 | J55: =SUM(J34,J37,J40,J43,J46,J49,J52) -> 10,018,017,227.21 | K55: =IFERROR(J55/I55*100,0) -> 54.50 | L55: =SUM(L34,L37,L40,L43,L46,L49,L52) -> 6,250,847,004.81 | M55: =IFERROR(L55/I55*100,0) -> 34.01 | N55: =SUM(N34,N37,N40,N43,N46,N49,N52) -> 5,979,817,284.91 | O55: 32.53 | P55: =SUM(P34,P37,P40,P43,P46,P49,P52) -> 3,767,170,222.40
B58: APURAÇÃO DO CUMPRIMENTO DO LIMITE MÍNIMO PARA APLICAÇÃO EM ASPS | K58: DESPESAS EMPENHADAS (d) | M58: DESPESAS LIQUIDADAS (e) | O58: DESPESAS PAGAS (f)
B59: Total das Despesas com ASPS (XII) = (XI) | K59: =J55 -> 10,018,017,227.21 | M59: =L55 -> 6,250,847,004.81 | O59: =N55 -> 5,979,817,284.91
B60: (-) Restos a Pagar Não Processados Inscritos Indevidamente no Exercício sem Disponibilidade Financeira (XIII) | K60: =$O88 -> 0 | M60: =$O88 -> 0 | O60: =$O88 -> 0
B61: (-) Despesas Custeadas com Recursos Vinculados à Parcela do Percentual Mínimo que não foi Aplicada em ASPS em Exercícios Anteriores (XIV) | K61: =K93 -> 0 | M61: =M93 -> 0 | O61: =O93 -> 0
B62: (-) Despesas Custeadas com Disponibilidade de Caixa Vinculada aos Restos a Pagar Cancelados (XV) | I62: , | K62: =K94 -> 0 | M62: =M94 -> 0 | O62: =O94 -> 0
B63: (=) VALOR APLICADO EM ASPS (XVI) = (XII - XIII - XIV - XV) | K63: =K59-K60-K61-K62 -> 10,018,017,227.21 | M63: =M59-M60-M61-M62 -> 6,250,847,004.81 | O63: =O59-O60-O61-O62 -> 5,979,817,284.91
B64: Despesa Mínima a ser Aplicada em ASPS (XVII) = (III) x 15% (LC 141/2012) | K64: 0 | M64: =L30*15% -> 4,490,211,695.15 | O64: 0
B65: Despesa Mínima a ser Aplicada em ASPS (XVII) = (III) x % (Lei Orgânica Municipal) | O65: 0
B66: Diferença entre o Valor Aplicado e a Despesa Mínima a ser Aplicada (XVIII) = (XVI (h ou i ) - XVII)1 | K66: 0 | M66: =M63-M64 -> 1,760,635,309.66 | O66: 0
B67: Limite não Cumprido (XIX) = (XVIII) (Quando valor for inferior a zero) | M67: =IF(M66<0,M66,0) -> 0 | O67: 0
B68: PERCENTUAL DA RECEITA DE IMPOSTOS E TRANSFERÊNCIAS CONSTITUCIONAIS E LEGAIS APLICADO EM ASPS1 (XVI / III)*100 (mínimo de 15%conforme LC nº 141/2012 ou % da Lei Orgânica Municipal) | M68: =M63/L30 -> 20.88%
B70: CONTROLE DO VALOR REFERENTE AO PERCENTUAL MÍNIMO NÃO CUMPRIDO EM EXERCÍCIOS ANTERIORES PARA FINS DE APLICAÇÃO DOS RECURSOS VINCULADOS CONFORME ARTIGOS 25 E 26 DA LC 141/2012 | J70: LIMITE NÃO CUMPRIDO
J71: Saldo Inicial (no exercicio atual) (h) | L71: Despesas Custeadas no Exercício de Referência | O71: Saldo Final (não aplicado)¹ (l = h - (i ou j))
L72: Empenhadas (i) | M72: Liquidadas (j) | N72: Pagas (k)
B73: Diferença de limite não cumprido em 2023 (saldo final = XIXd) | J73: 0 | L73: 0 | M73: 0 | N73: 0 | O73: 0
B74: Diferença de limite não cumprido em 2022 (saldo inicial igual ao saldo final do demonstrativo do exercício anterior) | J74: 0 | L74: 0 | M74: 0 | N74: 0 | O74: 0
B75: Diferença de limite não cumprido em Exercícios Anteriores (saldo inicial igual ao saldo final do demonstrativo do exercício anterior) | J75: 0 | L75: 0 | M75: 0 | N75: 0 | O75: 0
B76: TOTAL DA DIFERENÇA DE LIMITE NÃO CUMPRIDO EM EXERCÍCIOS ANTERIORES (XX) | J76: =SUM(J73:J75) -> 0 | L76: =SUM(L73:L75) -> 0 | M76: =SUM(M73:M75) -> 0 | N76: =SUM(N73:N75) -> 0 | O76: 0
B78: EXECUÇÃO DE RESTOS A PAGAR
A79: MDF 14ª ed.: Os valores devem ser demonstrados por exercício de inscrição em restos a pagar até o quarto exercício anterior ao de referência e os valores correspondentes a períodos anteriores (do quinto exercício anterior ao de referência para trás) devem ser demonstrados na linha de somatório de exercícios anteriores. | B79: EXERCÍCIO DO EMPENHO2 | C79: Valor Mínimo para aplicação em ASPS (m) | E79: Valor aplicado em ASPS no exercício (n) | F79: Valor aplicado além do limite mínimo (o) = (n - m), se < 0, então (o) = 0 | G79: Total inscrito em RP no exercício (p) | H79: RPNP Inscritos Indevidamente no Exercício sem Disponibilidade Financeira q = (XIIId) | I79: Valor inscrito em RP considerado no Limite (r) = (p - (o + q)) se < 0, então (r) = (0) | J79: Total de RP pagos (s) | K79: Total de RP a pagar (t) | M79: Total de RP cancelados ou prescritos (u) | O79: Diferença entre o valor aplicado além do limite e o total de RP cancelados (v) = ((o + q) - u))
A80: Acompanhamento de Restos a Pagar - SOF (Execução Orç) | B80: Empenhos de 2024 | C80: 11,542,872,922.33 | E80: 18,550,376,342.94 | F80: =IF(E80-C80<0, 0, E80-C80) -> 7,007,503,420.61 | G80: =RP_Consolidado!B36 -> 534,794,020.96 | H80: 0 | I80: =IF(G80-(F80+H80)<0, 0, G80-(F80+H80)) -> 0 | J80: =RP_Consolidado!C36 -> 391,776,702.87 | K80: =RP_Consolidado!D36 -> 5,438,303.55 | M80: =RP_Consolidado!E36 -> 137,579,014.54 | O80: =(F80+H80)-M80 -> 6,869,924,406.07
B81: Empenhos de 2023 | C81: 9,827,611,826.72 | E81: 16,771,704,548.55 | F81: 6,944,092,721.83 | G81: =RP_Consolidado!B37 -> 60,482.44 | H81: 0 | I81: =IF(G81-(F81+H81)<0, 0, G81-(F81+H81)) -> 0 | J81: =RP_Consolidado!C37 -> 274.68 | K81: =RP_Consolidado!D37 -> 60,207.76 | M81: =RP_Consolidado!E37 -> 0 | O81: =(F81+H81)-M81 -> 6,944,092,721.83
B82: Empenhos de 2022 | C82: 9,169,549,735.47 | E82: 14,550,500,211.74 | F82: 5,380,950,476.27 | G82: =RP_Consolidado!B38 -> 32,479.42 | H82: 0 | I82: 0 | J82: =RP_Consolidado!C38 -> 1,103.57 | K82: =RP_Consolidado!D38 -> 31,375.85 | M82: =RP_Consolidado!E38 -> 0 | O82: =(F82+H82)-M82 -> 5,380,950,476.27
B83: Empenhos de 2021 | C83: 8,382,243,341.24 | E83: 11,899,121,093.14 | F83: 3,516,877,751.90 | G83: =RP_Consolidado!B39 -> 283,546.52 | H83: 0 | I83: 0 | J83: =RP_Consolidado!C39 -> 0 | K83: =RP_Consolidado!D39 -> 283,546.52 | M83: =RP_Consolidado!E39 -> 0 | O83: =(F83+H83)-M83 -> 3,516,877,751.90
B84: Empenhos de 2020 e anteriores | C84: 6,810,051,380.06 | E84: 9,891,504,285.11 | F84: 3,081,452,905.06 | G84: =RP_Consolidado!B40 -> 200,223.94 | H84: 0 | I84: 0 | J84: =RP_Consolidado!C40 -> 0 | K84: =RP_Consolidado!D40 -> 200,223.94 | M84: =RP_Consolidado!E40 -> 0 | O84: =(F84+H84)-M84 -> 3,081,452,905.06
B86: TOTAL DOS RESTOS A PAGAR CANCELADOS OU PRESCRITOS ATÉ O FINAL DO EXERCÍCIO ATUAL QUE AFETARAM O CUMPRIMENTO DO LIMITE (XXI) (soma dos saldos negativos da coluna "v") | O86: =SUMIF(O80:Q84, "<0", O80:Q84) -> 0
B87: TOTAL DOS RESTOS A PAGAR CANCELADOS OU PRESCRITOS ATÉ O FINAL DO EXERCÍCIO ANTERIOR QUE AFETARAM O CUMPRIMENTO DO LIMITE (XXII) (valor informado no demonstrativo do exercício anterior) | O87: 0
B88: TOTAL DOS RESTOS A PAGAR CANCELADOS OU PRESCRITOS NO EXERCÍCIO ATUAL QUE AFETARAM O CUMPRIMENTO DO LIMITE (XXIII) = (XXI - XXII) (Artigo 24 § 1º e 2º da LC 141/2012) | O88: =O86-O87 -> 0
B90: CONTROLE DE RESTOS A PAGAR CANCELADOS OU PRESCRITOS CONSIDERADOS PARA FINS DE APLICAÇÃO DA DISPONIBILIDADE DE CAIXA CONFORME ARTIGO 24§ 1º e 2º DA LC 141/2012 | J90: RESTOS A PAGAR CANCELADOS OU PRESCRITOS
J91: Saldo Inicial (w) | L91: Despesas Custeadas no Exercício de Referência | O91: Saldo Final (não aplicado)1 (aa) = (w - (x ou y))
L92: Empenhadas (x) | M92: Liquidadas (y) | N92: Pagas (z)
B93: Restos a pagar cancelados ou prescritos em 2023 a serem compensados (XXIV) (saldo inicial = XXIII) | J93: =O88 -> 0 | L93: 0 | M93: 0 | N93: 0 | O93: =J93-M93 -> 0
B94: Restos a pagar cancelados ou prescritos em 2022 a serem compensados (XXV) (saldo inicial igual ao saldo final do demonstrativo do exercício anterior) | J94: 0 | L94: 0 | M94: 0 | N94: 0 | O94: =J94-M94 -> 0
B95: Restos a pagar cancelados ou prescritos em exercícios anteriores a serem compensados (XXVI) (saldo inicial igual ao saldo final do demonstrativo do exercício anterior) | J95: 0 | L95: 0 | M95: 0 | N95: 0 | O95: =J95-M95 -> 0
B96: TOTAL DE RESTOS A PAGAR CANCELADOS OU PRESCRITOS A COMPENSAR (XXVII) | J96: 0 | L96: 0 | M96: 0 | N96: 0 | O96: =J96-M96 -> 0
B98: RECEITAS ADICIONAIS PARA O FINANCIAMENTO DA SAÚDE NÃO COMPUTADAS NO CÁLCULO DO MÍNIMO | H98: PREVISÃO INICIAL | J98: PREVISÃO ATUALIZADA (a) | L98: RECEITAS REALIZADAS
L99: Até o Bimestre (b) | O99: % (b/a)x100
B100: RECEITAS DE TRANSFERÊNCIAS PARA A SAÚDE (XXVIII) | H100: =VLOOKUP($B100,Receita_Consolidada!$B:$F,2,0) -> 3,412,517,389.00 | J100: =VLOOKUP($B100,Receita_Consolidada!$B:$F,3,0) -> 3,412,665,675.99 | L100: =VLOOKUP($B100,Receita_Consolidada!$B:$F,4,0) -> 1,145,146,292.82 | O100: =L100/J100*100 -> 33.56
B101: Proveniente da União | H101: =VLOOKUP($B101,Receita_Consolidada!$B:$F,2,0) -> 3,393,012,989.00 | J101: =VLOOKUP($B101,Receita_Consolidada!$B:$F,3,0) -> 3,393,012,989.00 | L101: =VLOOKUP($B101,Receita_Consolidada!$B:$F,4,0) -> 1,136,190,847.66 | O101: =L101/J101*100 -> 33.49
B102: Proveniente dos Estados | H102: =VLOOKUP($B102,Receita_Consolidada!$B:$F,2,0) -> 19,504,400.00 | J102: =VLOOKUP($B102,Receita_Consolidada!$B:$F,3,0) -> 19,652,686.99 | L102: =VLOOKUP($B102,Receita_Consolidada!$B:$F,4,0) -> 8,955,445.16 | O102: =IFERROR(L102/J102*100,0) -> 45.57
B103: Proveniente de outros Municípios | H103: =VLOOKUP($B103,Receita_Consolidada!$B:$F,2,0) -> 0 | J103: =VLOOKUP($B103,Receita_Consolidada!$B:$F,3,0) -> 0 | L103: =VLOOKUP($B103,Receita_Consolidada!$B:$F,4,0) -> 0 | O103: =IFERROR(L103/J103*100,0) -> 0
B104: RECEITA DE OPERAÇÕES DE CRÉDITO INTERNAS E EXTERNAS VINCULADAS A SAÚDE (XXIX) | H104: =VLOOKUP($B104,Receita_Consolidada!$B:$F,2,0) -> 0 | J104: =VLOOKUP($B104,Receita_Consolidada!$B:$F,3,0) -> 0 | L104: =VLOOKUP($B104,Receita_Consolidada!$B:$F,4,0) -> 31,517.85 | O104: =IFERROR(L104/J104*100,0) -> 0
B105: OUTRAS RECEITAS (XXX) | H105: =VLOOKUP($B105,Receita_Consolidada!$B:$F,2,0) -> 23,840,033.00 | J105: =VLOOKUP($B105,Receita_Consolidada!$B:$F,3,0) -> 23,840,033.00 | L105: =VLOOKUP($B105,Receita_Consolidada!$B:$F,4,0) -> 14,262,943.00 | O105: =IFERROR(L105/J105*100,0) -> 59.83
B106: TOTAL DE RECEITAS ADICIONAIS PARA FINANCIAMENTO DA SAÚDE (XXXI) = (XXVIII + XXIX + XXX) | H106: =H100+H104+H105 -> 3,436,357,422.00 | J106: =H106 -> 3,436,357,422.00 | L106: =L100+L104+L105 -> 1,159,440,753.67 | O106: =L106/J106*100 -> 33.74
B108: DESPESAS COM SAÚDE NÃO COMPUTADAS NO CÁLCULO DO MÍNIMO
B109: DESPESAS COM SAUDE POR SUBFUNÇÕES E CATEGORIA ECONÔMICA NÃO COMPUTADAS NO CÁLCULO DO MÍNIMO | H109: DOTAÇÃO INICIAL | I109: DOTAÇÃO ATUALIZADA (c) | J109: DESPESAS EMPENHADAS | L109: DESPESAS LIQUIDADAS | N109: DESPESAS PAGAS | P109: Inscritas em Restos a Pagar Não Processados (g)
J110: Até o bimestre (d) | K110: % (d/c) x 100 | L110: Até o bimestre (e) | M110: % (e/c) x 100 | N110: Até o bimestre (f) | O110: % (f/c) x 100
A111: 301 | B111: ATENÇÃO BÁSICA (XXXII) | H111: =VLOOKUP($A111,OutrasDespesas!$N:$T,3,FALSE) -> 1,608,755,340.00 | I111: =VLOOKUP($A111,OutrasDespesas!$N:$T,4,FALSE) -> 1,561,167,399.70 | J111: =VLOOKUP($A111,OutrasDespesas!$N:$T,5,FALSE) -> 656,850,256.02 | K111: =J111/I111*100 -> 42.07 | L111: =VLOOKUP($A111,OutrasDespesas!$N:$T,6,FALSE) -> 496,499,185.94 | M111: =IFERROR(L111/I111*100,0) -> 31.80 | N111: =VLOOKUP($A111,OutrasDespesas!$N:$T,7,FALSE) -> 414,673,901.73 | O111: =IFERROR(N111/I111*100,0) -> 26.56 | P111: =J111-L111 -> 160,351,070.08
A112: 301.3 | B112: Despesas Correntes | H112: =VLOOKUP($A112,OutrasDespesas!$N:$T,3,FALSE) -> 1,371,704,400.00 | I112: =VLOOKUP($A112,OutrasDespesas!$N:$T,4,FALSE) -> 1,437,494,597.07 | J112: =VLOOKUP($A112,OutrasDespesas!$N:$T,5,FALSE) -> 614,526,080.75 | K112: =J112/I112*100 -> 42.75 | L112: =VLOOKUP($A112,OutrasDespesas!$N:$T,6,FALSE) -> 484,905,907.86 | M112: =IFERROR(L112/I112*100,0) -> 33.73 | N112: =VLOOKUP($A112,OutrasDespesas!$N:$T,7,FALSE) -> 412,580,321.14 | O112: =IFERROR(N112/I112*100,0) -> 28.70 | P112: =J112-L112 -> 129,620,172.89
A113: 301.4 | B113: Despesas de Capital | H113: =VLOOKUP($A113,OutrasDespesas!$N:$T,3,FALSE) -> 237,050,940.00 | I113: =VLOOKUP($A113,OutrasDespesas!$N:$T,4,FALSE) -> 123,672,802.63 | J113: =VLOOKUP($A113,OutrasDespesas!$N:$T,5,FALSE) -> 42,324,175.27 | K113: 34.22 | L113: =VLOOKUP($A113,OutrasDespesas!$N:$T,6,FALSE) -> 11,593,278.08 | M113: 9.37 | N113: =VLOOKUP($A113,OutrasDespesas!$N:$T,7,FALSE) -> 2,093,580.59 | O113: 1.69 | P113: =J113-L113 -> 30,730,897.19
A114: 302 | B114: ASSISTÊNCIA HOSPITALAR E AMBULATORIAL (XXXIII) | H114: =VLOOKUP($A114,OutrasDespesas!$N:$T,3,FALSE) -> 2,250,408,867.00 | I114: =VLOOKUP($A114,OutrasDespesas!$N:$T,4,FALSE) -> 2,555,024,150.55 | J114: =VLOOKUP($A114,OutrasDespesas!$N:$T,5,FALSE) -> 1,493,723,256.12 | K114: 58.46 | L114: =VLOOKUP($A114,OutrasDespesas!$N:$T,6,FALSE) -> 652,748,383.68 | M114: 25.55 | N114: =VLOOKUP($A114,OutrasDespesas!$N:$T,7,FALSE) -> 603,135,964.45 | O114: 23.61 | P114: 840,974,872.44
A115: 302.3 | B115: Despesas Correntes | H115: =VLOOKUP($A115,OutrasDespesas!$N:$T,3,FALSE) -> 2,198,935,187.00 | I115: =VLOOKUP($A115,OutrasDespesas!$N:$T,4,FALSE) -> 2,379,196,555.50 | J115: =VLOOKUP($A115,OutrasDespesas!$N:$T,5,FALSE) -> 1,471,405,501.15 | K115: 61.84 | L115: =VLOOKUP($A115,OutrasDespesas!$N:$T,6,FALSE) -> 648,193,911.37 | M115: 27.24 | N115: =VLOOKUP($A115,OutrasDespesas!$N:$T,7,FALSE) -> 601,835,342.03 | O115: 25.30 | P115: 823,211,589.78
A116: 302.4 | B116: Despesas de Capital | H116: =VLOOKUP($A116,OutrasDespesas!$N:$T,3,FALSE) -> 51,473,680.00 | I116: =VLOOKUP($A116,OutrasDespesas!$N:$T,4,FALSE) -> 175,827,595.05 | J116: =VLOOKUP($A116,OutrasDespesas!$N:$T,5,FALSE) -> 22,317,754.97 | K116: 12.69 | L116: =VLOOKUP($A116,OutrasDespesas!$N:$T,6,FALSE) -> 4,554,472.31 | M116: 2.59 | N116: =VLOOKUP($A116,OutrasDespesas!$N:$T,7,FALSE) -> 1,300,622.42 | O116: 0.74 | P116: 17,763,282.66
A117: 303 | B117: SUPORTE PROFILÁTICO E TERAPÊUTICO (XXXIV) | H117: =VLOOKUP($A117,OutrasDespesas!$N:$T,3,FALSE) -> 159,906,600.00 | I117: =VLOOKUP($A117,OutrasDespesas!$N:$T,4,FALSE) -> 185,815,319.35 | J117: =VLOOKUP($A117,OutrasDespesas!$N:$T,5,FALSE) -> 82,517,585.38 | K117: 44.41 | L117: =VLOOKUP($A117,OutrasDespesas!$N:$T,6,FALSE) -> 66,944,937.83 | M117: 36.03 | N117: =VLOOKUP($A117,OutrasDespesas!$N:$T,7,FALSE) -> 58,782,269.01 | O117: 31.63 | P117: 15,572,647.55
A118: 303.3 | B118: Despesas Correntes | H118: =VLOOKUP($A118,OutrasDespesas!$N:$T,3,FALSE) -> 159,906,600.00 | I118: =VLOOKUP($A118,OutrasDespesas!$N:$T,4,FALSE) -> 185,815,319.35 | J118: =VLOOKUP($A118,OutrasDespesas!$N:$T,5,FALSE) -> 82,517,585.38 | K118: 44.41 | L118: =VLOOKUP($A118,OutrasDespesas!$N:$T,6,FALSE) -> 66,944,937.83 | M118: 36.03 | N118: =VLOOKUP($A118,OutrasDespesas!$N:$T,7,FALSE) -> 58,782,269.01 | O118: 31.63 | P118: 15,572,647.55
A119: 303.4 | B119: Despesas de Capital | H119: =VLOOKUP($A119,OutrasDespesas!$N:$T,3,FALSE) -> 0 | I119: =VLOOKUP($A119,OutrasDespesas!$N:$T,4,FALSE) -> 0 | J119: =VLOOKUP($A119,OutrasDespesas!$N:$T,5,FALSE) -> 0 | K119: =IFERROR(J119/I119*100,0) -> 0 | L119: =VLOOKUP($A119,OutrasDespesas!$N:$T,6,FALSE) -> 0 | M119: 0 | N119: =VLOOKUP($A119,OutrasDespesas!$N:$T,7,FALSE) -> 0 | O119: 0 | P119: 0
A120: 304 | B120: VIGILÂNCIA SANITÁRIA (XXXV) | H120: =VLOOKUP($A120,OutrasDespesas!$N:$T,3,FALSE) -> 194,560,792.00 | I120: =VLOOKUP($A120,OutrasDespesas!$N:$T,4,FALSE) -> 274,181,059.06 | J120: =VLOOKUP($A120,OutrasDespesas!$N:$T,5,FALSE) -> 151,108,048.31 | K120: 55.11 | L120: =VLOOKUP($A120,OutrasDespesas!$N:$T,6,FALSE) -> 49,100,762.95 | M120: 17.91 | N120: =VLOOKUP($A120,OutrasDespesas!$N:$T,7,FALSE) -> 47,601,204.09 | O120: 17.36 | P120: 102,007,285.36
A121: 304.3 | B121: Despesas Correntes | H121: =VLOOKUP($A121,OutrasDespesas!$N:$T,3,FALSE) -> 185,068,592.00 | I121: =VLOOKUP($A121,OutrasDespesas!$N:$T,4,FALSE) -> 263,290,874.68 | J121: =VLOOKUP($A121,OutrasDespesas!$N:$T,5,FALSE) -> 149,817,479.68 | K121: 56.90 | L121: =VLOOKUP($A121,OutrasDespesas!$N:$T,6,FALSE) -> 49,037,735.49 | M121: 18.62 | N121: =VLOOKUP($A121,OutrasDespesas!$N:$T,7,FALSE) -> 47,541,587.19 | O121: 18.06 | P121: 100,779,744.19
A122: 304.4 | B122: Despesas de Capital | H122: =VLOOKUP($A122,OutrasDespesas!$N:$T,3,FALSE) -> 9,492,200.00 | I122: =VLOOKUP($A122,OutrasDespesas!$N:$T,4,FALSE) -> 10,890,184.38 | J122: =VLOOKUP($A122,OutrasDespesas!$N:$T,5,FALSE) -> 1,290,568.63 | K122: 11.85 | L122: =VLOOKUP($A122,OutrasDespesas!$N:$T,6,FALSE) -> 63,027.46 | M122: 0.58 | N122: =VLOOKUP($A122,OutrasDespesas!$N:$T,7,FALSE) -> 59,616.90 | O122: 0.55 | P122: 1,227,541.17
A123: 305 | B123: VIGILÂNCIA EPIDEMIOLÓGICA (XXXVI) | H123: =VLOOKUP($A123,OutrasDespesas!$N:$T,3,FALSE) -> 0 | I123: =VLOOKUP($A123,OutrasDespesas!$N:$T,4,FALSE) -> 0 | J123: =VLOOKUP($A123,OutrasDespesas!$N:$T,5,FALSE) -> 0 | K123: =IFERROR(J123/I123*100,0) -> 0 | L123: =VLOOKUP($A123,OutrasDespesas!$N:$T,6,FALSE) -> 0 | M123: 0 | N123: =VLOOKUP($A123,OutrasDespesas!$N:$T,7,FALSE) -> 0 | O123: 0 | P123: 0
A124: 305.3 | B124: Despesas Correntes | H124: =VLOOKUP($A124,OutrasDespesas!$N:$T,3,FALSE) -> 0 | I124: =VLOOKUP($A124,OutrasDespesas!$N:$T,4,FALSE) -> 0 | J124: =VLOOKUP($A124,OutrasDespesas!$N:$T,5,FALSE) -> 0 | K124: 0 | L124: =VLOOKUP($A124,OutrasDespesas!$N:$T,6,FALSE) -> 0 | M124: 0 | N124: =VLOOKUP($A124,OutrasDespesas!$N:$T,7,FALSE) -> 0 | O124: 0 | P124: 0
A125: 305.4 | B125: Despesas de Capital | H125: =VLOOKUP($A125,OutrasDespesas!$N:$T,3,FALSE) -> 0 | I125: =VLOOKUP($A125,OutrasDespesas!$N:$T,4,FALSE) -> 0 | J125: =VLOOKUP($A125,OutrasDespesas!$N:$T,5,FALSE) -> 0 | K125: 0 | L125: =VLOOKUP($A125,OutrasDespesas!$N:$T,6,FALSE) -> 0 | M125: 0 | N125: =VLOOKUP($A125,OutrasDespesas!$N:$T,7,FALSE) -> 0 | O125: 0 | P125: 0
A126: 306 | B126: ALIMENTAÇÃO E NUTRIÇÃO (XXXVII) | H126: =VLOOKUP($A126,OutrasDespesas!$N:$T,3,FALSE) -> 0 | I126: =VLOOKUP($A126,OutrasDespesas!$N:$T,4,FALSE) -> 0 | J126: =VLOOKUP($A126,OutrasDespesas!$N:$T,5,FALSE) -> 0 | K126: 0 | L126: =VLOOKUP($A126,OutrasDespesas!$N:$T,6,FALSE) -> 0 | M126: 0 | N126: =VLOOKUP($A126,OutrasDespesas!$N:$T,7,FALSE) -> 0 | O126: 0 | P126: 0
A127: 306.3 | B127: Despesas Correntes | H127: =VLOOKUP($A127,OutrasDespesas!$N:$T,3,FALSE) -> 0 | I127: =VLOOKUP($A127,OutrasDespesas!$N:$T,4,FALSE) -> 0 | J127: =VLOOKUP($A127,OutrasDespesas!$N:$T,5,FALSE) -> 0 | K127: 0 | L127: =VLOOKUP($A127,OutrasDespesas!$N:$T,6,FALSE) -> 0 | M127: 0 | N127: =VLOOKUP($A127,OutrasDespesas!$N:$T,7,FALSE) -> 0 | O127: 0 | P127: 0
A128: 306.4 | B128: Despesas de Capital | H128: =VLOOKUP($A128,OutrasDespesas!$N:$T,3,FALSE) -> 0 | I128: =VLOOKUP($A128,OutrasDespesas!$N:$T,4,FALSE) -> 0 | J128: =VLOOKUP($A128,OutrasDespesas!$N:$T,5,FALSE) -> 0 | K128: 0 | L128: =VLOOKUP($A128,OutrasDespesas!$N:$T,6,FALSE) -> 0 | M128: 0 | N128: =VLOOKUP($A128,OutrasDespesas!$N:$T,7,FALSE) -> 0 | O128: 0 | P128: 0
A129: Outras | B129: OUTRAS SUBFUNÇÕES (XXXVIII) | H129: =VLOOKUP($A129,OutrasDespesas!$N:$T,3,FALSE) -> 371,161,914.00 | I129: =VLOOKUP($A129,OutrasDespesas!$N:$T,4,FALSE) -> 416,194,346.57 | J129: =VLOOKUP($A129,OutrasDespesas!$N:$T,5,FALSE) -> 131,680,813.81 | K129: 31.64 | L129: =VLOOKUP($A129,OutrasDespesas!$N:$T,6,FALSE) -> 109,391,850.10 | M129: 26.28 | N129: =VLOOKUP($A129,OutrasDespesas!$N:$T,7,FALSE) -> 108,746,998.68 | O129: 26.13 | P129: 22,288,963.71
A130: Outras.3 | B130: Despesas Correntes | H130: =VLOOKUP($A130,OutrasDespesas!$N:$T,3,FALSE) -> 366,660,914.00 | I130: =VLOOKUP($A130,OutrasDespesas!$N:$T,4,FALSE) -> 397,934,171.55 | J130: =VLOOKUP($A130,OutrasDespesas!$N:$T,5,FALSE) -> 129,147,063.57 | K130: 32.45 | L130: =VLOOKUP($A130,OutrasDespesas!$N:$T,6,FALSE) -> 108,806,129.41 | M130: 27.34 | N130: =VLOOKUP($A130,OutrasDespesas!$N:$T,7,FALSE) -> 108,258,376.87 | O130: 27.21 | P130: 20,340,934.16
A131: Outras.4 | B131: Despesas de Capital | H131: =VLOOKUP($A131,OutrasDespesas!$N:$T,3,FALSE) -> 4,501,000.00 | I131: =VLOOKUP($A131,OutrasDespesas!$N:$T,4,FALSE) -> 18,260,175.02 | J131: =VLOOKUP($A131,OutrasDespesas!$N:$T,5,FALSE) -> 2,533,750.24 | K131: 13.88 | L131: =VLOOKUP($A131,OutrasDespesas!$N:$T,6,FALSE) -> 585,720.69 | M131: 3.21 | N131: =VLOOKUP($A131,OutrasDespesas!$N:$T,7,FALSE) -> 488,621.81 | O131: 2.68 | P131: 1,948,029.55
B132: TOTAL DAS DESPESAS NÃO COMPUTADAS NO CÁLCULO DO MÍNIMO (XXXIX) = (XXXII + XXXIII + XXXIV + XXXV + XXXVI + XXXVII + XXXVIII) | H132: =SUM(H111,H114,H117,H120,H123,H126,H129) -> 4,584,793,513.00 | I132: =SUM(I111,I114,I117,I120,I123,I126,I129) -> 4,992,382,275.23 | J132: =SUM(J111,J114,J117,J120,J123,J126,J129) -> 2,515,879,959.64 | K132: =J132/I132*100 -> 50.39 | L132: =SUM(L111,L114,L117,L120,L123,L126,L129) -> 1,374,685,120.50 | M132: =L132/I132*100 -> 27.54 | N132: =SUM(N111,N114,N117,N120,N123,N126,N129) -> 1,232,940,337.96 | O132: =N132/I132*100 -> 24.70 | P132: =SUM(P111,P114,P117,P120,P123,P126,P129) -> 1,141,194,839.14
B134: DESPESAS TOTAIS COM SAÚDE | H134: DOTAÇÃO INICIAL | I134: DOTAÇÃO ATUALIZADA (c) | J134: DESPESAS EMPENHADAS | L134: DESPESAS LIQUIDADAS | N134: DESPESAS PAGAS | P134: Inscritas em Restos a Pagar Não Processados (g)
B135: (Computadas e não computadas no cálculo do limite mínimo) | J135: Até o bimestre (d) | K135: % (d/c) x 100 | L135: Até o bimestre (e) | M135: % (e/c) x 100 | N135: Até o bimestre (f) | O135: % (f/c) x 100
A136: 301 | B136: ATENÇÃO BÁSICA (XL) = (IV + XXXII) | H136: =VLOOKUP($A136,$A$34:$O$54,8,FALSE)+VLOOKUP($A136,$A$111:$O$131,8,FALSE) -> 9,562,518,786.00 | I136: =VLOOKUP($A136,$A$34:$O$54,9,FALSE)+VLOOKUP($A136,$A$111:$O$131,9,FALSE) -> 9,526,236,769.71 | J136: =VLOOKUP($A136,$A$34:$O$54,10,FALSE)+VLOOKUP($A136,$A$111:$O$131,10,FALSE) -> 4,540,468,143.74 | K136: =J136/I136*100 -> 47.66 | L136: =VLOOKUP($A136,$A$34:$O$54,12,FALSE)+VLOOKUP($A136,$A$111:$O$131,12,FALSE) -> 3,210,563,613.77 | M136: =L136/I136*100 -> 33.70 | N136: =VLOOKUP($A136,$A$34:$O$54,14,FALSE)+VLOOKUP($A136,$A$111:$O$131,14,FALSE) -> 2,957,471,794.86 | O136: =N136/I136*100 -> 31.05 | P136: =J136-L136 -> 1,329,904,529.97
A137: 302 | B137: ASSISTÊNCIA HOSPITALAR E AMBULATORIAL (XLI) = (V + XXXIII) | H137: 8,387,921,838.00 | I137: 8,694,991,848.79 | J137: 5,429,935,051.07 | K137: =J137/I137*100 -> 62.45 | L137: 2,931,515,962.30 | M137: =L137/I137*100 -> 33.71 | N137: 2,811,419,502.45 | O137: =N137/I137*100 -> 32.33 | P137: =J137-L137 -> 2,498,419,088.77
A138: 303 | B138: SUPORTE PROFILÁTICO E TERAPÊUTICO (XLII) = (VI + XXXIV) | H138: 613,297,146.00 | I138: 639,205,865.35 | J138: 333,053,647.99 | K138: =J138/I138*100 -> 52.10 | L138: 232,423,654.75 | M138: =L138/I138*100 -> 36.36 | N138: 213,211,871.09 | O138: =N138/I138*100 -> 33.36 | P138: 100,629,993.24
A139: 304 | B139: VIGILÂNCIA SANITÁRIA (XLIII) = (VII + XXXV) | H139: 303,073,520.00 | I139: 382,693,787.06 | J139: 204,655,553.82 | K139: =J139/I139*100 -> 53.48 | L139: 73,077,021.90 | M139: =L139/I139*100 -> 19.10 | N139: 66,160,037.01 | O139: =N139/I139*100 -> 17.29 | P139: 131,578,531.92
A140: 305 | B140: VIGILÂNCIA EPIDEMIOLÓGICA (XLIV) = (VIII + XXXVI) | H140: 0 | I140: 0 | J140: 0 | K140: =IFERROR(J140/I140*100,0) -> 0 | L140: 0 | M140: =IFERROR(L140/I140*100,0) -> 0 | N140: 0 | O140: =IFERROR(N140/I140*100,0) -> 0 | P140: 0
A141: 306 | B141: ALIMENTAÇÃO E NUTRIÇÃO (XLV) = (IX + XXXVII) | H141: 0 | I141: 0 | J141: 0 | K141: =IFERROR(J141/I141*100,0) -> 0 | L141: 0 | M141: =IFERROR(L141/I141*100,0) -> 0 | N141: 0 | O141: =IFERROR(N141/I141*100,0) -> 0 | P141: 0
A142: Outras | B142: OUTRAS SUBFUNÇÕES (XLVI) = (X + XXXVIII) | H142: 4,085,638,131.00 | I142: 4,130,409,966.94 | J142: 2,025,784,790.23 | K142: =IFERROR(J142/I142*100,0) -> 49.05 | L142: 1,177,951,872.59 | M142: =IFERROR(L142/I142*100,0) -> 28.52 | N142: 1,164,494,417.46 | O142: =IFERROR(N142/I142*100,0) -> 28.19 | P142: 847,832,917.64
B143: TOTAL DAS DESPESAS COM SAÚDE (XLVII) = (XI + XXXIX) | H143: =SUM(H136:H142) -> 22,952,449,421.00 | I143: =SUM(I136:I142) -> 23,373,538,237.85 | J143: 12,533,897,186.85 | K143: =IFERROR(J143/I143*100,0) -> 53.62 | L143: 7,625,532,125.31 | M143: =L143/I143*100 -> 32.62 | N143: 7,212,757,622.87 | O143: =IFERROR(N143/I143*100,0) -> 30.86 | P143: =SUM(P136:P142) -> 4,908,365,061.54
B144: FONTE: Sistema SOF, Secretaria Municipal da Fazenda. Data da emissão: 20/05/2025. Os dados da despesa são extraídos do Cubo do SOF. Os Dados da Receita são extraídos do SOF: Boletim da Receita por Fonte e Órgão PMSP - [SOR051R].
B146: Notas:
B147: 1 Nos cinco primeiros bimestres do exercício, o acompanhamento será feito com base na despesa liquidada. No último bimestre do exercício, o valor deverá corresponder ao total da despesa empenhada.
B148: 2 Até o exercício de 2018, o controle da execução dos restos a pagar considerava apenas os valores dos restos a pagar não processados (regra antiga). A partir do exercício de 2019, o controle da execução dos restos a pagar considera os restos a pagar processados e não processados.
B150: MONICA MIYUKI OBARA Assessora IV CRC 1SP354288 | I150: ARIANE MARIS GOMES LACERDA Coordenadora do Processo Orçamentário Municipal | O150: CLODOALDO PELISSIONI Secretário Municipal de Planejamento e Eficiência
B156: Variação 1 | H156: =H143=SUM(H132,H55) -> TRUE | I156: =I143=SUM(I132,I55) -> TRUE | J156: =J143=SUM(J132,J55) -> TRUE | L156: =L143=SUM(L132,L55) -> TRUE | N156: =N143=SUM(N132,N55) -> TRUE
B157: Variação 1a | H157: =H143-SUM(H132,H55) -> 0 | I157: =I143-SUM(I132,I55) -> 0 | J157: =J143-SUM(J132,J55) -> 0 | L157: =L143-SUM(L132,L55) -> 0 | N157: =N143-SUM(N132,N55) -> 0

Sheet BD_Receita_PMSP_2BIM
A1: COD_ORIG_RCTA_F | B1: TXT_COD_RCTA_RESU | C1: COD_FONT_REC | D1: TXT_FONT_REC | E1: COD_ORG_EMP | F1: TXT_ORG_EMP | G1: COD_UNID_ORCM_SOF | H1: TXT_UNID_ORCM | I1: COD_TIP_CTA_RCTA | J1: VAL_PRVI_RCTA_ATUL | K1: VAL_REAZ_MENS | L1: PERC_VAL_REAZ_MENS | M1: VAL_REAZ_ATE_MES | N1: PERC_VAL_REAZ_ATE_MES | O1: VAL_PRVI_RCTA_INI | P1: FONTE_PADRONIZADO | Q1: RECEITA_5 | R1: RECEITA_6 | S1: FONTE_PMSP
A2: 1.0.0.0.00.0.0.00.00.000.000.00.00.000 | B2: RECEITAS CORRENTES | I2: Sintética | J2: 9.832456972e+10 | K2: 7938370561 | L2: 8.07 | M2: 3.517817145e+10 | N2: 35.78 | O2: 98320660094 | P2: =MID(Receita_PMSP_Tabela5[[#This Row],[COD_FONT_REC]], 6, 3) ->  | Q2: =LEFT(Receita_PMSP_Tabela5[[#This Row],[COD_ORIG_RCTA_F]], 10) -> 1.0.0.0.00 | R2: =LEFT(Receita_PMSP_Tabela5[[#This Row],[COD_ORIG_RCTA_F]], 12) -> 1.0.0.0.00.0 | S2: =LEFT(Receita_PMSP_Tabela5[[#This Row],[COD_FONT_REC]], 2) -> 
A3: 1.1.0.0.00.0.0.00.00.000.000.00.00.000 | B3: IMPOSTOS, TAXAS E CONTRIBUIÇÕES DE MELHORIA | I3: Sintética | J3: 65647186855 | K3: 5323596084 | L3: 8.11 | M3: 2.326021003e+10 | N3: 35.43 | O3: 65647186855 | P3: =MID(Receita_PMSP_Tabela5[[#This Row],[COD_FONT_REC]], 6, 3) ->  | Q3: =LEFT(Receita_PMSP_Tabela5[[#This Row],[COD_ORIG_RCTA_F]], 10) -> 1.1.0.0.00 | R3: =LEFT(Receita_PMSP_Tabela5[[#This Row],[COD_ORIG_RCTA_F]], 12) -> 1.1.0.0.00.0 | S3: =LEFT(Receita_PMSP_Tabela5[[#This Row],[COD_FONT_REC]], 2) -> 
A4: 1.1.1.0.00.0.0.00.00.000.000.00.00.000 | B4: IMPOSTOS | I4: Sintética | J4: 65081890808 | K4: 5299286551 | L4: 8.14 | M4: 2.315456821e+10 | N4: 35.58 | O4: 65081890808 | P4: =MID(Receita_PMSP_Tabela5[[#This Row],[COD_FONT_REC]], 6, 3) ->  | Q4: =LEFT(Receita_PMSP_Tabela5[[#This Row],[COD_ORIG_RCTA_F]], 10) -> 1.1.1.0.00 | R4: =LEFT(Receita_PMSP_Tabela5[[#This Row],[COD_ORIG_RCTA_F]], 12) -> 1.1.1.0.00.0 | S4: =LEFT(Receita_PMSP_Tabela5[[#This Row],[COD_FONT_REC]], 2) -> 
A5: 1.1.1.2.00.0.0.00.00.000.000.00.00.000 | B5: IMPOSTOS SOBRE O PATRIMÔNIO | I5: Sintética | J5: 21995465460 | K5: 1782141671 | L5: 8.1 | M5: 8957371007 | N5: 40.72 | O5: 21995465460 | P5: =MID(Receita_PMSP_Tabela5[[#This Row],[COD_FONT_REC]], 6, 3) ->  | Q5: =LEFT(Receita_PMSP_Tabela5[[#This Row],[COD_ORIG_RCTA_F]], 10) -> 1.1.1.2.00 | R5: =LEFT(Receita_PMSP_Tabela5[[#This Row],[COD_ORIG_RCTA_F]], 12) -> 1.1.1.2.00.0 | S5: =LEFT(Receita_PMSP_Tabela5[[#This Row],[COD_FONT_REC]], 2) -> 
A6: 1.1.1.2.50.0.0.00.00.000.000.00.00.000 | B6: IMPOSTO SOBRE A PROPRIEDADE PREDIAL E TERRITORIAL URBANA | I6: Sintética | J6: 17596243214 | K6: 1411200756 | L6: 8.02 | M6: 7638126745 | N6: 43.41 | O6: 17596243214 | P6: =MID(Receita_PMSP_Tabela5[[#This Row],[COD_FONT_REC]], 6, 3) ->  | Q6: =LEFT(Receita_PMSP_Tabela5[[#This Row],[COD_ORIG_RCTA_F]], 10) -> 1.1.1.2.50 | R6: =LEFT(Receita_PMSP_Tabela5[[#This Row],[COD_ORIG_RCTA_F]], 12) -> 1.1.1.2.50.0 | S6: =LEFT(Receita_PMSP_Tabela5[[#This Row],[COD_FONT_REC]], 2) -> 
A7: 1.1.1.2.50.0.1.00.00.000.000.00.00.000 | B7: IMPOSTO SOBRE A PROPRIEDADE PREDIAL E TERRITORIAL URBANA - PRINCIPAL | I7: Sintética | J7: 15697308008 | K7: 1286988891 | L7: 8.2 | M7: 7047992445 | N7: 44.9 | O7: 15697308008 | P7: =MID(Receita_PMSP_Tabela5[[#This Row],[COD_FONT_REC]], 6, 3) ->  | Q7: =LEFT(Receita_PMSP_Tabela5[[#This Row],[COD_ORIG_RCTA_F]], 10) -> 1.1.1.2.50 | R7: =LEFT(Receita_PMSP_Tabela5[[#This Row],[COD_ORIG_RCTA_F]], 12) -> 1.1.1.2.50.0 | S7: =LEFT(Receita_PMSP_Tabela5[[#This Row],[COD_FONT_REC]], 2) -> 
A8: 1.1.1.2.50.0.1.01.00.000.000.00.00.000 | B8: IMPOSTO SOBRE A PROPRIEDADE PREDIAL E TERRITORIAL URBANA | I8: Sintética | J8: 15697308008 | K8: 1286988891 | L8: 8.2 | M8: 7047992445 | N8: 44.9 | O8: 15697308008 | P8: =MID(Receita_PMSP_Tabela5[[#This Row],[COD_FONT_REC]], 6, 3) ->  | Q8: =LEFT(Receita_PMSP_Tabela5[[#This Row],[COD_ORIG_RCTA_F]], 10) -> 1.1.1.2.50 | R8: =LEFT(Receita_PMSP_Tabela5[[#This Row],[COD_ORIG_RCTA_F]], 12) -> 1.1.1.2.50.0 | S8: =LEFT(Receita_PMSP_Tabela5[[#This Row],[COD_FONT_REC]], 2) -> 
A9: 1.1.1.2.50.0.1.01.00.000.000.11.00.000 | B9: IMPOSTO SOBRE A PROPRIEDADE PREDIAL E TERRITORIAL URBANA | I9: Sintética | J9: 15563353863 | K9: 1277620751 | L9: 8.21 | M9: 6999657810 | N9: 44.98 | O9: 15563353863 | P9: =MID(Receita_PMSP_Tabela5[[#This Row],[COD_FONT_REC]], 6, 3) ->  | Q9: =LEFT(Receita_PMSP_Tabela5[[#This Row],[COD_ORIG_RCTA_F]], 10) -> 1.1.1.2.50 | R9: =LEFT(Receita_PMSP_Tabela5[[#This Row],[COD_ORIG_RCTA_F]], 12) -> 1.1.1.2.50.0 | S9: =LEFT(Receita_PMSP_Tabela5[[#This Row],[COD_FONT_REC]], 2) -> 
A10: 1.1.1.2.50.0.1.01.00.000.000.11.01.000 | B10: Imposto sobre a Propriedade Predial e Territorial Urbana | C10: 00.1.500.9001 | D10: Recursos não vinculados de Impostos | I10: Analítica | J10: 15733742456 | K10: 1287149256 | L10: 8.18 | M10: 7046739970 | N10: 44.79 | O10: 15733742456 | P10: =MID(Receita_PMSP_Tabela5[[#This Row],[COD_FONT_REC]], 6, 3) -> 500 | Q10: =LEFT(Receita_PMSP_Tabela5[[#This Row],[COD_ORIG_RCTA_F]], 10) -> 1.1.1.2.50 | R10: =LEFT(Receita_PMSP_Tabela5[[#This Row],[COD_ORIG_RCTA_F]], 12) -> 1.1.1.2.50.0 | S10: =LEFT(Receita_PMSP_Tabela5[[#This Row],[COD_FONT_REC]], 2) -> 00
A11: 1.1.1.2.50.0.1.01.00.000.000.11.09.000 | B11: TOTAL DE DEDUÇÕES DO IMPOSTO SOBRE A PROPRIEDADE PREDIAL E TERRITORIAL | I11: Sintética | J11: -170388593 | K11: -9528504.88 | L11: 5.59 | M11: -47082160.15 | N11: 27.63 | O11: -170388593 | P11: =MID(Receita_PMSP_Tabela5[[#This Row],[COD_FONT_REC]], 6, 3) ->  | Q11: =LEFT(Receita_PMSP_Tabela5[[#This Row],[COD_ORIG_RCTA_F]], 10) -> 1.1.1.2.50 | R11: =LEFT(Receita_PMSP_Tabela5[[#This Row],[COD_ORIG_RCTA_F]], 12) -> 1.1.1.2.50.0 | S11: =LEFT(Receita_PMSP_Tabela5[[#This Row],[COD_FONT_REC]], 2) -> 
A12: 1.1.1.2.50.0.1.01.00.000.000.11.09.001 | B12: Deduções do Imposto sobre a Propriedade Predial e Territorial Urbana | C12: 00.1.500.9001 | D12: Recursos não vinculados de Impostos | I12: Analítica | J12: -170388593 | K12: -9528504.88 | L12: 5.59 | M12: -47082160.15 | N12: 27.63 | O12: -170388593 | P12: =MID(Receita_PMSP_Tabela5[[#This Row],[COD_FONT_REC]], 6, 3) -> 500 | Q12: =LEFT(Receita_PMSP_Tabela5[[#This Row],[COD_ORIG_RCTA_F]], 10) -> 1.1.1.2.50 | R12: =LEFT(Receita_PMSP_Tabela5[[#This Row],[COD_ORIG_RCTA_F]], 12) -> 1.1.1.2.50.0 | S12: =LEFT(Receita_PMSP_Tabela5[[#This Row],[COD_FONT_REC]], 2) -> 00
A13: 1.1.1.2.50.0.1.01.00.000.000.12.00.000 | B13: TOTAL PARCELAMENTO IMPOSTO SOBRE A PROPRIEDADE PREDIAL E TERRITORIAL U | I13: Sintética | J13: 133954145 | K13: 9368139.53 | L13: 6.99 | M13: 48334635.45 | N13: 36.08 | O13: 133954145 | P13: =MID(Receita_PMSP_Tabela5[[#This Row],[COD_FONT_REC]], 6, 3) ->  | Q13: =LEFT(Receita_PMSP_Tabela5[[#This Row],[COD_ORIG_RCTA_F]], 10) -> 1.1.1.2.50 | R13: =LEFT(Receita_PMSP_Tabela5[[#This Row],[COD_ORIG_RCTA_F]], 12) -> 1.1.1.2.50.0 | S13: =LEFT(Receita_PMSP_Tabela5[[#This Row],[COD_FONT_REC]], 2) -> 
A14: 1.1.1.2.50.0.1.01.00.000.000.12.01.000 | B14: PARCELAMENTO IMPOSTO SOBRE A PROPRIEDADE PREDIAL E TERRITORIAL URBANA | I14: Sintética | J14: 133954145 | K14: 9368139.53 | L14: 6.99 | M14: 48360675.96 | N14: 36.1 | O14: 133954145 | P14: =MID(Receita_PMSP_Tabela5[[#This Row],[COD_FONT_REC]], 6, 3) ->  | Q14: =LEFT(Receita_PMSP_Tabela5[[#This Row],[COD_ORIG_RCTA_F]], 10) -> 1.1.1.2.50 | R14: =LEFT(Receita_PMSP_Tabela5[[#This Row],[COD_ORIG_RCTA_F]], 12) -> 1.1.1.2.50.0 | S14: =LEFT(Receita_PMSP_Tabela5[[#This Row],[COD_FONT_REC]], 2) -> 
A15: 1.1.1.2.50.0.1.01.00.000.000.12.01.001 | B15: PPI - Imposto sobre a Propriedade Predial e Territorial Urbana | C15: 00.1.500.9001 | D15: Recursos não vinculados de Impostos | I15: Analítica | J15: 124294948 | K15: 7507744.42 | L15: 6.04 | M15: 41202349.85 | N15: 33.15 | O15: 124294948 | P15: =MID(Receita_PMSP_Tabela5[[#This Row],[COD_FONT_REC]], 6, 3) -> 500 | Q15: =LEFT(Receita_PMSP_Tabela5[[#This Row],[COD_ORIG_RCTA_F]], 10) -> 1.1.1.2.50 | R15: =LEFT(Receita_PMSP_Tabela5[[#This Row],[COD_ORIG_RCTA_F]], 12) -> 1.1.1.2.50.0 | S15: =LEFT(Receita_PMSP_Tabela5[[#This Row],[COD_FONT_REC]], 2) -> 00
A16: 1.1.1.2.50.0.1.01.00.000.000.12.01.002 | B16: PAT - Imposto sobre a Propriedade Predial e Territorial Urbana | C16: 00.1.500.9001 | D16: Recursos não vinculados de Impostos | I16: Analítica | J16: 9659197 | K16: 1860395.11 | L16: 19.26 | M16: 7158326.11 | N16: 74.11 | O16: 9659197 | P16: =MID(Receita_PMSP_Tabela5[[#This Row],[COD_FONT_REC]], 6, 3) -> 500 | Q16: =LEFT(Receita_PMSP_Tabela5[[#This Row],[COD_ORIG_RCTA_F]], 10) -> 1.1.1.2.50 | R16: =LEFT(Receita_PMSP_Tabela5[[#This Row],[COD_ORIG_RCTA_F]], 12) -> 1.1.1.2.50.0 | S16: =LEFT(Receita_PMSP_Tabela5[[#This Row],[COD_FONT_REC]], 2) -> 00
A17: 1.1.1.2.50.0.1.01.00.000.000.12.09.000 | B17: TOTAL DEDUÇÕES PARCELAMENTO IMPOSTO SOBRE A PROPRIEDADE PREDIAL E TERR | I17: Sintética | J17: 0 | K17: 0 | L17: 0 | M17: -26040.51 | N17: 0 | O17: 0 | P17: =MID(Receita_PMSP_Tabela5[[#This Row],[COD_FONT_REC]], 6, 3) ->  | Q17: =LEFT(Receita_PMSP_Tabela5[[#This Row],[COD_ORIG_RCTA_F]], 10) -> 1.1.1.2.50 | R17: =LEFT(Receita_PMSP_Tabela5[[#This Row],[COD_ORIG_RCTA_F]], 12) -> 1.1.1.2.50.0 | S17: =LEFT(Receita_PMSP_Tabela5[[#This Row],[COD_FONT_REC]], 2) -> 
A18: 1.1.1.2.50.0.1.01.00.000.000.12.09.001 | B18: Deduções PPI - Imposto sobre a Propriedade Predial e Territorial Urban | C18: 00.1.500.9001 | D18: Recursos não vinculados de Impostos | I18: Analítica | J18: 0 | K18: 0 | L18: 0 | M18: -26040.51 | N18: 0 | O18: 0 | P18: =MID(Receita_PMSP_Tabela5[[#This Row],[COD_FONT_REC]], 6, 3) -> 500 | Q18: =LEFT(Receita_PMSP_Tabela5[[#This Row],[COD_ORIG_RCTA_F]], 10) -> 1.1.1.2.50 | R18: =LEFT(Receita_PMSP_Tabela5[[#This Row],[COD_ORIG_RCTA_F]], 12) -> 1.1.1.2.50.0 | S18: =LEFT(Receita_PMSP_Tabela5[[#This Row],[COD_FONT_REC]], 2) -> 00
A19: 1.1.1.2.50.0.2.00.00.000.000.00.00.000 | B19: IMPOSTO SOBRE A PROPRIEDADE PREDIAL E TERRITORIAL URBANA - MULTAS E JU | I19: Sintética | J19: 124573261 | K19: 9042911.79 | L19: 7.26 | M19: 42086663.85 | N19: 33.78 | O19: 124573261 | P19: =MID(Receita_PMSP_Tabela5[[#This Row],[COD_FONT_REC]], 6, 3) ->  | Q19: =LEFT(Receita_PMSP_Tabela5[[#This Row],[COD_ORIG_RCTA_F]], 10) -> 1.1.1.2.50 | R19: =LEFT(Receita_PMSP_Tabela5[[#This Row],[COD_ORIG_RCTA_F]], 12) -> 1.1.1.2.50.0 | S19: =LEFT(Receita_PMSP_Tabela5[[#This Row],[COD_FONT_REC]], 2) -> 
A20: 1.1.1.2.50.0.2.01.00.000.000.00.00.000 | B20: IMPOSTO SOBRE A PROPRIEDADE PREDIAL E TERRITORIAL URBANA - MULTAS E JU | I20: Sintética | J20: 124573261 | K20: 9042911.79 | L20: 7.26 | M20: 42086663.85 | N20: 33.78 | O20: 124573261 | P20: =MID(Receita_PMSP_Tabela5[[#This Row],[COD_FONT_REC]], 6, 3) ->  | Q20: =LEFT(Receita_PMSP_Tabela5[[#This Row],[COD_ORIG_RCTA_F]], 10) -> 1.1.1.2.50 | R20: =LEFT(Receita_PMSP_Tabela5[[#This Row],[COD_ORIG_RCTA_F]], 12) -> 1.1.1.2.50.0 | S20: =LEFT(Receita_PMSP_Tabela5[[#This Row],[COD_FONT_REC]], 2) -> 
A21: 1.1.1.2.50.0.2.01.00.000.000.11.00.000 | B21: IMPOSTO SOBRE A PROPRIEDADE PREDIAL E TERRITORIAL URBANA - MULTAS E JU | I21: Sintética | J21: 102995058 | K21: 7744803.24 | L21: 7.52 | M21: 36662346.43 | N21: 35.6 | O21: 102995058 | P21: =MID(Receita_PMSP_Tabela5[[#This Row],[COD_FONT_REC]], 6, 3) ->  | Q21: =LEFT(Receita_PMSP_Tabela5[[#This Row],[COD_ORIG_RCTA_F]], 10) -> 1.1.1.2.50 | R21: =LEFT(Receita_PMSP_Tabela5[[#This Row],[COD_ORIG_RCTA_F]], 12) -> 1.1.1.2.50.0 | S21: =LEFT(Receita_PMSP_Tabela5[[#This Row],[COD_FONT_REC]], 2) -> 
A22: 1.1.1.2.50.0.2.01.00.000.000.11.01.000 | B22: Imposto sobre a Propriedade Predial e Territorial Urbana - Multas e Ju | C22: 00.1.500.9001 | D22: Recursos não vinculados de Impostos | I22: Analítica | J22: 102995058 | K22: 7744803.24 | L22: 7.52 | M22: 36662346.43 | N22: 35.6 | O22: 102995058 | P22: =MID(Receita_PMSP_Tabela5[[#This Row],[COD_FONT_REC]], 6, 3) -> 500 | Q22: =LEFT(Receita_PMSP_Tabela5[[#This Row],[COD_ORIG_RCTA_F]], 10) -> 1.1.1.2.50 | R22: =LEFT(Receita_PMSP_Tabela5[[#This Row],[COD_ORIG_RCTA_F]], 12) -> 1.1.1.2.50.0 | S22: =LEFT(Receita_PMSP_Tabela5[[#This Row],[COD_FONT_REC]], 2) -> 00
A23: 1.1.1.2.50.0.2.01.00.000.000.12.00.000 | B23: PARCELAMENTO IMPOSTO SOBRE A PROPRIEDADE PREDIAL E TERRITORIAL URBANA | I23: Sintética | J23: 21578203 | K23: 1298108.55 | L23: 6.02 | M23: 5424317.42 | N23: 25.14 | O23: 21578203 | P23: =MID(Receita_PMSP_Tabela5[[#This Row],[COD_FONT_REC]], 6, 3) ->  | Q23: =LEFT(Receita_PMSP_Tabela5[[#This Row],[COD_ORIG_RCTA_F]], 10) -> 1.1.1.2.50 | R23: =LEFT(Receita_PMSP_Tabela5[[#This Row],[COD_ORIG_RCTA_F]], 12) -> 1.1.1.2.50.0 | S23: =LEFT(Receita_PMSP_Tabela5[[#This Row],[COD_FONT_REC]], 2) -> 
A24: 1.1.1.2.50.0.2.01.00.000.000.12.01.000 | B24: TOTAL PARCELAMENTO IMPOSTO SOBRE A PROPRIEDADE PREDIAL E TERRITORIAL U | I24: Sintética | J24: 21578203 | K24: 1298108.55 | L24: 6.02 | M24: 5426445.61 | N24: 25.15 | O24: 21578203 | P24: =MID(Receita_PMSP_Tabela5[[#This Row],[COD_FONT_REC]], 6, 3) ->  | Q24: =LEFT(Receita_PMSP_Tabela5[[#This Row],[COD_ORIG_RCTA_F]], 10) -> 1.1.1.2.50 | R24: =LEFT(Receita_PMSP_Tabela5[[#This Row],[COD_ORIG_RCTA_F]], 12) -> 1.1.1.2.50.0 | S24: =LEFT(Receita_PMSP_Tabela5[[#This Row],[COD_FONT_REC]], 2) -> 
A25: 1.1.1.2.50.0.2.01.00.000.000.12.01.001 | B25: PPI - Imposto sobre a Propriedade Predial e Territorial Urbana - Multa | C25: 00.1.500.9001 | D25: Recursos não vinculados de Impostos | I25: Analítica | J25: 19715385 | K25: 1137200.65 | L25: 5.77 | M25: 4793470.73 | N25: 24.31 | O25: 19715385 | P25: =MID(Receita_PMSP_Tabela5[[#This Row],[COD_FONT_REC]], 6, 3) -> 500 | Q25: =LEFT(Receita_PMSP_Tabela5[[#This Row],[COD_ORIG_RCTA_F]], 10) -> 1.1.1.2.50 | R25: =LEFT(Receita_PMSP_Tabela5[[#This Row],[COD_ORIG_RCTA_F]], 12) -> 1.1.1.2.50.0 | S25: =LEFT(Receita_PMSP_Tabela5[[#This Row],[COD_FONT_REC]], 2) -> 00
A26: 1.1.1.2.50.0.2.01.00.000.000.12.01.002 | B26: PAT - Imposto sobre a Propriedade Predial e Territorial Urbana - Multa | C26: 00.1.500.9001 | D26: Recursos não vinculados de Impostos | I26: Analítica | J26: 1862818 | K26: 160907.9 | L26: 8.64 | M26: 632974.88 | N26: 33.98 | O26: 1862818 | P26: =MID(Receita_PMSP_Tabela5[[#This Row],[COD_FONT_REC]], 6, 3) -> 500 | Q26: =LEFT(Receita_PMSP_Tabela5[[#This Row],[COD_ORIG_RCTA_F]], 10) -> 1.1.1.2.50 | R26: =LEFT(Receita_PMSP_Tabela5[[#This Row],[COD_ORIG_RCTA_F]], 12) -> 1.1.1.2.50.0 | S26: =LEFT(Receita_PMSP_Tabela5[[#This Row],[COD_FONT_REC]], 2) -> 00
A27: 1.1.1.2.50.0.2.01.00.000.000.12.09.000 | B27: TOTAL DEDUÇÕES PARCELAMENTO IMPOSTO SOBRE A PROPRIEDADE PREDIAL E TERR | I27: Sintética | J27: 0 | K27: 0 | L27: 0 | M27: -2128.19 | N27: 0 | O27: 0 | P27: =MID(Receita_PMSP_Tabela5[[#This Row],[COD_FONT_REC]], 6, 3) ->  | Q27: =LEFT(Receita_PMSP_Tabela5[[#This Row],[COD_ORIG_RCTA_F]], 10) -> 1.1.1.2.50 | R27: =LEFT(Receita_PMSP_Tabela5[[#This Row],[COD_ORIG_RCTA_F]], 12) -> 1.1.1.2.50.0 | S27: =LEFT(Receita_PMSP_Tabela5[[#This Row],[COD_FONT_REC]], 2) -> 
A28: 1.1.1.2.50.0.2.01.00.000.000.12.09.001 | B28: Deduções PPI - Imposto sobre a Propriedade Predial e Territorial Urban | C28: 00.1.500.9001 | D28: Recursos não vinculados de Impostos | I28: Analítica | J28: 0 | K28: 0 | L28: 0 | M28: -2128.19 | N28: 0 | O28: 0 | P28: =MID(Receita_PMSP_Tabela5[[#This Row],[COD_FONT_REC]], 6, 3) -> 500 | Q28: =LEFT(Receita_PMSP_Tabela5[[#This Row],[COD_ORIG_RCTA_F]], 10) -> 1.1.1.2.50 | R28: =LEFT(Receita_PMSP_Tabela5[[#This Row],[COD_ORIG_RCTA_F]], 12) -> 1.1.1.2.50.0 | S28: =LEFT(Receita_PMSP_Tabela5[[#This Row],[COD_FONT_REC]], 2) -> 00
A29: 1.1.1.2.50.0.3.00.00.000.000.00.00.000 | B29: IMPOSTO SOBRE A PROPRIEDADE PREDIAL E TERRITORIAL URBANA - DÍVIDA ATIV | I29: Sintética | J29: 1307317200 | K29: 87829797.04 | L29: 6.72 | M29: 436306040.8 | N29: 33.37 | O29: 1307317200 | P29: =MID(Receita_PMSP_Tabela5[[#This Row],[COD_FONT_REC]], 6, 3) ->  | Q29: =LEFT(Receita_PMSP_Tabela5[[#This Row],[COD_ORIG_RCTA_F]], 10) -> 1.1.1.2.50 | R29: =LEFT(Receita_PMSP_Tabela5[[#This Row],[COD_ORIG_RCTA_F]], 12) -> 1.1.1.2.50.0 | S29: =LEFT(Receita_PMSP_Tabela5[[#This Row],[COD_FONT_REC]], 2) -> 
A30: 1.1.1.2.50.0.3.01.00.000.000.00.00.000 | B30: IMPOSTO SOBRE A PROPRIEDADE PREDIAL E TERRITORIAL URBANA - DÍVIDA ATIV | I30: Sintética | J30: 1307317200 | K30: 87829797.04 | L30: 6.72 | M30: 436306040.8 | N30: 33.37 | O30: 1307317200 | P30: =MID(Receita_PMSP_Tabela5[[#This Row],[COD_FONT_REC]], 6, 3) ->  | Q30: =LEFT(Receita_PMSP_Tabela5[[#This Row],[COD_ORIG_RCTA_F]], 10) -> 1.1.1.2.50 | R30: =LEFT(Receita_PMSP_Tabela5[[#This Row],[COD_ORIG_RCTA_F]], 12) -> 1.1.1.2.50.0 | S30: =LEFT(Receita_PMSP_Tabela5[[#This Row],[COD_FONT_REC]], 2) -> 
A31: 1.1.1.2.50.0.3.01.00.000.000.11.00.000 | B31: IMPOSTO SOBRE A PROPRIEDADE PREDIAL E TERRITORIAL URBANA - DÍVIDA ATIV | I31: Sintética | J31: 481043695 | K31: 41859256.47 | L31: 8.7 | M31: 145772393.6 | N31: 30.3 | O31: 481043695 | P31: =MID(Receita_PMSP_Tabela5[[#This Row],[COD_FONT_REC]], 6, 3) ->  | Q31: =LEFT(Receita_PMSP_Tabela5[[#This Row],[COD_ORIG_RCTA_F]], 10) -> 1.1.1.2.50 | R31: =LEFT(Receita_PMSP_Tabela5[[#This Row],[COD_ORIG_RCTA_F]], 12) -> 1.1.1.2.50.0 | S31: =LEFT(Receita_PMSP_Tabela5[[#This Row],[COD_FONT_REC]], 2) -> 
A32: 1.1.1.2.50.0.3.01.00.000.000.11.01.000 | B32: Imposto sobre a Propriedade Predial e Territorial Urbana - Dívida Ativ | C32: 00.1.500.9001 | D32: Recursos não vinculados de Impostos | I32: Analítica | J32: 481043695 | K32: 42471474.23 | L32: 8.83 | M32: 150883730 | N32: 31.37 | O32: 481043695 | P32: =MID(Receita_PMSP_Tabela5[[#This Row],[COD_FONT_REC]], 6, 3) -> 500 | Q32: =LEFT(Receita_PMSP_Tabela5[[#This Row],[COD_ORIG_RCTA_F]], 10) -> 1.1.1.2.50 | R32: =LEFT(Receita_PMSP_Tabela5[[#This Row],[COD_ORIG_RCTA_F]], 12) -> 1.1.1.2.50.0 | S32: =LEFT(Receita_PMSP_Tabela5[[#This Row],[COD_FONT_REC]], 2) -> 00
A33: 1.1.1.2.50.0.3.01.00.000.000.11.09.000 | B33: TOTAL DEDUÇÕES IMPOSTO SOBRE A PROPRIEDADE PREDIAL E TERRITORIAL URBAN | I33: Sintética | J33: 0 | K33: -612217.76 | L33: 0 | M33: -5111336.4 | N33: 0 | O33: 0 | P33: =MID(Receita_PMSP_Tabela5[[#This Row],[COD_FONT_REC]], 6, 3) ->  | Q33: =LEFT(Receita_PMSP_Tabela5[[#This Row],[COD_ORIG_RCTA_F]], 10) -> 1.1.1.2.50 | R33: =LEFT(Receita_PMSP_Tabela5[[#This Row],[COD_ORIG_RCTA_F]], 12) -> 1.1.1.2.50.0 | S33: =LEFT(Receita_PMSP_Tabela5[[#This Row],[COD_FONT_REC]], 2) -> 
A34: 1.1.1.2.50.0.3.01.00.000.000.11.09.001 | B34: Deduções Imposto sobre a Propriedade Predial e Territorial Urbana - Dí | C34: 00.1.500.9001 | D34: Recursos não vinculados de Impostos | I34: Analítica | J34: 0 | K34: -612217.76 | L34: 0 | M34: -5111336.4 | N34: 0 | O34: 0 | P34: =MID(Receita_PMSP_Tabela5[[#This Row],[COD_FONT_REC]], 6, 3) -> 500 | Q34: =LEFT(Receita_PMSP_Tabela5[[#This Row],[COD_ORIG_RCTA_F]], 10) -> 1.1.1.2.50 | R34: =LEFT(Receita_PMSP_Tabela5[[#This Row],[COD_ORIG_RCTA_F]], 12) -> 1.1.1.2.50.0 | S34: =LEFT(Receita_PMSP_Tabela5[[#This Row],[COD_FONT_REC]], 2) -> 00
A35: 1.1.1.2.50.0.3.01.00.000.000.12.00.000 | B35: PARCELAMENTO IMPOSTO SOBRE A PROPRIEDADE PREDIAL E TERRITORIAL URBANA | I35: Sintética | J35: 826273505 | K35: 45970540.57 | L35: 5.56 | M35: 290533647.2 | N35: 35.16 | O35: 826273505 | P35: =MID(Receita_PMSP_Tabela5[[#This Row],[COD_FONT_REC]], 6, 3) ->  | Q35: =LEFT(Receita_PMSP_Tabela5[[#This Row],[COD_ORIG_RCTA_F]], 10) -> 1.1.1.2.50 | R35: =LEFT(Receita_PMSP_Tabela5[[#This Row],[COD_ORIG_RCTA_F]], 12) -> 1.1.1.2.50.0 | S35: =LEFT(Receita_PMSP_Tabela5[[#This Row],[COD_FONT_REC]], 2) -> 
A36: 1.1.1.2.50.0.3.01.00.000.000.12.01.000 | B36: TOTAL PARCELAMENTO IMPOSTO SOBRE A PROPRIEDADE PREDIAL E TERRITORIAL U | I36: Sintética | J36: 826273505 | K36: 46004259.01 | L36: 5.57 | M36: 291027118.3 | N36: 35.22 | O36: 826273505 | P36: =MID(Receita_PMSP_Tabela5[[#This Row],[COD_FONT_REC]], 6, 3) ->  | Q36: =LEFT(Receita_PMSP_Tabela5[[#This Row],[COD_ORIG_RCTA_F]], 10) -> 1.1.1.2.50 | R36: =LEFT(Receita_PMSP_Tabela5[[#This Row],[COD_ORIG_RCTA_F]], 12) -> 1.1.1.2.50.0 | S36: =LEFT(Receita_PMSP_Tabela5[[#This Row],[COD_FONT_REC]], 2) -> 
A37: 1.1.1.2.50.0.3.01.00.000.000.12.01.001 | B37: PPI - Imposto sobre a Propriedade Predial e Territorial Urbana - Dívid | C37: 00.1.500.9001 | D37: Recursos não vinculados de Impostos | I37: Analítica | J37: 818913941 | K37: 45733547.51 | L37: 5.58 | M37: 289706703.4 | N37: 35.38 | O37: 818913941 | P37: =MID(Receita_PMSP_Tabela5[[#This Row],[COD_FONT_REC]], 6, 3) -> 500 | Q37: =LEFT(Receita_PMSP_Tabela5[[#This Row],[COD_ORIG_RCTA_F]], 10) -> 1.1.1.2.50 | R37: =LEFT(Receita_PMSP_Tabela5[[#This Row],[COD_ORIG_RCTA_F]], 12) -> 1.1.1.2.50.0 | S37: =LEFT(Receita_PMSP_Tabela5[[#This Row],[COD_FONT_REC]], 2) -> 00
A38: 1.1.1.2.50.0.3.01.00.000.000.12.01.002 | B38: PAT - Imposto sobre a Propriedade Predial e Territorial Urbana - Dívid | C38: 00.1.500.9001 | D38: Recursos não vinculados de Impostos | I38: Analítica | J38: 0 | K38: 318.12 | L38: 0 | M38: 1253.08 | N38: 0 | O38: 0 | P38: =MID(Receita_PMSP_Tabela5[[#This Row],[COD_FONT_REC]], 6, 3) -> 500 | Q38: =LEFT(Receita_PMSP_Tabela5[[#This Row],[COD_ORIG_RCTA_F]], 10) -> 1.1.1.2.50 | R38: =LEFT(Receita_PMSP_Tabela5[[#This Row],[COD_ORIG_RCTA_F]], 12) -> 1.1.1.2.50.0 | S38: =LEFT(Receita_PMSP_Tabela5[[#This Row],[COD_FONT_REC]], 2) -> 00
A39: 1.1.1.2.50.0.3.01.00.000.000.12.01.006 | B39: PEQ - Imposto sobre a Propriedade Predial e Territorial Urbana - Dívid | C39: 00.1.500.9001 | D39: Recursos não vinculados de Impostos | I39: Analítica | J39: 173052 | K39: 0 | L39: 0 | M39: 0 | N39: 0 | O39: 173052 | P39: =MID(Receita_PMSP_Tabela5[[#This Row],[COD_FONT_REC]], 6, 3) -> 500 | Q39: =LEFT(Receita_PMSP_Tabela5[[#This Row],[COD_ORIG_RCTA_F]], 10) -> 1.1.1.2.50 | R39: =LEFT(Receita_PMSP_Tabela5[[#This Row],[COD_ORIG_RCTA_F]], 12) -> 1.1.1.2.50.0 | S39: =LEFT(Receita_PMSP_Tabela5[[#This Row],[COD_FONT_REC]], 2) -> 00
A40: 1.1.1.2.50.0.3.01.00.000.000.12.01.008 | B40: TDM - Imposto sobre Propriedade Predial e Territorial Urb - Dív Ativa | C40: 00.1.500.9001 | D40: Recursos não vinculados de Impostos | I40: Analítica | J40: 7186512 | K40: 270393.38 | L40: 3.76 | M40: 1319161.81 | N40: 18.36 | O40: 7186512 | P40: =MID(Receita_PMSP_Tabela5[[#This Row],[COD_FONT_REC]], 6, 3) -> 500 | Q40: =LEFT(Receita_PMSP_Tabela5[[#This Row],[COD_ORIG_RCTA_F]], 10) -> 1.1.1.2.50 | R40: =LEFT(Receita_PMSP_Tabela5[[#This Row],[COD_ORIG_RCTA_F]], 12) -> 1.1.1.2.50.0 | S40: =LEFT(Receita_PMSP_Tabela5[[#This Row],[COD_FONT_REC]], 2) -> 00
A41: 1.1.1.2.50.0.3.01.00.000.000.12.09.000 | B41: TOTAL DEDUÇÕES PARCELAMENTO IMPOSTO SOBRE A PROPRIEDADE PREDIAL E TERR | I41: Sintética | J41: 0 | K41: -33718.44 | L41: 0 | M41: -493471.11 | N41: 0 | O41: 0 | P41: =MID(Receita_PMSP_Tabela5[[#This Row],[COD_FONT_REC]], 6, 3) ->  | Q41: =LEFT(Receita_PMSP_Tabela5[[#This Row],[COD_ORIG_RCTA_F]], 10) -> 1.1.1.2.50 | R41: =LEFT(Receita_PMSP_Tabela5[[#This Row],[COD_ORIG_RCTA_F]], 12) -> 1.1.1.2.50.0 | S41: =LEFT(Receita_PMSP_Tabela5[[#This Row],[COD_FONT_REC]], 2) -> 
A42: 1.1.1.2.50.0.3.01.00.000.000.12.09.001 | B42: Deduções PPI - Imposto sobre a Propriedade Predial e Territorial Urban | C42: 00.1.500.9001 | D42: Recursos não vinculados de Impostos | I42: Analítica | J42: 0 | K42: -33718.44 | L42: 0 | M42: -493471.11 | N42: 0 | O42: 0 | P42: =MID(Receita_PMSP_Tabela5[[#This Row],[COD_FONT_REC]], 6, 3) -> 500 | Q42: =LEFT(Receita_PMSP_Tabela5[[#This Row],[COD_ORIG_RCTA_F]], 10) -> 1.1.1.2.50 | R42: =LEFT(Receita_PMSP_Tabela5[[#This Row],[COD_ORIG_RCTA_F]], 12) -> 1.1.1.2.50.0 | S42: =LEFT(Receita_PMSP_Tabela5[[#This Row],[COD_FONT_REC]], 2) -> 00
A43: 1.1.1.2.50.0.4.00.00.000.000.00.00.000 | B43: IMPOSTO SOBRE A PROPRIEDADE PREDIAL E TERRITORIAL URBANA - DÍVIDA ATIV | I43: Sintética | J43: 467044745 | K43: 27339156.87 | L43: 5.85 | M43: 111741595.3 | N43: 23.93 | O43: 467044745 | P43: =MID(Receita_PMSP_Tabela5[[#This Row],[COD_FONT_REC]], 6, 3) ->  | Q43: =LEFT(Receita_PMSP_Tabela5[[#This Row],[COD_ORIG_RCTA_F]], 10) -> 1.1.1.2.50 | R43: =LEFT(Receita_PMSP_Tabela5[[#This Row],[COD_ORIG_RCTA_F]], 12) -> 1.1.1.2.50.0 | S43: =LEFT(Receita_PMSP_Tabela5[[#This Row],[COD_FONT_REC]], 2) -> 
A44: 1.1.1.2.50.0.4.01.00.000.000.00.00.000 | B44: IMPOSTO SOBRE A PROPRIEDADE PREDIAL E TERRITORIAL URBANA - DÍVIDA ATIV | I44: Sintética | J44: 467044745 | K44: 27339156.87 | L44: 5.85 | M44: 111741595.3 | N44: 23.93 | O44: 467044745 | P44: =MID(Receita_PMSP_Tabela5[[#This Row],[COD_FONT_REC]], 6, 3) ->  | Q44: =LEFT(Receita_PMSP_Tabela5[[#This Row],[COD_ORIG_RCTA_F]], 10) -> 1.1.1.2.50 | R44: =LEFT(Receita_PMSP_Tabela5[[#This Row],[COD_ORIG_RCTA_F]], 12) -> 1.1.1.2.50.0 | S44: =LEFT(Receita_PMSP_Tabela5[[#This Row],[COD_FONT_REC]], 2) -> 
A45: 1.1.1.2.50.0.4.01.00.000.000.11.00.000 | B45: IMPOSTO SOBRE A PROPRIEDADE PREDIAL E TERRITORIAL URBANA - DÍVIDA ATIV | I45: Sintética | J45: 131721238 | K45: 9020861.23 | L45: 6.85 | M45: 32831825.07 | N45: 24.93 | O45: 131721238 | P45: =MID(Receita_PMSP_Tabela5[[#This Row],[COD_FONT_REC]], 6, 3) ->  | Q45: =LEFT(Receita_PMSP_Tabela5[[#This Row],[COD_ORIG_RCTA_F]], 10) -> 1.1.1.2.50 | R45: =LEFT(Receita_PMSP_Tabela5[[#This Row],[COD_ORIG_RCTA_F]], 12) -> 1.1.1.2.50.0 | S45: =LEFT(Receita_PMSP_Tabela5[[#This Row],[COD_FONT_REC]], 2) -> 
A46: 1.1.1.2.50.0.4.01.00.000.000.11.01.000 | B46: Imposto sobre a Propriedade Predial e Territorial Urbana - Dívida Ativ | C46: 00.1.500.9001 | D46: Recursos não vinculados de Impostos | I46: Analítica | J46: 131721238 | K46: 9020861.23 | L46: 6.85 | M46: 32831825.07 | N46: 24.93 | O46: 131721238 | P46: =MID(Receita_PMSP_Tabela5[[#This Row],[COD_FONT_REC]], 6, 3) -> 500 | Q46: =LEFT(Receita_PMSP_Tabela5[[#This Row],[COD_ORIG_RCTA_F]], 10) -> 1.1.1.2.50 | R46: =LEFT(Receita_PMSP_Tabela5[[#This Row],[COD_ORIG_RCTA_F]], 12) -> 1.1.1.2.50.0 | S46: =LEFT(Receita_PMSP_Tabela5[[#This Row],[COD_FONT_REC]], 2) -> 00
A47: 1.1.1.2.50.0.4.01.00.000.000.12.00.000 | B47: PARCELAMENTO IMPOSTO SOBRE A PROPRIEDADE PREDIAL E TERRITORIAL URBANA | I47: Sintética | J47: 335323507 | K47: 18318295.64 | L47: 5.46 | M47: 78909770.28 | N47: 23.53 | O47: 335323507 | P47: =MID(Receita_PMSP_Tabela5[[#This Row],[COD_FONT_REC]], 6, 3) ->  | Q47: =LEFT(Receita_PMSP_Tabela5[[#This Row],[COD_ORIG_RCTA_F]], 10) -> 1.1.1.2.50 | R47: =LEFT(Receita_PMSP_Tabela5[[#This Row],[COD_ORIG_RCTA_F]], 12) -> 1.1.1.2.50.0 | S47: =LEFT(Receita_PMSP_Tabela5[[#This Row],[COD_FONT_REC]], 2) -> 
A48: 1.1.1.2.50.0.4.01.00.000.000.12.01.000 | B48: TOTAL PARCELAMENTO IMPOSTO SOBRE A PROPRIEDADE PREDIAL E TERRITORIAL U | I48: Sintética | J48: 335323507 | K48: 18331880.35 | L48: 5.47 | M48: 79097527.74 | N48: 23.59 | O48: 335323507 | P48: =MID(Receita_PMSP_Tabela5[[#This Row],[COD_FONT_REC]], 6, 3) ->  | Q48: =LEFT(Receita_PMSP_Tabela5[[#This Row],[COD_ORIG_RCTA_F]], 10) -> 1.1.1.2.50 | R48: =LEFT(Receita_PMSP_Tabela5[[#This Row],[COD_ORIG_RCTA_F]], 12) -> 1.1.1.2.50.0 | S48: =LEFT(Receita_PMSP_Tabela5[[#This Row],[COD_FONT_REC]], 2) -> 
A49: 1.1.1.2.50.0.4.01.00.000.000.12.01.001 | B49: PPI - Imposto sobre a Propriedade Predial e Territorial Urbana - Dívid | C49: 00.1.500.9001 | D49: Recursos não vinculados de Impostos | I49: Analítica | J49: 334339591 | K49: 18297792.76 | L49: 5.47 | M49: 78698887.58 | N49: 23.54 | O49: 334339591 | P49: =MID(Receita_PMSP_Tabela5[[#This Row],[COD_FONT_REC]], 6, 3) -> 500 | Q49: =LEFT(Receita_PMSP_Tabela5[[#This Row],[COD_ORIG_RCTA_F]], 10) -> 1.1.1.2.50 | R49: =LEFT(Receita_PMSP_Tabela5[[#This Row],[COD_ORIG_RCTA_F]], 12) -> 1.1.1.2.50.0 | S49: =LEFT(Receita_PMSP_Tabela5[[#This Row],[COD_FONT_REC]], 2) -> 00
A50: 1.1.1.2.50.0.4.01.00.000.000.12.01.002 | B50: PAT - Imposto sobre a Propriedade Predial e Territorial Urbana - Dívid | C50: 00.1.500.9001 | D50: Recursos não vinculados de Impostos | I50: Analítica | J50: 0 | K50: 120.89 | L50: 0 | M50: 476.18 | N50: 0 | O50: 0 | P50: =MID(Receita_PMSP_Tabela5[[#This Row],[COD_FONT_REC]], 6, 3) -> 500 | Q50: =LEFT(Receita_PMSP_Tabela5[[#This Row],[COD_ORIG_RCTA_F]], 10) -> 1.1.1.2.50 | R50: =LEFT(Receita_PMSP_Tabela5[[#This Row],[COD_ORIG_RCTA_F]], 12) -> 1.1.1.2.50.0 | S50: =LEFT(Receita_PMSP_Tabela5[[#This Row],[COD_FONT_REC]], 2) -> 00
A51: 1.1.1.2.50.0.4.01.00.000.000.12.01.006 | B51: PEQ - Imposto sobre a Propriedade Predial e Territorial Urbana - Dívid | C51: 00.1.500.9001 | D51: Recursos não vinculados de Impostos | I51: Analítica | J51: 173052 | K51: 0 | L51: 0 | M51: 0 | N51: 0 | O51: 173052 | P51: =MID(Receita_PMSP_Tabela5[[#This Row],[COD_FONT_REC]], 6, 3) -> 500 | Q51: =LEFT(Receita_PMSP_Tabela5[[#This Row],[COD_ORIG_RCTA_F]], 10) -> 1.1.1.2.50 | R51: =LEFT(Receita_PMSP_Tabela5[[#This Row],[COD_ORIG_RCTA_F]], 12) -> 1.1.1.2.50.0 | S51: =LEFT(Receita_PMSP_Tabela5[[#This Row],[COD_FONT_REC]], 2) -> 00
A52: 1.1.1.2.50.0.4.01.00.000.000.12.01.008 | B52: TDM - IPTU - Dívida Ativa - Multas e Juros | C52: 00.1.500.9001 | D52: Recursos não vinculados de Impostos | I52: Analítica | J52: 810864 | K52: 33966.7 | L52: 4.19 | M52: 398163.98 | N52: 49.1 | O52: 810864 | P52: =MID(Receita_PMSP_Tabela5[[#This Row],[COD_FONT_REC]], 6, 3) -> 500 | Q52: =LEFT(Receita_PMSP_Tabela5[[#This Row],[COD_ORIG_RCTA_F]], 10) -> 1.1.1.2.50 | R52: =LEFT(Receita_PMSP_Tabela5[[#This Row],[COD_ORIG_RCTA_F]], 12) -> 1.1.1.2.50.0 | S52: =LEFT(Receita_PMSP_Tabela5[[#This Row],[COD_FONT_REC]], 2) -> 00
A53: 1.1.1.2.50.0.4.01.00.000.000.12.09.000 | B53: TOTAL DEDUÇÕES PARCELAMENTO IMPOSTO SOBRE A PROPRIEDADE PREDIAL E TERR | I53: Sintética | J53: 0 | K53: -13584.71 | L53: 0 | M53: -187757.46 | N53: 0 | O53: 0 | P53: =MID(Receita_PMSP_Tabela5[[#This Row],[COD_FONT_REC]], 6, 3) ->  | Q53: =LEFT(Receita_PMSP_Tabela5[[#This Row],[COD_ORIG_RCTA_F]], 10) -> 1.1.1.2.50 | R53: =LEFT(Receita_PMSP_Tabela5[[#This Row],[COD_ORIG_RCTA_F]], 12) -> 1.1.1.2.50.0 | S53: =LEFT(Receita_PMSP_Tabela5[[#This Row],[COD_FONT_REC]], 2) -> 
A54: 1.1.1.2.50.0.4.01.00.000.000.12.09.001 | B54: Deduções PPI - Imposto sobre a Propriedade Predial e Territorial Urban | C54: 00.1.500.9001 | D54: Recursos não vinculados de Impostos | I54: Analítica | J54: 0 | K54: -13584.71 | L54: 0 | M54: -187757.46 | N54: 0 | O54: 0 | P54: =MID(Receita_PMSP_Tabela5[[#This Row],[COD_FONT_REC]], 6, 3) -> 500 | Q54: =LEFT(Receita_PMSP_Tabela5[[#This Row],[COD_ORIG_RCTA_F]], 10) -> 1.1.1.2.50 | R54: =LEFT(Receita_PMSP_Tabela5[[#This Row],[COD_ORIG_RCTA_F]], 12) -> 1.1.1.2.50.0 | S54: =LEFT(Receita_PMSP_Tabela5[[#This Row],[COD_FONT_REC]], 2) -> 00
A55: 1.1.1.2.53.0.0.00.00.000.000.00.00.000 | B55: IMPOSTO SOBRE TRANSMISSÃO INTER VIVOS DE BENS IMÓVEIS E DE DIREITOS R" | I55: Sintética | J55: 4399222246 | K55: 370940915 | L55: 8.43 | M55: 1319244262 | N55: 29.99 | O55: 4399222246 | P55: =MID(Receita_PMSP_Tabela5[[#This Row],[COD_FONT_REC]], 6, 3) ->  | Q55: =LEFT(Receita_PMSP_Tabela5[[#This Row],[COD_ORIG_RCTA_F]], 10) -> 1.1.1.2.53 | R55: =LEFT(Receita_PMSP_Tabela5[[#This Row],[COD_ORIG_RCTA_F]], 12) -> 1.1.1.2.53.0 | S55: =LEFT(Receita_PMSP_Tabela5[[#This Row],[COD_FONT_REC]], 2) -> 
A56: 1.1.1.2.53.0.1.00.00.000.000.00.00.000 | B56: IMPOSTO SOBRE TRANSMISSÃO INTER VIVOS DE BENS IMÓVEIS E DE DIREITOS RE | I56: Sintética | J56: 4334222428 | K56: 367318184 | L56: 8.47 | M56: 1284574914 | N56: 29.64 | O56: 4334222428 | P56: =MID(Receita_PMSP_Tabela5[[#This Row],[COD_FONT_REC]], 6, 3) ->  | Q56: =LEFT(Receita_PMSP_Tabela5[[#This Row],[COD_ORIG_RCTA_F]], 10) -> 1.1.1.2.53 | R56: =LEFT(Receita_PMSP_Tabela5[[#This Row],[COD_ORIG_RCTA_F]], 12) -> 1.1.1.2.53.0 | S56: =LEFT(Receita_PMSP_Tabela5[[#This Row],[COD_FONT_REC]], 2) -> 
A57: 1.1.1.2.53.0.1.01.00.000.000.00.00.000 | B57: IMPOSTO SOBRE TRANSMISSÃO INTER VIVOS DE BENS IMÓVEIS E DE DIREITOS RE | I57: Sintética | J57: 4334222428 | K57: 367318184 | L57: 8.47 | M57: 1284574914 | N57: 29.64 | O57: 4334222428 | P57: =MID(Receita_PMSP_Tabela5[[#This Row],[COD_FONT_REC]], 6, 3) ->  | Q57: =LEFT(Receita_PMSP_Tabela5[[#This Row],[COD_ORIG_RCTA_F]], 10) -> 1.1.1.2.53 | R57: =LEFT(Receita_PMSP_Tabela5[[#This Row],[COD_ORIG_RCTA_F]], 12) -> 1.1.1.2.53.0 | S57: =LEFT(Receita_PMSP_Tabela5[[#This Row],[COD_FONT_REC]], 2) -> 
A58: 1.1.1.2.53.0.1.01.00.000.000.11.00.000 | B58: IMPOSTO SOBRE TRANSMISSÃO INTER VIVOS DE BENS IMÓVEIS E DE DIREITOS RE | I58: Sintética | J58: 4331033809 | K58: 367067146.3 | L58: 8.48 | M58: 1276823255 | N58: 29.48 | O58: 4331033809 | P58: =MID(Receita_PMSP_Tabela5[[#This Row],[COD_FONT_REC]], 6, 3) ->  | Q58: =LEFT(Receita_PMSP_Tabela5[[#This Row],[COD_ORIG_RCTA_F]], 10) -> 1.1.1.2.53 | R58: =LEFT(Receita_PMSP_Tabela5[[#This Row],[COD_ORIG_RCTA_F]], 12) -> 1.1.1.2.53.0 | S58: =LEFT(Receita_PMSP_Tabela5[[#This Row],[COD_FONT_REC]], 2) -> 
A59: 1.1.1.2.53.0.1.01.00.000.000.11.01.000 | B59: Imposto sobre Transmissão Inter Vivos de Bens Imóveis e de Direitos Re | C59: 00.1.500.9001 | D59: Recursos não vinculados de Impostos | I59: Analítica | J59: 4331033809 | K59: 368088950.6 | L59: 8.5 | M59: 1279406124 | N59: 29.54 | O59: 4331033809 | P59: =MID(Receita_PMSP_Tabela5[[#This Row],[COD_FONT_REC]], 6, 3) -> 500 | Q59: =LEFT(Receita_PMSP_Tabela5[[#This Row],[COD_ORIG_RCTA_F]], 10) -> 1.1.1.2.53 | R59: =LEFT(Receita_PMSP_Tabela5[[#This Row],[COD_ORIG_RCTA_F]], 12) -> 1.1.1.2.53.0 | S59: =LEFT(Receita_PMSP_Tabela5[[#This Row],[COD_FONT_REC]], 2) -> 00
A60: 1.1.1.2.53.0.1.01.00.000.000.11.09.000 | B60: TOTAL DEDUÇÕES IMPOSTO SOBRE TRANSMISSÃO INTER VIVOS DE BENS IMÓVEIS E | I60: Sintética | J60: 0 | K60: -1021804.32 | L60: 0 | M60: -2582869.14 | N60: 0 | O60: 0 | P60: =MID(Receita_PMSP_Tabela5[[#This Row],[COD_FONT_REC]], 6, 3) ->  | Q60: =LEFT(Receita_PMSP_Tabela5[[#This Row],[COD_ORIG_RCTA_F]], 10) -> 1.1.1.2.53 | R60: =LEFT(Receita_PMSP_Tabela5[[#This Row],[COD_ORIG_RCTA_F]], 12) -> 1.1.1.2.53.0 | S60: =LEFT(Receita_PMSP_Tabela5[[#This Row],[COD_FONT_REC]], 2) -> 
A61: 1.1.1.2.53.0.1.01.00.000.000.11.09.001 | B61: Deduções Imposto sobre Transmissão Inter Vivos de Bens Imóveis e de Di | C61: 00.1.500.9001 | D61: Recursos não vinculados de Impostos | I61: Analítica | J61: 0 | K61: -1021804.32 | L61: 0 | M61: -2582869.14 | N61: 0 | O61: 0 | P61: =MID(Receita_PMSP_Tabela5[[#This Row],[COD_FONT_REC]], 6, 3) -> 500 | Q61: =LEFT(Receita_PMSP_Tabela5[[#This Row],[COD_ORIG_RCTA_F]], 10) -> 1.1.1.2.53 | R61: =LEFT(Receita_PMSP_Tabela5[[#This Row],[COD_ORIG_RCTA_F]], 12) -> 1.1.1.2.53.0 | S61: =LEFT(Receita_PMSP_Tabela5[[#This Row],[COD_FONT_REC]], 2) -> 00
A62: 1.1.1.2.53.0.1.01.00.000.000.12.00.000 | B62: PARCELAMENTO IMPOSTO SOBRE TRANSMISSÃO INTER VIVOS DE BENS IMÓVEIS E D | I62: Sintética | J62: 3188619 | K62: 251037.65 | L62: 7.87 | M62: 7751659.65 | N62: 243.1 | O62: 3188619 | P62: =MID(Receita_PMSP_Tabela5[[#This Row],[COD_FONT_REC]], 6, 3) ->  | Q62: =LEFT(Receita_PMSP_Tabela5[[#This Row],[COD_ORIG_RCTA_F]], 10) -> 1.1.1.2.53 | R62: =LEFT(Receita_PMSP_Tabela5[[#This Row],[COD_ORIG_RCTA_F]], 12) -> 1.1.1.2.53.0 | S62: =LEFT(Receita_PMSP_Tabela5[[#This Row],[COD_FONT_REC]], 2) -> 
A63: 1.1.1.2.53.0.1.01.00.000.000.12.01.000 | B63: TOTAL PARCELAMENTO IMPOSTO SOBRE TRANSMISSÃO INTER VIVOS DE BENS IMÓVE | I63: Sintética | J63: 3188619 | K63: 251037.65 | L63: 7.87 | M63: 7751659.65 | N63: 243.1 | O63: 3188619 | P63: =MID(Receita_PMSP_Tabela5[[#This Row],[COD_FONT_REC]], 6, 3) ->  | Q63: =LEFT(Receita_PMSP_Tabela5[[#This Row],[COD_ORIG_RCTA_F]], 10) -> 1.1.1.2.53 | R63: =LEFT(Receita_PMSP_Tabela5[[#This Row],[COD_ORIG_RCTA_F]], 12) -> 1.1.1.2.53.0 | S63: =LEFT(Receita_PMSP_Tabela5[[#This Row],[COD_FONT_REC]], 2) -> 
A64: 1.1.1.2.53.0.1.01.00.000.000.12.01.001 | B64: PPI - Imposto sobre Transmissão Inter Vivos de Bens Imóveis e de Direi | C64: 00.1.500.9001 | D64: Recursos não vinculados de Impostos | I64: Analítica | J64: 2211506 | K64: 109835.05 | L64: 4.97 | M64: 7508777.23 | N64: 339.53 | O64: 2211506 | P64: =MID(Receita_PMSP_Tabela5[[#This Row],[COD_FONT_REC]], 6, 3) -> 500 | Q64: =LEFT(Receita_PMSP_Tabela5[[#This Row],[COD_ORIG_RCTA_F]], 10) -> 1.1.1.2.53 | R64: =LEFT(Receita_PMSP_Tabela5[[#This Row],[COD_ORIG_RCTA_F]], 12) -> 1.1.1.2.53.0 | S64: =LEFT(Receita_PMSP_Tabela5[[#This Row],[COD_FONT_REC]], 2) -> 00
A65: 1.1.1.2.53.0.1.01.00.000.000.12.01.002 | B65: PAT - Imposto sobre Transmissão Inter Vivos de Bens Imóveis e de Direi | C65: 00.1.500.9001 | D65: Recursos não vinculados de Impostos | I65: Analítica | J65: 977113 | K65: 141202.6 | L65: 14.45 | M65: 242882.42 | N65: 24.86 | O65: 977113 | P65: =MID(Receita_PMSP_Tabela5[[#This Row],[COD_FONT_REC]], 6, 3) -> 500 | Q65: =LEFT(Receita_PMSP_Tabela5[[#This Row],[COD_ORIG_RCTA_F]], 10) -> 1.1.1.2.53 | R65: =LEFT(Receita_PMSP_Tabela5[[#This Row],[COD_ORIG_RCTA_F]], 12) -> 1.1.1.2.53.0 | S65: =LEFT(Receita_PMSP_Tabela5[[#This Row],[COD_FONT_REC]], 2) -> 00
A66: 1.1.1.2.53.0.2.00.00.000.000.00.00.000 | B66: IMPOSTO SOBRE TRANSMISSÃO INTER VIVOS DE BENS IMÓVEIS E DE DIREITOS RE | I66: Sintética | J66: 35682966 | K66: 2540177.04 | L66: 7.12 | M66: 10464421.67 | N66: 29.33 | O66: 35682966 | P66: =MID(Receita_PMSP_Tabela5[[#This Row],[COD_FONT_REC]], 6, 3) ->  | Q66: =LEFT(Receita_PMSP_Tabela5[[#This Row],[COD_ORIG_RCTA_F]], 10) -> 1.1.1.2.53 | R66: =LEFT(Receita_PMSP_Tabela5[[#This Row],[COD_ORIG_RCTA_F]], 12) -> 1.1.1.2.53.0 | S66: =LEFT(Receita_PMSP_Tabela5[[#This Row],[COD_FONT_REC]], 2) -> 
A67: 1.1.1.2.53.0.2.01.00.000.000.00.00.000 | B67: IMPOSTO SOBRE TRANSMISSÃO INTER VIVOS DE BENS IMÓVEIS E DE DIREITOS RE | I67: Sintética | J67: 35682966 | K67: 2540177.04 | L67: 7.12 | M67: 10464421.67 | N67: 29.33 | O67: 35682966 | P67: =MID(Receita_PMSP_Tabela5[[#This Row],[COD_FONT_REC]], 6, 3) ->  | Q67: =LEFT(Receita_PMSP_Tabela5[[#This Row],[COD_ORIG_RCTA_F]], 10) -> 1.1.1.2.53 | R67: =LEFT(Receita_PMSP_Tabela5[[#This Row],[COD_ORIG_RCTA_F]], 12) -> 1.1.1.2.53.0 | S67: =LEFT(Receita_PMSP_Tabela5[[#This Row],[COD_FONT_REC]], 2) -> 
A68: 1.1.1.2.53.0.2.01.00.000.000.11.00.000 | B68: IMPOSTO SOBRE TRANSMISSÃO INTER VIVOS DE BENS IMÓVEIS E DE DIREITOS RE | I68: Sintética | J68: 33357971 | K68: 2338523.2 | L68: 7.01 | M68: 9340256.04 | N68: 28 | O68: 33357971 | P68: =MID(Receita_PMSP_Tabela5[[#This Row],[COD_FONT_REC]], 6, 3) ->  | Q68: =LEFT(Receita_PMSP_Tabela5[[#This Row],[COD_ORIG_RCTA_F]], 10) -> 1.1.1.2.53 | R68: =LEFT(Receita_PMSP_Tabela5[[#This Row],[COD_ORIG_RCTA_F]], 12) -> 1.1.1.2.53.0 | S68: =LEFT(Receita_PMSP_Tabela5[[#This Row],[COD_FONT_REC]], 2) -> 
A69: 1.1.1.2.53.0.2.01.00.000.000.11.01.000 | B69: Imposto s/ Transmissão Inter Vivos de Bens Imov. e Dir. Multas e juros | C69: 00.1.500.9001 | D69: Recursos não vinculados de Impostos | I69: Analítica | J69: 33357971 | K69: 2338523.2 | L69: 7.01 | M69: 9340256.04 | N69: 28 | O69: 33357971 | P69: =MID(Receita_PMSP_Tabela5[[#This Row],[COD_FONT_REC]], 6, 3) -> 500 | Q69: =LEFT(Receita_PMSP_Tabela5[[#This Row],[COD_ORIG_RCTA_F]], 10) -> 1.1.1.2.53 | R69: =LEFT(Receita_PMSP_Tabela5[[#This Row],[COD_ORIG_RCTA_F]], 12) -> 1.1.1.2.53.0 | S69: =LEFT(Receita_PMSP_Tabela5[[#This Row],[COD_FONT_REC]], 2) -> 00
A70: 1.1.1.2.53.0.2.01.00.000.000.12.00.000 | B70: PARCELAMENTO IMPOSTO SOBRE TRANSMISSÃO INTER VIVOS DE BENS IMÓVEIS E D | I70: Sintética | J70: 2324995 | K70: 201653.84 | L70: 8.67 | M70: 1124165.63 | N70: 48.35 | O70: 2324995 | P70: =MID(Receita_PMSP_Tabela5[[#This Row],[COD_FONT_REC]], 6, 3) ->  | Q70: =LEFT(Receita_PMSP_Tabela5[[#This Row],[COD_ORIG_RCTA_F]], 10) -> 1.1.1.2.53 | R70: =LEFT(Receita_PMSP_Tabela5[[#This Row],[COD_ORIG_RCTA_F]], 12) -> 1.1.1.2.53.0 | S70: =LEFT(Receita_PMSP_Tabela5[[#This Row],[COD_FONT_REC]], 2) -> 
A71: 1.1.1.2.53.0.2.01.00.000.000.12.01.000 | B71: TOTAL PARCELAMENTO IMPOSTO SOBRE TRANSMISSÃO INTER VIVOS DE BENS IMÓVE | I71: Sintética | J71: 2324995 | K71: 201653.84 | L71: 8.67 | M71: 1124165.63 | N71: 48.35 | O71: 2324995 | P71: =MID(Receita_PMSP_Tabela5[[#This Row],[COD_FONT_REC]], 6, 3) ->  | Q71: =LEFT(Receita_PMSP_Tabela5[[#This Row],[COD_ORIG_RCTA_F]], 10) -> 1.1.1.2.53 | R71: =LEFT(Receita_PMSP_Tabela5[[#This Row],[COD_ORIG_RCTA_F]], 12) -> 1.1.1.2.53.0 | S71: =LEFT(Receita_PMSP_Tabela5[[#This Row],[COD_FONT_REC]], 2) -> 
A72: 1.1.1.2.53.0.2.01.00.000.000.12.01.001 | B72: PPI - Imposto sobre Transmissão Inter Vivos de Bens Imóveis e de Direi | C72: 00.1.500.9001 | D72: Recursos não vinculados de Impostos | I72: Analítica | J72: 1099125 | K72: 56064.25 | L72: 5.1 | M72: 854678.11 | N72: 77.76 | O72: 1099125 | P72: =MID(Receita_PMSP_Tabela5[[#This Row],[COD_FONT_REC]], 6, 3) -> 500 | Q72: =LEFT(Receita_PMSP_Tabela5[[#This Row],[COD_ORIG_RCTA_F]], 10) -> 1.1.1.2.53 | R72: =LEFT(Receita_PMSP_Tabela5[[#This Row],[COD_ORIG_RCTA_F]], 12) -> 1.1.1.2.53.0 | S72: =LEFT(Receita_PMSP_Tabela5[[#This Row],[COD_FONT_REC]], 2) -> 00
A73: 1.1.1.2.53.0.2.01.00.000.000.12.01.002 | B73: PAT - Imposto sobre Transmissão Inter Vivos de Bens Imóveis e de Direi | C73: 00.1.500.9001 | D73: Recursos não vinculados de Impostos | I73: Analítica | J73: 1225870 | K73: 145589.59 | L73: 11.88 | M73: 269487.52 | N73: 21.98 | O73: 1225870 | P73: =MID(Receita_PMSP_Tabela5[[#This Row],[COD_FONT_REC]], 6, 3) -> 500 | Q73: =LEFT(Receita_PMSP_Tabela5[[#This Row],[COD_ORIG_RCTA_F]], 10) -> 1.1.1.2.53 | R73: =LEFT(Receita_PMSP_Tabela5[[#This Row],[COD_ORIG_RCTA_F]], 12) -> 1.1.1.2.53.0 | S73: =LEFT(Receita_PMSP_Tabela5[[#This Row],[COD_FONT_REC]], 2) -> 00
A74: 1.1.1.2.53.0.3.00.00.000.000.00.00.000 | B74: IMPOSTO SOBRE TRANSMISSÃO INTER VIVOS DE BENS IMÓVEIS E DE DIREITOS RE | I74: Sintética | J74: 17740817 | K74: 594500.45 | L74: 3.35 | M74: 20089683.39 | N74: 113.24 | O74: 17740817 | P74: =MID(Receita_PMSP_Tabela5[[#This Row],[COD_FONT_REC]], 6, 3) ->  | Q74: =LEFT(Receita_PMSP_Tabela5[[#This Row],[COD_ORIG_RCTA_F]], 10) -> 1.1.1.2.53 | R74: =LEFT(Receita_PMSP_Tabela5[[#This Row],[COD_ORIG_RCTA_F]], 12) -> 1.1.1.2.53.0 | S74: =LEFT(Receita_PMSP_Tabela5[[#This Row],[COD_FONT_REC]], 2) -> 
A75: 1.1.1.2.53.0.3.01.00.000.000.00.00.000 | B75: IMPOSTO SOBRE TRANSMISSÃO INTER VIVOS DE BENS IMÓVEIS E DE DIREITOS RE | I75: Sintética | J75: 17740817 | K75: 594500.45 | L75: 3.35 | M75: 20089683.39 | N75: 113.24 | O75: 17740817 | P75: =MID(Receita_PMSP_Tabela5[[#This Row],[COD_FONT_REC]], 6, 3) ->  | Q75: =LEFT(Receita_PMSP_Tabela5[[#This Row],[COD_ORIG_RCTA_F]], 10) -> 1.1.1.2.53 | R75: =LEFT(Receita_PMSP_Tabela5[[#This Row],[COD_ORIG_RCTA_F]], 12) -> 1.1.1.2.53.0 | S75: =LEFT(Receita_PMSP_Tabela5[[#This Row],[COD_FONT_REC]], 2) -> 
A76: 1.1.1.2.53.0.3.01.00.000.000.11.00.000 | B76: IMPOSTO SOBRE TRANSMISSÃO INTER VIVOS DE BENS IMÓVEIS E DE DIREITOS RE | I76: Sintética | J76: 9742155 | K76: 112415.85 | L76: 1.15 | M76: 463891.74 | N76: 4.76 | O76: 9742155 | P76: =MID(Receita_PMSP_Tabela5[[#This Row],[COD_FONT_REC]], 6, 3) ->  | Q76: =LEFT(Receita_PMSP_Tabela5[[#This Row],[COD_ORIG_RCTA_F]], 10) -> 1.1.1.2.53 | R76: =LEFT(Receita_PMSP_Tabela5[[#This Row],[COD_ORIG_RCTA_F]], 12) -> 1.1.1.2.53.0 | S76: =LEFT(Receita_PMSP_Tabela5[[#This Row],[COD_FONT_REC]], 2) -> 
A77: 1.1.1.2.53.0.3.01.00.000.000.11.01.000 | B77: Imposto sobre Transmissão Inter Vivos de Bens Imóveis e de Direitos Re | C77: 00.1.500.9001 | D77: Recursos não vinculados de Impostos | I77: Analítica | J77: 9742155 | K77: 112415.85 | L77: 1.15 | M77: 463891.74 | N77: 4.76 | O77: 9742155 | P77: =MID(Receita_PMSP_Tabela5[[#This Row],[COD_FONT_REC]], 6, 3) -> 500 | Q77: =LEFT(Receita_PMSP_Tabela5[[#This Row],[COD_ORIG_RCTA_F]], 10) -> 1.1.1.2.53 | R77: =LEFT(Receita_PMSP_Tabela5[[#This Row],[COD_ORIG_RCTA_F]], 12) -> 1.1.1.2.53.0 | S77: =LEFT(Receita_PMSP_Tabela5[[#This Row],[COD_FONT_REC]], 2) -> 00
A78: 1.1.1.2.53.0.3.01.00.000.000.12.00.000 | B78: PARCELAMENTO IMPOSTO SOBRE TRANSMISSÃO INTER VIVOS DE BENS IMÓVEIS E D | I78: Sintética | J78: 7998662 | K78: 482084.6 | L78: 6.03 | M78: 19625791.65 | N78: 245.36 | O78: 7998662 | P78: =MID(Receita_PMSP_Tabela5[[#This Row],[COD_FONT_REC]], 6, 3) ->  | Q78: =LEFT(Receita_PMSP_Tabela5[[#This Row],[COD_ORIG_RCTA_F]], 10) -> 1.1.1.2.53 | R78: =LEFT(Receita_PMSP_Tabela5[[#This Row],[COD_ORIG_RCTA_F]], 12) -> 1.1.1.2.53.0 | S78: =LEFT(Receita_PMSP_Tabela5[[#This Row],[COD_FONT_REC]], 2) -> 
A79: 1.1.1.2.53.0.3.01.00.000.000.12.01.000 | B79: TOTAL PARCELAMENTO IMPOSTO SOBRE TRANSMISSÃO INTER VIVOS DE BENS IMÓVE | I79: Sintética | J79: 7998662 | K79: 482084.6 | L79: 6.03 | M79: 19625791.65 | N79: 245.36 | O79: 7998662 | P79: =MID(Receita_PMSP_Tabela5[[#This Row],[COD_FONT_REC]], 6, 3) ->  | Q79: =LEFT(Receita_PMSP_Tabela5[[#This Row],[COD_ORIG_RCTA_F]], 10) -> 1.1.1.2.53 | R79: =LEFT(Receita_PMSP_Tabela5[[#This Row],[COD_ORIG_RCTA_F]], 12) -> 1.1.1.2.53.0 | S79: =LEFT(Receita_PMSP_Tabela5[[#This Row],[COD_FONT_REC]], 2) -> 
A80: 1.1.1.2.53.0.3.01.00.000.000.12.01.001 | B80: PPI - Imposto sobre Transmissão Inter Vivos de Bens Imóveis e de Direi | C80: 00.1.500.9001 | D80: Recursos não vinculados de Impostos | I80: Analítica | J80: 7998662 | K80: 482084.6 | L80: 6.03 | M80: 19625791.65 | N80: 245.36 | O80: 7998662 | P80: =MID(Receita_PMSP_Tabela5[[#This Row],[COD_FONT_REC]], 6, 3) -> 500 | Q80: =LEFT(Receita_PMSP_Tabela5[[#This Row],[COD_ORIG_RCTA_F]], 10) -> 1.1.1.2.53 | R80: =LEFT(Receita_PMSP_Tabela5[[#This Row],[COD_ORIG_RCTA_F]], 12) -> 1.1.1.2.53.0 | S80: =LEFT(Receita_PMSP_Tabela5[[#This Row],[COD_FONT_REC]], 2) -> 00
A81: 1.1.1.2.53.0.4.00.00.000.000.00.00.000 | B81: IMPOSTO SOBRE TRANSMISSÃO INTER VIVOS DE BENS IMÓVEIS E DE DIREITOS RE | I81: Sintética | J81: 11576035 | K81: 488053.56 | L81: 4.22 | M81: 4115242.82 | N81: 35.55 | O81: 11576035 | P81: =MID(Receita_PMSP_Tabela5[[#This Row],[COD_FONT_REC]], 6, 3) ->  | Q81: =LEFT(Receita_PMSP_Tabela5[[#This Row],[COD_ORIG_RCTA_F]], 10) -> 1.1.1.2.53 | R81: =LEFT(Receita_PMSP_Tabela5[[#This Row],[COD_ORIG_RCTA_F]], 12) -> 1.1.1.2.53.0 | S81: =LEFT(Receita_PMSP_Tabela5[[#This Row],[COD_FONT_REC]], 2) -> 
A82: 1.1.1.2.53.0.4.01.00.000.000.00.00.000 | B82: IMPOSTO SOBRE TRANSMISSÃO INTER VIVOS DE BENS IMÓVEIS E DE DIREITOS RE | I82: Sintética | J82: 11576035 | K82: 488053.56 | L82: 4.22 | M82: 4115242.82 | N82: 35.55 | O82: 11576035 | P82: =MID(Receita_PMSP_Tabela5[[#This Row],[COD_FONT_REC]], 6, 3) ->  | Q82: =LEFT(Receita_PMSP_Tabela5[[#This Row],[COD_ORIG_RCTA_F]], 10) -> 1.1.1.2.53 | R82: =LEFT(Receita_PMSP_Tabela5[[#This Row],[COD_ORIG_RCTA_F]], 12) -> 1.1.1.2.53.0 | S82: =LEFT(Receita_PMSP_Tabela5[[#This Row],[COD_FONT_REC]], 2) -> 
A83: 1.1.1.2.53.0.4.01.00.000.000.11.00.000 | B83: IMPOSTO SOBRE TRANSMISSÃO INTER VIVOS DE BENS IMÓVEIS E DE DIREITOS RE | I83: Sintética | J83: 4540602 | K83: 76743.94 | L83: 1.69 | M83: 337322.69 | N83: 7.43 | O83: 4540602 | P83: =MID(Receita_PMSP_Tabela5[[#This Row],[COD_FONT_REC]], 6, 3) ->  | Q83: =LEFT(Receita_PMSP_Tabela5[[#This Row],[COD_ORIG_RCTA_F]], 10) -> 1.1.1.2.53 | R83: =LEFT(Receita_PMSP_Tabela5[[#This Row],[COD_ORIG_RCTA_F]], 12) -> 1.1.1.2.53.0 | S83: =LEFT(Receita_PMSP_Tabela5[[#This Row],[COD_FONT_REC]], 2) -> 
A84: 1.1.1.2.53.0.4.01.00.000.000.11.01.000 | B84: Imposto s/ Transmissão Inter Vivos de Bens Imov. e Dir. Multas e juros | C84: 00.1.500.9001 | D84: Recursos não vinculados de Impostos | I84: Analítica | J84: 4540602 | K84: 76743.94 | L84: 1.69 | M84: 337322.69 | N84: 7.43 | O84: 4540602 | P84: =MID(Receita_PMSP_Tabela5[[#This Row],[COD_FONT_REC]], 6, 3) -> 500 | Q84: =LEFT(Receita_PMSP_Tabela5[[#This Row],[COD_ORIG_RCTA_F]], 10) -> 1.1.1.2.53 | R84: =LEFT(Receita_PMSP_Tabela5[[#This Row],[COD_ORIG_RCTA_F]], 12) -> 1.1.1.2.53.0 | S84: =LEFT(Receita_PMSP_Tabela5[[#This Row],[COD_FONT_REC]], 2) -> 00
A85: 1.1.1.2.53.0.4.01.00.000.000.12.00.000 | B85: PARCELAMENTO IMPOSTO SOBRE TRANSMISSÃO INTER VIVOS DE BENS IMÓVEIS E D | I85: Sintética | J85: 7035433 | K85: 411309.62 | L85: 5.85 | M85: 3777920.13 | N85: 53.7 | O85: 7035433 | P85: =MID(Receita_PMSP_Tabela5[[#This Row],[COD_FONT_REC]], 6, 3) ->  | Q85: =LEFT(Receita_PMSP_Tabela5[[#This Row],[COD_ORIG_RCTA_F]], 10) -> 1.1.1.2.53 | R85: =LEFT(Receita_PMSP_Tabela5[[#This Row],[COD_ORIG_RCTA_F]], 12) -> 1.1.1.2.53.0 | S85: =LEFT(Receita_PMSP_Tabela5[[#This Row],[COD_FONT_REC]], 2) -> 
A86: 1.1.1.2.53.0.4.01.00.000.000.12.01.000 | B86: TOTAL PARCELAMENTO IMPOSTO SOBRE TRANSMISSÃO INTER VIVOS DE BENS IMÓVE | I86: Sintética | J86: 7035433 | K86: 411309.62 | L86: 5.85 | M86: 3777920.13 | N86: 53.7 | O86: 7035433 | P86: =MID(Receita_PMSP_Tabela5[[#This Row],[COD_FONT_REC]], 6, 3) ->  | Q86: =LEFT(Receita_PMSP_Tabela5[[#This Row],[COD_ORIG_RCTA_F]], 10) -> 1.1.1.2.53 | R86: =LEFT(Receita_PMSP_Tabela5[[#This Row],[COD_ORIG_RCTA_F]], 12) -> 1.1.1.2.53.0 | S86: =LEFT(Receita_PMSP_Tabela5[[#This Row],[COD_FONT_REC]], 2) -> 
A87: 1.1.1.2.53.0.4.01.00.000.000.12.01.001 | B87: PPI - Imposto sobre Transmissão Inter Vivos de Bens Imóveis e de Direi | C87: 00.1.500.9001 | D87: Recursos não vinculados de Impostos | I87: Analítica | J87: 7035433 | K87: 411309.62 | L87: 5.85 | M87: 3777920.13 | N87: 53.7 | O87: 7035433 | P87: =MID(Receita_PMSP_Tabela5[[#This Row],[COD_FONT_REC]], 6, 3) -> 500 | Q87: =LEFT(Receita_PMSP_Tabela5[[#This Row],[COD_ORIG_RCTA_F]], 10) -> 1.1.1.2.53 | R87: =LEFT(Receita_PMSP_Tabela5[[#This Row],[COD_ORIG_RCTA_F]], 12) -> 1.1.1.2.53.0 | S87: =LEFT(Receita_PMSP_Tabela5[[#This Row],[COD_FONT_REC]], 2) -> 00
A88: 1.1.1.3.00.0.0.00.00.000.000.00.00.000 | B88: IMPOSTOS SOBRE A RENDA E PROVENTOS DE QUALQUER NATUREZA | I88: Sintética | J88: 5521973064 | K88: 376385115.2 | L88: 6.82 | M88: 1467542983 | N88: 26.58 | O88: 5521973064 | P88: =MID(Receita_PMSP_Tabela5[[#This Row],[COD_FONT_REC]], 6, 3) ->  | Q88: =LEFT(Receita_PMSP_Tabela5[[#This Row],[COD_ORIG_RCTA_F]], 10) -> 1.1.1.3.00 | R88: =LEFT(Receita_PMSP_Tabela5[[#This Row],[COD_ORIG_RCTA_F]], 12) -> 1.1.1.3.00.0 | S88: =LEFT(Receita_PMSP_Tabela5[[#This Row],[COD_FONT_REC]], 2) -> 
A89: 1.1.1.3.03.0.0.00.00.000.000.00.00.000 | B89: IMPOSTO SOBRE A RENDA - RETIDO NA FONTE | I89: Sintética | J89: 5521973064 | K89: 376385115.2 | L89: 6.82 | M89: 1467542983 | N89: 26.58 | O89: 5521973064 | P89: =MID(Receita_PMSP_Tabela5[[#This Row],[COD_FONT_REC]], 6, 3) ->  | Q89: =LEFT(Receita_PMSP_Tabela5[[#This Row],[COD_ORIG_RCTA_F]], 10) -> 1.1.1.3.03 | R89: =LEFT(Receita_PMSP_Tabela5[[#This Row],[COD_ORIG_RCTA_F]], 12) -> 1.1.1.3.03.0 | S89: =LEFT(Receita_PMSP_Tabela5[[#This Row],[COD_FONT_REC]], 2) -> 
A90: 1.1.1.3.03.1.0.00.00.000.000.00.00.000 | B90: IMPOSTO SOBRE A RENDA - RETIDO NA FONTE - TRABALHO | I90: Sintética | J90: 4690446932 | K90: 302202415.2 | L90: 6.44 | M90: 1248205714 | N90: 26.61 | O90: 4690446932 | P90: =MID(Receita_PMSP_Tabela5[[#This Row],[COD_FONT_REC]], 6, 3) ->  | Q90: =LEFT(Receita_PMSP_Tabela5[[#This Row],[COD_ORIG_RCTA_F]], 10) -> 1.1.1.3.03 | R90: =LEFT(Receita_PMSP_Tabela5[[#This Row],[COD_ORIG_RCTA_F]], 12) -> 1.1.1.3.03.1 | S90: =LEFT(Receita_PMSP_Tabela5[[#This Row],[COD_FONT_REC]], 2) -> 
A91: 1.1.1.3.03.1.1.00.00.000.000.00.00.000 | B91: IMPOSTO SOBRE A RENDA - RETIDO NA FONTE - TRABALHO - PRINCIPAL | I91: Sintética | J91: 4690446932 | K91: 302202415.2 | L91: 6.44 | M91: 1248205714 | N91: 26.61 | O91: 4690446932 | P91: =MID(Receita_PMSP_Tabela5[[#This Row],[COD_FONT_REC]], 6, 3) ->  | Q91: =LEFT(Receita_PMSP_Tabela5[[#This Row],[COD_ORIG_RCTA_F]], 10) -> 1.1.1.3.03 | R91: =LEFT(Receita_PMSP_Tabela5[[#This Row],[COD_ORIG_RCTA_F]], 12) -> 1.1.1.3.03.1 | S91: =LEFT(Receita_PMSP_Tabela5[[#This Row],[COD_FONT_REC]], 2) -> 
A92: 1.1.1.3.03.1.1.01.00.000.000.00.00.000 | B92: IMPOSTO SOBRE A RENDA - RETIDO NA FONTE - TRABALHO - PRINCIPAL - PF | I92: Sintética | J92: 146107774 | K92: 7850641.76 | L92: 5.37 | M92: 32657847.34 | N92: 22.35 | O92: 146107774 | P92: =MID(Receita_PMSP_Tabela5[[#This Row],[COD_FONT_REC]], 6, 3) ->  | Q92: =LEFT(Receita_PMSP_Tabela5[[#This Row],[COD_ORIG_RCTA_F]], 10) -> 1.1.1.3.03 | R92: =LEFT(Receita_PMSP_Tabela5[[#This Row],[COD_ORIG_RCTA_F]], 12) -> 1.1.1.3.03.1 | S92: =LEFT(Receita_PMSP_Tabela5[[#This Row],[COD_FONT_REC]], 2) -> 
A93: 1.1.1.3.03.1.1.01.00.000.000.11.00.000 | B93: IMPOSTO SOBRE A RENDA - RETIDO NA FONTE - TRABALHO - PF | I93: Sintética | J93: 146107774 | K93: 7850641.76 | L93: 5.37 | M93: 32657847.34 | N93: 22.35 | O93: 146107774 | P93: =MID(Receita_PMSP_Tabela5[[#This Row],[COD_FONT_REC]], 6, 3) ->  | Q93: =LEFT(Receita_PMSP_Tabela5[[#This Row],[COD_ORIG_RCTA_F]], 10) -> 1.1.1.3.03 | R93: =LEFT(Receita_PMSP_Tabela5[[#This Row],[COD_ORIG_RCTA_F]], 12) -> 1.1.1.3.03.1 | S93: =LEFT(Receita_PMSP_Tabela5[[#This Row],[COD_FONT_REC]], 2) -> 
A94: 1.1.1.3.03.1.1.01.00.000.000.11.01.000 | B94: Imposto sobre a Renda - Retido na Fonte - Trabalho - PF | C94: 00.1.500.9003 | D94: Recursos de Imposto de Renda Retido na Fonte - IRRF | I94: Analítica | J94: 146107774 | K94: 7850641.76 | L94: 5.37 | M94: 32657900.56 | N94: 22.35 | O94: 146107774 | P94: =MID(Receita_PMSP_Tabela5[[#This Row],[COD_FONT_REC]], 6, 3) -> 500 | Q94: =LEFT(Receita_PMSP_Tabela5[[#This Row],[COD_ORIG_RCTA_F]], 10) -> 1.1.1.3.03 | R94: =LEFT(Receita_PMSP_Tabela5[[#This Row],[COD_ORIG_RCTA_F]], 12) -> 1.1.1.3.03.1 | S94: =LEFT(Receita_PMSP_Tabela5[[#This Row],[COD_FONT_REC]], 2) -> 00
A95: 1.1.1.3.03.1.1.01.00.000.000.11.09.000 | B95: TOTAL DO IMPOSTO SOBRE A RENDA - RETIDO NA FONTE - TRABALHO - PF | I95: Sintética | J95: 0 | K95: 0 | L95: 0 | M95: -53.22 | N95: 0 | O95: 0 | P95: =MID(Receita_PMSP_Tabela5[[#This Row],[COD_FONT_REC]], 6, 3) ->  | Q95: =LEFT(Receita_PMSP_Tabela5[[#This Row],[COD_ORIG_RCTA_F]], 10) -> 1.1.1.3.03 | R95: =LEFT(Receita_PMSP_Tabela5[[#This Row],[COD_ORIG_RCTA_F]], 12) -> 1.1.1.3.03.1 | S95: =LEFT(Receita_PMSP_Tabela5[[#This Row],[COD_FONT_REC]], 2) -> 
A96: 1.1.1.3.03.1.1.01.00.000.000.11.09.001 | B96: Deduções do Imposto sobre a Renda - Retido na Fonte - Trabalho - PF | C96: 00.1.500.9003 | D96: Recursos de Imposto de Renda Retido na Fonte - IRRF | I96: Analítica | J96: 0 | K96: 0 | L96: 0 | M96: -53.22 | N96: 0 | O96: 0 | P96: =MID(Receita_PMSP_Tabela5[[#This Row],[COD_FONT_REC]], 6, 3) -> 500 | Q96: =LEFT(Receita_PMSP_Tabela5[[#This Row],[COD_ORIG_RCTA_F]], 10) -> 1.1.1.3.03 | R96: =LEFT(Receita_PMSP_Tabela5[[#This Row],[COD_ORIG_RCTA_F]], 12) -> 1.1.1.3.03.1 | S96: =LEFT(Receita_PMSP_Tabela5[[#This Row],[COD_FONT_REC]], 2) -> 00
A97: 1.1.1.3.03.1.1.02.00.000.000.00.00.000 | B97: IRRF - TRABALHO - PF - FOLHA DE PAGAMENTO | I97: Sintética | J97: 4544339158 | K97: 294351773.5 | L97: 6.48 | M97: 1215547866 | N97: 26.75 | O97: 4544339158 | P97: =MID(Receita_PMSP_Tabela5[[#This Row],[COD_FONT_REC]], 6, 3) ->  | Q97: =LEFT(Receita_PMSP_Tabela5[[#This Row],[COD_ORIG_RCTA_F]], 10) -> 1.1.1.3.03 | R97: =LEFT(Receita_PMSP_Tabela5[[#This Row],[COD_ORIG_RCTA_F]], 12) -> 1.1.1.3.03.1 | S97: =LEFT(Receita_PMSP_Tabela5[[#This Row],[COD_FONT_REC]], 2) -> 
A98: 1.1.1.3.03.1.1.02.00.000.000.11.00.000 | B98: IRRF - TRABALHO - PF - FOLHA DE PAGAMENTO | I98: Sintética | J98: 4544339158 | K98: 294351773.5 | L98: 6.48 | M98: 1215547866 | N98: 26.75 | O98: 4544339158 | P98: =MID(Receita_PMSP_Tabela5[[#This Row],[COD_FONT_REC]], 6, 3) ->  | Q98: =LEFT(Receita_PMSP_Tabela5[[#This Row],[COD_ORIG_RCTA_F]], 10) -> 1.1.1.3.03 | R98: =LEFT(Receita_PMSP_Tabela5[[#This Row],[COD_ORIG_RCTA_F]], 12) -> 1.1.1.3.03.1 | S98: =LEFT(Receita_PMSP_Tabela5[[#This Row],[COD_FONT_REC]], 2) -> 
A99: 1.1.1.3.03.1.1.02.00.000.000.11.01.000 | B99: IRRF - Trabalho - PF - Folha de Pagamento | C99: 00.1.500.9003 | D99: Recursos de Imposto de Renda Retido na Fonte - IRRF | I99: Analítica | J99: 4544339158 | K99: 294351773.5 | L99: 6.48 | M99: 1215547866 | N99: 26.75 | O99: 4544339158 | P99: =MID(Receita_PMSP_Tabela5[[#This Row],[COD_FONT_REC]], 6, 3) -> 500 | Q99: =LEFT(Receita_PMSP_Tabela5[[#This Row],[COD_ORIG_RCTA_F]], 10) -> 1.1.1.3.03 | R99: =LEFT(Receita_PMSP_Tabela5[[#This Row],[COD_ORIG_RCTA_F]], 12) -> 1.1.1.3.03.1 | S99: =LEFT(Receita_PMSP_Tabela5[[#This Row],[COD_FONT_REC]], 2) -> 00
A100: 1.1.1.3.03.2.0.00.00.000.000.00.00.000 | B100: IMPOSTO SOBRE A RENDA - RETIDO NA FONTE - CAPITAL | I100: Sintética | J100: 8206016 | K100: 10774077.38 | L100: 131.29 | M100: 12708563.6 | N100: 154.87 | O100: 8206016 | P100: =MID(Receita_PMSP_Tabela5[[#This Row],[COD_FONT_REC]], 6, 3) ->  | Q100: =LEFT(Receita_PMSP_Tabela5[[#This Row],[COD_ORIG_RCTA_F]], 10) -> 1.1.1.3.03 | R100: =LEFT(Receita_PMSP_Tabela5[[#This Row],[COD_ORIG_RCTA_F]], 12) -> 1.1.1.3.03.2 | S100: =LEFT(Receita_PMSP_Tabela5[[#This Row],[COD_FONT_REC]], 2) -> 
A101: 1.1.1.3.03.2.1.00.00.000.000.00.00.000 | B101: IMPOSTO SOBRE A RENDA - RETIDO NA FONTE - CAPITAL - PRINCIPAL | I101: Sintética | J101: 8206016 | K101: 10774077.38 | L101: 131.29 | M101: 12708563.6 | N101: 154.87 | O101: 8206016 | P101: =MID(Receita_PMSP_Tabela5[[#This Row],[COD_FONT_REC]], 6, 3) ->  | Q101: =LEFT(Receita_PMSP_Tabela5[[#This Row],[COD_ORIG_RCTA_F]], 10) -> 1.1.1.3.03 | R101: =LEFT(Receita_PMSP_Tabela5[[#This Row],[COD_ORIG_RCTA_F]], 12) -> 1.1.1.3.03.2 | S101: =LEFT(Receita_PMSP_Tabela5[[#This Row],[COD_FONT_REC]], 2) -> 
A102: 1.1.1.3.03.2.1.01.00.000.000.00.00.000 | B102: IMPOSTO SOBRE A RENDA - RETIDO NA FONTE - CAPITAL - PRINCIPAL - PF | I102: Sintética | J102: 8206016 | K102: 781391.83 | L102: 9.52 | M102: 2715878.05 | N102: 33.1 | O102: 8206016 | P102: =MID(Receita_PMSP_Tabela5[[#This Row],[COD_FONT_REC]], 6, 3) ->  | Q102: =LEFT(Receita_PMSP_Tabela5[[#This Row],[COD_ORIG_RCTA_F]], 10) -> 1.1.1.3.03 | R102: =LEFT(Receita_PMSP_Tabela5[[#This Row],[COD_ORIG_RCTA_F]], 12) -> 1.1.1.3.03.2 | S102: =LEFT(Receita_PMSP_Tabela5[[#This Row],[COD_FONT_REC]], 2) -> 
A103: 1.1.1.3.03.2.1.01.00.000.000.11.00.000 | B103: IMPOSTO SOBRE A RENDA - RETIDO NA FONTE - CAPITAL - PRINCIPAL - PF | I103: Sintética | J103: 8206016 | K103: 781391.83 | L103: 9.52 | M103: 2715878.05 | N103: 33.1 | O103: 8206016 | P103: =MID(Receita_PMSP_Tabela5[[#This Row],[COD_FONT_REC]], 6, 3) ->  | Q103: =LEFT(Receita_PMSP_Tabela5[[#This Row],[COD_ORIG_RCTA_F]], 10) -> 1.1.1.3.03 | R103: =LEFT(Receita_PMSP_Tabela5[[#This Row],[COD_ORIG_RCTA_F]], 12) -> 1.1.1.3.03.2 | S103: =LEFT(Receita_PMSP_Tabela5[[#This Row],[COD_FONT_REC]], 2) -> 
A104: 1.1.1.3.03.2.1.01.00.000.000.11.01.000 | B104: Imposto sobre a Renda - Retido na Fonte - Capital - PF | C104: 00.1.500.9003 | D104: Recursos de Imposto de Renda Retido na Fonte - IRRF | I104: Analítica | J104: 8206016 | K104: 781391.83 | L104: 9.52 | M104: 2715878.05 | N104: 33.1 | O104: 8206016 | P104: =MID(Receita_PMSP_Tabela5[[#This Row],[COD_FONT_REC]], 6, 3) -> 500 | Q104: =LEFT(Receita_PMSP_Tabela5[[#This Row],[COD_ORIG_RCTA_F]], 10) -> 1.1.1.3.03 | R104: =LEFT(Receita_PMSP_Tabela5[[#This Row],[COD_ORIG_RCTA_F]], 12) -> 1.1.1.3.03.2 | S104: =LEFT(Receita_PMSP_Tabela5[[#This Row],[COD_FONT_REC]], 2) -> 00
A105: 1.1.1.3.03.2.1.02.00.000.000.00.00.000 | B105: IMPOSTO SOBRE A RENDA - RETIDO NA FONTE - CAPITAL - PRINCIPAL - PJ | I105: Sintética | J105: 0 | K105: 9992685.55 | L105: 0 | M105: 9992685.55 | N105: 0 | O105: 0 | P105: =MID(Receita_PMSP_Tabela5[[#This Row],[COD_FONT_REC]], 6, 3) ->  | Q105: =LEFT(Receita_PMSP_Tabela5[[#This Row],[COD_ORIG_RCTA_F]], 10) -> 1.1.1.3.03 | R105: =LEFT(Receita_PMSP_Tabela5[[#This Row],[COD_ORIG_RCTA_F]], 12) -> 1.1.1.3.03.2 | S105: =LEFT(Receita_PMSP_Tabela5[[#This Row],[COD_FONT_REC]], 2) -> 
A106: 1.1.1.3.03.2.1.02.00.000.000.11.00.000 | B106: IMPOSTO SOBRE A RENDA - RETIDO NA FONTE - CAPITAL - PRINCIPAL - PJ | I106: Sintética | J106: 0 | K106: 9992685.55 | L106: 0 | M106: 9992685.55 | N106: 0 | O106: 0 | P106: =MID(Receita_PMSP_Tabela5[[#This Row],[COD_FONT_REC]], 6, 3) ->  | Q106: =LEFT(Receita_PMSP_Tabela5[[#This Row],[COD_ORIG_RCTA_F]], 10) -> 1.1.1.3.03 | R106: =LEFT(Receita_PMSP_Tabela5[[#This Row],[COD_ORIG_RCTA_F]], 12) -> 1.1.1.3.03.2 | S106: =LEFT(Receita_PMSP_Tabela5[[#This Row],[COD_FONT_REC]], 2) -> 
A107: 1.1.1.3.03.2.1.02.00.000.000.11.01.000 | B107: Imposto sobre a Renda - Retido na Fonte - Capital - PJ | C107: 00.1.500.9003 | D107: Recursos de Imposto de Renda Retido na Fonte - IRRF | I107: Analítica | J107: 0 | K107: 9992685.55 | L107: 0 | M107: 9992685.55 | N107: 0 | O107: 0 | P107: =MID(Receita_PMSP_Tabela5[[#This Row],[COD_FONT_REC]], 6, 3) -> 500 | Q107: =LEFT(Receita_PMSP_Tabela5[[#This Row],[COD_ORIG_RCTA_F]], 10) -> 1.1.1.3.03 | R107: =LEFT(Receita_PMSP_Tabela5[[#This Row],[COD_ORIG_RCTA_F]], 12) -> 1.1.1.3.03.2 | S107: =LEFT(Receita_PMSP_Tabela5[[#This Row],[COD_FONT_REC]], 2) -> 00
A108: 1.1.1.3.03.3.0.00.00.000.000.00.00.000 | B108: IMPOSTO SOBRE A RENDA - RETIDO NA FONTE - REMESSA AO EXTERIOR | I108: Sintética | J108: 27798587 | K108: 36548.74 | L108: 0.13 | M108: 39925.87 | N108: 0.14 | O108: 27798587 | P108: =MID(Receita_PMSP_Tabela5[[#This Row],[COD_FONT_REC]], 6, 3) ->  | Q108: =LEFT(Receita_PMSP_Tabela5[[#This Row],[COD_ORIG_RCTA_F]], 10) -> 1.1.1.3.03 | R108: =LEFT(Receita_PMSP_Tabela5[[#This Row],[COD_ORIG_RCTA_F]], 12) -> 1.1.1.3.03.3 | S108: =LEFT(Receita_PMSP_Tabela5[[#This Row],[COD_FONT_REC]], 2) -> 
A109: 1.1.1.3.03.3.1.00.00.000.000.00.00.000 | B109: IRRF - REMESSA AO EXTERIOR - PRINCIPAL | I109: Sintética | J109: 27798587 | K109: 36548.74 | L109: 0.13 | M109: 39925.87 | N109: 0.14 | O109: 27798587 | P109: =MID(Receita_PMSP_Tabela5[[#This Row],[COD_FONT_REC]], 6, 3) ->  | Q109: =LEFT(Receita_PMSP_Tabela5[[#This Row],[COD_ORIG_RCTA_F]], 10) -> 1.1.1.3.03 | R109: =LEFT(Receita_PMSP_Tabela5[[#This Row],[COD_ORIG_RCTA_F]], 12) -> 1.1.1.3.03.3 | S109: =LEFT(Receita_PMSP_Tabela5[[#This Row],[COD_FONT_REC]], 2) -> 
A110: 1.1.1.3.03.3.1.01.00.000.000.00.00.000 | B110: IRRF - REMESSA AO EXTERIOR - PRINCIPAL - PF | I110: Sintética | J110: 160136 | K110: 0 | L110: 0 | M110: 0 | N110: 0 | O110: 160136 | P110: =MID(Receita_PMSP_Tabela5[[#This Row],[COD_FONT_REC]], 6, 3) ->  | Q110: =LEFT(Receita_PMSP_Tabela5[[#This Row],[COD_ORIG_RCTA_F]], 10) -> 1.1.1.3.03 | R110: =LEFT(Receita_PMSP_Tabela5[[#This Row],[COD_ORIG_RCTA_F]], 12) -> 1.1.1.3.03.3 | S110: =LEFT(Receita_PMSP_Tabela5[[#This Row],[COD_FONT_REC]], 2) -> 
A111: 1.1.1.3.03.3.1.01.00.000.000.11.00.000 | B111: IMPOSTO SOBRE A RENDA - RETIDO NA FONTE - REMESSA AO EXTERIOR - PF | I111: Sintética | J111: 160136 | K111: 0 | L111: 0 | M111: 0 | N111: 0 | O111: 160136 | P111: =MID(Receita_PMSP_Tabela5[[#This Row],[COD_FONT_REC]], 6, 3) ->  | Q111: =LEFT(Receita_PMSP_Tabela5[[#This Row],[COD_ORIG_RCTA_F]], 10) -> 1.1.1.3.03 | R111: =LEFT(Receita_PMSP_Tabela5[[#This Row],[COD_ORIG_RCTA_F]], 12) -> 1.1.1.3.03.3 | S111: =LEFT(Receita_PMSP_Tabela5[[#This Row],[COD_FONT_REC]], 2) -> 
A112: 1.1.1.3.03.3.1.01.00.000.000.11.01.000 | B112: Imposto sobre a Renda - Retido na Fonte - Remessa ao Exterior - PF | C112: 00.1.500.9003 | D112: Recursos de Imposto de Renda Retido na Fonte - IRRF | I112: Analítica | J112: 160136 | K112: 0 | L112: 0 | M112: 0 | N112: 0 | O112: 160136 | P112: =MID(Receita_PMSP_Tabela5[[#This Row],[COD_FONT_REC]], 6, 3) -> 500 | Q112: =LEFT(Receita_PMSP_Tabela5[[#This Row],[COD_ORIG_RCTA_F]], 10) -> 1.1.1.3.03 | R112: =LEFT(Receita_PMSP_Tabela5[[#This Row],[COD_ORIG_RCTA_F]], 12) -> 1.1.1.3.03.3 | S112: =LEFT(Receita_PMSP_Tabela5[[#This Row],[COD_FONT_REC]], 2) -> 00
A113: 1.1.1.3.03.3.1.02.00.000.000.00.00.000 | B113: IRRF - REMESSA AO EXTERIOR - PRINCIPAL - PJ | I113: Sintética | J113: 27638451 | K113: 36548.74 | L113: 0.13 | M113: 39925.87 | N113: 0.14 | O113: 27638451 | P113: =MID(Receita_PMSP_Tabela5[[#This Row],[COD_FONT_REC]], 6, 3) ->  | Q113: =LEFT(Receita_PMSP_Tabela5[[#This Row],[COD_ORIG_RCTA_F]], 10) -> 1.1.1.3.03 | R113: =LEFT(Receita_PMSP_Tabela5[[#This Row],[COD_ORIG_RCTA_F]], 12) -> 1.1.1.3.03.3 | S113: =LEFT(Receita_PMSP_Tabela5[[#This Row],[COD_FONT_REC]], 2) -> 
A114: 1.1.1.3.03.3.1.02.00.000.000.11.00.000 | B114: IMPOSTO SOBRE A RENDA - RETIDO NA FONTE - REMESSA AO EXTERIOR - PJ | I114: Sintética | J114: 27638451 | K114: 36548.74 | L114: 0.13 | M114: 39925.87 | N114: 0.14 | O114: 27638451 | P114: =MID(Receita_PMSP_Tabela5[[#This Row],[COD_FONT_REC]], 6, 3) ->  | Q114: =LEFT(Receita_PMSP_Tabela5[[#This Row],[COD_ORIG_RCTA_F]], 10) -> 1.1.1.3.03 | R114: =LEFT(Receita_PMSP_Tabela5[[#This Row],[COD_ORIG_RCTA_F]], 12) -> 1.1.1.3.03.3 | S114: =LEFT(Receita_PMSP_Tabela5[[#This Row],[COD_FONT_REC]], 2) -> 
A115: 1.1.1.3.03.3.1.02.00.000.000.11.01.000 | B115: Imposto sobre a Renda - Retido na Fonte - Remessa ao Exterior - PJ | C115: 00.1.500.9003 | D115: Recursos de Imposto de Renda Retido na Fonte - IRRF | I115: Analítica | J115: 27638451 | K115: 36548.74 | L115: 0.13 | M115: 39925.87 | N115: 0.14 | O115: 27638451 | P115: =MID(Receita_PMSP_Tabela5[[#This Row],[COD_FONT_REC]], 6, 3) -> 500 | Q115: =LEFT(Receita_PMSP_Tabela5[[#This Row],[COD_ORIG_RCTA_F]], 10) -> 1.1.1.3.03 | R115: =LEFT(Receita_PMSP_Tabela5[[#This Row],[COD_ORIG_RCTA_F]], 12) -> 1.1.1.3.03.3 | S115: =LEFT(Receita_PMSP_Tabela5[[#This Row],[COD_FONT_REC]], 2) -> 00
A116: 1.1.1.3.03.4.0.00.00.000.000.00.00.000 | B116: IMPOSTO SOBRE A RENDA - RETIDO NA FONTE - OUTROS RENDIMENTOS | I116: Sintética | J116: 795521529 | K116: 63372073.89 | L116: 7.97 | M116: 206588779.5 | N116: 25.97 | O116: 795521529 | P116: =MID(Receita_PMSP_Tabela5[[#This Row],[COD_FONT_REC]], 6, 3) ->  | Q116: =LEFT(Receita_PMSP_Tabela5[[#This Row],[COD_ORIG_RCTA_F]], 10) -> 1.1.1.3.03 | R116: =LEFT(Receita_PMSP_Tabela5[[#This Row],[COD_ORIG_RCTA_F]], 12) -> 1.1.1.3.03.4 | S116: =LEFT(Receita_PMSP_Tabela5[[#This Row],[COD_FONT_REC]], 2) -> 
A117: 1.1.1.3.03.4.1.00.00.000.000.00.00.000 | B117: IRRF - OUTROS RENDIMENTOS - PRINCIPAL | I117: Sintética | J117: 795521529 | K117: 63372073.89 | L117: 7.97 | M117: 206588779.5 | N117: 25.97 | O117: 795521529 | P117: =MID(Receita_PMSP_Tabela5[[#This Row],[COD_FONT_REC]], 6, 3) ->  | Q117: =LEFT(Receita_PMSP_Tabela5[[#This Row],[COD_ORIG_RCTA_F]], 10) -> 1.1.1.3.03 | R117: =LEFT(Receita_PMSP_Tabela5[[#This Row],[COD_ORIG_RCTA_F]], 12) -> 1.1.1.3.03.4 | S117: =LEFT(Receita_PMSP_Tabela5[[#This Row],[COD_FONT_REC]], 2) -> 
A118: 1.1.1.3.03.4.1.01.00.000.000.00.00.000 | B118: IRRF - OUTROS RENDIMENTOS - PRINCIPAL - PF | I118: Sintética | J118: 7409553 | K118: 862541.87 | L118: 11.64 | M118: 1734525.19 | N118: 23.41 | O118: 7409553 | P118: =MID(Receita_PMSP_Tabela5[[#This Row],[COD_FONT_REC]], 6, 3) ->  | Q118: =LEFT(Receita_PMSP_Tabela5[[#This Row],[COD_ORIG_RCTA_F]], 10) -> 1.1.1.3.03 | R118: =LEFT(Receita_PMSP_Tabela5[[#This Row],[COD_ORIG_RCTA_F]], 12) -> 1.1.1.3.03.4 | S118: =LEFT(Receita_PMSP_Tabela5[[#This Row],[COD_FONT_REC]], 2) -> 
A119: 1.1.1.3.03.4.1.01.00.000.000.11.00.000 | B119: IMPOSTO SOBRE A RENDA - RETIDO NA FONTE - OUTROS RENDIMENTOS - PF | I119: Sintética | J119: 7409553 | K119: 862541.87 | L119: 11.64 | M119: 1734525.19 | N119: 23.41 | O119: 7409553 | P119: =MID(Receita_PMSP_Tabela5[[#This Row],[COD_FONT_REC]], 6, 3) ->  | Q119: =LEFT(Receita_PMSP_Tabela5[[#This Row],[COD_ORIG_RCTA_F]], 10) -> 1.1.1.3.03 | R119: =LEFT(Receita_PMSP_Tabela5[[#This Row],[COD_ORIG_RCTA_F]], 12) -> 1.1.1.3.03.4 | S119: =LEFT(Receita_PMSP_Tabela5[[#This Row],[COD_FONT_REC]], 2) -> 
A120: 1.1.1.3.03.4.1.01.00.000.000.11.01.000 | B120: Imposto sobre a Renda - Retido na Fonte - Outros Rendimentos - PF | C120: 00.1.500.9003 | D120: Recursos de Imposto de Renda Retido na Fonte - IRRF | I120: Analítica | J120: 7409553 | K120: 862541.87 | L120: 11.64 | M120: 1735901.66 | N120: 23.43 | O120: 7409553 | P120: =MID(Receita_PMSP_Tabela5[[#This Row],[COD_FONT_REC]], 6, 3) -> 500 | Q120: =LEFT(Receita_PMSP_Tabela5[[#This Row],[COD_ORIG_RCTA_F]], 10) -> 1.1.1.3.03 | R120: =LEFT(Receita_PMSP_Tabela5[[#This Row],[COD_ORIG_RCTA_F]], 12) -> 1.1.1.3.03.4 | S120: =LEFT(Receita_PMSP_Tabela5[[#This Row],[COD_FONT_REC]], 2) -> 00
A121: 1.1.1.3.03.4.1.01.00.000.000.11.09.000 | B121: TOTAL DE DEDUÇÕES DO IRRF - OUTROS RENDIMENTOS - PF | I121: Sintética | J121: 0 | K121: 0 | L121: 0 | M121: -1376.47 | N121: 0 | O121: 0 | P121: =MID(Receita_PMSP_Tabela5[[#This Row],[COD_FONT_REC]], 6, 3) ->  | Q121: =LEFT(Receita_PMSP_Tabela5[[#This Row],[COD_ORIG_RCTA_F]], 10) -> 1.1.1.3.03 | R121: =LEFT(Receita_PMSP_Tabela5[[#This Row],[COD_ORIG_RCTA_F]], 12) -> 1.1.1.3.03.4 | S121: =LEFT(Receita_PMSP_Tabela5[[#This Row],[COD_FONT_REC]], 2) -> 
A122: 1.1.1.3.03.4.1.01.00.000.000.11.09.001 | B122: Deduções do IRRF - Outros Rendimentos - PF | C122: 00.1.500.9003 | D122: Recursos de Imposto de Renda Retido na Fonte - IRRF | I122: Analítica | J122: 0 | K122: 0 | L122: 0 | M122: -1376.47 | N122: 0 | O122: 0 | P122: =MID(Receita_PMSP_Tabela5[[#This Row],[COD_FONT_REC]], 6, 3) -> 500 | Q122: =LEFT(Receita_PMSP_Tabela5[[#This Row],[COD_ORIG_RCTA_F]], 10) -> 1.1.1.3.03 | R122: =LEFT(Receita_PMSP_Tabela5[[#This Row],[COD_ORIG_RCTA_F]], 12) -> 1.1.1.3.03.4 | S122: =LEFT(Receita_PMSP_Tabela5[[#This Row],[COD_FONT_REC]], 2) -> 00
A123: 1.1.1.3.03.4.1.02.00.000.000.00.00.000 | B123: IRRF - OUTROS RENDIMENTOS - PRINCIPAL - PJ | I123: Sintética | J123: 788111976 | K123: 62509532.02 | L123: 7.93 | M123: 204854254.3 | N123: 25.99 | O123: 788111976 | P123: =MID(Receita_PMSP_Tabela5[[#This Row],[COD_FONT_REC]], 6, 3) ->  | Q123: =LEFT(Receita_PMSP_Tabela5[[#This Row],[COD_ORIG_RCTA_F]], 10) -> 1.1.1.3.03 | R123: =LEFT(Receita_PMSP_Tabela5[[#This Row],[COD_ORIG_RCTA_F]], 12) -> 1.1.1.3.03.4 | S123: =LEFT(Receita_PMSP_Tabela5[[#This Row],[COD_FONT_REC]], 2) -> 
A124: 1.1.1.3.03.4.1.02.00.000.000.11.00.000 | B124: IMPOSTO SOBRE A RENDA - RETIDO NA FONTE - OUTROS RENDIMENTOS - PJ | I124: Sintética | J124: 788111976 | K124: 62509532.02 | L124: 7.93 | M124: 204854254.3 | N124: 25.99 | O124: 788111976 | P124: =MID(Receita_PMSP_Tabela5[[#This Row],[COD_FONT_REC]], 6, 3) ->  | Q124: =LEFT(Receita_PMSP_Tabela5[[#This Row],[COD_ORIG_RCTA_F]], 10) -> 1.1.1.3.03 | R124: =LEFT(Receita_PMSP_Tabela5[[#This Row],[COD_ORIG_RCTA_F]], 12) -> 1.1.1.3.03.4 | S124: =LEFT(Receita_PMSP_Tabela5[[#This Row],[COD_FONT_REC]], 2) -> 
A125: 1.1.1.3.03.4.1.02.00.000.000.11.01.000 | B125: Imposto sobre a Renda - Retido na Fonte - Outros Rendimentos - PJ | C125: 00.1.500.9003 | D125: Recursos de Imposto de Renda Retido na Fonte - IRRF | I125: Analítica | J125: 788111976 | K125: 62509532.02 | L125: 7.93 | M125: 204918967 | N125: 26 | O125: 788111976 | P125: =MID(Receita_PMSP_Tabela5[[#This Row],[COD_FONT_REC]], 6, 3) -> 500 | Q125: =LEFT(Receita_PMSP_Tabela5[[#This Row],[COD_ORIG_RCTA_F]], 10) -> 1.1.1.3.03 | R125: =LEFT(Receita_PMSP_Tabela5[[#This Row],[COD_ORIG_RCTA_F]], 12) -> 1.1.1.3.03.4 | S125: =LEFT(Receita_PMSP_Tabela5[[#This Row],[COD_FONT_REC]], 2) -> 00
A126: 1.1.1.3.03.4.1.02.00.000.000.11.09.000 | B126: TOTAL DE DEDUÇÕES DO IRRF - OUTROS RENDIMENTOS - PJ | I126: Sintética | J126: 0 | K126: 0 | L126: 0 | M126: -64712.65 | N126: 0 | O126: 0 | P126: =MID(Receita_PMSP_Tabela5[[#This Row],[COD_FONT_REC]], 6, 3) ->  | Q126: =LEFT(Receita_PMSP_Tabela5[[#This Row],[COD_ORIG_RCTA_F]], 10) -> 1.1.1.3.03 | R126: =LEFT(Receita_PMSP_Tabela5[[#This Row],[COD_ORIG_RCTA_F]], 12) -> 1.1.1.3.03.4 | S126: =LEFT(Receita_PMSP_Tabela5[[#This Row],[COD_FONT_REC]], 2) -> 
A127: 1.1.1.3.03.4.1.02.00.000.000.11.09.001 | B127: Deduções do IRRF - Outros Rendimentos - PJ | C127: 00.1.500.9003 | D127: Recursos de Imposto de Renda Retido na Fonte - IRRF | I127: Analítica | J127: 0 | K127: 0 | L127: 0 | M127: -64712.65 | N127: 0 | O127: 0 | P127: =MID(Receita_PMSP_Tabela5[[#This Row],[COD_FONT_REC]], 6, 3) -> 500 | Q127: =LEFT(Receita_PMSP_Tabela5[[#This Row],[COD_ORIG_RCTA_F]], 10) -> 1.1.1.3.03 | R127: =LEFT(Receita_PMSP_Tabela5[[#This Row],[COD_ORIG_RCTA_F]], 12) -> 1.1.1.3.03.4 | S127: =LEFT(Receita_PMSP_Tabela5[[#This Row],[COD_FONT_REC]], 2) -> 00
A128: 1.1.1.4.00.0.0.00.00.000.000.00.00.000 | B128: IMPOSTOS SOBRE A PRODUÇÃO E CIRCULAÇÃO DE MERCADORIAS E SERVIÇOS | I128: Sintética | J128: 37559875557 | K128: 3140431500 | L128: 8.36 | M128: 1.272787734e+10 | N128: 33.89 | O128: 37559875557 | P128: =MID(Receita_PMSP_Tabela5[[#This Row],[COD_FONT_REC]], 6, 3) ->  | Q128: =LEFT(Receita_PMSP_Tabela5[[#This Row],[COD_ORIG_RCTA_F]], 10) -> 1.1.1.4.00 | R128: =LEFT(Receita_PMSP_Tabela5[[#This Row],[COD_ORIG_RCTA_F]], 12) -> 1.1.1.4.00.0 | S128: =LEFT(Receita_PMSP_Tabela5[[#This Row],[COD_FONT_REC]], 2) -> 
A129: 1.1.1.4.51.0.0.00.00.000.000.00.00.000 | B129: IMPOSTOS SOBRE SERVIÇOS | I129: Sintética | J129: 37559875557 | K129: 3140430719 | L129: 8.36 | M129: 1.272787426e+10 | N129: 33.89 | O129: 37559875557 | P129: =MID(Receita_PMSP_Tabela5[[#This Row],[COD_FONT_REC]], 6, 3) ->  | Q129: =LEFT(Receita_PMSP_Tabela5[[#This Row],[COD_ORIG_RCTA_F]], 10) -> 1.1.1.4.51 | R129: =LEFT(Receita_PMSP_Tabela5[[#This Row],[COD_ORIG_RCTA_F]], 12) -> 1.1.1.4.51.0 | S129: =LEFT(Receita_PMSP_Tabela5[[#This Row],[COD_FONT_REC]], 2) -> 
A130: 1.1.1.4.51.1.0.00.00.000.000.00.00.000 | B130: IMPOSTO SOBRE SERVIÇOS DE QUALQUER NATUREZA | I130: Sintética | J130: 37559875557 | K130: 3140430719 | L130: 8.36 | M130: 1.272787426e+10 | N130: 33.89 | O130: 37559875557 | P130: =MID(Receita_PMSP_Tabela5[[#This Row],[COD_FONT_REC]], 6, 3) ->  | Q130: =LEFT(Receita_PMSP_Tabela5[[#This Row],[COD_ORIG_RCTA_F]], 10) -> 1.1.1.4.51 | R130: =LEFT(Receita_PMSP_Tabela5[[#This Row],[COD_ORIG_RCTA_F]], 12) -> 1.1.1.4.51.1 | S130: =LEFT(Receita_PMSP_Tabela5[[#This Row],[COD_FONT_REC]], 2) -> 
A131: 1.1.1.4.51.1.1.00.00.000.000.00.00.000 | B131: IMPOSTO SOBRE SERVIÇOS DE QUALQUER NATUREZA - PRINCIPAL | I131: Sintética | J131: 36466235277 | K131: 3054391593 | L131: 8.38 | M131: 1.218505771e+10 | N131: 33.41 | O131: 36466235277 | P131: =MID(Receita_PMSP_Tabela5[[#This Row],[COD_FONT_REC]], 6, 3) ->  | Q131: =LEFT(Receita_PMSP_Tabela5[[#This Row],[COD_ORIG_RCTA_F]], 10) -> 1.1.1.4.51 | R131: =LEFT(Receita_PMSP_Tabela5[[#This Row],[COD_ORIG_RCTA_F]], 12) -> 1.1.1.4.51.1 | S131: =LEFT(Receita_PMSP_Tabela5[[#This Row],[COD_FONT_REC]], 2) -> 
A132: 1.1.1.4.51.1.1.01.00.000.000.00.00.000 | B132: IMPOSTO SOBRE SERVIÇOS DE QUALQUER NATUREZA | I132: Sintética | J132: 32939248614 | K132: 2773380774 | L132: 8.42 | M132: 1.103158732e+10 | N132: 33.49 | O132: 32939248614 | P132: =MID(Receita_PMSP_Tabela5[[#This Row],[COD_FONT_REC]], 6, 3) ->  | Q132: =LEFT(Receita_PMSP_Tabela5[[#This Row],[COD_ORIG_RCTA_F]], 10) -> 1.1.1.4.51 | R132: =LEFT(Receita_PMSP_Tabela5[[#This Row],[COD_ORIG_RCTA_F]], 12) -> 1.1.1.4.51.1 | S132: =LEFT(Receita_PMSP_Tabela5[[#This Row],[COD_FONT_REC]], 2) -> 
A133: 1.1.1.4.51.1.1.01.00.000.000.11.00.000 | B133: IMPOSTO SOBRE SERVIÇOS DE QUALQUER NATUREZA | I133: Sintética | J133: 32645445540 | K133: 2748041870 | L133: 8.42 | M133: 1.086336928e+10 | N133: 33.28 | O133: 32645445540 | P133: =MID(Receita_PMSP_Tabela5[[#This Row],[COD_FONT_REC]], 6, 3) ->  | Q133: =LEFT(Receita_PMSP_Tabela5[[#This Row],[COD_ORIG_RCTA_F]], 10) -> 1.1.1.4.51 | R133: =LEFT(Receita_PMSP_Tabela5[[#This Row],[COD_ORIG_RCTA_F]], 12) -> 1.1.1.4.51.1 | S133: =LEFT(Receita_PMSP_Tabela5[[#This Row],[COD_FONT_REC]], 2) -> 
A134: 1.1.1.4.51.1.1.01.00.000.000.11.01.000 | B134: Imposto sobre Serviços de Qualquer Natureza | C134: 00.1.500.9001 | D134: Recursos não vinculados de Impostos | I134: Analítica | J134: 32706633433 | K134: 2753532934 | L134: 8.42 | M134: 1.088023575e+10 | N134: 33.27 | O134: 32706633433 | P134: =MID(Receita_PMSP_Tabela5[[#This Row],[COD_FONT_REC]], 6, 3) -> 500 | Q134: =LEFT(Receita_PMSP_Tabela5[[#This Row],[COD_ORIG_RCTA_F]], 10) -> 1.1.1.4.51 | R134: =LEFT(Receita_PMSP_Tabela5[[#This Row],[COD_ORIG_RCTA_F]], 12) -> 1.1.1.4.51.1 | S134: =LEFT(Receita_PMSP_Tabela5[[#This Row],[COD_FONT_REC]], 2) -> 00
A135: 1.1.1.4.51.1.1.01.00.000.000.11.09.000 | B135: TOTAL DEDUÇÕES IMPOSTO SOBRE SERVIÇOS DE QUALQUER NATUREZA | I135: Sintética | J135: -61187893 | K135: -5491064.11 | L135: 8.97 | M135: -16866463.19 | N135: 27.57 | O135: -61187893 | P135: =MID(Receita_PMSP_Tabela5[[#This Row],[COD_FONT_REC]], 6, 3) ->  | Q135: =LEFT(Receita_PMSP_Tabela5[[#This Row],[COD_ORIG_RCTA_F]], 10) -> 1.1.1.4.51 | R135: =LEFT(Receita_PMSP_Tabela5[[#This Row],[COD_ORIG_RCTA_F]], 12) -> 1.1.1.4.51.1 | S135: =LEFT(Receita_PMSP_Tabela5[[#This Row],[COD_FONT_REC]], 2) -> 
A136: 1.1.1.4.51.1.1.01.00.000.000.11.09.001 | B136: Deduções Imposto sobre Serviços de Qualquer Natureza | C136: 00.1.500.9001 | D136: Recursos não vinculados de Impostos | I136: Analítica | J136: -61187893 | K136: -5491064.11 | L136: 8.97 | M136: -16866463.19 | N136: 27.57 | O136: -61187893 | P136: =MID(Receita_PMSP_Tabela5[[#This Row],[COD_FONT_REC]], 6, 3) -> 500 | Q136: =LEFT(Receita_PMSP_Tabela5[[#This Row],[COD_ORIG_RCTA_F]], 10) -> 1.1.1.4.51 | R136: =LEFT(Receita_PMSP_Tabela5[[#This Row],[COD_ORIG_RCTA_F]], 12) -> 1.1.1.4.51.1 | S136: =LEFT(Receita_PMSP_Tabela5[[#This Row],[COD_FONT_REC]], 2) -> 00
A137: 1.1.1.4.51.1.1.01.00.000.000.12.00.000 | B137: PARCELAMENTO IMPOSTO SOBRE SERVIÇOS DE QUALQUER NATUREZA | I137: Sintética | J137: 293803074 | K137: 25338903.91 | L137: 8.62 | M137: 168218039.3 | N137: 57.26 | O137: 293803074 | P137: =MID(Receita_PMSP_Tabela5[[#This Row],[COD_FONT_REC]], 6, 3) ->  | Q137: =LEFT(Receita_PMSP_Tabela5[[#This Row],[COD_ORIG_RCTA_F]], 10) -> 1.1.1.4.51 | R137: =LEFT(Receita_PMSP_Tabela5[[#This Row],[COD_ORIG_RCTA_F]], 12) -> 1.1.1.4.51.1 | S137: =LEFT(Receita_PMSP_Tabela5[[#This Row],[COD_FONT_REC]], 2) -> 
A138: 1.1.1.4.51.1.1.01.00.000.000.12.01.000 | B138: TOTAL PARCELAMENTO IMPOSTO SOBRE SERVIÇOS DE QUALQUER NATUREZA | I138: Sintética | J138: 293803074 | K138: 25340866.5 | L138: 8.63 | M138: 168220001.9 | N138: 57.26 | O138: 293803074 | P138: =MID(Receita_PMSP_Tabela5[[#This Row],[COD_FONT_REC]], 6, 3) ->  | Q138: =LEFT(Receita_PMSP_Tabela5[[#This Row],[COD_ORIG_RCTA_F]], 10) -> 1.1.1.4.51 | R138: =LEFT(Receita_PMSP_Tabela5[[#This Row],[COD_ORIG_RCTA_F]], 12) -> 1.1.1.4.51.1 | S138: =LEFT(Receita_PMSP_Tabela5[[#This Row],[COD_FONT_REC]], 2) -> 
A139: 1.1.1.4.51.1.1.01.00.000.000.12.01.001 | B139: PPI - Imposto sobre Serviços de Qualquer Natureza | C139: 00.1.500.9001 | D139: Recursos não vinculados de Impostos | I139: Analítica | J139: 153689468 | K139: 11193100.78 | L139: 7.28 | M139: 117923849.2 | N139: 76.73 | O139: 153689468 | P139: =MID(Receita_PMSP_Tabela5[[#This Row],[COD_FONT_REC]], 6, 3) -> 500 | Q139: =LEFT(Receita_PMSP_Tabela5[[#This Row],[COD_ORIG_RCTA_F]], 10) -> 1.1.1.4.51 | R139: =LEFT(Receita_PMSP_Tabela5[[#This Row],[COD_ORIG_RCTA_F]], 12) -> 1.1.1.4.51.1 | S139: =LEFT(Receita_PMSP_Tabela5[[#This Row],[COD_FONT_REC]], 2) -> 00
A140: 1.1.1.4.51.1.1.01.00.000.000.12.01.002 | B140: PAT - Imposto sobre Serviços de Qualquer Natureza | C140: 00.1.500.9001 | D140: Recursos não vinculados de Impostos | I140: Analítica | J140: 115725077 | K140: 12032302.54 | L140: 10.4 | M140: 41979806.91 | N140: 36.28 | O140: 115725077 | P140: =MID(Receita_PMSP_Tabela5[[#This Row],[COD_FONT_REC]], 6, 3) -> 500 | Q140: =LEFT(Receita_PMSP_Tabela5[[#This Row],[COD_ORIG_RCTA_F]], 10) -> 1.1.1.4.51 | R140: =LEFT(Receita_PMSP_Tabela5[[#This Row],[COD_ORIG_RCTA_F]], 12) -> 1.1.1.4.51.1 | S140: =LEFT(Receita_PMSP_Tabela5[[#This Row],[COD_FONT_REC]], 2) -> 00
A141: 1.1.1.4.51.1.1.01.00.000.000.12.01.004 | B141: PRD - Imposto sobre Serviços de Qualquer Natureza | C141: 00.1.500.9001 | D141: Recursos não vinculados de Impostos | I141: Analítica | J141: 24387529 | K141: 2115393.46 | L141: 8.67 | M141: 8316070.89 | N141: 34.1 | O141: 24387529 | P141: =MID(Receita_PMSP_Tabela5[[#This Row],[COD_FONT_REC]], 6, 3) -> 500 | Q141: =LEFT(Receita_PMSP_Tabela5[[#This Row],[COD_ORIG_RCTA_F]], 10) -> 1.1.1.4.51 | R141: =LEFT(Receita_PMSP_Tabela5[[#This Row],[COD_ORIG_RCTA_F]], 12) -> 1.1.1.4.51.1 | S141: =LEFT(Receita_PMSP_Tabela5[[#This Row],[COD_FONT_REC]], 2) -> 00
A142: 1.1.1.4.51.1.1.01.00.000.000.12.01.007 | B142: PIME - Imposto sobre Serviços de Qualquer Natureza | C142: 00.1.500.9001 | D142: Recursos não vinculados de Impostos | I142: Analítica | J142: 1000 | K142: 69.72 | L142: 6.97 | M142: 274.87 | N142: 27.49 | O142: 1000 | P142: =MID(Receita_PMSP_Tabela5[[#This Row],[COD_FONT_REC]], 6, 3) -> 500 | Q142: =LEFT(Receita_PMSP_Tabela5[[#This Row],[COD_ORIG_RCTA_F]], 10) -> 1.1.1.4.51 | R142: =LEFT(Receita_PMSP_Tabela5[[#This Row],[COD_ORIG_RCTA_F]], 12) -> 1.1.1.4.51.1 | S142: =LEFT(Receita_PMSP_Tabela5[[#This Row],[COD_FONT_REC]], 2) -> 00
A143: 1.1.1.4.51.1.1.01.00.000.000.12.09.000 | B143: TOTAL DEDUÇÕES PARCELAMENTO IMPOSTO SOBRE SERVIÇOS DE QUALQUER NATUREZ | I143: Sintética | J143: 0 | K143: -1962.59 | L143: 0 | M143: -1962.59 | N143: 0 | O143: 0 | P143: =MID(Receita_PMSP_Tabela5[[#This Row],[COD_FONT_REC]], 6, 3) ->  | Q143: =LEFT(Receita_PMSP_Tabela5[[#This Row],[COD_ORIG_RCTA_F]], 10) -> 1.1.1.4.51 | R143: =LEFT(Receita_PMSP_Tabela5[[#This Row],[COD_ORIG_RCTA_F]], 12) -> 1.1.1.4.51.1 | S143: =LEFT(Receita_PMSP_Tabela5[[#This Row],[COD_FONT_REC]], 2) -> 
A144: 1.1.1.4.51.1.1.01.00.000.000.12.09.001 | B144: Deduções PPI - Imposto sobre Serviços de Qualquer Natureza | C144: 00.1.500.9001 | D144: Recursos não vinculados de Impostos | I144: Analítica | J144: 0 | K144: -1962.59 | L144: 0 | M144: -1962.59 | N144: 0 | O144: 0 | P144: =MID(Receita_PMSP_Tabela5[[#This Row],[COD_FONT_REC]], 6, 3) -> 500 | Q144: =LEFT(Receita_PMSP_Tabela5[[#This Row],[COD_ORIG_RCTA_F]], 10) -> 1.1.1.4.51 | R144: =LEFT(Receita_PMSP_Tabela5[[#This Row],[COD_ORIG_RCTA_F]], 12) -> 1.1.1.4.51.1 | S144: =LEFT(Receita_PMSP_Tabela5[[#This Row],[COD_FONT_REC]], 2) -> 00
A145: 1.1.1.4.51.1.1.03.00.000.000.00.00.000 | B145: ISS - SIMPLES NACIONAL | I145: Sintética | J145: 3526986663 | K145: 281010819 | L145: 7.97 | M145: 1153470386 | N145: 32.7 | O145: 3526986663 | P145: =MID(Receita_PMSP_Tabela5[[#This Row],[COD_FONT_REC]], 6, 3) ->  | Q145: =LEFT(Receita_PMSP_Tabela5[[#This Row],[COD_ORIG_RCTA_F]], 10) -> 1.1.1.4.51 | R145: =LEFT(Receita_PMSP_Tabela5[[#This Row],[COD_ORIG_RCTA_F]], 12) -> 1.1.1.4.51.1 | S145: =LEFT(Receita_PMSP_Tabela5[[#This Row],[COD_FONT_REC]], 2) -> 
A146: 1.1.1.4.51.1.1.03.00.000.000.11.00.000 | B146: ISS - SIMPLES NACIONAL | I146: Sintética | J146: 3526986663 | K146: 281010819 | L146: 7.97 | M146: 1153470386 | N146: 32.7 | O146: 3526986663 | P146: =MID(Receita_PMSP_Tabela5[[#This Row],[COD_FONT_REC]], 6, 3) ->  | Q146: =LEFT(Receita_PMSP_Tabela5[[#This Row],[COD_ORIG_RCTA_F]], 10) -> 1.1.1.4.51 | R146: =LEFT(Receita_PMSP_Tabela5[[#This Row],[COD_ORIG_RCTA_F]], 12) -> 1.1.1.4.51.1 | S146: =LEFT(Receita_PMSP_Tabela5[[#This Row],[COD_FONT_REC]], 2) -> 
A147: 1.1.1.4.51.1.1.03.00.000.000.11.01.000 | B147: ISS - Simples Nacional | C147: 00.1.500.9001 | D147: Recursos não vinculados de Impostos | I147: Analítica | J147: 3526986663 | K147: 281026650.6 | L147: 7.97 | M147: 1153530085 | N147: 32.71 | O147: 3526986663 | P147: =MID(Receita_PMSP_Tabela5[[#This Row],[COD_FONT_REC]], 6, 3) -> 500 | Q147: =LEFT(Receita_PMSP_Tabela5[[#This Row],[COD_ORIG_RCTA_F]], 10) -> 1.1.1.4.51 | R147: =LEFT(Receita_PMSP_Tabela5[[#This Row],[COD_ORIG_RCTA_F]], 12) -> 1.1.1.4.51.1 | S147: =LEFT(Receita_PMSP_Tabela5[[#This Row],[COD_FONT_REC]], 2) -> 00
A148: 1.1.1.4.51.1.1.03.00.000.000.11.09.000 | B148: TOTAL DE DEDUÇÕES ISS - SIMPLES NACIONAL | I148: Sintética | J148: 0 | K148: -15831.6 | L148: 0 | M148: -59698.53 | N148: 0 | O148: 0 | P148: =MID(Receita_PMSP_Tabela5[[#This Row],[COD_FONT_REC]], 6, 3) ->  | Q148: =LEFT(Receita_PMSP_Tabela5[[#This Row],[COD_ORIG_RCTA_F]], 10) -> 1.1.1.4.51 | R148: =LEFT(Receita_PMSP_Tabela5[[#This Row],[COD_ORIG_RCTA_F]], 12) -> 1.1.1.4.51.1 | S148: =LEFT(Receita_PMSP_Tabela5[[#This Row],[COD_FONT_REC]], 2) -> 
A149: 1.1.1.4.51.1.1.03.00.000.000.11.09.001 | B149: Deduções ISS - Simples Nacional | C149: 00.1.500.9001 | D149: Recursos não vinculados de Impostos | I149: Analítica | J149: 0 | K149: -15831.6 | L149: 0 | M149: -59698.53 | N149: 0 | O149: 0 | P149: =MID(Receita_PMSP_Tabela5[[#This Row],[COD_FONT_REC]], 6, 3) -> 500 | Q149: =LEFT(Receita_PMSP_Tabela5[[#This Row],[COD_ORIG_RCTA_F]], 10) -> 1.1.1.4.51 | R149: =LEFT(Receita_PMSP_Tabela5[[#This Row],[COD_ORIG_RCTA_F]], 12) -> 1.1.1.4.51.1 | S149: =LEFT(Receita_PMSP_Tabela5[[#This Row],[COD_FONT_REC]], 2) -> 00
A150: 1.1.1.4.51.1.2.00.00.000.000.00.00.000 | B150: IMPOSTO SOBRE SERVIÇOS DE QUALQUER NATUREZA - MULTAS E JUROS | I150: Sintética | J150: 325813375 | K150: 28966956.87 | L150: 8.89 | M150: 115517932.5 | N150: 35.46 | O150: 325813375 | P150: =MID(Receita_PMSP_Tabela5[[#This Row],[COD_FONT_REC]], 6, 3) ->  | Q150: =LEFT(Receita_PMSP_Tabela5[[#This Row],[COD_ORIG_RCTA_F]], 10) -> 1.1.1.4.51 | R150: =LEFT(Receita_PMSP_Tabela5[[#This Row],[COD_ORIG_RCTA_F]], 12) -> 1.1.1.4.51.1 | S150: =LEFT(Receita_PMSP_Tabela5[[#This Row],[COD_FONT_REC]], 2) -> 
A151: 1.1.1.4.51.1.2.01.00.000.000.00.00.000 | B151: IMPOSTO SOBRE SERVIÇOS DE QUALQUER NATUREZA - MULTAS E JUROS | I151: Sintética | J151: 251735862 | K151: 22887774.23 | L151: 9.09 | M151: 89264437.18 | N151: 35.46 | O151: 251735862 | P151: =MID(Receita_PMSP_Tabela5[[#This Row],[COD_FONT_REC]], 6, 3) ->  | Q151: =LEFT(Receita_PMSP_Tabela5[[#This Row],[COD_ORIG_RCTA_F]], 10) -> 1.1.1.4.51 | R151: =LEFT(Receita_PMSP_Tabela5[[#This Row],[COD_ORIG_RCTA_F]], 12) -> 1.1.1.4.51.1 | S151: =LEFT(Receita_PMSP_Tabela5[[#This Row],[COD_FONT_REC]], 2) -> 
A152: 1.1.1.4.51.1.2.01.00.000.000.11.00.000 | B152: IMPOSTO SOBRE SERVIÇOS DE QUALQUER NATUREZA - MULTAS E JUROS | I152: Sintética | J152: 128964455 | K152: 13877771.69 | L152: 10.76 | M152: 45654940.09 | N152: 35.4 | O152: 128964455 | P152: =MID(Receita_PMSP_Tabela5[[#This Row],[COD_FONT_REC]], 6, 3) ->  | Q152: =LEFT(Receita_PMSP_Tabela5[[#This Row],[COD_ORIG_RCTA_F]], 10) -> 1.1.1.4.51 | R152: =LEFT(Receita_PMSP_Tabela5[[#This Row],[COD_ORIG_RCTA_F]], 12) -> 1.1.1.4.51.1 | S152: =LEFT(Receita_PMSP_Tabela5[[#This Row],[COD_FONT_REC]], 2) -> 
A153: 1.1.1.4.51.1.2.01.00.000.000.11.01.000 | B153: Imposto sobre Serviços de Qualquer Natureza - Multas e Juros | C153: 00.1.500.9001 | D153: Recursos não vinculados de Impostos | I153: Analítica | J153: 128964455 | K153: 13877771.69 | L153: 10.76 | M153: 45654940.09 | N153: 35.4 | O153: 128964455 | P153: =MID(Receita_PMSP_Tabela5[[#This Row],[COD_FONT_REC]], 6, 3) -> 500 | Q153: =LEFT(Receita_PMSP_Tabela5[[#This Row],[COD_ORIG_RCTA_F]], 10) -> 1.1.1.4.51 | R153: =LEFT(Receita_PMSP_Tabela5[[#This Row],[COD_ORIG_RCTA_F]], 12) -> 1.1.1.4.51.1 | S153: =LEFT(Receita_PMSP_Tabela5[[#This Row],[COD_FONT_REC]], 2) -> 00
A154: 1.1.1.4.51.1.2.01.00.000.000.12.00.000 | B154: PARCELAMENTO IMPOSTO SOBRE SERVIÇOS DE QUALQUER NATUREZA - MULTAS E JU | I154: Sintética | J154: 122771407 | K154: 9010002.54 | L154: 7.34 | M154: 43609497.09 | N154: 35.52 | O154: 122771407 | P154: =MID(Receita_PMSP_Tabela5[[#This Row],[COD_FONT_REC]], 6, 3) ->  | Q154: =LEFT(Receita_PMSP_Tabela5[[#This Row],[COD_ORIG_RCTA_F]], 10) -> 1.1.1.4.51 | R154: =LEFT(Receita_PMSP_Tabela5[[#This Row],[COD_ORIG_RCTA_F]], 12) -> 1.1.1.4.51.1 | S154: =LEFT(Receita_PMSP_Tabela5[[#This Row],[COD_FONT_REC]], 2) -> 
A155: 1.1.1.4.51.1.2.01.00.000.000.12.01.000 | B155: TOTAL PARCELAMENTO IMPOSTO SOBRE SERVIÇOS DE QUALQUER NATUREZA - MULTA | I155: Sintética | J155: 122771407 | K155: 9010582.24 | L155: 7.34 | M155: 43610076.79 | N155: 35.52 | O155: 122771407 | P155: =MID(Receita_PMSP_Tabela5[[#This Row],[COD_FONT_REC]], 6, 3) ->  | Q155: =LEFT(Receita_PMSP_Tabela5[[#This Row],[COD_ORIG_RCTA_F]], 10) -> 1.1.1.4.51 | R155: =LEFT(Receita_PMSP_Tabela5[[#This Row],[COD_ORIG_RCTA_F]], 12) -> 1.1.1.4.51.1 | S155: =LEFT(Receita_PMSP_Tabela5[[#This Row],[COD_FONT_REC]], 2) -> 
A156: 1.1.1.4.51.1.2.01.00.000.000.12.01.001 | B156: PPI - Imposto sobre Serviços de Qualquer Natureza - Multas e Juros | C156: 00.1.500.9001 | D156: Recursos não vinculados de Impostos | I156: Analítica | J156: 66285739 | K156: 3949024.53 | L156: 5.96 | M156: 25729523.84 | N156: 38.82 | O156: 66285739 | P156: =MID(Receita_PMSP_Tabela5[[#This Row],[COD_FONT_REC]], 6, 3) -> 500 | Q156: =LEFT(Receita_PMSP_Tabela5[[#This Row],[COD_ORIG_RCTA_F]], 10) -> 1.1.1.4.51 | R156: =LEFT(Receita_PMSP_Tabela5[[#This Row],[COD_ORIG_RCTA_F]], 12) -> 1.1.1.4.51.1 | S156: =LEFT(Receita_PMSP_Tabela5[[#This Row],[COD_FONT_REC]], 2) -> 00
A157: 1.1.1.4.51.1.2.01.00.000.000.12.01.002 | B157: PAT - Imposto sobre Serviços de Qualquer Natureza - Multas e Juros | C157: 00.1.500.9001 | D157: Recursos não vinculados de Impostos | I157: Analítica | J157: 48104029 | K157: 4224231.24 | L157: 8.78 | M157: 14610029 | N157: 30.37 | O157: 48104029 | P157: =MID(Receita_PMSP_Tabela5[[#This Row],[COD_FONT_REC]], 6, 3) -> 500 | Q157: =LEFT(Receita_PMSP_Tabela5[[#This Row],[COD_ORIG_RCTA_F]], 10) -> 1.1.1.4.51 | R157: =LEFT(Receita_PMSP_Tabela5[[#This Row],[COD_ORIG_RCTA_F]], 12) -> 1.1.1.4.51.1 | S157: =LEFT(Receita_PMSP_Tabela5[[#This Row],[COD_FONT_REC]], 2) -> 00
A158: 1.1.1.4.51.1.2.01.00.000.000.12.01.004 | B158: PRD - Imposto sobre Serviços de Qualquer Natureza - Multas e Juros | C158: 00.1.500.9001 | D158: Recursos não vinculados de Impostos | I158: Analítica | J158: 8380639 | K158: 837286.16 | L158: 9.99 | M158: 3270365.04 | N158: 39.02 | O158: 8380639 | P158: =MID(Receita_PMSP_Tabela5[[#This Row],[COD_FONT_REC]], 6, 3) -> 500 | Q158: =LEFT(Receita_PMSP_Tabela5[[#This Row],[COD_ORIG_RCTA_F]], 10) -> 1.1.1.4.51 | R158: =LEFT(Receita_PMSP_Tabela5[[#This Row],[COD_ORIG_RCTA_F]], 12) -> 1.1.1.4.51.1 | S158: =LEFT(Receita_PMSP_Tabela5[[#This Row],[COD_FONT_REC]], 2) -> 00
A159: 1.1.1.4.51.1.2.01.00.000.000.12.01.007 | B159: PIME - Imposto sobre Serviços de Qualquer Natureza - Multas e Juros | C159: 00.1.500.9001 | D159: Recursos não vinculados de Impostos | I159: Analítica | J159: 1000 | K159: 40.31 | L159: 4.03 | M159: 158.91 | N159: 15.89 | O159: 1000 | P159: =MID(Receita_PMSP_Tabela5[[#This Row],[COD_FONT_REC]], 6, 3) -> 500 | Q159: =LEFT(Receita_PMSP_Tabela5[[#This Row],[COD_ORIG_RCTA_F]], 10) -> 1.1.1.4.51 | R159: =LEFT(Receita_PMSP_Tabela5[[#This Row],[COD_ORIG_RCTA_F]], 12) -> 1.1.1.4.51.1 | S159: =LEFT(Receita_PMSP_Tabela5[[#This Row],[COD_FONT_REC]], 2) -> 00
A160: 1.1.1.4.51.1.2.01.00.000.000.12.09.000 | B160: TOTAL DEDUÇÕES PARCELAMENTO IMPOSTO SOBRE SERVIÇOS DE QUALQUER NATUREZ | I160: Sintética | J160: 0 | K160: -579.7 | L160: 0 | M160: -579.7 | N160: 0 | O160: 0 | P160: =MID(Receita_PMSP_Tabela5[[#This Row],[COD_FONT_REC]], 6, 3) ->  | Q160: =LEFT(Receita_PMSP_Tabela5[[#This Row],[COD_ORIG_RCTA_F]], 10) -> 1.1.1.4.51 | R160: =LEFT(Receita_PMSP_Tabela5[[#This Row],[COD_ORIG_RCTA_F]], 12) -> 1.1.1.4.51.1 | S160: =LEFT(Receita_PMSP_Tabela5[[#This Row],[COD_FONT_REC]], 2) -> 
A161: 1.1.1.4.51.1.2.01.00.000.000.12.09.001 | B161: Deduções PPI - Imposto sobre Serviços de Qualquer Natureza - Multas e | C161: 00.1.500.9001 | D161: Recursos não vinculados de Impostos | I161: Analítica | J161: 0 | K161: -579.7 | L161: 0 | M161: -579.7 | N161: 0 | O161: 0 | P161: =MID(Receita_PMSP_Tabela5[[#This Row],[COD_FONT_REC]], 6, 3) -> 500 | Q161: =LEFT(Receita_PMSP_Tabela5[[#This Row],[COD_ORIG_RCTA_F]], 10) -> 1.1.1.4.51 | R161: =LEFT(Receita_PMSP_Tabela5[[#This Row],[COD_ORIG_RCTA_F]], 12) -> 1.1.1.4.51.1 | S161: =LEFT(Receita_PMSP_Tabela5[[#This Row],[COD_FONT_REC]], 2) -> 00
A162: 1.1.1.4.51.1.2.03.00.000.000.00.00.000 | B162: ISS - SIMPLES NACIONAL - MULTAS E JUROS | I162: Sintética | J162: 74077513 | K162: 6079182.64 | L162: 8.21 | M162: 26253495.32 | N162: 35.44 | O162: 74077513 | P162: =MID(Receita_PMSP_Tabela5[[#This Row],[COD_FONT_REC]], 6, 3) ->  | Q162: =LEFT(Receita_PMSP_Tabela5[[#This Row],[COD_ORIG_RCTA_F]], 10) -> 1.1.1.4.51 | R162: =LEFT(Receita_PMSP_Tabela5[[#This Row],[COD_ORIG_RCTA_F]], 12) -> 1.1.1.4.51.1 | S162: =LEFT(Receita_PMSP_Tabela5[[#This Row],[COD_FONT_REC]], 2) -> 
A163: 1.1.1.4.51.1.2.03.00.000.000.11.00.000 | B163: ISS - SIMPLES NACIONAL - MULTAS E JUROS | I163: Sintética | J163: 74077513 | K163: 6079182.64 | L163: 8.21 | M163: 26253495.32 | N163: 35.44 | O163: 74077513 | P163: =MID(Receita_PMSP_Tabela5[[#This Row],[COD_FONT_REC]], 6, 3) ->  | Q163: =LEFT(Receita_PMSP_Tabela5[[#This Row],[COD_ORIG_RCTA_F]], 10) -> 1.1.1.4.51 | R163: =LEFT(Receita_PMSP_Tabela5[[#This Row],[COD_ORIG_RCTA_F]], 12) -> 1.1.1.4.51.1 | S163: =LEFT(Receita_PMSP_Tabela5[[#This Row],[COD_FONT_REC]], 2) -> 
A164: 1.1.1.4.51.1.2.03.00.000.000.11.01.000 | B164: ISS - Simples Nacional - Multas e Juros | C164: 00.1.500.9001 | D164: Recursos não vinculados de Impostos | I164: Analítica | J164: 74077513 | K164: 6079182.64 | L164: 8.21 | M164: 26253495.32 | N164: 35.44 | O164: 74077513 | P164: =MID(Receita_PMSP_Tabela5[[#This Row],[COD_FONT_REC]], 6, 3) -> 500 | Q164: =LEFT(Receita_PMSP_Tabela5[[#This Row],[COD_ORIG_RCTA_F]], 10) -> 1.1.1.4.51 | R164: =LEFT(Receita_PMSP_Tabela5[[#This Row],[COD_ORIG_RCTA_F]], 12) -> 1.1.1.4.51.1 | S164: =LEFT(Receita_PMSP_Tabela5[[#This Row],[COD_FONT_REC]], 2) -> 00
A165: 1.1.1.4.51.1.3.00.00.000.000.00.00.000 | B165: IMPOSTO SOBRE SERVIÇOS DE QUALQUER NATUREZA - DÍVIDA ATIVA | I165: Sintética | J165: 574044649 | K165: 43742808.5 | L165: 7.62 | M165: 341369033.1 | N165: 59.47 | O165: 574044649 | P165: =MID(Receita_PMSP_Tabela5[[#This Row],[COD_FONT_REC]], 6, 3) ->  | Q165: =LEFT(Receita_PMSP_Tabela5[[#This Row],[COD_ORIG_RCTA_F]], 10) -> 1.1.1.4.51 | R165: =LEFT(Receita_PMSP_Tabela5[[#This Row],[COD_ORIG_RCTA_F]], 12) -> 1.1.1.4.51.1 | S165: =LEFT(Receita_PMSP_Tabela5[[#This Row],[COD_FONT_REC]], 2) -> 
A166: 1.1.1.4.51.1.3.01.00.000.000.00.00.000 | B166: IMPOSTO SOBRE SERVIÇOS DE QUALQUER NATUREZA - DÍVIDA ATIVA | I166: Sintética | J166: 504772628 | K166: 37327454.95 | L166: 7.39 | M166: 307376295.1 | N166: 60.89 | O166: 504772628 | P166: =MID(Receita_PMSP_Tabela5[[#This Row],[COD_FONT_REC]], 6, 3) ->  | Q166: =LEFT(Receita_PMSP_Tabela5[[#This Row],[COD_ORIG_RCTA_F]], 10) -> 1.1.1.4.51 | R166: =LEFT(Receita_PMSP_Tabela5[[#This Row],[COD_ORIG_RCTA_F]], 12) -> 1.1.1.4.51.1 | S166: =LEFT(Receita_PMSP_Tabela5[[#This Row],[COD_FONT_REC]], 2) -> 
A167: 1.1.1.4.51.1.3.01.00.000.000.11.00.000 | B167: IMPOSTO SOBRE SERVIÇOS DE QUALQUER NATUREZA - DÍVIDA ATIVA | I167: Sintética | J167: 193786052 | K167: 17229851.89 | L167: 8.89 | M167: 46744554.23 | N167: 24.12 | O167: 193786052 | P167: =MID(Receita_PMSP_Tabela5[[#This Row],[COD_FONT_REC]], 6, 3) ->  | Q167: =LEFT(Receita_PMSP_Tabela5[[#This Row],[COD_ORIG_RCTA_F]], 10) -> 1.1.1.4.51 | R167: =LEFT(Receita_PMSP_Tabela5[[#This Row],[COD_ORIG_RCTA_F]], 12) -> 1.1.1.4.51.1 | S167: =LEFT(Receita_PMSP_Tabela5[[#This Row],[COD_FONT_REC]], 2) -> 
A168: 1.1.1.4.51.1.3.01.00.000.000.11.01.000 | B168: Imposto sobre Serviços de Qualquer Natureza - Dívida Ativa | C168: 00.1.500.9001 | D168: Recursos não vinculados de Impostos | I168: Analítica | J168: 193786052 | K168: 17244261.82 | L168: 8.9 | M168: 46827468.43 | N168: 24.16 | O168: 193786052 | P168: =MID(Receita_PMSP_Tabela5[[#This Row],[COD_FONT_REC]], 6, 3) -> 500 | Q168: =LEFT(Receita_PMSP_Tabela5[[#This Row],[COD_ORIG_RCTA_F]], 10) -> 1.1.1.4.51 | R168: =LEFT(Receita_PMSP_Tabela5[[#This Row],[COD_ORIG_RCTA_F]], 12) -> 1.1.1.4.51.1 | S168: =LEFT(Receita_PMSP_Tabela5[[#This Row],[COD_FONT_REC]], 2) -> 00
A169: 1.1.1.4.51.1.3.01.00.000.000.11.09.000 | B169: TOTAL DEDUÇÕES IMPOSTO SOBRE SERVIÇOS DE QUALQUER NATUREZA - DÍVIDA AT | I169: Sintética | J169: 0 | K169: -14409.93 | L169: 0 | M169: -82914.2 | N169: 0 | O169: 0 | P169: =MID(Receita_PMSP_Tabela5[[#This Row],[COD_FONT_REC]], 6, 3) ->  | Q169: =LEFT(Receita_PMSP_Tabela5[[#This Row],[COD_ORIG_RCTA_F]], 10) -> 1.1.1.4.51 | R169: =LEFT(Receita_PMSP_Tabela5[[#This Row],[COD_ORIG_RCTA_F]], 12) -> 1.1.1.4.51.1 | S169: =LEFT(Receita_PMSP_Tabela5[[#This Row],[COD_FONT_REC]], 2) -> 
A170: 1.1.1.4.51.1.3.01.00.000.000.11.09.001 | B170: Deduções Imposto sobre Serviços de Qualquer Natureza - Dívida Ativa | C170: 00.1.500.9001 | D170: Recursos não vinculados de Impostos | I170: Analítica | J170: 0 | K170: -14409.93 | L170: 0 | M170: -82914.2 | N170: 0 | O170: 0 | P170: =MID(Receita_PMSP_Tabela5[[#This Row],[COD_FONT_REC]], 6, 3) -> 500 | Q170: =LEFT(Receita_PMSP_Tabela5[[#This Row],[COD_ORIG_RCTA_F]], 10) -> 1.1.1.4.51 | R170: =LEFT(Receita_PMSP_Tabela5[[#This Row],[COD_ORIG_RCTA_F]], 12) -> 1.1.1.4.51.1 | S170: =LEFT(Receita_PMSP_Tabela5[[#This Row],[COD_FONT_REC]], 2) -> 00
A171: 1.1.1.4.51.1.3.01.00.000.000.12.00.000 | B171: PARCELAMENTO IMPOSTO SOBRE SERVIÇOS DE QUALQUER NATUREZA - DÍVIDA ATIV | I171: Sintética | J171: 310986576 | K171: 20097603.06 | L171: 6.46 | M171: 260631740.9 | N171: 83.81 | O171: 310986576 | P171: =MID(Receita_PMSP_Tabela5[[#This Row],[COD_FONT_REC]], 6, 3) ->  | Q171: =LEFT(Receita_PMSP_Tabela5[[#This Row],[COD_ORIG_RCTA_F]], 10) -> 1.1.1.4.51 | R171: =LEFT(Receita_PMSP_Tabela5[[#This Row],[COD_ORIG_RCTA_F]], 12) -> 1.1.1.4.51.1 | S171: =LEFT(Receita_PMSP_Tabela5[[#This Row],[COD_FONT_REC]], 2) -> 
A172: 1.1.1.4.51.1.3.01.00.000.000.12.01.000 | B172: TOTAL PARCELAMENTO IMPOSTO SOBRE SERVIÇOS DE QUALQUER NATUREZA - DÍVID | I172: Sintética | J172: 310986576 | K172: 20107523.17 | L172: 6.47 | M172: 260641661 | N172: 83.81 | O172: 310986576 | P172: =MID(Receita_PMSP_Tabela5[[#This Row],[COD_FONT_REC]], 6, 3) ->  | Q172: =LEFT(Receita_PMSP_Tabela5[[#This Row],[COD_ORIG_RCTA_F]], 10) -> 1.1.1.4.51 | R172: =LEFT(Receita_PMSP_Tabela5[[#This Row],[COD_ORIG_RCTA_F]], 12) -> 1.1.1.4.51.1 | S172: =LEFT(Receita_PMSP_Tabela5[[#This Row],[COD_FONT_REC]], 2) -> 
A173: 1.1.1.4.51.1.3.01.00.000.000.12.01.001 | B173: PPI - Imposto sobre Serviços de Qualquer Natureza - Dívida Ativa | C173: 00.1.500.9001 | D173: Recursos não vinculados de Impostos | I173: Analítica | J173: 229627237 | K173: 15643950.37 | L173: 6.81 | M173: 240353183.8 | N173: 104.67 | O173: 229627237 | P173: =MID(Receita_PMSP_Tabela5[[#This Row],[COD_FONT_REC]], 6, 3) -> 500 | Q173: =LEFT(Receita_PMSP_Tabela5[[#This Row],[COD_ORIG_RCTA_F]], 10) -> 1.1.1.4.51 | R173: =LEFT(Receita_PMSP_Tabela5[[#This Row],[COD_ORIG_RCTA_F]], 12) -> 1.1.1.4.51.1 | S173: =LEFT(Receita_PMSP_Tabela5[[#This Row],[COD_FONT_REC]], 2) -> 00
A174: 1.1.1.4.51.1.3.01.00.000.000.12.01.002 | B174: PAT - Imposto sobre Serviços de Qualquer Natureza - Dívida Ativa | C174: 00.1.500.9001 | D174: Recursos não vinculados de Impostos | I174: Analítica | J174: 131148 | K174: 1713.29 | L174: 1.31 | M174: 6122.16 | N174: 4.67 | O174: 131148 | P174: =MID(Receita_PMSP_Tabela5[[#This Row],[COD_FONT_REC]], 6, 3) -> 500 | Q174: =LEFT(Receita_PMSP_Tabela5[[#This Row],[COD_ORIG_RCTA_F]], 10) -> 1.1.1.4.51 | R174: =LEFT(Receita_PMSP_Tabela5[[#This Row],[COD_ORIG_RCTA_F]], 12) -> 1.1.1.4.51.1 | S174: =LEFT(Receita_PMSP_Tabela5[[#This Row],[COD_FONT_REC]], 2) -> 00
A175: 1.1.1.4.51.1.3.01.00.000.000.12.01.004 | B175: PRD - Imposto sobre Serviços de Qualquer Natureza - Dívida Ativa | C175: 00.1.500.9001 | D175: Recursos não vinculados de Impostos | I175: Analítica | J175: 12928279 | K175: 913062.02 | L175: 7.06 | M175: 5207597.51 | N175: 40.28 | O175: 12928279 | P175: =MID(Receita_PMSP_Tabela5[[#This Row],[COD_FONT_REC]], 6, 3) -> 500 | Q175: =LEFT(Receita_PMSP_Tabela5[[#This Row],[COD_ORIG_RCTA_F]], 10) -> 1.1.1.4.51 | R175: =LEFT(Receita_PMSP_Tabela5[[#This Row],[COD_ORIG_RCTA_F]], 12) -> 1.1.1.4.51.1 | S175: =LEFT(Receita_PMSP_Tabela5[[#This Row],[COD_FONT_REC]], 2) -> 00
A176: 1.1.1.4.51.1.3.01.00.000.000.12.01.007 | B176: PIME - Imposto sobre Serviços de Qualquer Natureza - Dívida Ativa | C176: 00.1.500.9001 | D176: Recursos não vinculados de Impostos | I176: Analítica | J176: 25102684 | K176: 1902534.56 | L176: 7.58 | M176: 7500151.79 | N176: 29.88 | O176: 25102684 | P176: =MID(Receita_PMSP_Tabela5[[#This Row],[COD_FONT_REC]], 6, 3) -> 500 | Q176: =LEFT(Receita_PMSP_Tabela5[[#This Row],[COD_ORIG_RCTA_F]], 10) -> 1.1.1.4.51 | R176: =LEFT(Receita_PMSP_Tabela5[[#This Row],[COD_ORIG_RCTA_F]], 12) -> 1.1.1.4.51.1 | S176: =LEFT(Receita_PMSP_Tabela5[[#This Row],[COD_FONT_REC]], 2) -> 00
A177: 1.1.1.4.51.1.3.01.00.000.000.12.01.008 | B177: TDM - Imposto sobre Serviços de Qualquer Natureza - Dívida Ativa | C177: 00.1.500.9001 | D177: Recursos não vinculados de Impostos | I177: Analítica | J177: 43197228 | K177: 1646262.93 | L177: 3.81 | M177: 7574605.72 | N177: 17.53 | O177: 43197228 | P177: =MID(Receita_PMSP_Tabela5[[#This Row],[COD_FONT_REC]], 6, 3) -> 500 | Q177: =LEFT(Receita_PMSP_Tabela5[[#This Row],[COD_ORIG_RCTA_F]], 10) -> 1.1.1.4.51 | R177: =LEFT(Receita_PMSP_Tabela5[[#This Row],[COD_ORIG_RCTA_F]], 12) -> 1.1.1.4.51.1 | S177: =LEFT(Receita_PMSP_Tabela5[[#This Row],[COD_FONT_REC]], 2) -> 00
A178: 1.1.1.4.51.1.3.01.00.000.000.12.09.000 | B178: Total Deduções Parcelamento Imposto sobre Serviços de Qualquer Naturez | I178: Sintética | J178: 0 | K178: -9920.11 | L178: 0 | M178: -9920.11 | N178: 0 | O178: 0 | P178: =MID(Receita_PMSP_Tabela5[[#This Row],[COD_FONT_REC]], 6, 3) ->  | Q178: =LEFT(Receita_PMSP_Tabela5[[#This Row],[COD_ORIG_RCTA_F]], 10) -> 1.1.1.4.51 | R178: =LEFT(Receita_PMSP_Tabela5[[#This Row],[COD_ORIG_RCTA_F]], 12) -> 1.1.1.4.51.1 | S178: =LEFT(Receita_PMSP_Tabela5[[#This Row],[COD_FONT_REC]], 2) -> 
A179: 1.1.1.4.51.1.3.01.00.000.000.12.09.001 | B179: Deduções PPI - Imposto sobre Serviços de Qualquer Natureza - Dívida At | C179: 00.1.500.9001 | D179: Recursos não vinculados de Impostos | I179: Analítica | J179: 0 | K179: -9920.11 | L179: 0 | M179: -9920.11 | N179: 0 | O179: 0 | P179: =MID(Receita_PMSP_Tabela5[[#This Row],[COD_FONT_REC]], 6, 3) -> 500 | Q179: =LEFT(Receita_PMSP_Tabela5[[#This Row],[COD_ORIG_RCTA_F]], 10) -> 1.1.1.4.51 | R179: =LEFT(Receita_PMSP_Tabela5[[#This Row],[COD_ORIG_RCTA_F]], 12) -> 1.1.1.4.51.1 | S179: =LEFT(Receita_PMSP_Tabela5[[#This Row],[COD_FONT_REC]], 2) -> 00
A180: 1.1.1.4.51.1.3.03.00.000.000.00.00.000 | B180: ISS - SIMPLES NACIONAL - DÍVIDA ATIVA | I180: Sintética | J180: 69272021 | K180: 6415353.55 | L180: 9.26 | M180: 33992737.98 | N180: 49.07 | O180: 69272021 | P180: =MID(Receita_PMSP_Tabela5[[#This Row],[COD_FONT_REC]], 6, 3) ->  | Q180: =LEFT(Receita_PMSP_Tabela5[[#This Row],[COD_ORIG_RCTA_F]], 10) -> 1.1.1.4.51 | R180: =LEFT(Receita_PMSP_Tabela5[[#This Row],[COD_ORIG_RCTA_F]], 12) -> 1.1.1.4.51.1 | S180: =LEFT(Receita_PMSP_Tabela5[[#This Row],[COD_FONT_REC]], 2) -> 
A181: 1.1.1.4.51.1.3.03.00.000.000.11.00.000 | B181: ISS - SIMPLES NACIONAL - DÍVIDA ATIVA | I181: Sintética | J181: 69272021 | K181: 6415353.55 | L181: 9.26 | M181: 33992737.98 | N181: 49.07 | O181: 69272021 | P181: =MID(Receita_PMSP_Tabela5[[#This Row],[COD_FONT_REC]], 6, 3) ->  | Q181: =LEFT(Receita_PMSP_Tabela5[[#This Row],[COD_ORIG_RCTA_F]], 10) -> 1.1.1.4.51 | R181: =LEFT(Receita_PMSP_Tabela5[[#This Row],[COD_ORIG_RCTA_F]], 12) -> 1.1.1.4.51.1 | S181: =LEFT(Receita_PMSP_Tabela5[[#This Row],[COD_FONT_REC]], 2) -> 
A182: 1.1.1.4.51.1.3.03.00.000.000.11.01.000 | B182: ISS - Simples Nacional - Dívida Ativa | C182: 00.1.500.9001 | D182: Recursos não vinculados de Impostos | I182: Analítica | J182: 69272021 | K182: 6423806.06 | L182: 9.27 | M182: 34013690.49 | N182: 49.1 | O182: 69272021 | P182: =MID(Receita_PMSP_Tabela5[[#This Row],[COD_FONT_REC]], 6, 3) -> 500 | Q182: =LEFT(Receita_PMSP_Tabela5[[#This Row],[COD_ORIG_RCTA_F]], 10) -> 1.1.1.4.51 | R182: =LEFT(Receita_PMSP_Tabela5[[#This Row],[COD_ORIG_RCTA_F]], 12) -> 1.1.1.4.51.1 | S182: =LEFT(Receita_PMSP_Tabela5[[#This Row],[COD_FONT_REC]], 2) -> 00
A183: 1.1.1.4.51.1.3.03.00.000.000.11.09.000 | B183: TOTAL DEDUÇÕES ISS - SIMPLES NACIONAL - DÍVIDA ATIVA | I183: Sintética | J183: 0 | K183: -8452.51 | L183: 0 | M183: -20952.51 | N183: 0 | O183: 0 | P183: =MID(Receita_PMSP_Tabela5[[#This Row],[COD_FONT_REC]], 6, 3) ->  | Q183: =LEFT(Receita_PMSP_Tabela5[[#This Row],[COD_ORIG_RCTA_F]], 10) -> 1.1.1.4.51 | R183: =LEFT(Receita_PMSP_Tabela5[[#This Row],[COD_ORIG_RCTA_F]], 12) -> 1.1.1.4.51.1 | S183: =LEFT(Receita_PMSP_Tabela5[[#This Row],[COD_FONT_REC]], 2) -> 
A184: 1.1.1.4.51.1.3.03.00.000.000.11.09.001 | B184: Deduções ISS - Simples Nacional - Dívida Ativa | C184: 00.1.500.9001 | D184: Recursos não vinculados de Impostos | I184: Analítica | J184: 0 | K184: -8452.51 | L184: 0 | M184: -20952.51 | N184: 0 | O184: 0 | P184: =MID(Receita_PMSP_Tabela5[[#This Row],[COD_FONT_REC]], 6, 3) -> 500 | Q184: =LEFT(Receita_PMSP_Tabela5[[#This Row],[COD_ORIG_RCTA_F]], 10) -> 1.1.1.4.51 | R184: =LEFT(Receita_PMSP_Tabela5[[#This Row],[COD_ORIG_RCTA_F]], 12) -> 1.1.1.4.51.1 | S184: =LEFT(Receita_PMSP_Tabela5[[#This Row],[COD_FONT_REC]], 2) -> 00
A185: 1.1.1.4.51.1.4.00.00.000.000.00.00.000 | B185: IMPOSTO SOBRE SERVIÇOS DE QUALQUER NATUREZA - DÍVIDA ATIVA - MULTAS E | I185: Sintética | J185: 193782256 | K185: 13329360.54 | L185: 6.88 | M185: 85929582.79 | N185: 44.34 | O185: 193782256 | P185: =MID(Receita_PMSP_Tabela5[[#This Row],[COD_FONT_REC]], 6, 3) ->  | Q185: =LEFT(Receita_PMSP_Tabela5[[#This Row],[COD_ORIG_RCTA_F]], 10) -> 1.1.1.4.51 | R185: =LEFT(Receita_PMSP_Tabela5[[#This Row],[COD_ORIG_RCTA_F]], 12) -> 1.1.1.4.51.1 | S185: =LEFT(Receita_PMSP_Tabela5[[#This Row],[COD_FONT_REC]], 2) -> 
A186: 1.1.1.4.51.1.4.01.00.000.000.00.00.000 | B186: IMPOSTO SOBRE SERVIÇOS DE QUALQUER NATUREZA - DÍVIDA ATIVA - MULTAS E | I186: Sintética | J186: 193782256 | K186: 13329360.54 | L186: 6.88 | M186: 85929582.79 | N186: 44.34 | O186: 193782256 | P186: =MID(Receita_PMSP_Tabela5[[#This Row],[COD_FONT_REC]], 6, 3) ->  | Q186: =LEFT(Receita_PMSP_Tabela5[[#This Row],[COD_ORIG_RCTA_F]], 10) -> 1.1.1.4.51 | R186: =LEFT(Receita_PMSP_Tabela5[[#This Row],[COD_ORIG_RCTA_F]], 12) -> 1.1.1.4.51.1 | S186: =LEFT(Receita_PMSP_Tabela5[[#This Row],[COD_FONT_REC]], 2) -> 
A187: 1.1.1.4.51.1.4.01.00.000.000.11.00.000 | B187: IMPOSTO SOBRE SERVIÇOS DE QUALQUER NATUREZA - DÍVIDA ATIVA - MULTAS E | I187: Sintética | J187: 32552378 | K187: 1058135.58 | L187: 3.25 | M187: 4693381.78 | N187: 14.42 | O187: 32552378 | P187: =MID(Receita_PMSP_Tabela5[[#This Row],[COD_FONT_REC]], 6, 3) ->  | Q187: =LEFT(Receita_PMSP_Tabela5[[#This Row],[COD_ORIG_RCTA_F]], 10) -> 1.1.1.4.51 | R187: =LEFT(Receita_PMSP_Tabela5[[#This Row],[COD_ORIG_RCTA_F]], 12) -> 1.1.1.4.51.1 | S187: =LEFT(Receita_PMSP_Tabela5[[#This Row],[COD_FONT_REC]], 2) -> 
A188: 1.1.1.4.51.1.4.01.00.000.000.11.01.000 | B188: Imposto sobre Serviços de Qualquer Natureza - Dívida Ativa - Multas e | C188: 00.1.500.9001 | D188: Recursos não vinculados de Impostos | I188: Analítica | J188: 32552378 | K188: 1058135.58 | L188: 3.25 | M188: 4693381.78 | N188: 14.42 | O188: 32552378 | P188: =MID(Receita_PMSP_Tabela5[[#This Row],[COD_FONT_REC]], 6, 3) -> 500 | Q188: =LEFT(Receita_PMSP_Tabela5[[#This Row],[COD_ORIG_RCTA_F]], 10) -> 1.1.1.4.51 | R188: =LEFT(Receita_PMSP_Tabela5[[#This Row],[COD_ORIG_RCTA_F]], 12) -> 1.1.1.4.51.1 | S188: =LEFT(Receita_PMSP_Tabela5[[#This Row],[COD_FONT_REC]], 2) -> 00
A189: 1.1.1.4.51.1.4.01.00.000.000.12.00.000 | B189: PARCELAMENTO IMPOSTO SOBRE SERVIÇOS DE QUALQUER NATUREZA - DÍVIDA ATIV | I189: Sintética | J189: 161229878 | K189: 12271224.96 | L189: 7.61 | M189: 81236201.01 | N189: 50.39 | O189: 161229878 | P189: =MID(Receita_PMSP_Tabela5[[#This Row],[COD_FONT_REC]], 6, 3) ->  | Q189: =LEFT(Receita_PMSP_Tabela5[[#This Row],[COD_ORIG_RCTA_F]], 10) -> 1.1.1.4.51 | R189: =LEFT(Receita_PMSP_Tabela5[[#This Row],[COD_ORIG_RCTA_F]], 12) -> 1.1.1.4.51.1 | S189: =LEFT(Receita_PMSP_Tabela5[[#This Row],[COD_FONT_REC]], 2) -> 
A190: 1.1.1.4.51.1.4.01.00.000.000.12.01.000 | B190: TOTAL PARCELAMENTO IMPOSTO SOBRE SERVIÇOS DE QUALQUER NATUREZA - DÍVID | I190: Sintética | J190: 161229878 | K190: 12273448.55 | L190: 7.61 | M190: 81238424.6 | N190: 50.39 | O190: 161229878 | P190: =MID(Receita_PMSP_Tabela5[[#This Row],[COD_FONT_REC]], 6, 3) ->  | Q190: =LEFT(Receita_PMSP_Tabela5[[#This Row],[COD_ORIG_RCTA_F]], 10) -> 1.1.1.4.51 | R190: =LEFT(Receita_PMSP_Tabela5[[#This Row],[COD_ORIG_RCTA_F]], 12) -> 1.1.1.4.51.1 | S190: =LEFT(Receita_PMSP_Tabela5[[#This Row],[COD_FONT_REC]], 2) -> 
A191: 1.1.1.4.51.1.4.01.00.000.000.12.01.001 | B191: PPI - Imposto sobre Serviços de Qualquer Natureza - Dívida Ativa - Mul | C191: 00.1.500.9001 | D191: Recursos não vinculados de Impostos | I191: Analítica | J191: 145476015 | K191: 10851945.67 | L191: 7.46 | M191: 74426762.59 | N191: 51.16 | O191: 145476015 | P191: =MID(Receita_PMSP_Tabela5[[#This Row],[COD_FONT_REC]], 6, 3) -> 500 | Q191: =LEFT(Receita_PMSP_Tabela5[[#This Row],[COD_ORIG_RCTA_F]], 10) -> 1.1.1.4.51 | R191: =LEFT(Receita_PMSP_Tabela5[[#This Row],[COD_ORIG_RCTA_F]], 12) -> 1.1.1.4.51.1 | S191: =LEFT(Receita_PMSP_Tabela5[[#This Row],[COD_FONT_REC]], 2) -> 00
A192: 1.1.1.4.51.1.4.01.00.000.000.12.01.002 | B192: PAT - Imposto sobre Serviços de Qualquer Natureza - Dívida Ativa - Mul | C192: 00.1.500.9001 | D192: Recursos não vinculados de Impostos | I192: Analítica | J192: 65494 | K192: 3392.33 | L192: 5.18 | M192: 17213.59 | N192: 26.28 | O192: 65494 | P192: =MID(Receita_PMSP_Tabela5[[#This Row],[COD_FONT_REC]], 6, 3) -> 500 | Q192: =LEFT(Receita_PMSP_Tabela5[[#This Row],[COD_ORIG_RCTA_F]], 10) -> 1.1.1.4.51 | R192: =LEFT(Receita_PMSP_Tabela5[[#This Row],[COD_ORIG_RCTA_F]], 12) -> 1.1.1.4.51.1 | S192: =LEFT(Receita_PMSP_Tabela5[[#This Row],[COD_FONT_REC]], 2) -> 00
A193: 1.1.1.4.51.1.4.01.00.000.000.12.01.004 | B193: PRD - Imposto sobre Serviços de Qualquer Natureza - Dívida Ativa - Mul | C193: 00.1.500.9001 | D193: Recursos não vinculados de Impostos | I193: Analítica | J193: 3771108 | K193: 273428.44 | L193: 7.25 | M193: 1911389.49 | N193: 50.69 | O193: 3771108 | P193: =MID(Receita_PMSP_Tabela5[[#This Row],[COD_FONT_REC]], 6, 3) -> 500 | Q193: =LEFT(Receita_PMSP_Tabela5[[#This Row],[COD_ORIG_RCTA_F]], 10) -> 1.1.1.4.51 | R193: =LEFT(Receita_PMSP_Tabela5[[#This Row],[COD_ORIG_RCTA_F]], 12) -> 1.1.1.4.51.1 | S193: =LEFT(Receita_PMSP_Tabela5[[#This Row],[COD_FONT_REC]], 2) -> 00
A194: 1.1.1.4.51.1.4.01.00.000.000.12.01.007 | B194: PIME - Imposto sobre Serviços de Qualquer Natureza - Dívida Ativa - Mu | C194: 00.1.500.9001 | D194: Recursos não vinculados de Impostos | I194: Analítica | J194: 8162065 | K194: 618603.23 | L194: 7.58 | M194: 2438651.16 | N194: 29.88 | O194: 8162065 | P194: =MID(Receita_PMSP_Tabela5[[#This Row],[COD_FONT_REC]], 6, 3) -> 500 | Q194: =LEFT(Receita_PMSP_Tabela5[[#This Row],[COD_ORIG_RCTA_F]], 10) -> 1.1.1.4.51 | R194: =LEFT(Receita_PMSP_Tabela5[[#This Row],[COD_ORIG_RCTA_F]], 12) -> 1.1.1.4.51.1 | S194: =LEFT(Receita_PMSP_Tabela5[[#This Row],[COD_FONT_REC]], 2) -> 00
A195: 1.1.1.4.51.1.4.01.00.000.000.12.01.008 | B195: TDM - ISS - Dívida Ativa - Multas e Juros | C195: 00.1.500.9001 | D195: Recursos não vinculados de Impostos | I195: Analítica | J195: 3755196 | K195: 526078.88 | L195: 14.01 | M195: 2444407.77 | N195: 65.09 | O195: 3755196 | P195: =MID(Receita_PMSP_Tabela5[[#This Row],[COD_FONT_REC]], 6, 3) -> 500 | Q195: =LEFT(Receita_PMSP_Tabela5[[#This Row],[COD_ORIG_RCTA_F]], 10) -> 1.1.1.4.51 | R195: =LEFT(Receita_PMSP_Tabela5[[#This Row],[COD_ORIG_RCTA_F]], 12) -> 1.1.1.4.51.1 | S195: =LEFT(Receita_PMSP_Tabela5[[#This Row],[COD_FONT_REC]], 2) -> 00
A196: 1.1.1.4.51.1.4.01.00.000.000.12.09.000 | B196: Total Deduções Parcelamento Imposto sobre Serviços de Qualquer Naturez | I196: Sintética | J196: 0 | K196: -2223.59 | L196: 0 | M196: -2223.59 | N196: 0 | O196: 0 | P196: =MID(Receita_PMSP_Tabela5[[#This Row],[COD_FONT_REC]], 6, 3) ->  | Q196: =LEFT(Receita_PMSP_Tabela5[[#This Row],[COD_ORIG_RCTA_F]], 10) -> 1.1.1.4.51 | R196: =LEFT(Receita_PMSP_Tabela5[[#This Row],[COD_ORIG_RCTA_F]], 12) -> 1.1.1.4.51.1 | S196: =LEFT(Receita_PMSP_Tabela5[[#This Row],[COD_FONT_REC]], 2) -> 
A197: 1.1.1.4.51.1.4.01.00.000.000.12.09.001 | B197: Deduções PPI - Imposto sobre Serviços de Qualquer Natureza - Dívida At | C197: 00.1.500.9001 | D197: Recursos não vinculados de Impostos | I197: Analítica | J197: 0 | K197: -2223.59 | L197: 0 | M197: -2223.59 | N197: 0 | O197: 0 | P197: =MID(Receita_PMSP_Tabela5[[#This Row],[COD_FONT_REC]], 6, 3) -> 500 | Q197: =LEFT(Receita_PMSP_Tabela5[[#This Row],[COD_ORIG_RCTA_F]], 10) -> 1.1.1.4.51 | R197: =LEFT(Receita_PMSP_Tabela5[[#This Row],[COD_ORIG_RCTA_F]], 12) -> 1.1.1.4.51.1 | S197: =LEFT(Receita_PMSP_Tabela5[[#This Row],[COD_FONT_REC]], 2) -> 00
A198: 1.1.1.4.52.0.0.00.00.000.000.00.00.000 | B198: Imposto sobre Vendas a Varejo de Combustíveis Líquidos e Gasosos (IVVC | I198: Sintética | J198: 0 | K198: 781.36 | L198: 0 | M198: 3080.28 | N198: 0 | O198: 0 | P198: =MID(Receita_PMSP_Tabela5[[#This Row],[COD_FONT_REC]], 6, 3) ->  | Q198: =LEFT(Receita_PMSP_Tabela5[[#This Row],[COD_ORIG_RCTA_F]], 10) -> 1.1.1.4.52 | R198: =LEFT(Receita_PMSP_Tabela5[[#This Row],[COD_ORIG_RCTA_F]], 12) -> 1.1.1.4.52.0 | S198: =LEFT(Receita_PMSP_Tabela5[[#This Row],[COD_FONT_REC]], 2) -> 
A199: 1.1.1.4.52.0.3.00.00.000.000.00.00.000 | B199: IMPOSTO SOBRE A VENDA A VAREJO DE COMBUSTÍVEIS LÍQUIDOS E GASOSOS - IV | I199: Sintética | J199: 0 | K199: 249.57 | L199: 0 | M199: 983.89 | N199: 0 | O199: 0 | P199: =MID(Receita_PMSP_Tabela5[[#This Row],[COD_FONT_REC]], 6, 3) ->  | Q199: =LEFT(Receita_PMSP_Tabela5[[#This Row],[COD_ORIG_RCTA_F]], 10) -> 1.1.1.4.52 | R199: =LEFT(Receita_PMSP_Tabela5[[#This Row],[COD_ORIG_RCTA_F]], 12) -> 1.1.1.4.52.0 | S199: =LEFT(Receita_PMSP_Tabela5[[#This Row],[COD_FONT_REC]], 2) -> 
A200: 1.1.1.4.52.0.3.01.00.000.000.00.00.000 | B200: IMPOSTO SOBRE A VENDA A VAREJO DE COMBUSTÍVEIS LÍQUIDOS E GASOSOS - IV | I200: Sintética | J200: 0 | K200: 249.57 | L200: 0 | M200: 983.89 | N200: 0 | O200: 0 | P200: =MID(Receita_PMSP_Tabela5[[#This Row],[COD_FONT_REC]], 6, 3) ->  | Q200: =LEFT(Receita_PMSP_Tabela5[[#This Row],[COD_ORIG_RCTA_F]], 10) -> 1.1.1.4.52 | R200: =LEFT(Receita_PMSP_Tabela5[[#This Row],[COD_ORIG_RCTA_F]], 12) -> 1.1.1.4.52.0 | S200: =LEFT(Receita_PMSP_Tabela5[[#This Row],[COD_FONT_REC]], 2) -> 
... 3494 more rows

Sheet BD_Receita_HSPM_2BIM
A1: COD_ORIG_RCTA_F | B1: TXT_COD_RCTA_RESU | C1: COD_FONT_REC | D1: TXT_FONT_REC | E1: COD_ORG_EMP | F1: TXT_ORG_EMP | G1: COD_UNID_ORCM_SOF | H1: TXT_UNID_ORCM | I1: COD_TIP_CTA_RCTA | J1: VAL_PRVI_RCTA_ATUL | K1: VAL_REAZ_MENS | L1: PERC_VAL_REAZ_MENS | M1: VAL_REAZ_ATE_MES | N1: PERC_VAL_REAZ_ATE_MES | O1: VAL_PRVI_RCTA_INI | P1: FONTE_PADRONIZADO | Q1: RECEITA_5 | R1: RECEITA_6 | S1: FONTE_PMSP
A2: 1.0.0.0.00.0.0.00.00.000.000.00.00.000 | B2: RECEITAS CORRENTES | I2: Sintética | J2: 19795136 | K2: 1901961.1 | L2: 9.61 | M2: 10134925.83 | N2: 51.2 | O2: 19795136 | P2: =MID(Receita_HSPM_Tabela6[[#This Row],[COD_FONT_REC]], 6, 3) ->  | Q2: =LEFT(Receita_HSPM_Tabela6[[#This Row],[COD_ORIG_RCTA_F]], 10) -> 1.0.0.0.00 | R2: =LEFT(Receita_HSPM_Tabela6[[#This Row],[COD_ORIG_RCTA_F]], 12) -> 1.0.0.0.00.0 | S2: =LEFT(Receita_HSPM_Tabela6[[#This Row],[COD_FONT_REC]], 2) -> 
A3: 1.3.0.0.00.0.0.00.00.000.000.00.00.000 | B3: RECEITA PATRIMONIAL | I3: Sintética | J3: 3991320 | K3: 408248.45 | L3: 10.23 | M3: 1539092.96 | N3: 38.56 | O3: 3991320 | P3: =MID(Receita_HSPM_Tabela6[[#This Row],[COD_FONT_REC]], 6, 3) ->  | Q3: =LEFT(Receita_HSPM_Tabela6[[#This Row],[COD_ORIG_RCTA_F]], 10) -> 1.3.0.0.00 | R3: =LEFT(Receita_HSPM_Tabela6[[#This Row],[COD_ORIG_RCTA_F]], 12) -> 1.3.0.0.00.0 | S3: =LEFT(Receita_HSPM_Tabela6[[#This Row],[COD_FONT_REC]], 2) -> 
A4: 1.3.2.0.00.0.0.00.00.000.000.00.00.000 | B4: VALORES MOBILIÁRIOS | I4: Sintética | J4: 3991320 | K4: 408248.45 | L4: 10.23 | M4: 1539092.96 | N4: 38.56 | O4: 3991320 | P4: =MID(Receita_HSPM_Tabela6[[#This Row],[COD_FONT_REC]], 6, 3) ->  | Q4: =LEFT(Receita_HSPM_Tabela6[[#This Row],[COD_ORIG_RCTA_F]], 10) -> 1.3.2.0.00 | R4: =LEFT(Receita_HSPM_Tabela6[[#This Row],[COD_ORIG_RCTA_F]], 12) -> 1.3.2.0.00.0 | S4: =LEFT(Receita_HSPM_Tabela6[[#This Row],[COD_FONT_REC]], 2) -> 
A5: 1.3.2.1.00.0.0.00.00.000.000.00.00.000 | B5: JUROS E CORREÇÕES MONETÁRIAS | I5: Sintética | J5: 3990120 | K5: 408248.45 | L5: 10.23 | M5: 1539092.96 | N5: 38.57 | O5: 3990120 | P5: =MID(Receita_HSPM_Tabela6[[#This Row],[COD_FONT_REC]], 6, 3) ->  | Q5: =LEFT(Receita_HSPM_Tabela6[[#This Row],[COD_ORIG_RCTA_F]], 10) -> 1.3.2.1.00 | R5: =LEFT(Receita_HSPM_Tabela6[[#This Row],[COD_ORIG_RCTA_F]], 12) -> 1.3.2.1.00.0 | S5: =LEFT(Receita_HSPM_Tabela6[[#This Row],[COD_FONT_REC]], 2) -> 
A6: 1.3.2.1.05.0.0.00.00.000.000.00.00.000 | B6: JUROS DE TÍTULOS DE RENDA | I6: Sintética | J6: 3990120 | K6: 408248.45 | L6: 10.23 | M6: 1539092.96 | N6: 38.57 | O6: 3990120 | P6: =MID(Receita_HSPM_Tabela6[[#This Row],[COD_FONT_REC]], 6, 3) ->  | Q6: =LEFT(Receita_HSPM_Tabela6[[#This Row],[COD_ORIG_RCTA_F]], 10) -> 1.3.2.1.05 | R6: =LEFT(Receita_HSPM_Tabela6[[#This Row],[COD_ORIG_RCTA_F]], 12) -> 1.3.2.1.05.0 | S6: =LEFT(Receita_HSPM_Tabela6[[#This Row],[COD_FONT_REC]], 2) -> 
A7: 1.3.2.1.05.0.1.00.00.000.000.00.00.000 | B7: JUROS DE TÍTULOS DE RENDA - PRINCIPAL | I7: Sintética | J7: 3990120 | K7: 408248.45 | L7: 10.23 | M7: 1539092.96 | N7: 38.57 | O7: 3990120 | P7: =MID(Receita_HSPM_Tabela6[[#This Row],[COD_FONT_REC]], 6, 3) ->  | Q7: =LEFT(Receita_HSPM_Tabela6[[#This Row],[COD_ORIG_RCTA_F]], 10) -> 1.3.2.1.05 | R7: =LEFT(Receita_HSPM_Tabela6[[#This Row],[COD_ORIG_RCTA_F]], 12) -> 1.3.2.1.05.0 | S7: =LEFT(Receita_HSPM_Tabela6[[#This Row],[COD_FONT_REC]], 2) -> 
A8: 1.3.2.1.05.0.1.01.00.000.000.00.00.000 | B8: FUNDOS DE INVESTIMENTOS E APLICAÇÕES EM COTAS - RENDA FIXA | I8: Sintética | J8: 3990120 | K8: 408248.45 | L8: 10.23 | M8: 1539092.96 | N8: 38.57 | O8: 3990120 | P8: =MID(Receita_HSPM_Tabela6[[#This Row],[COD_FONT_REC]], 6, 3) ->  | Q8: =LEFT(Receita_HSPM_Tabela6[[#This Row],[COD_ORIG_RCTA_F]], 10) -> 1.3.2.1.05 | R8: =LEFT(Receita_HSPM_Tabela6[[#This Row],[COD_ORIG_RCTA_F]], 12) -> 1.3.2.1.05.0 | S8: =LEFT(Receita_HSPM_Tabela6[[#This Row],[COD_FONT_REC]], 2) -> 
A9: 1.3.2.1.05.0.1.01.07.000.000.00.00.000 | B9: RECURSOS PRÓPRIOS DA ADMINISTRAÇÃO INDIRETA | I9: Sintética | J9: 3990120 | K9: 408248.45 | L9: 10.23 | M9: 1539092.96 | N9: 38.57 | O9: 3990120 | P9: =MID(Receita_HSPM_Tabela6[[#This Row],[COD_FONT_REC]], 6, 3) ->  | Q9: =LEFT(Receita_HSPM_Tabela6[[#This Row],[COD_ORIG_RCTA_F]], 10) -> 1.3.2.1.05 | R9: =LEFT(Receita_HSPM_Tabela6[[#This Row],[COD_ORIG_RCTA_F]], 12) -> 1.3.2.1.05.0 | S9: =LEFT(Receita_HSPM_Tabela6[[#This Row],[COD_FONT_REC]], 2) -> 
A10: 1.3.2.1.05.0.1.01.07.081.000.00.00.000 | B10: HOSPITAL DO SERVIDOR PÚBLICO MUNICIPAL | I10: Sintética | J10: 3990120 | K10: 408248.45 | L10: 10.23 | M10: 1539092.96 | N10: 38.57 | O10: 3990120 | P10: =MID(Receita_HSPM_Tabela6[[#This Row],[COD_FONT_REC]], 6, 3) ->  | Q10: =LEFT(Receita_HSPM_Tabela6[[#This Row],[COD_ORIG_RCTA_F]], 10) -> 1.3.2.1.05 | R10: =LEFT(Receita_HSPM_Tabela6[[#This Row],[COD_ORIG_RCTA_F]], 12) -> 1.3.2.1.05.0 | S10: =LEFT(Receita_HSPM_Tabela6[[#This Row],[COD_FONT_REC]], 2) -> 
A11: 1.3.2.1.05.0.1.01.07.081.001.00.00.000 | B11: HOSPITAL DO SERVIDOR PÚBLICO MUNICIPAL | I11: Sintética | J11: 3990120 | K11: 408248.45 | L11: 10.23 | M11: 1539092.96 | N11: 38.57 | O11: 3990120 | P11: =MID(Receita_HSPM_Tabela6[[#This Row],[COD_FONT_REC]], 6, 3) ->  | Q11: =LEFT(Receita_HSPM_Tabela6[[#This Row],[COD_ORIG_RCTA_F]], 10) -> 1.3.2.1.05 | R11: =LEFT(Receita_HSPM_Tabela6[[#This Row],[COD_ORIG_RCTA_F]], 12) -> 1.3.2.1.05.0 | S11: =LEFT(Receita_HSPM_Tabela6[[#This Row],[COD_FONT_REC]], 2) -> 
A12: 1.3.2.1.05.0.1.01.07.081.001.11.00.000 | B12: HOSPITAL DO SERVIDOR PÚBLICO MUNICIPAL | I12: Sintética | J12: 3990120 | K12: 408248.45 | L12: 10.23 | M12: 1539092.96 | N12: 38.57 | O12: 3990120 | P12: =MID(Receita_HSPM_Tabela6[[#This Row],[COD_FONT_REC]], 6, 3) ->  | Q12: =LEFT(Receita_HSPM_Tabela6[[#This Row],[COD_ORIG_RCTA_F]], 10) -> 1.3.2.1.05 | R12: =LEFT(Receita_HSPM_Tabela6[[#This Row],[COD_ORIG_RCTA_F]], 12) -> 1.3.2.1.05.0 | S12: =LEFT(Receita_HSPM_Tabela6[[#This Row],[COD_FONT_REC]], 2) -> 
A13: 1.3.2.1.05.0.1.01.07.081.001.11.01.000 | B13: Hospital do Servidor Público Municipal | C13: 06.1.501.9001 | D13: Outros Recursos não Vinculados | E13: 02 | F13: Hospital do Servidor Público Municipal | I13: Analítica | J13: 3990120 | K13: 408248.45 | L13: 10.23 | M13: 1539092.96 | N13: 38.57 | O13: 3990120 | P13: =MID(Receita_HSPM_Tabela6[[#This Row],[COD_FONT_REC]], 6, 3) -> 501 | Q13: =LEFT(Receita_HSPM_Tabela6[[#This Row],[COD_ORIG_RCTA_F]], 10) -> 1.3.2.1.05 | R13: =LEFT(Receita_HSPM_Tabela6[[#This Row],[COD_ORIG_RCTA_F]], 12) -> 1.3.2.1.05.0 | S13: =LEFT(Receita_HSPM_Tabela6[[#This Row],[COD_FONT_REC]], 2) -> 06
A14: 1.3.2.2.00.0.0.00.00.000.000.00.00.000 | B14: DIVIDENDOS | I14: Sintética | J14: 1200 | K14: 0 | L14: 0 | M14: 0 | N14: 0 | O14: 1200 | P14: =MID(Receita_HSPM_Tabela6[[#This Row],[COD_FONT_REC]], 6, 3) ->  | Q14: =LEFT(Receita_HSPM_Tabela6[[#This Row],[COD_ORIG_RCTA_F]], 10) -> 1.3.2.2.00 | R14: =LEFT(Receita_HSPM_Tabela6[[#This Row],[COD_ORIG_RCTA_F]], 12) -> 1.3.2.2.00.0 | S14: =LEFT(Receita_HSPM_Tabela6[[#This Row],[COD_FONT_REC]], 2) -> 
A15: 1.3.2.2.01.0.0.00.00.000.000.00.00.000 | B15: DIVIDENDOS | I15: Sintética | J15: 1200 | K15: 0 | L15: 0 | M15: 0 | N15: 0 | O15: 1200 | P15: =MID(Receita_HSPM_Tabela6[[#This Row],[COD_FONT_REC]], 6, 3) ->  | Q15: =LEFT(Receita_HSPM_Tabela6[[#This Row],[COD_ORIG_RCTA_F]], 10) -> 1.3.2.2.01 | R15: =LEFT(Receita_HSPM_Tabela6[[#This Row],[COD_ORIG_RCTA_F]], 12) -> 1.3.2.2.01.0 | S15: =LEFT(Receita_HSPM_Tabela6[[#This Row],[COD_FONT_REC]], 2) -> 
A16: 1.3.2.2.01.0.1.00.00.000.000.00.00.000 | B16: DIVIDENDOS - PRINCIPAL | I16: Sintética | J16: 1200 | K16: 0 | L16: 0 | M16: 0 | N16: 0 | O16: 1200 | P16: =MID(Receita_HSPM_Tabela6[[#This Row],[COD_FONT_REC]], 6, 3) ->  | Q16: =LEFT(Receita_HSPM_Tabela6[[#This Row],[COD_ORIG_RCTA_F]], 10) -> 1.3.2.2.01 | R16: =LEFT(Receita_HSPM_Tabela6[[#This Row],[COD_ORIG_RCTA_F]], 12) -> 1.3.2.2.01.0 | S16: =LEFT(Receita_HSPM_Tabela6[[#This Row],[COD_FONT_REC]], 2) -> 
A17: 1.3.2.2.01.0.1.01.00.000.000.00.00.000 | B17: DIVIDENDOS | I17: Sintética | J17: 1200 | K17: 0 | L17: 0 | M17: 0 | N17: 0 | O17: 1200 | P17: =MID(Receita_HSPM_Tabela6[[#This Row],[COD_FONT_REC]], 6, 3) ->  | Q17: =LEFT(Receita_HSPM_Tabela6[[#This Row],[COD_ORIG_RCTA_F]], 10) -> 1.3.2.2.01 | R17: =LEFT(Receita_HSPM_Tabela6[[#This Row],[COD_ORIG_RCTA_F]], 12) -> 1.3.2.2.01.0 | S17: =LEFT(Receita_HSPM_Tabela6[[#This Row],[COD_FONT_REC]], 2) -> 
A18: 1.3.2.2.01.0.1.01.00.000.000.11.00.000 | B18: DIVIDENDOS | I18: Sintética | J18: 1200 | K18: 0 | L18: 0 | M18: 0 | N18: 0 | O18: 1200 | P18: =MID(Receita_HSPM_Tabela6[[#This Row],[COD_FONT_REC]], 6, 3) ->  | Q18: =LEFT(Receita_HSPM_Tabela6[[#This Row],[COD_ORIG_RCTA_F]], 10) -> 1.3.2.2.01 | R18: =LEFT(Receita_HSPM_Tabela6[[#This Row],[COD_ORIG_RCTA_F]], 12) -> 1.3.2.2.01.0 | S18: =LEFT(Receita_HSPM_Tabela6[[#This Row],[COD_FONT_REC]], 2) -> 
A19: 1.3.2.2.01.0.1.01.00.000.000.11.01.000 | B19: Dividendos | C19: 06.1.501.9001 | D19: Outros Recursos não Vinculados | E19: 02 | F19: Hospital do Servidor Público Municipal | I19: Analítica | J19: 1200 | K19: 0 | L19: 0 | M19: 0 | N19: 0 | O19: 1200 | P19: =MID(Receita_HSPM_Tabela6[[#This Row],[COD_FONT_REC]], 6, 3) -> 501 | Q19: =LEFT(Receita_HSPM_Tabela6[[#This Row],[COD_ORIG_RCTA_F]], 10) -> 1.3.2.2.01 | R19: =LEFT(Receita_HSPM_Tabela6[[#This Row],[COD_ORIG_RCTA_F]], 12) -> 1.3.2.2.01.0 | S19: =LEFT(Receita_HSPM_Tabela6[[#This Row],[COD_FONT_REC]], 2) -> 06
A20: 1.6.0.0.00.0.0.00.00.000.000.00.00.000 | B20: RECEITA DE SERVIÇOS | I20: Sintética | J20: 321204 | K20: 28362.16 | L20: 8.83 | M20: 111622.64 | N20: 34.75 | O20: 321204 | P20: =MID(Receita_HSPM_Tabela6[[#This Row],[COD_FONT_REC]], 6, 3) ->  | Q20: =LEFT(Receita_HSPM_Tabela6[[#This Row],[COD_ORIG_RCTA_F]], 10) -> 1.6.0.0.00 | R20: =LEFT(Receita_HSPM_Tabela6[[#This Row],[COD_ORIG_RCTA_F]], 12) -> 1.6.0.0.00.0 | S20: =LEFT(Receita_HSPM_Tabela6[[#This Row],[COD_FONT_REC]], 2) -> 
A21: 1.6.1.0.00.0.0.00.00.000.000.00.00.000 | B21: SERVIÇOS ADMINISTRATIVOS E COMERCIAIS GERAIS | I21: Sintética | J21: 321204 | K21: 28362.16 | L21: 8.83 | M21: 111622.64 | N21: 34.75 | O21: 321204 | P21: =MID(Receita_HSPM_Tabela6[[#This Row],[COD_FONT_REC]], 6, 3) ->  | Q21: =LEFT(Receita_HSPM_Tabela6[[#This Row],[COD_ORIG_RCTA_F]], 10) -> 1.6.1.0.00 | R21: =LEFT(Receita_HSPM_Tabela6[[#This Row],[COD_ORIG_RCTA_F]], 12) -> 1.6.1.0.00.0 | S21: =LEFT(Receita_HSPM_Tabela6[[#This Row],[COD_FONT_REC]], 2) -> 
A22: 1.6.1.1.00.0.0.00.00.000.000.00.00.000 | B22: SERVIÇOS ADMINISTRATIVOS E COMERCIAIS GERAIS | I22: Sintética | J22: 321204 | K22: 28362.16 | L22: 8.83 | M22: 111622.64 | N22: 34.75 | O22: 321204 | P22: =MID(Receita_HSPM_Tabela6[[#This Row],[COD_FONT_REC]], 6, 3) ->  | Q22: =LEFT(Receita_HSPM_Tabela6[[#This Row],[COD_ORIG_RCTA_F]], 10) -> 1.6.1.1.00 | R22: =LEFT(Receita_HSPM_Tabela6[[#This Row],[COD_ORIG_RCTA_F]], 12) -> 1.6.1.1.00.0 | S22: =LEFT(Receita_HSPM_Tabela6[[#This Row],[COD_FONT_REC]], 2) -> 
A23: 1.6.1.1.01.0.0.00.00.000.000.00.00.000 | B23: SERVIÇOS ADMINISTRATIVOS E COMERCIAIS GERAIS | I23: Sintética | J23: 321204 | K23: 28362.16 | L23: 8.83 | M23: 111622.64 | N23: 34.75 | O23: 321204 | P23: =MID(Receita_HSPM_Tabela6[[#This Row],[COD_FONT_REC]], 6, 3) ->  | Q23: =LEFT(Receita_HSPM_Tabela6[[#This Row],[COD_ORIG_RCTA_F]], 10) -> 1.6.1.1.01 | R23: =LEFT(Receita_HSPM_Tabela6[[#This Row],[COD_ORIG_RCTA_F]], 12) -> 1.6.1.1.01.0 | S23: =LEFT(Receita_HSPM_Tabela6[[#This Row],[COD_FONT_REC]], 2) -> 
A24: 1.6.1.1.01.0.1.00.00.000.000.00.00.000 | B24: SERVIÇOS ADMINISTRATIVOS E COMERCIAIS GERAIS - PRINCIPAL | I24: Sintética | J24: 321204 | K24: 28362.16 | L24: 8.83 | M24: 111622.64 | N24: 34.75 | O24: 321204 | P24: =MID(Receita_HSPM_Tabela6[[#This Row],[COD_FONT_REC]], 6, 3) ->  | Q24: =LEFT(Receita_HSPM_Tabela6[[#This Row],[COD_ORIG_RCTA_F]], 10) -> 1.6.1.1.01 | R24: =LEFT(Receita_HSPM_Tabela6[[#This Row],[COD_ORIG_RCTA_F]], 12) -> 1.6.1.1.01.0 | S24: =LEFT(Receita_HSPM_Tabela6[[#This Row],[COD_FONT_REC]], 2) -> 
A25: 1.6.1.1.01.0.1.04.00.000.000.00.00.000 | B25: SERVIÇOS DE FOTOCÓPIAS OU CÓPIAS HELIOGRÁFICAS | I25: Sintética | J25: 1200 | K25: 4.8 | L25: 0.4 | M25: 9.6 | N25: 0.8 | O25: 1200 | P25: =MID(Receita_HSPM_Tabela6[[#This Row],[COD_FONT_REC]], 6, 3) ->  | Q25: =LEFT(Receita_HSPM_Tabela6[[#This Row],[COD_ORIG_RCTA_F]], 10) -> 1.6.1.1.01 | R25: =LEFT(Receita_HSPM_Tabela6[[#This Row],[COD_ORIG_RCTA_F]], 12) -> 1.6.1.1.01.0 | S25: =LEFT(Receita_HSPM_Tabela6[[#This Row],[COD_FONT_REC]], 2) -> 
A26: 1.6.1.1.01.0.1.04.00.000.000.11.00.000 | B26: SERVIÇOS DE FOTOCÓPIAS OU CÓPIAS HELIOGRÁFICAS | I26: Sintética | J26: 1200 | K26: 4.8 | L26: 0.4 | M26: 9.6 | N26: 0.8 | O26: 1200 | P26: =MID(Receita_HSPM_Tabela6[[#This Row],[COD_FONT_REC]], 6, 3) ->  | Q26: =LEFT(Receita_HSPM_Tabela6[[#This Row],[COD_ORIG_RCTA_F]], 10) -> 1.6.1.1.01 | R26: =LEFT(Receita_HSPM_Tabela6[[#This Row],[COD_ORIG_RCTA_F]], 12) -> 1.6.1.1.01.0 | S26: =LEFT(Receita_HSPM_Tabela6[[#This Row],[COD_FONT_REC]], 2) -> 
A27: 1.6.1.1.01.0.1.04.00.000.000.11.01.000 | B27: Serviços de Fotocópias ou Cópias Heliográficas | C27: 06.1.501.9001 | D27: Outros Recursos não Vinculados | E27: 02 | F27: Hospital do Servidor Público Municipal | I27: Analítica | J27: 1200 | K27: 4.8 | L27: 0.4 | M27: 9.6 | N27: 0.8 | O27: 1200 | P27: =MID(Receita_HSPM_Tabela6[[#This Row],[COD_FONT_REC]], 6, 3) -> 501 | Q27: =LEFT(Receita_HSPM_Tabela6[[#This Row],[COD_ORIG_RCTA_F]], 10) -> 1.6.1.1.01 | R27: =LEFT(Receita_HSPM_Tabela6[[#This Row],[COD_ORIG_RCTA_F]], 12) -> 1.6.1.1.01.0 | S27: =LEFT(Receita_HSPM_Tabela6[[#This Row],[COD_FONT_REC]], 2) -> 06
A28: 1.6.1.1.01.0.1.05.00.000.000.00.00.000 | B28: OUTROS SERVIÇOS ADMINISTRATIVOS | I28: Sintética | J28: 320004 | K28: 28357.36 | L28: 8.86 | M28: 111613.04 | N28: 34.88 | O28: 320004 | P28: =MID(Receita_HSPM_Tabela6[[#This Row],[COD_FONT_REC]], 6, 3) ->  | Q28: =LEFT(Receita_HSPM_Tabela6[[#This Row],[COD_ORIG_RCTA_F]], 10) -> 1.6.1.1.01 | R28: =LEFT(Receita_HSPM_Tabela6[[#This Row],[COD_ORIG_RCTA_F]], 12) -> 1.6.1.1.01.0 | S28: =LEFT(Receita_HSPM_Tabela6[[#This Row],[COD_FONT_REC]], 2) -> 
A29: 1.6.1.1.01.0.1.05.00.000.000.11.00.000 | B29: OUTROS SERVIÇOS ADMINISTRATIVOS | I29: Sintética | J29: 320004 | K29: 28357.36 | L29: 8.86 | M29: 111613.04 | N29: 34.88 | O29: 320004 | P29: =MID(Receita_HSPM_Tabela6[[#This Row],[COD_FONT_REC]], 6, 3) ->  | Q29: =LEFT(Receita_HSPM_Tabela6[[#This Row],[COD_ORIG_RCTA_F]], 10) -> 1.6.1.1.01 | R29: =LEFT(Receita_HSPM_Tabela6[[#This Row],[COD_ORIG_RCTA_F]], 12) -> 1.6.1.1.01.0 | S29: =LEFT(Receita_HSPM_Tabela6[[#This Row],[COD_FONT_REC]], 2) -> 
A30: 1.6.1.1.01.0.1.05.00.000.000.11.01.000 | B30: Outros Serviços Administrativos | C30: 06.1.501.9001 | D30: Outros Recursos não Vinculados | E30: 02 | F30: Hospital do Servidor Público Municipal | I30: Analítica | J30: 320004 | K30: 28357.36 | L30: 8.86 | M30: 111613.04 | N30: 34.88 | O30: 320004 | P30: =MID(Receita_HSPM_Tabela6[[#This Row],[COD_FONT_REC]], 6, 3) -> 501 | Q30: =LEFT(Receita_HSPM_Tabela6[[#This Row],[COD_ORIG_RCTA_F]], 10) -> 1.6.1.1.01 | R30: =LEFT(Receita_HSPM_Tabela6[[#This Row],[COD_ORIG_RCTA_F]], 12) -> 1.6.1.1.01.0 | S30: =LEFT(Receita_HSPM_Tabela6[[#This Row],[COD_FONT_REC]], 2) -> 06
A31: 1.9.0.0.00.0.0.00.00.000.000.00.00.000 | B31: OUTRAS RECEITAS CORRENTES | I31: Sintética | J31: 15482612 | K31: 1465350.49 | L31: 9.46 | M31: 8484210.23 | N31: 54.8 | O31: 15482612 | P31: =MID(Receita_HSPM_Tabela6[[#This Row],[COD_FONT_REC]], 6, 3) ->  | Q31: =LEFT(Receita_HSPM_Tabela6[[#This Row],[COD_ORIG_RCTA_F]], 10) -> 1.9.0.0.00 | R31: =LEFT(Receita_HSPM_Tabela6[[#This Row],[COD_ORIG_RCTA_F]], 12) -> 1.9.0.0.00.0 | S31: =LEFT(Receita_HSPM_Tabela6[[#This Row],[COD_FONT_REC]], 2) -> 
A32: 1.9.1.0.00.0.0.00.00.000.000.00.00.000 | B32: MULTAS ADMINISTRATIVAS, CONTRATUAIS E JUDICIAIS | I32: Sintética | J32: 520512 | K32: 16170.01 | L32: 3.11 | M32: 73438.01 | N32: 14.11 | O32: 520512 | P32: =MID(Receita_HSPM_Tabela6[[#This Row],[COD_FONT_REC]], 6, 3) ->  | Q32: =LEFT(Receita_HSPM_Tabela6[[#This Row],[COD_ORIG_RCTA_F]], 10) -> 1.9.1.0.00 | R32: =LEFT(Receita_HSPM_Tabela6[[#This Row],[COD_ORIG_RCTA_F]], 12) -> 1.9.1.0.00.0 | S32: =LEFT(Receita_HSPM_Tabela6[[#This Row],[COD_FONT_REC]], 2) -> 
A33: 1.9.1.1.00.0.0.00.00.000.000.00.00.000 | B33: MULTAS ADMINISTRATIVAS, CONTRATUAIS E JUDICIAIS | I33: Sintética | J33: 520512 | K33: 16170.01 | L33: 3.11 | M33: 73438.01 | N33: 14.11 | O33: 520512 | P33: =MID(Receita_HSPM_Tabela6[[#This Row],[COD_FONT_REC]], 6, 3) ->  | Q33: =LEFT(Receita_HSPM_Tabela6[[#This Row],[COD_ORIG_RCTA_F]], 10) -> 1.9.1.1.00 | R33: =LEFT(Receita_HSPM_Tabela6[[#This Row],[COD_ORIG_RCTA_F]], 12) -> 1.9.1.1.00.0 | S33: =LEFT(Receita_HSPM_Tabela6[[#This Row],[COD_FONT_REC]], 2) -> 
A34: 1.9.1.1.09.0.0.00.00.000.000.00.00.000 | B34: MULTAS E JUROS PREVISTOS EM CONTRATOS | I34: Sintética | J34: 520512 | K34: 16170.01 | L34: 3.11 | M34: 73438.01 | N34: 14.11 | O34: 520512 | P34: =MID(Receita_HSPM_Tabela6[[#This Row],[COD_FONT_REC]], 6, 3) ->  | Q34: =LEFT(Receita_HSPM_Tabela6[[#This Row],[COD_ORIG_RCTA_F]], 10) -> 1.9.1.1.09 | R34: =LEFT(Receita_HSPM_Tabela6[[#This Row],[COD_ORIG_RCTA_F]], 12) -> 1.9.1.1.09.0 | S34: =LEFT(Receita_HSPM_Tabela6[[#This Row],[COD_FONT_REC]], 2) -> 
A35: 1.9.1.1.09.0.1.00.00.000.000.00.00.000 | B35: MULTAS E JUROS PREVISTOS EM CONTRATOS - PRINCIPAL | I35: Sintética | J35: 520512 | K35: 16170.01 | L35: 3.11 | M35: 73438.01 | N35: 14.11 | O35: 520512 | P35: =MID(Receita_HSPM_Tabela6[[#This Row],[COD_FONT_REC]], 6, 3) ->  | Q35: =LEFT(Receita_HSPM_Tabela6[[#This Row],[COD_ORIG_RCTA_F]], 10) -> 1.9.1.1.09 | R35: =LEFT(Receita_HSPM_Tabela6[[#This Row],[COD_ORIG_RCTA_F]], 12) -> 1.9.1.1.09.0 | S35: =LEFT(Receita_HSPM_Tabela6[[#This Row],[COD_FONT_REC]], 2) -> 
A36: 1.9.1.1.09.0.1.03.00.000.000.00.00.000 | B36: MULTAS E JUROS - CONTRATOS ADMINISTRAÇÃO INDIRETA | I36: Sintética | J36: 520512 | K36: 16170.01 | L36: 3.11 | M36: 73438.01 | N36: 14.11 | O36: 520512 | P36: =MID(Receita_HSPM_Tabela6[[#This Row],[COD_FONT_REC]], 6, 3) ->  | Q36: =LEFT(Receita_HSPM_Tabela6[[#This Row],[COD_ORIG_RCTA_F]], 10) -> 1.9.1.1.09 | R36: =LEFT(Receita_HSPM_Tabela6[[#This Row],[COD_ORIG_RCTA_F]], 12) -> 1.9.1.1.09.0 | S36: =LEFT(Receita_HSPM_Tabela6[[#This Row],[COD_FONT_REC]], 2) -> 
A37: 1.9.1.1.09.0.1.03.00.000.000.11.00.000 | B37: MULTAS E JUROS - CONTRATOS ADMINISTRAÇÃO INDIRETA | I37: Sintética | J37: 520512 | K37: 16170.01 | L37: 3.11 | M37: 73438.01 | N37: 14.11 | O37: 520512 | P37: =MID(Receita_HSPM_Tabela6[[#This Row],[COD_FONT_REC]], 6, 3) ->  | Q37: =LEFT(Receita_HSPM_Tabela6[[#This Row],[COD_ORIG_RCTA_F]], 10) -> 1.9.1.1.09 | R37: =LEFT(Receita_HSPM_Tabela6[[#This Row],[COD_ORIG_RCTA_F]], 12) -> 1.9.1.1.09.0 | S37: =LEFT(Receita_HSPM_Tabela6[[#This Row],[COD_FONT_REC]], 2) -> 
A38: 1.9.1.1.09.0.1.03.00.000.000.11.01.000 | B38: Multas e Juros - Contratos Administração Indireta | C38: 06.1.501.9001 | D38: Outros Recursos não Vinculados | E38: 02 | F38: Hospital do Servidor Público Municipal | I38: Analítica | J38: 520512 | K38: 16170.01 | L38: 3.11 | M38: 73438.01 | N38: 14.11 | O38: 520512 | P38: =MID(Receita_HSPM_Tabela6[[#This Row],[COD_FONT_REC]], 6, 3) -> 501 | Q38: =LEFT(Receita_HSPM_Tabela6[[#This Row],[COD_ORIG_RCTA_F]], 10) -> 1.9.1.1.09 | R38: =LEFT(Receita_HSPM_Tabela6[[#This Row],[COD_ORIG_RCTA_F]], 12) -> 1.9.1.1.09.0 | S38: =LEFT(Receita_HSPM_Tabela6[[#This Row],[COD_FONT_REC]], 2) -> 06
A39: 1.9.2.0.00.0.0.00.00.000.000.00.00.000 | B39: INDENIZAÇÕES, RESTITUIÇÕES E RESSARCIMENTOS | I39: Sintética | J39: 3800 | K39: 0 | L39: 0 | M39: 383.82 | N39: 10.1 | O39: 3800 | P39: =MID(Receita_HSPM_Tabela6[[#This Row],[COD_FONT_REC]], 6, 3) ->  | Q39: =LEFT(Receita_HSPM_Tabela6[[#This Row],[COD_ORIG_RCTA_F]], 10) -> 1.9.2.0.00 | R39: =LEFT(Receita_HSPM_Tabela6[[#This Row],[COD_ORIG_RCTA_F]], 12) -> 1.9.2.0.00.0 | S39: =LEFT(Receita_HSPM_Tabela6[[#This Row],[COD_FONT_REC]], 2) -> 
A40: 1.9.2.2.00.0.0.00.00.000.000.00.00.000 | B40: RESTITUIÇÕES | I40: Sintética | J40: 3800 | K40: 0 | L40: 0 | M40: 383.82 | N40: 10.1 | O40: 3800 | P40: =MID(Receita_HSPM_Tabela6[[#This Row],[COD_FONT_REC]], 6, 3) ->  | Q40: =LEFT(Receita_HSPM_Tabela6[[#This Row],[COD_ORIG_RCTA_F]], 10) -> 1.9.2.2.00 | R40: =LEFT(Receita_HSPM_Tabela6[[#This Row],[COD_ORIG_RCTA_F]], 12) -> 1.9.2.2.00.0 | S40: =LEFT(Receita_HSPM_Tabela6[[#This Row],[COD_FONT_REC]], 2) -> 
A41: 1.9.2.2.06.0.0.00.00.000.000.00.00.000 | B41: RESTITUIÇÃO DE DESPESAS DE EXERCÍCIOS ANTERIORES | I41: Sintética | J41: 2600 | K41: 0 | L41: 0 | M41: 383.82 | N41: 14.76 | O41: 2600 | P41: =MID(Receita_HSPM_Tabela6[[#This Row],[COD_FONT_REC]], 6, 3) ->  | Q41: =LEFT(Receita_HSPM_Tabela6[[#This Row],[COD_ORIG_RCTA_F]], 10) -> 1.9.2.2.06 | R41: =LEFT(Receita_HSPM_Tabela6[[#This Row],[COD_ORIG_RCTA_F]], 12) -> 1.9.2.2.06.0 | S41: =LEFT(Receita_HSPM_Tabela6[[#This Row],[COD_FONT_REC]], 2) -> 
A42: 1.9.2.2.06.1.0.00.00.000.000.00.00.000 | B42: RESTITUIÇÃO DE DESPESAS DE EXERCÍCIOS ANTERIORES | I42: Sintética | J42: 2600 | K42: 0 | L42: 0 | M42: 383.82 | N42: 14.76 | O42: 2600 | P42: =MID(Receita_HSPM_Tabela6[[#This Row],[COD_FONT_REC]], 6, 3) ->  | Q42: =LEFT(Receita_HSPM_Tabela6[[#This Row],[COD_ORIG_RCTA_F]], 10) -> 1.9.2.2.06 | R42: =LEFT(Receita_HSPM_Tabela6[[#This Row],[COD_ORIG_RCTA_F]], 12) -> 1.9.2.2.06.1 | S42: =LEFT(Receita_HSPM_Tabela6[[#This Row],[COD_FONT_REC]], 2) -> 
A43: 1.9.2.2.06.1.1.00.00.000.000.00.00.000 | B43: RESTITUIÇÃO DE DESPESAS DE EXERCÍCIOS ANTERIORES - PRINCIPAL | I43: Sintética | J43: 2600 | K43: 0 | L43: 0 | M43: 383.82 | N43: 14.76 | O43: 2600 | P43: =MID(Receita_HSPM_Tabela6[[#This Row],[COD_FONT_REC]], 6, 3) ->  | Q43: =LEFT(Receita_HSPM_Tabela6[[#This Row],[COD_ORIG_RCTA_F]], 10) -> 1.9.2.2.06 | R43: =LEFT(Receita_HSPM_Tabela6[[#This Row],[COD_ORIG_RCTA_F]], 12) -> 1.9.2.2.06.1 | S43: =LEFT(Receita_HSPM_Tabela6[[#This Row],[COD_FONT_REC]], 2) -> 
A44: 1.9.2.2.06.1.1.05.00.000.000.00.00.000 | B44: RESTITUIÇÃO DESP EXERC ANTERIORES - SALDO NÃO UTILIZADO ADIANTAMENTO | I44: Sintética | J44: 2600 | K44: 0 | L44: 0 | M44: 383.82 | N44: 14.76 | O44: 2600 | P44: =MID(Receita_HSPM_Tabela6[[#This Row],[COD_FONT_REC]], 6, 3) ->  | Q44: =LEFT(Receita_HSPM_Tabela6[[#This Row],[COD_ORIG_RCTA_F]], 10) -> 1.9.2.2.06 | R44: =LEFT(Receita_HSPM_Tabela6[[#This Row],[COD_ORIG_RCTA_F]], 12) -> 1.9.2.2.06.1 | S44: =LEFT(Receita_HSPM_Tabela6[[#This Row],[COD_FONT_REC]], 2) -> 
A45: 1.9.2.2.06.1.1.05.00.000.000.11.00.000 | B45: RESTITUIÇÃO DESP EXERC ANTERIORES - SALDO NÃO UTILIZADO ADIANTAMENTO | I45: Sintética | J45: 2600 | K45: 0 | L45: 0 | M45: 383.82 | N45: 14.76 | O45: 2600 | P45: =MID(Receita_HSPM_Tabela6[[#This Row],[COD_FONT_REC]], 6, 3) ->  | Q45: =LEFT(Receita_HSPM_Tabela6[[#This Row],[COD_ORIG_RCTA_F]], 10) -> 1.9.2.2.06 | R45: =LEFT(Receita_HSPM_Tabela6[[#This Row],[COD_ORIG_RCTA_F]], 12) -> 1.9.2.2.06.1 | S45: =LEFT(Receita_HSPM_Tabela6[[#This Row],[COD_FONT_REC]], 2) -> 
A46: 1.9.2.2.06.1.1.05.00.000.000.11.01.000 | B46: Restituição Desp Exerc Anteriores - Saldo Não Utilizado Adiantamento | C46: 06.1.501.9001 | D46: Outros Recursos não Vinculados | E46: 02 | F46: Hospital do Servidor Público Municipal | I46: Analítica | J46: 2600 | K46: 0 | L46: 0 | M46: 383.82 | N46: 14.76 | O46: 2600 | P46: =MID(Receita_HSPM_Tabela6[[#This Row],[COD_FONT_REC]], 6, 3) -> 501 | Q46: =LEFT(Receita_HSPM_Tabela6[[#This Row],[COD_ORIG_RCTA_F]], 10) -> 1.9.2.2.06 | R46: =LEFT(Receita_HSPM_Tabela6[[#This Row],[COD_ORIG_RCTA_F]], 12) -> 1.9.2.2.06.1 | S46: =LEFT(Receita_HSPM_Tabela6[[#This Row],[COD_FONT_REC]], 2) -> 06
A47: 1.9.2.2.99.0.0.00.00.000.000.00.00.000 | B47: OUTRAS RESTITUIÇÕES | I47: Sintética | J47: 1200 | K47: 0 | L47: 0 | M47: 0 | N47: 0 | O47: 1200 | P47: =MID(Receita_HSPM_Tabela6[[#This Row],[COD_FONT_REC]], 6, 3) ->  | Q47: =LEFT(Receita_HSPM_Tabela6[[#This Row],[COD_ORIG_RCTA_F]], 10) -> 1.9.2.2.99 | R47: =LEFT(Receita_HSPM_Tabela6[[#This Row],[COD_ORIG_RCTA_F]], 12) -> 1.9.2.2.99.0 | S47: =LEFT(Receita_HSPM_Tabela6[[#This Row],[COD_FONT_REC]], 2) -> 
A48: 1.9.2.2.99.0.1.00.00.000.000.00.00.000 | B48: OUTRAS RESTITUIÇÕES - PRINCIPAL | I48: Sintética | J48: 1200 | K48: 0 | L48: 0 | M48: 0 | N48: 0 | O48: 1200 | P48: =MID(Receita_HSPM_Tabela6[[#This Row],[COD_FONT_REC]], 6, 3) ->  | Q48: =LEFT(Receita_HSPM_Tabela6[[#This Row],[COD_ORIG_RCTA_F]], 10) -> 1.9.2.2.99 | R48: =LEFT(Receita_HSPM_Tabela6[[#This Row],[COD_ORIG_RCTA_F]], 12) -> 1.9.2.2.99.0 | S48: =LEFT(Receita_HSPM_Tabela6[[#This Row],[COD_FONT_REC]], 2) -> 
A49: 1.9.2.2.99.0.1.12.00.000.000.00.00.000 | B49: RESTITUIÇÕES DIVERSAS | I49: Sintética | J49: 1200 | K49: 0 | L49: 0 | M49: 0 | N49: 0 | O49: 1200 | P49: =MID(Receita_HSPM_Tabela6[[#This Row],[COD_FONT_REC]], 6, 3) ->  | Q49: =LEFT(Receita_HSPM_Tabela6[[#This Row],[COD_ORIG_RCTA_F]], 10) -> 1.9.2.2.99 | R49: =LEFT(Receita_HSPM_Tabela6[[#This Row],[COD_ORIG_RCTA_F]], 12) -> 1.9.2.2.99.0 | S49: =LEFT(Receita_HSPM_Tabela6[[#This Row],[COD_FONT_REC]], 2) -> 
A50: 1.9.2.2.99.0.1.12.00.000.000.11.00.000 | B50: RESTITUIÇÕES DIVERSAS | I50: Sintética | J50: 1200 | K50: 0 | L50: 0 | M50: 0 | N50: 0 | O50: 1200 | P50: =MID(Receita_HSPM_Tabela6[[#This Row],[COD_FONT_REC]], 6, 3) ->  | Q50: =LEFT(Receita_HSPM_Tabela6[[#This Row],[COD_ORIG_RCTA_F]], 10) -> 1.9.2.2.99 | R50: =LEFT(Receita_HSPM_Tabela6[[#This Row],[COD_ORIG_RCTA_F]], 12) -> 1.9.2.2.99.0 | S50: =LEFT(Receita_HSPM_Tabela6[[#This Row],[COD_FONT_REC]], 2) -> 
A51: 1.9.2.2.99.0.1.12.00.000.000.11.01.000 | B51: Restituições Diversas | C51: 06.1.501.9001 | D51: Outros Recursos não Vinculados | E51: 02 | F51: Hospital do Servidor Público Municipal | I51: Analítica | J51: 1200 | K51: 0 | L51: 0 | M51: 0 | N51: 0 | O51: 1200 | P51: =MID(Receita_HSPM_Tabela6[[#This Row],[COD_FONT_REC]], 6, 3) -> 501 | Q51: =LEFT(Receita_HSPM_Tabela6[[#This Row],[COD_ORIG_RCTA_F]], 10) -> 1.9.2.2.99 | R51: =LEFT(Receita_HSPM_Tabela6[[#This Row],[COD_ORIG_RCTA_F]], 12) -> 1.9.2.2.99.0 | S51: =LEFT(Receita_HSPM_Tabela6[[#This Row],[COD_FONT_REC]], 2) -> 06
A52: 1.9.9.0.00.0.0.00.00.000.000.00.00.000 | B52: DEMAIS RECEITAS CORRENTES | I52: Sintética | J52: 14958300 | K52: 1449180.48 | L52: 9.69 | M52: 8410388.4 | N52: 56.23 | O52: 14958300 | P52: =MID(Receita_HSPM_Tabela6[[#This Row],[COD_FONT_REC]], 6, 3) ->  | Q52: =LEFT(Receita_HSPM_Tabela6[[#This Row],[COD_ORIG_RCTA_F]], 10) -> 1.9.9.0.00 | R52: =LEFT(Receita_HSPM_Tabela6[[#This Row],[COD_ORIG_RCTA_F]], 12) -> 1.9.9.0.00.0 | S52: =LEFT(Receita_HSPM_Tabela6[[#This Row],[COD_FONT_REC]], 2) -> 
A53: 1.9.9.9.00.0.0.00.00.000.000.00.00.000 | B53: OUTRAS RECEITAS CORRENTES | I53: Sintética | J53: 14958300 | K53: 1449180.48 | L53: 9.69 | M53: 8410388.4 | N53: 56.23 | O53: 14958300 | P53: =MID(Receita_HSPM_Tabela6[[#This Row],[COD_FONT_REC]], 6, 3) ->  | Q53: =LEFT(Receita_HSPM_Tabela6[[#This Row],[COD_ORIG_RCTA_F]], 10) -> 1.9.9.9.00 | R53: =LEFT(Receita_HSPM_Tabela6[[#This Row],[COD_ORIG_RCTA_F]], 12) -> 1.9.9.9.00.0 | S53: =LEFT(Receita_HSPM_Tabela6[[#This Row],[COD_FONT_REC]], 2) -> 
A54: 1.9.9.9.99.0.0.00.00.000.000.00.00.000 | B54: OUTRAS RECEITAS | I54: Sintética | J54: 14958300 | K54: 1449180.48 | L54: 9.69 | M54: 8410388.4 | N54: 56.23 | O54: 14958300 | P54: =MID(Receita_HSPM_Tabela6[[#This Row],[COD_FONT_REC]], 6, 3) ->  | Q54: =LEFT(Receita_HSPM_Tabela6[[#This Row],[COD_ORIG_RCTA_F]], 10) -> 1.9.9.9.99 | R54: =LEFT(Receita_HSPM_Tabela6[[#This Row],[COD_ORIG_RCTA_F]], 12) -> 1.9.9.9.99.0 | S54: =LEFT(Receita_HSPM_Tabela6[[#This Row],[COD_FONT_REC]], 2) -> 
A55: 1.9.9.9.99.2.0.00.00.000.000.00.00.000 | B55: OUTRAS RECEITAS - PRIMÁRIAS | I55: Sintética | J55: 14958300 | K55: 1449180.48 | L55: 9.69 | M55: 8410388.4 | N55: 56.23 | O55: 14958300 | P55: =MID(Receita_HSPM_Tabela6[[#This Row],[COD_FONT_REC]], 6, 3) ->  | Q55: =LEFT(Receita_HSPM_Tabela6[[#This Row],[COD_ORIG_RCTA_F]], 10) -> 1.9.9.9.99 | R55: =LEFT(Receita_HSPM_Tabela6[[#This Row],[COD_ORIG_RCTA_F]], 12) -> 1.9.9.9.99.2 | S55: =LEFT(Receita_HSPM_Tabela6[[#This Row],[COD_FONT_REC]], 2) -> 
A56: 1.9.9.9.99.2.1.00.00.000.000.00.00.000 | B56: OUTRAS RECEITAS - PRIMÁRIAS - PRINCIPAL | I56: Sintética | J56: 14958300 | K56: 1449180.48 | L56: 9.69 | M56: 8410388.4 | N56: 56.23 | O56: 14958300 | P56: =MID(Receita_HSPM_Tabela6[[#This Row],[COD_FONT_REC]], 6, 3) ->  | Q56: =LEFT(Receita_HSPM_Tabela6[[#This Row],[COD_ORIG_RCTA_F]], 10) -> 1.9.9.9.99 | R56: =LEFT(Receita_HSPM_Tabela6[[#This Row],[COD_ORIG_RCTA_F]], 12) -> 1.9.9.9.99.2 | S56: =LEFT(Receita_HSPM_Tabela6[[#This Row],[COD_FONT_REC]], 2) -> 
A57: 1.9.9.9.99.2.1.12.00.000.000.00.00.000 | B57: OUTRAS RECEITAS | I57: Sintética | J57: 14958300 | K57: 1449180.48 | L57: 9.69 | M57: 8410388.4 | N57: 56.23 | O57: 14958300 | P57: =MID(Receita_HSPM_Tabela6[[#This Row],[COD_FONT_REC]], 6, 3) ->  | Q57: =LEFT(Receita_HSPM_Tabela6[[#This Row],[COD_ORIG_RCTA_F]], 10) -> 1.9.9.9.99 | R57: =LEFT(Receita_HSPM_Tabela6[[#This Row],[COD_ORIG_RCTA_F]], 12) -> 1.9.9.9.99.2 | S57: =LEFT(Receita_HSPM_Tabela6[[#This Row],[COD_FONT_REC]], 2) -> 
A58: 1.9.9.9.99.2.1.12.00.000.000.11.00.000 | B58: OUTRAS RECEITAS | I58: Sintética | J58: 14958300 | K58: 1449180.48 | L58: 9.69 | M58: 8410388.4 | N58: 56.23 | O58: 14958300 | P58: =MID(Receita_HSPM_Tabela6[[#This Row],[COD_FONT_REC]], 6, 3) ->  | Q58: =LEFT(Receita_HSPM_Tabela6[[#This Row],[COD_ORIG_RCTA_F]], 10) -> 1.9.9.9.99 | R58: =LEFT(Receita_HSPM_Tabela6[[#This Row],[COD_ORIG_RCTA_F]], 12) -> 1.9.9.9.99.2 | S58: =LEFT(Receita_HSPM_Tabela6[[#This Row],[COD_FONT_REC]], 2) -> 
A59: 1.9.9.9.99.2.1.12.00.000.000.11.01.000 | B59: Outras Receitas | C59: 06.1.501.9001 | D59: Outros Recursos não Vinculados | E59: 02 | F59: Hospital do Servidor Público Municipal | I59: Analítica | J59: 14958300 | K59: 1449180.48 | L59: 9.69 | M59: 8410388.4 | N59: 56.23 | O59: 14958300 | P59: =MID(Receita_HSPM_Tabela6[[#This Row],[COD_FONT_REC]], 6, 3) -> 501 | Q59: =LEFT(Receita_HSPM_Tabela6[[#This Row],[COD_ORIG_RCTA_F]], 10) -> 1.9.9.9.99 | R59: =LEFT(Receita_HSPM_Tabela6[[#This Row],[COD_ORIG_RCTA_F]], 12) -> 1.9.9.9.99.2 | S59: =LEFT(Receita_HSPM_Tabela6[[#This Row],[COD_FONT_REC]], 2) -> 06
A60: 7.0.0.0.00.0.0.00.00.000.000.00.00.000 | B60: RECEITAS CORRENTES INTRAORÇAMENTÁRIAS | I60: Sintética | J60: 80856 | K60: 6629.65 | L60: 8.2 | M60: 62022.28 | N60: 76.71 | O60: 80856 | P60: =MID(Receita_HSPM_Tabela6[[#This Row],[COD_FONT_REC]], 6, 3) ->  | Q60: =LEFT(Receita_HSPM_Tabela6[[#This Row],[COD_ORIG_RCTA_F]], 10) -> 7.0.0.0.00 | R60: =LEFT(Receita_HSPM_Tabela6[[#This Row],[COD_ORIG_RCTA_F]], 12) -> 7.0.0.0.00.0 | S60: =LEFT(Receita_HSPM_Tabela6[[#This Row],[COD_FONT_REC]], 2) -> 
A61: 7.9.0.0.00.0.0.00.00.000.000.00.00.000 | B61: OUTRAS RECEITAS CORRENTES INTRAORÇAMENTÁRIAS | I61: Sintética | J61: 80856 | K61: 6629.65 | L61: 8.2 | M61: 62022.28 | N61: 76.71 | O61: 80856 | P61: =MID(Receita_HSPM_Tabela6[[#This Row],[COD_FONT_REC]], 6, 3) ->  | Q61: =LEFT(Receita_HSPM_Tabela6[[#This Row],[COD_ORIG_RCTA_F]], 10) -> 7.9.0.0.00 | R61: =LEFT(Receita_HSPM_Tabela6[[#This Row],[COD_ORIG_RCTA_F]], 12) -> 7.9.0.0.00.0 | S61: =LEFT(Receita_HSPM_Tabela6[[#This Row],[COD_FONT_REC]], 2) -> 
A62: 7.9.2.0.00.0.0.00.00.000.000.00.00.000 | B62: INDENIZAÇÕES, RESTITUIÇÕES E RESSARCIMENTOS | I62: Sintética | J62: 80856 | K62: 6629.65 | L62: 8.2 | M62: 62022.28 | N62: 76.71 | O62: 80856 | P62: =MID(Receita_HSPM_Tabela6[[#This Row],[COD_FONT_REC]], 6, 3) ->  | Q62: =LEFT(Receita_HSPM_Tabela6[[#This Row],[COD_ORIG_RCTA_F]], 10) -> 7.9.2.0.00 | R62: =LEFT(Receita_HSPM_Tabela6[[#This Row],[COD_ORIG_RCTA_F]], 12) -> 7.9.2.0.00.0 | S62: =LEFT(Receita_HSPM_Tabela6[[#This Row],[COD_FONT_REC]], 2) -> 
A63: 7.9.2.2.00.0.0.00.00.000.000.00.00.000 | B63: RESTITUIÇÕES | I63: Sintética | J63: 1200 | K63: 0 | L63: 0 | M63: 0 | N63: 0 | O63: 1200 | P63: =MID(Receita_HSPM_Tabela6[[#This Row],[COD_FONT_REC]], 6, 3) ->  | Q63: =LEFT(Receita_HSPM_Tabela6[[#This Row],[COD_ORIG_RCTA_F]], 10) -> 7.9.2.2.00 | R63: =LEFT(Receita_HSPM_Tabela6[[#This Row],[COD_ORIG_RCTA_F]], 12) -> 7.9.2.2.00.0 | S63: =LEFT(Receita_HSPM_Tabela6[[#This Row],[COD_FONT_REC]], 2) -> 
A64: 7.9.2.2.99.0.0.00.00.000.000.00.00.000 | B64: OUTRAS RESTITUIÇÕES | I64: Sintética | J64: 1200 | K64: 0 | L64: 0 | M64: 0 | N64: 0 | O64: 1200 | P64: =MID(Receita_HSPM_Tabela6[[#This Row],[COD_FONT_REC]], 6, 3) ->  | Q64: =LEFT(Receita_HSPM_Tabela6[[#This Row],[COD_ORIG_RCTA_F]], 10) -> 7.9.2.2.99 | R64: =LEFT(Receita_HSPM_Tabela6[[#This Row],[COD_ORIG_RCTA_F]], 12) -> 7.9.2.2.99.0 | S64: =LEFT(Receita_HSPM_Tabela6[[#This Row],[COD_FONT_REC]], 2) -> 
A65: 7.9.2.2.99.0.1.00.00.000.000.00.00.000 | B65: OUTRAS RESTITUIÇÕES - PRINCIPAL | I65: Sintética | J65: 1200 | K65: 0 | L65: 0 | M65: 0 | N65: 0 | O65: 1200 | P65: =MID(Receita_HSPM_Tabela6[[#This Row],[COD_FONT_REC]], 6, 3) ->  | Q65: =LEFT(Receita_HSPM_Tabela6[[#This Row],[COD_ORIG_RCTA_F]], 10) -> 7.9.2.2.99 | R65: =LEFT(Receita_HSPM_Tabela6[[#This Row],[COD_ORIG_RCTA_F]], 12) -> 7.9.2.2.99.0 | S65: =LEFT(Receita_HSPM_Tabela6[[#This Row],[COD_FONT_REC]], 2) -> 
A66: 7.9.2.2.99.0.1.01.00.000.000.00.00.000 | B66: RESTITUIÇÕES INTRAORÇAMENTÁRIAS | I66: Sintética | J66: 1200 | K66: 0 | L66: 0 | M66: 0 | N66: 0 | O66: 1200 | P66: =MID(Receita_HSPM_Tabela6[[#This Row],[COD_FONT_REC]], 6, 3) ->  | Q66: =LEFT(Receita_HSPM_Tabela6[[#This Row],[COD_ORIG_RCTA_F]], 10) -> 7.9.2.2.99 | R66: =LEFT(Receita_HSPM_Tabela6[[#This Row],[COD_ORIG_RCTA_F]], 12) -> 7.9.2.2.99.0 | S66: =LEFT(Receita_HSPM_Tabela6[[#This Row],[COD_FONT_REC]], 2) -> 
A67: 7.9.2.2.99.0.1.01.01.000.000.00.00.000 | B67: RESTITUIÇÕES DIVERSAS - INTRA-ORÇAMENTÁRIA | I67: Sintética | J67: 1200 | K67: 0 | L67: 0 | M67: 0 | N67: 0 | O67: 1200 | P67: =MID(Receita_HSPM_Tabela6[[#This Row],[COD_FONT_REC]], 6, 3) ->  | Q67: =LEFT(Receita_HSPM_Tabela6[[#This Row],[COD_ORIG_RCTA_F]], 10) -> 7.9.2.2.99 | R67: =LEFT(Receita_HSPM_Tabela6[[#This Row],[COD_ORIG_RCTA_F]], 12) -> 7.9.2.2.99.0 | S67: =LEFT(Receita_HSPM_Tabela6[[#This Row],[COD_FONT_REC]], 2) -> 
A68: 7.9.2.2.99.0.1.01.01.000.000.11.00.000 | B68: RESTITUIÇÕES DIVERSAS - INTRA-ORÇAMENTÁRIA | I68: Sintética | J68: 1200 | K68: 0 | L68: 0 | M68: 0 | N68: 0 | O68: 1200 | P68: =MID(Receita_HSPM_Tabela6[[#This Row],[COD_FONT_REC]], 6, 3) ->  | Q68: =LEFT(Receita_HSPM_Tabela6[[#This Row],[COD_ORIG_RCTA_F]], 10) -> 7.9.2.2.99 | R68: =LEFT(Receita_HSPM_Tabela6[[#This Row],[COD_ORIG_RCTA_F]], 12) -> 7.9.2.2.99.0 | S68: =LEFT(Receita_HSPM_Tabela6[[#This Row],[COD_FONT_REC]], 2) -> 
A69: 7.9.2.2.99.0.1.01.01.000.000.11.01.000 | B69: Restituições Diversas - Intra-Orçamentária | C69: 06.1.501.9001 | D69: Outros Recursos não Vinculados | E69: 02 | F69: Hospital do Servidor Público Municipal | I69: Analítica | J69: 1200 | K69: 0 | L69: 0 | M69: 0 | N69: 0 | O69: 1200 | P69: =MID(Receita_HSPM_Tabela6[[#This Row],[COD_FONT_REC]], 6, 3) -> 501 | Q69: =LEFT(Receita_HSPM_Tabela6[[#This Row],[COD_ORIG_RCTA_F]], 10) -> 7.9.2.2.99 | R69: =LEFT(Receita_HSPM_Tabela6[[#This Row],[COD_ORIG_RCTA_F]], 12) -> 7.9.2.2.99.0 | S69: =LEFT(Receita_HSPM_Tabela6[[#This Row],[COD_FONT_REC]], 2) -> 06
A70: 7.9.2.3.00.0.0.00.00.000.000.00.00.000 | B70: RESSARCIMENTOS | I70: Sintética | J70: 79656 | K70: 6629.65 | L70: 8.32 | M70: 62022.28 | N70: 77.86 | O70: 79656 | P70: =MID(Receita_HSPM_Tabela6[[#This Row],[COD_FONT_REC]], 6, 3) ->  | Q70: =LEFT(Receita_HSPM_Tabela6[[#This Row],[COD_ORIG_RCTA_F]], 10) -> 7.9.2.3.00 | R70: =LEFT(Receita_HSPM_Tabela6[[#This Row],[COD_ORIG_RCTA_F]], 12) -> 7.9.2.3.00.0 | S70: =LEFT(Receita_HSPM_Tabela6[[#This Row],[COD_FONT_REC]], 2) -> 
A71: 7.9.2.3.02.0.0.00.00.000.000.00.00.000 | B71: RESSARCIMENTO DE CUSTOS | I71: Sintética | J71: 79656 | K71: 6629.65 | L71: 8.32 | M71: 62022.28 | N71: 77.86 | O71: 79656 | P71: =MID(Receita_HSPM_Tabela6[[#This Row],[COD_FONT_REC]], 6, 3) ->  | Q71: =LEFT(Receita_HSPM_Tabela6[[#This Row],[COD_ORIG_RCTA_F]], 10) -> 7.9.2.3.02 | R71: =LEFT(Receita_HSPM_Tabela6[[#This Row],[COD_ORIG_RCTA_F]], 12) -> 7.9.2.3.02.0 | S71: =LEFT(Receita_HSPM_Tabela6[[#This Row],[COD_FONT_REC]], 2) -> 
A72: 7.9.2.3.02.0.1.00.00.000.000.00.00.000 | B72: RESSARCIMENTO DE CUSTOS - PRINCIPAL | I72: Sintética | J72: 79656 | K72: 6629.65 | L72: 8.32 | M72: 62022.28 | N72: 77.86 | O72: 79656 | P72: =MID(Receita_HSPM_Tabela6[[#This Row],[COD_FONT_REC]], 6, 3) ->  | Q72: =LEFT(Receita_HSPM_Tabela6[[#This Row],[COD_ORIG_RCTA_F]], 10) -> 7.9.2.3.02 | R72: =LEFT(Receita_HSPM_Tabela6[[#This Row],[COD_ORIG_RCTA_F]], 12) -> 7.9.2.3.02.0 | S72: =LEFT(Receita_HSPM_Tabela6[[#This Row],[COD_FONT_REC]], 2) -> 
A73: 7.9.2.3.02.0.1.06.00.000.000.00.00.000 | B73: RESSARCIMENTO DE DESPESA DE PESSOAL CEDIDO - HSPM | I73: Sintética | J73: 79656 | K73: 6629.65 | L73: 8.32 | M73: 62022.28 | N73: 77.86 | O73: 79656 | P73: =MID(Receita_HSPM_Tabela6[[#This Row],[COD_FONT_REC]], 6, 3) ->  | Q73: =LEFT(Receita_HSPM_Tabela6[[#This Row],[COD_ORIG_RCTA_F]], 10) -> 7.9.2.3.02 | R73: =LEFT(Receita_HSPM_Tabela6[[#This Row],[COD_ORIG_RCTA_F]], 12) -> 7.9.2.3.02.0 | S73: =LEFT(Receita_HSPM_Tabela6[[#This Row],[COD_FONT_REC]], 2) -> 
A74: 7.9.2.3.02.0.1.06.00.000.000.11.00.000 | B74: RESSARCIMENTO DE DESPESA DE PESSOAL CEDIDO - HSPM | I74: Sintética | J74: 79656 | K74: 6629.65 | L74: 8.32 | M74: 62022.28 | N74: 77.86 | O74: 79656 | P74: =MID(Receita_HSPM_Tabela6[[#This Row],[COD_FONT_REC]], 6, 3) ->  | Q74: =LEFT(Receita_HSPM_Tabela6[[#This Row],[COD_ORIG_RCTA_F]], 10) -> 7.9.2.3.02 | R74: =LEFT(Receita_HSPM_Tabela6[[#This Row],[COD_ORIG_RCTA_F]], 12) -> 7.9.2.3.02.0 | S74: =LEFT(Receita_HSPM_Tabela6[[#This Row],[COD_FONT_REC]], 2) -> 
A75: 7.9.2.3.02.0.1.06.00.000.000.11.01.000 | B75: Ressarcimento de despesa de pessoal cedido - HSPM | C75: 00.1.500.9001 | D75: Recursos não vinculados de Impostos | I75: Analítica | J75: 79656 | K75: 6629.65 | L75: 8.32 | M75: 62022.28 | N75: 77.86 | O75: 79656 | P75: =MID(Receita_HSPM_Tabela6[[#This Row],[COD_FONT_REC]], 6, 3) -> 500 | Q75: =LEFT(Receita_HSPM_Tabela6[[#This Row],[COD_ORIG_RCTA_F]], 10) -> 7.9.2.3.02 | R75: =LEFT(Receita_HSPM_Tabela6[[#This Row],[COD_ORIG_RCTA_F]], 12) -> 7.9.2.3.02.0 | S75: =LEFT(Receita_HSPM_Tabela6[[#This Row],[COD_FONT_REC]], 2) -> 00

Sheet Receita_Consolidada
E2: RECEITAS REALIZADAS
A3: COD_ORIG_RCTA | B3: RECEITAS RESULTANTES DE IMPOSTOS E TRANSFERÊNCIAS CONSTITUCIONAIS E LEGAIS | C3: PREVISÃO INICIAL | D3: PREVISÃO ATUALIZADA (a) | E3: Até o Bimestre (b) | F3: % (b/a) x 100
B4: RECEITA DE IMPOSTOS (I) | C4: =C5+C12+C19+C26 -> 65,077,314,081 | D4: =D5+D12+D19+D26 -> 65,077,314,081 | E4: =E5+E12+E19+E26 -> 23,152,788,246 | F4: =IFERROR(E4/D4*100,0) -> 35.58
B5: Receita Resultante do Imposto Predial e Territorial Urbano - IPTU | C5: =C6+C8 -> 17,596,243,214 | D5: =D6+D8 -> 17,596,243,214 | E5: =E6+E8 -> 7,638,126,745 | F5: =IFERROR(E5/D5*100,0) -> 43.41
B6: IPTU | C6: =SUM(C7) -> 15,697,308,008 | D6: =SUM(D7) -> 15,697,308,008 | E6: =SUM(E7) -> 7,047,992,445 | F6: 44.90
A7: 1.1.1.2.50.0.1.00.00.000.000.00.00.000 | B7: =IFERROR(VLOOKUP(A7,BD_Receita_PMSP_2BIM!$A:$S,2,0),0) -> IMPOSTO SOBRE A PROPRIEDADE PREDIAL E TERRITORIAL URBANA - PRINCIPAL | C7: =IFERROR(VLOOKUP($A7,BD_Receita_PMSP_2BIM!$A:$S,15,0),0) -> 15,697,308,008 | D7: =IFERROR(VLOOKUP($A7,BD_Receita_PMSP_2BIM!$A:$S,10,0),0) -> 15,697,308,008 | E7: =IFERROR(VLOOKUP($A7,BD_Receita_PMSP_2BIM!$A:$S,13,0),0) -> 7,047,992,445 | F7: 44.90
B8: Multas, Juros de Mora, Divida Ativa e Outros Encargos do IPTU | C8: =SUM(C9:C11) -> 1,898,935,206 | D8: =SUM(D9:D11) -> 1,898,935,206 | E8: =SUM(E9:E11) -> 590,134,300 | F8: 31.08
A9: 1.1.1.2.50.0.2.00.00.000.000.00.00.000 | B9: =IFERROR(VLOOKUP(A9,BD_Receita_PMSP_2BIM!$A:$S,2,0),0) -> IMPOSTO SOBRE A PROPRIEDADE PREDIAL E TERRITORIAL URBANA - MULTAS E JU | C9: =IFERROR(VLOOKUP($A9,BD_Receita_PMSP_2BIM!$A:$S,15,0),0) -> 124,573,261 | D9: =IFERROR(VLOOKUP($A9,BD_Receita_PMSP_2BIM!$A:$S,10,0),0) -> 124,573,261 | E9: =IFERROR(VLOOKUP($A9,BD_Receita_PMSP_2BIM!$A:$S,13,0),0) -> 42,086,664 | F9: 33.78
A10: 1.1.1.2.50.0.3.00.00.000.000.00.00.000 | B10: =IFERROR(VLOOKUP(A10,BD_Receita_PMSP_2BIM!$A:$S,2,0),0) -> IMPOSTO SOBRE A PROPRIEDADE PREDIAL E TERRITORIAL URBANA - DÍVIDA ATIV | C10: =IFERROR(VLOOKUP($A10,BD_Receita_PMSP_2BIM!$A:$S,15,0),0) -> 1,307,317,200 | D10: =IFERROR(VLOOKUP($A10,BD_Receita_PMSP_2BIM!$A:$S,10,0),0) -> 1,307,317,200 | E10: =IFERROR(VLOOKUP($A10,BD_Receita_PMSP_2BIM!$A:$S,13,0),0) -> 436,306,041 | F10: 33.37
A11: 1.1.1.2.50.0.4.00.00.000.000.00.00.000 | B11: =IFERROR(VLOOKUP(A11,BD_Receita_PMSP_2BIM!$A:$S,2,0),0) -> IMPOSTO SOBRE A PROPRIEDADE PREDIAL E TERRITORIAL URBANA - DÍVIDA ATIV | C11: =IFERROR(VLOOKUP($A11,BD_Receita_PMSP_2BIM!$A:$S,15,0),0) -> 467,044,745 | D11: =IFERROR(VLOOKUP($A11,BD_Receita_PMSP_2BIM!$A:$S,10,0),0) -> 467,044,745 | E11: =IFERROR(VLOOKUP($A11,BD_Receita_PMSP_2BIM!$A:$S,13,0),0) -> 111,741,595 | F11: 23.93
B12: Receita Resultante do Imposto sobre Serviços de Qualquer Natureza - ITBI | C12: =C13+C15 -> 4,399,222,246 | D12: =D13+D15 -> 4,399,222,246 | E12: =E13+E15 -> 1,319,244,262 | F12: 29.99
B13: ITBI | C13: =SUM(C14:C14) -> 4,334,222,428 | D13: =SUM(D14:D14) -> 4,334,222,428 | E13: =SUM(E14:E14) -> 1,284,574,914 | F13: 29.64
A14: 1.1.1.2.53.0.1.00.00.000.000.00.00.000 | B14: =IFERROR(VLOOKUP(A14,BD_Receita_PMSP_2BIM!$A:$S,2,0),0) -> IMPOSTO SOBRE TRANSMISSÃO INTER VIVOS DE BENS IMÓVEIS E DE DIREITOS RE | C14: =IFERROR(VLOOKUP($A14,BD_Receita_PMSP_2BIM!$A:$S,15,0),0) -> 4,334,222,428 | D14: =IFERROR(VLOOKUP($A14,BD_Receita_PMSP_2BIM!$A:$S,10,0),0) -> 4,334,222,428 | E14: =IFERROR(VLOOKUP($A14,BD_Receita_PMSP_2BIM!$A:$S,13,0),0) -> 1,284,574,914 | F14: 29.64
B15: Multas, Juros de Mora, Dívida Ativa e Outros Encargos do ITBI | C15: =SUM(C16:C18) -> 64,999,818 | D15: =SUM(D16:D18) -> 64,999,818 | E15: =SUM(E16:E18) -> 34,669,348 | F15: 53.34
A16: 1.1.1.2.53.0.2.00.00.000.000.00.00.000 | B16: =IFERROR(VLOOKUP(A16,BD_Receita_PMSP_2BIM!$A:$S,2,0),0) -> IMPOSTO SOBRE TRANSMISSÃO INTER VIVOS DE BENS IMÓVEIS E DE DIREITOS RE | C16: =IFERROR(VLOOKUP($A16,BD_Receita_PMSP_2BIM!$A:$S,15,0),0) -> 35,682,966 | D16: =IFERROR(VLOOKUP($A16,BD_Receita_PMSP_2BIM!$A:$S,10,0),0) -> 35,682,966 | E16: =IFERROR(VLOOKUP($A16,BD_Receita_PMSP_2BIM!$A:$S,13,0),0) -> 10,464,422 | F16: 29.33
A17: 1.1.1.2.53.0.3.00.00.000.000.00.00.000 | B17: =IFERROR(VLOOKUP(A17,BD_Receita_PMSP_2BIM!$A:$S,2,0),0) -> IMPOSTO SOBRE TRANSMISSÃO INTER VIVOS DE BENS IMÓVEIS E DE DIREITOS RE | C17: =IFERROR(VLOOKUP($A17,BD_Receita_PMSP_2BIM!$A:$S,15,0),0) -> 17,740,817 | D17: =IFERROR(VLOOKUP($A17,BD_Receita_PMSP_2BIM!$A:$S,10,0),0) -> 17,740,817 | E17: =IFERROR(VLOOKUP($A17,BD_Receita_PMSP_2BIM!$A:$S,13,0),0) -> 20,089,683 | F17: 113.24
A18: 1.1.1.2.53.0.4.00.00.000.000.00.00.000 | B18: =IFERROR(VLOOKUP(A18,BD_Receita_PMSP_2BIM!$A:$S,2,0),0) -> IMPOSTO SOBRE TRANSMISSÃO INTER VIVOS DE BENS IMÓVEIS E DE DIREITOS RE | C18: =IFERROR(VLOOKUP($A18,BD_Receita_PMSP_2BIM!$A:$S,15,0),0) -> 11,576,035 | D18: =IFERROR(VLOOKUP($A18,BD_Receita_PMSP_2BIM!$A:$S,10,0),0) -> 11,576,035 | E18: =IFERROR(VLOOKUP($A18,BD_Receita_PMSP_2BIM!$A:$S,13,0),0) -> 4,115,243 | F18: 35.55
B19: Receita Resultante do Imposto sobre Serviços de Qualquer Natureza - ISS | C19: =C20+C22 -> 37,559,875,557 | D19: =D20+D22 -> 37,559,875,557 | E19: =E20+E22 -> 12,727,874,256 | F19: 33.89
B20: ISS | C20: =SUM(C21:C21) -> 36,466,235,277 | D20: =SUM(D21:D21) -> 36,466,235,277 | E20: =SUM(E21:E21) -> 12,185,057,708 | F20: 33.41
A21: 1.1.1.4.51.1.1.00.00.000.000.00.00.000 | B21: =IFERROR(VLOOKUP(A21,BD_Receita_PMSP_2BIM!$A:$S,2,0),0) -> IMPOSTO SOBRE SERVIÇOS DE QUALQUER NATUREZA - PRINCIPAL | C21: =IFERROR(VLOOKUP($A21,BD_Receita_PMSP_2BIM!$A:$S,15,0),0) -> 36,466,235,277 | D21: =IFERROR(VLOOKUP($A21,BD_Receita_PMSP_2BIM!$A:$S,10,0),0) -> 36,466,235,277 | E21: =IFERROR(VLOOKUP($A21,BD_Receita_PMSP_2BIM!$A:$S,13,0),0) -> 12,185,057,708 | F21: 33.41
B22: Multas, Juros de Mora, Dívida Ativa e Outros Encargos do ISS | C22: =SUM(C23:C25) -> 1,093,640,280 | D22: =SUM(D23:D25) -> 1,093,640,280 | E22: =SUM(E23:E25) -> 542,816,548 | F22: 49.63
A23: 1.1.1.4.51.1.2.00.00.000.000.00.00.000 | B23: =IFERROR(VLOOKUP(A23,BD_Receita_PMSP_2BIM!$A:$S,2,0),0) -> IMPOSTO SOBRE SERVIÇOS DE QUALQUER NATUREZA - MULTAS E JUROS | C23: =IFERROR(VLOOKUP($A23,BD_Receita_PMSP_2BIM!$A:$S,15,0),0) -> 325,813,375 | D23: =IFERROR(VLOOKUP($A23,BD_Receita_PMSP_2BIM!$A:$S,10,0),0) -> 325,813,375 | E23: =IFERROR(VLOOKUP($A23,BD_Receita_PMSP_2BIM!$A:$S,13,0),0) -> 115,517,933 | F23: 35.46
A24: 1.1.1.4.51.1.3.00.00.000.000.00.00.000 | B24: =IFERROR(VLOOKUP(A24,BD_Receita_PMSP_2BIM!$A:$S,2,0),0) -> IMPOSTO SOBRE SERVIÇOS DE QUALQUER NATUREZA - DÍVIDA ATIVA | C24: =IFERROR(VLOOKUP($A24,BD_Receita_PMSP_2BIM!$A:$S,15,0),0) -> 574,044,649 | D24: =IFERROR(VLOOKUP($A24,BD_Receita_PMSP_2BIM!$A:$S,10,0),0) -> 574,044,649 | E24: =IFERROR(VLOOKUP($A24,BD_Receita_PMSP_2BIM!$A:$S,13,0),0) -> 341,369,033 | F24: 59.47
A25: 1.1.1.4.51.1.4.00.00.000.000.00.00.000 | B25: =IFERROR(VLOOKUP(A25,BD_Receita_PMSP_2BIM!$A:$S,2,0),0) -> IMPOSTO SOBRE SERVIÇOS DE QUALQUER NATUREZA - DÍVIDA ATIVA - MULTAS E | C25: =IFERROR(VLOOKUP($A25,BD_Receita_PMSP_2BIM!$A:$S,15,0),0) -> 193,782,256 | D25: =IFERROR(VLOOKUP($A25,BD_Receita_PMSP_2BIM!$A:$S,10,0),0) -> 193,782,256 | E25: =IFERROR(VLOOKUP($A25,BD_Receita_PMSP_2BIM!$A:$S,13,0),0) -> 85,929,583 | F25: 44.34
B26: Receita Resultante do Imposto sobre a Renda e Proventos de Qualquer Natureza Retido na Fonte – IRRF | C26: =SUM(C27:C28) -> 5,521,973,064 | D26: =SUM(D27:D28) -> 5,521,973,064 | E26: =SUM(E27:E28) -> 1,467,542,983 | F26: 26.58
A27: 1.1.1.3.03.0.0.00.00.000.000.00.00.000 | B27: =IFERROR(VLOOKUP(A27,BD_Receita_PMSP_2BIM!$A:$S,2,0),0) -> IMPOSTO SOBRE A RENDA - RETIDO NA FONTE | C27: =IFERROR(VLOOKUP($A27,BD_Receita_PMSP_2BIM!$A:$S,15,0),0) -> 5,521,973,064 | D27: =IFERROR(VLOOKUP($A27,BD_Receita_PMSP_2BIM!$A:$S,10,0),0) -> 5,521,973,064 | E27: =IFERROR(VLOOKUP($A27,BD_Receita_PMSP_2BIM!$A:$S,13,0),0) -> 1,467,542,983 | F27: 26.58
F29: 0
B30: RECEITA DE TRANSFERÊNCIAS CONSTITUCIONAIS E LEGAIS (II) | C30: =SUM(C31,C33,C36,C39,C42,C45) -> 15,436,606,033 | D30: =SUM(D31,D33,D36,D39,D42,D45) -> 15,436,606,033 | E30: =SUM(E31,E33,E36,E39,E42,E45) -> 6,781,956,389 | F30: 43.93
B31: Cota-Parte FPM | C31: =SUM(C32:C32) -> 600,006,885 | D31: =SUM(D32:D32) -> 600,006,885 | E31: =SUM(E32:E32) -> 221,887,116 | F31: 36.98
A32: 1.7.1.1.51.1.1.01.00.000.000.11.01.000 | B32: =IFERROR(VLOOKUP(A32,BD_Receita_PMSP_2BIM!$A:$S,2,0),0) -> Cota-Parte do Fundo de Participação dos Municípios - Cota Mensal | C32: =IFERROR(VLOOKUP($A32,BD_Receita_PMSP_2BIM!$A:$S,15,0),0) -> 600,006,885 | D32: =IFERROR(VLOOKUP($A32,BD_Receita_PMSP_2BIM!$A:$S,10,0),0) -> 600,006,885 | E32: =IFERROR(VLOOKUP($A32,BD_Receita_PMSP_2BIM!$A:$S,13,0),0) -> 221,887,116 | F32: 36.98
B33: Cota-Parte ITR | C33: =C34+C35 -> 19,439,666 | D33: =D34+D35 -> 19,439,666 | E33: =E34+E35 -> 1,785,550 | F33: 9.19
A34: 1.7.1.1.52.0.1.01.00.000.000.11.01.000 | B34: =IFERROR(VLOOKUP(A34,BD_Receita_PMSP_2BIM!$A:$S,2,0),0) -> Cota-Parte do Imposto s/ a Propriedade Territorial Rural | C34: =IFERROR(VLOOKUP($A34,BD_Receita_PMSP_2BIM!$A:$S,15,0),0) -> 19,439,666 | D34: =IFERROR(VLOOKUP($A34,BD_Receita_PMSP_2BIM!$A:$S,10,0),0) -> 19,439,666 | E34: =IFERROR(VLOOKUP($A34,BD_Receita_PMSP_2BIM!$A:$S,13,0),0) -> 1,785,550 | F34: 9.19
B36: Cota-Parte IPVA | C36: =SUM(C37:C38) -> 4,553,894,634 | D36: =SUM(D37:D38) -> 4,553,894,634 | E36: =SUM(E37:E38) -> 3,366,467,456 | F36: 73.93
A37: 1.7.2.1.51.0.1.01.00.000.000.11.01.000 | B37: =IFERROR(VLOOKUP(A37,BD_Receita_PMSP_2BIM!$A:$S,2,0),0) -> Cota-Parte do IPVA | C37: =IFERROR(VLOOKUP($A37,BD_Receita_PMSP_2BIM!$A:$S,15,0),0) -> 4,553,894,634 | D37: =IFERROR(VLOOKUP($A37,BD_Receita_PMSP_2BIM!$A:$S,10,0),0) -> 4,553,894,634 | E37: =IFERROR(VLOOKUP($A37,BD_Receita_PMSP_2BIM!$A:$S,13,0),0) -> 3,368,835,619 | F37: 73.98
A38: 1.7.2.1.51.0.1.01.00.000.000.11.09.001 | B38: =IFERROR(VLOOKUP(A38,BD_Receita_PMSP_2BIM!$A:$S,2,0),0) -> Deduções Cota-Parte do IPVA | C38: =IFERROR(VLOOKUP($A38,BD_Receita_PMSP_2BIM!$A:$S,15,0),0) -> 0 | D38: =IFERROR(VLOOKUP($A38,BD_Receita_PMSP_2BIM!$A:$S,10,0),0) -> 0 | E38: =IFERROR(VLOOKUP($A38,BD_Receita_PMSP_2BIM!$A:$S,13,0),0) -> (2,368,163) | F38: 0
B39: Cota-Parte ICMS | C39: =C40+C41 -> 10,203,805,236 | D39: =D40+D41 -> 10,203,805,236 | E39: =E40+E41 -> 3,169,029,329 | F39: 31.06
A40: 1.7.2.1.50.0.1.01.00.000.000.11.01.000 | B40: =IFERROR(VLOOKUP(A40,BD_Receita_PMSP_2BIM!$A:$S,2,0),0) -> Cota-Parte do ICMS | C40: =IFERROR(VLOOKUP($A40,BD_Receita_PMSP_2BIM!$A:$S,15,0),0) -> 10,203,805,236 | D40: =IFERROR(VLOOKUP($A40,BD_Receita_PMSP_2BIM!$A:$S,10,0),0) -> 10,203,805,236 | E40: =IFERROR(VLOOKUP($A40,BD_Receita_PMSP_2BIM!$A:$S,13,0),0) -> 3,169,029,329 | F40: 31.06
B42: Cota-Parte IPI-Exportação | C42: =C43+C44 -> 59,459,612 | D42: =D43+D44 -> 59,459,612 | E42: 22,786,938 | F42: 38.32
A43: 1.7.2.1.52.0.1.01.00.000.000.11.01.000 | B43: =IFERROR(VLOOKUP(A43,BD_Receita_PMSP_2BIM!$A:$S,2,0),0) -> Cota-Parte do IPI sobre Exportação | C43: =IFERROR(VLOOKUP($A43,BD_Receita_PMSP_2BIM!$A:$S,15,0),0) -> 59,459,612 | D43: =IFERROR(VLOOKUP($A43,BD_Receita_PMSP_2BIM!$A:$S,10,0),0) -> 59,459,612 | E43: =IFERROR(VLOOKUP($A43,BD_Receita_PMSP_2BIM!$A:$S,13,0),0) -> 22,786,938 | F43: 38.32
B45: Outras Transferências ou Compensações Financeiras Provenientes de Impostos e Transferências Constitucionais | C45: =C46+C48 -> 0 | D45: =D46+D48 -> 0 | E45: =E46+E48 -> 0 | F45: 0
B46: Desoneração ICMS (LC 87/96) | C46: =C47 -> 0 | D46: =D47 -> 0 | E46: =E47 -> 0 | F46: 0
A47: 1.7.1.8.06.1.1.01.00.000.000.11.01.000 | B47: =IFERROR(VLOOKUP(A47,BD_Receita_PMSP_2BIM!$A:$S,2,0),0) -> 0 | C47: =IFERROR(VLOOKUP($A47,BD_Receita_PMSP_2BIM!$A:$S,15,0),0) -> 0 | D47: =IFERROR(VLOOKUP($A47,BD_Receita_PMSP_2BIM!$A:$S,10,0),0) -> 0 | E47: =IFERROR(VLOOKUP($A47,BD_Receita_PMSP_2BIM!$A:$S,13,0),0) -> 0 | F47: 0
B48: Outras | C48: =C49 -> 0 | D48: =D49 -> 0 | E48: =E49 -> 0 | F48: =F49 -> 0
A49: 1.7.2.9.53.0.0.00.00.000.000.00.00.000 | B49: =IFERROR(VLOOKUP(A49,BD_Receita_PMSP_2BIM!$A:$S,2,0),0) -> 0 | C49: =IFERROR(VLOOKUP($A49,BD_Receita_PMSP_2BIM!$A:$S,15,0),0) -> 0 | D49: =IFERROR(VLOOKUP($A49,BD_Receita_PMSP_2BIM!$A:$S,10,0),0) -> 0 | E49: =IFERROR(VLOOKUP($A49,BD_Receita_PMSP_2BIM!$A:$S,13,0),0) -> 0 | F49: =IFERROR(E49/D49*100,0) -> 0
B50: TOTAL DAS RECEITAS RESULTANTES DE IMPOSTOS E TRANFERÊNCIAS CONSTITUCIONAIS E LEGAIS - (III) = (I) + (II) | C50: =C4+C30 -> 80,513,920,114 | D50: =D4+D30 -> 80,513,920,114 | E50: =E4+E30 -> 29,934,744,634 | F50: 37.18
E54: RECEITAS REALIZADAS
A55: COD_ORIG_RCTA | B55: RECEITAS ADICIONAIS PARA O FINANCIAMENTO DA SAÚDE NÃO COMPUTADAS NO CÁLCULO DO MÍNIMO | C55: PREVISÃO INICIAL | D55: PREVISÃO ATUALIZADA (a) | E55: Até o Bimestre (b) | F55: % (b/a)x100
B56: RECEITAS DE TRANSFERÊNCIAS PARA A SAÚDE (XXVIII) | C56: =C57+C137+C182 -> 3,412,517,389 | D56: =D57+D137+D182 -> 3,412,665,676 | E56: =E57+E137+E182 -> 1,145,146,293 | F56: =IFERROR(E56/D56*100,0) -> 33.56
A57: Fontes PMSP 02, 21, 22, 24 | B57: Proveniente da União | C57: =SUM(C58:C131) -> 3,393,012,989 | D57: =SUM(D58:D131) -> 3,393,012,989 | E57: =SUM(E58:E131) -> 1,136,190,848 | F57: 33.49
A58: FILTROS: | F58: 0
A59: FONTE DE RECURSO ("AA") | F59: 0
A60: 02 | F60: 0
A61: 21 | F61: 0
A62: 22 | F62: 0
A63: 24 | F63: 0
A64: ÓRGÃO | F64: 0
A65: 84 | F65: 0
A66: =IFERROR( _xlfn._xlws.FILTER( BD_Receita_PMSP_2BIM!$A:$A,( ( ((LEFT(BD_Receita_PMSP_2BIM!$S:$S, LEN($A60)) = $A60)+(LEFT(BD_Receita_PMSP_2BIM!$S:$S, LEN($A61)) = $A61)+ (LEFT(BD_Receita_PMSP_2BIM!$S:$S, LEN($A62)) = $A62)+(LEFT(BD_Receita_PMSP_2BIM!$S:$S, LEN($A63)) = $A63))* (TEXT(BD_Receita_PMSP_2BIM!$E:$E, "00") = TEXT($A$65, "00")) ) )), "(vazio)") -> 1.3.2.1.01.0.1.01.04.004.054.11.01.000 | B66: =IFERROR(VLOOKUP(A66,BD_Receita_PMSP_2BIM!$A:$S,2,0),0) -> PMSP-SMS/CONVÊNIO 779947/2012-SICONV | C66: =IFERROR(VLOOKUP($A66,BD_Receita_PMSP_2BIM!$A:$S,15,0),0) -> 715,200 | D66: =IFERROR(VLOOKUP($A66,BD_Receita_PMSP_2BIM!$A:$S,10,0),0) -> 715,200 | E66: =IFERROR(VLOOKUP($A66,BD_Receita_PMSP_2BIM!$A:$S,13,0),0) -> 143,400 | F66: 20.05
A67: 1.3.2.1.05.0.1.01.03.020.010.11.01.000 | B67: =IFERROR(VLOOKUP(A67,BD_Receita_PMSP_2BIM!$A:$S,2,0),0) -> SMS - FMS/FNS - FMS CUSTEIO SUS | C67: =IFERROR(VLOOKUP($A67,BD_Receita_PMSP_2BIM!$A:$S,15,0),0) -> 79,800,000 | D67: =IFERROR(VLOOKUP($A67,BD_Receita_PMSP_2BIM!$A:$S,10,0),0) -> 79,800,000 | E67: =IFERROR(VLOOKUP($A67,BD_Receita_PMSP_2BIM!$A:$S,13,0),0) -> 28,090,503 | F67: 35.20
A68: 1.3.2.1.05.0.1.01.03.020.011.11.01.000 | B68: =IFERROR(VLOOKUP(A68,BD_Receita_PMSP_2BIM!$A:$S,2,0),0) -> SMS - FMS/FNS - FMS INVEST SUS | C68: =IFERROR(VLOOKUP($A68,BD_Receita_PMSP_2BIM!$A:$S,15,0),0) -> 5,400,000 | D68: =IFERROR(VLOOKUP($A68,BD_Receita_PMSP_2BIM!$A:$S,10,0),0) -> 5,400,000 | E68: =IFERROR(VLOOKUP($A68,BD_Receita_PMSP_2BIM!$A:$S,13,0),0) -> 2,785,030 | F68: 51.57
A69: 1.3.2.1.05.0.1.01.03.020.034.11.01.000 | B69: =IFERROR(VLOOKUP(A69,BD_Receita_PMSP_2BIM!$A:$S,2,0),0) -> Ass fin União destinada complem. pagto pisos salariais prof enfermagem | C69: =IFERROR(VLOOKUP($A69,BD_Receita_PMSP_2BIM!$A:$S,15,0),0) -> 360,000 | D69: =IFERROR(VLOOKUP($A69,BD_Receita_PMSP_2BIM!$A:$S,10,0),0) -> 360,000 | E69: =IFERROR(VLOOKUP($A69,BD_Receita_PMSP_2BIM!$A:$S,13,0),0) -> 197,856 | F69: 54.96
A70: 1.3.2.1.05.0.1.01.03.020.035.11.01.000 | B70: =IFERROR(VLOOKUP(A70,BD_Receita_PMSP_2BIM!$A:$S,2,0),0) -> SMS/FMS/EP TRANSFER ESPECIAL 28180010 | C70: =IFERROR(VLOOKUP($A70,BD_Receita_PMSP_2BIM!$A:$S,15,0),0) -> 36,000 | D70: =IFERROR(VLOOKUP($A70,BD_Receita_PMSP_2BIM!$A:$S,10,0),0) -> 36,000 | E70: =IFERROR(VLOOKUP($A70,BD_Receita_PMSP_2BIM!$A:$S,13,0),0) -> 16,284 | F70: 45.23
A71: 1.3.2.1.05.0.1.01.03.020.036.11.01.000 | B71: =IFERROR(VLOOKUP(A71,BD_Receita_PMSP_2BIM!$A:$S,2,0),0) -> SMS/FMS/EP TRANSFER ESPECIAL 90320007 | C71: =IFERROR(VLOOKUP($A71,BD_Receita_PMSP_2BIM!$A:$S,15,0),0) -> 180,000 | D71: =IFERROR(VLOOKUP($A71,BD_Receita_PMSP_2BIM!$A:$S,10,0),0) -> 180,000 | E71: =IFERROR(VLOOKUP($A71,BD_Receita_PMSP_2BIM!$A:$S,13,0),0) -> 0 | F71: 0
A72: 1.3.2.1.05.0.1.01.03.020.040.11.01.000 | B72: =IFERROR(VLOOKUP(A72,BD_Receita_PMSP_2BIM!$A:$S,2,0),0) -> SMS/FMS/EP TRANSF. ESPECIAL Dep. Federal Alexandre Padilha - 21.510-4 | C72: =IFERROR(VLOOKUP($A72,BD_Receita_PMSP_2BIM!$A:$S,15,0),0) -> 0 | D72: =IFERROR(VLOOKUP($A72,BD_Receita_PMSP_2BIM!$A:$S,10,0),0) -> 0 | E72: =IFERROR(VLOOKUP($A72,BD_Receita_PMSP_2BIM!$A:$S,13,0),0) -> 20,916 | F72: 0
A73: 1.3.2.1.05.0.1.01.03.020.041.11.01.000 | B73: =IFERROR(VLOOKUP(A73,BD_Receita_PMSP_2BIM!$A:$S,2,0),0) -> SMS/FMS/EP TRANSF. ESPECIAL Deputado Federal Rui Falcão | C73: =IFERROR(VLOOKUP($A73,BD_Receita_PMSP_2BIM!$A:$S,15,0),0) -> 0 | D73: =IFERROR(VLOOKUP($A73,BD_Receita_PMSP_2BIM!$A:$S,10,0),0) -> 0 | E73: =IFERROR(VLOOKUP($A73,BD_Receita_PMSP_2BIM!$A:$S,13,0),0) -> 65,311 | F73: 0
A74: 1.3.2.1.05.0.1.01.03.020.042.11.01.000 | B74: =IFERROR(VLOOKUP(A74,BD_Receita_PMSP_2BIM!$A:$S,2,0),0) -> SMS/FMS/SMS/ITMAC/GAB - 21.885-5 | C74: =IFERROR(VLOOKUP($A74,BD_Receita_PMSP_2BIM!$A:$S,15,0),0) -> 0 | D74: =IFERROR(VLOOKUP($A74,BD_Receita_PMSP_2BIM!$A:$S,10,0),0) -> 0 | E74: =IFERROR(VLOOKUP($A74,BD_Receita_PMSP_2BIM!$A:$S,13,0),0) -> 27,854 | F74: 0
A75: 1.3.2.1.05.0.1.01.03.020.044.11.01.000 | B75: =IFERROR(VLOOKUP(A75,BD_Receita_PMSP_2BIM!$A:$S,2,0),0) -> PMSP/SMS/INVEST/24082 - 21.893-6 | C75: =IFERROR(VLOOKUP($A75,BD_Receita_PMSP_2BIM!$A:$S,15,0),0) -> 0 | D75: =IFERROR(VLOOKUP($A75,BD_Receita_PMSP_2BIM!$A:$S,10,0),0) -> 0 | E75: =IFERROR(VLOOKUP($A75,BD_Receita_PMSP_2BIM!$A:$S,13,0),0) -> 3,209 | F75: 0
A76: 1.3.2.1.05.0.1.01.03.020.045.11.01.000 | B76: =IFERROR(VLOOKUP(A76,BD_Receita_PMSP_2BIM!$A:$S,2,0),0) -> PMSP/SMS/ENTID/15680003 - 21.891-X | C76: =IFERROR(VLOOKUP($A76,BD_Receita_PMSP_2BIM!$A:$S,15,0),0) -> 0 | D76: =IFERROR(VLOOKUP($A76,BD_Receita_PMSP_2BIM!$A:$S,10,0),0) -> 0 | E76: =IFERROR(VLOOKUP($A76,BD_Receita_PMSP_2BIM!$A:$S,13,0),0) -> 7,933 | F76: 0
A77: 1.3.2.1.05.0.1.01.03.020.046.11.01.000 | B77: =IFERROR(VLOOKUP(A77,BD_Receita_PMSP_2BIM!$A:$S,2,0),0) -> PMSP/SMS/INVEST/24079 - 21.894-4 | C77: =IFERROR(VLOOKUP($A77,BD_Receita_PMSP_2BIM!$A:$S,15,0),0) -> 0 | D77: =IFERROR(VLOOKUP($A77,BD_Receita_PMSP_2BIM!$A:$S,10,0),0) -> 0 | E77: =IFERROR(VLOOKUP($A77,BD_Receita_PMSP_2BIM!$A:$S,13,0),0) -> 584 | F77: 0
A78: 1.3.2.1.05.0.1.01.03.020.047.11.01.000 | B78: =IFERROR(VLOOKUP(A78,BD_Receita_PMSP_2BIM!$A:$S,2,0),0) -> PMSP/SMS/ENTID/19970003 - 21.892-8 | C78: =IFERROR(VLOOKUP($A78,BD_Receita_PMSP_2BIM!$A:$S,15,0),0) -> 0 | D78: =IFERROR(VLOOKUP($A78,BD_Receita_PMSP_2BIM!$A:$S,10,0),0) -> 0 | E78: =IFERROR(VLOOKUP($A78,BD_Receita_PMSP_2BIM!$A:$S,13,0),0) -> 1,688 | F78: 0
A79: 1.3.2.1.05.0.1.01.03.020.048.11.01.000 | B79: =IFERROR(VLOOKUP(A79,BD_Receita_PMSP_2BIM!$A:$S,2,0),0) -> PMSP-SMS/FMS-ITMAC/GAB - 21.916-9 | C79: =IFERROR(VLOOKUP($A79,BD_Receita_PMSP_2BIM!$A:$S,15,0),0) -> 0 | D79: =IFERROR(VLOOKUP($A79,BD_Receita_PMSP_2BIM!$A:$S,10,0),0) -> 0 | E79: =IFERROR(VLOOKUP($A79,BD_Receita_PMSP_2BIM!$A:$S,13,0),0) -> 16,881 | F79: 0
A80: 1.3.2.1.05.0.1.01.03.020.049.11.01.000 | B80: =IFERROR(VLOOKUP(A80,BD_Receita_PMSP_2BIM!$A:$S,2,0),0) -> PMSP/SMS/INVEST/24087 - 21.889-8 | C80: =IFERROR(VLOOKUP($A80,BD_Receita_PMSP_2BIM!$A:$S,15,0),0) -> 0 | D80: =IFERROR(VLOOKUP($A80,BD_Receita_PMSP_2BIM!$A:$S,10,0),0) -> 0 | E80: =IFERROR(VLOOKUP($A80,BD_Receita_PMSP_2BIM!$A:$S,13,0),0) -> 32,992 | F80: 0
A81: 1.3.2.1.05.0.1.01.03.020.050.11.01.000 | B81: =IFERROR(VLOOKUP(A81,BD_Receita_PMSP_2BIM!$A:$S,2,0),0) -> SMS/FMS/ITMAC/GAB - 21.886-3 | C81: =IFERROR(VLOOKUP($A81,BD_Receita_PMSP_2BIM!$A:$S,15,0),0) -> 0 | D81: =IFERROR(VLOOKUP($A81,BD_Receita_PMSP_2BIM!$A:$S,10,0),0) -> 0 | E81: =IFERROR(VLOOKUP($A81,BD_Receita_PMSP_2BIM!$A:$S,13,0),0) -> 16,133 | F81: 0
A82: 1.3.2.1.05.0.1.01.03.020.051.11.01.000 | B82: =IFERROR(VLOOKUP(A82,BD_Receita_PMSP_2BIM!$A:$S,2,0),0) -> PMSP/SMS/FMS/ITMAC/GAB - 21.887-1 | C82: =IFERROR(VLOOKUP($A82,BD_Receita_PMSP_2BIM!$A:$S,15,0),0) -> 0 | D82: =IFERROR(VLOOKUP($A82,BD_Receita_PMSP_2BIM!$A:$S,10,0),0) -> 0 | E82: =IFERROR(VLOOKUP($A82,BD_Receita_PMSP_2BIM!$A:$S,13,0),0) -> 59,084 | F82: 0
A83: 1.3.2.1.05.0.1.01.03.020.052.11.01.000 | B83: =IFERROR(VLOOKUP(A83,BD_Receita_PMSP_2BIM!$A:$S,2,0),0) -> PMSP/SMS/INVEST/24086 - 21.888-X | C83: =IFERROR(VLOOKUP($A83,BD_Receita_PMSP_2BIM!$A:$S,15,0),0) -> 0 | D83: =IFERROR(VLOOKUP($A83,BD_Receita_PMSP_2BIM!$A:$S,10,0),0) -> 0 | E83: =IFERROR(VLOOKUP($A83,BD_Receita_PMSP_2BIM!$A:$S,13,0),0) -> 216 | F83: 0
A84: 1.3.2.1.05.0.1.01.03.020.053.11.01.000 | B84: =IFERROR(VLOOKUP(A84,BD_Receita_PMSP_2BIM!$A:$S,2,0),0) -> PMSP/SMS/FMS/ITMAC/GAB - 21.890-1 | C84: =IFERROR(VLOOKUP($A84,BD_Receita_PMSP_2BIM!$A:$S,15,0),0) -> 0 | D84: =IFERROR(VLOOKUP($A84,BD_Receita_PMSP_2BIM!$A:$S,10,0),0) -> 0 | E84: =IFERROR(VLOOKUP($A84,BD_Receita_PMSP_2BIM!$A:$S,13,0),0) -> 5,289 | F84: 0
A85: 1.3.2.1.05.0.1.01.03.020.054.11.01.000 | B85: =IFERROR(VLOOKUP(A85,BD_Receita_PMSP_2BIM!$A:$S,2,0),0) -> PMSP/SMS/INVEST/24069 - 21.898-7 | C85: =IFERROR(VLOOKUP($A85,BD_Receita_PMSP_2BIM!$A:$S,15,0),0) -> 0 | D85: =IFERROR(VLOOKUP($A85,BD_Receita_PMSP_2BIM!$A:$S,10,0),0) -> 0 | E85: =IFERROR(VLOOKUP($A85,BD_Receita_PMSP_2BIM!$A:$S,13,0),0) -> 1,510 | F85: 0
A86: 1.3.2.1.05.0.1.01.03.020.055.11.01.000 | B86: =IFERROR(VLOOKUP(A86,BD_Receita_PMSP_2BIM!$A:$S,2,0),0) -> PMSP/SMS/INVEST/24071 - 21.897-9 | C86: =IFERROR(VLOOKUP($A86,BD_Receita_PMSP_2BIM!$A:$S,15,0),0) -> 0 | D86: =IFERROR(VLOOKUP($A86,BD_Receita_PMSP_2BIM!$A:$S,10,0),0) -> 0 | E86: =IFERROR(VLOOKUP($A86,BD_Receita_PMSP_2BIM!$A:$S,13,0),0) -> 99,608 | F86: 0
A87: 1.3.2.1.05.0.1.01.03.020.056.11.01.000 | B87: =IFERROR(VLOOKUP(A87,BD_Receita_PMSP_2BIM!$A:$S,2,0),0) -> PMSP/SMS/INVEST/24085 - 21.895-2 | C87: =IFERROR(VLOOKUP($A87,BD_Receita_PMSP_2BIM!$A:$S,15,0),0) -> 0 | D87: =IFERROR(VLOOKUP($A87,BD_Receita_PMSP_2BIM!$A:$S,10,0),0) -> 0 | E87: =IFERROR(VLOOKUP($A87,BD_Receita_PMSP_2BIM!$A:$S,13,0),0) -> 375 | F87: 0
A88: 1.3.2.1.05.0.1.01.03.020.057.11.01.000 | B88: =IFERROR(VLOOKUP(A88,BD_Receita_PMSP_2BIM!$A:$S,2,0),0) -> PMSP/SMS/INVEST/24084 - 21.896-0 | C88: =IFERROR(VLOOKUP($A88,BD_Receita_PMSP_2BIM!$A:$S,15,0),0) -> 0 | D88: =IFERROR(VLOOKUP($A88,BD_Receita_PMSP_2BIM!$A:$S,10,0),0) -> 0 | E88: =IFERROR(VLOOKUP($A88,BD_Receita_PMSP_2BIM!$A:$S,13,0),0) -> 3,520 | F88: 0
A89: 1.7.1.3.50.1.1.16.00.001.000.11.01.000 | B89: =IFERROR(VLOOKUP(A89,BD_Receita_PMSP_2BIM!$A:$S,2,0),0) -> Transferências Advindas de Emenda Parlamentar - Incremento PAB/APS | C89: =IFERROR(VLOOKUP($A89,BD_Receita_PMSP_2BIM!$A:$S,15,0),0) -> 9,000,000 | D89: =IFERROR(VLOOKUP($A89,BD_Receita_PMSP_2BIM!$A:$S,10,0),0) -> 9,000,000 | E89: =IFERROR(VLOOKUP($A89,BD_Receita_PMSP_2BIM!$A:$S,13,0),0) -> 0 | F89: 0
A90: 1.7.1.3.50.1.1.21.00.000.000.11.01.000 | B90: =IFERROR(VLOOKUP(A90,BD_Receita_PMSP_2BIM!$A:$S,2,0),0) -> Incentivo Financeiro da APS - Diversos APS | C90: =IFERROR(VLOOKUP($A90,BD_Receita_PMSP_2BIM!$A:$S,15,0),0) -> 594,647,213 | D90: =IFERROR(VLOOKUP($A90,BD_Receita_PMSP_2BIM!$A:$S,10,0),0) -> 594,647,213 | E90: =IFERROR(VLOOKUP($A90,BD_Receita_PMSP_2BIM!$A:$S,13,0),0) -> 212,747,207 | F90: 35.78
A91: 1.7.1.3.50.1.1.23.00.000.000.11.01.000 | B91: =IFERROR(VLOOKUP(A91,BD_Receita_PMSP_2BIM!$A:$S,2,0),0) -> Transf destinadas ao vencimento dos Agentes Comunitários de Saúde-ACS | C91: =IFERROR(VLOOKUP($A91,BD_Receita_PMSP_2BIM!$A:$S,15,0),0) -> 370,500,000 | D91: =IFERROR(VLOOKUP($A91,BD_Receita_PMSP_2BIM!$A:$S,10,0),0) -> 370,500,000 | E91: =IFERROR(VLOOKUP($A91,BD_Receita_PMSP_2BIM!$A:$S,13,0),0) -> 115,331,568 | F91: 31.13
A92: 1.7.1.3.50.1.1.24.00.000.000.11.01.000 | B92: =IFERROR(VLOOKUP(A92,BD_Receita_PMSP_2BIM!$A:$S,2,0),0) -> Incentivo Financeiro da APS - Atenção à Saúde Bucal | C92: =IFERROR(VLOOKUP($A92,BD_Receita_PMSP_2BIM!$A:$S,15,0),0) -> 77,708,576 | D92: =IFERROR(VLOOKUP($A92,BD_Receita_PMSP_2BIM!$A:$S,10,0),0) -> 77,708,576 | E92: =IFERROR(VLOOKUP($A92,BD_Receita_PMSP_2BIM!$A:$S,13,0),0) -> 22,722,936 | F92: 29.24
A93: 1.7.1.3.50.2.1.01.00.000.000.11.01.000 | B93: =IFERROR(VLOOKUP(A93,BD_Receita_PMSP_2BIM!$A:$S,2,0),0) -> MAC Teto Financeiro - FMS | C93: =IFERROR(VLOOKUP($A93,BD_Receita_PMSP_2BIM!$A:$S,15,0),0) -> 1,267,200,000 | D93: =IFERROR(VLOOKUP($A93,BD_Receita_PMSP_2BIM!$A:$S,10,0),0) -> 1,267,200,000 | E93: =IFERROR(VLOOKUP($A93,BD_Receita_PMSP_2BIM!$A:$S,13,0),0) -> 463,416,513 | F93: 36.57
A94: 1.7.1.3.50.2.1.02.00.000.000.11.01.000 | B94: =IFERROR(VLOOKUP(A94,BD_Receita_PMSP_2BIM!$A:$S,2,0),0) -> SAMU - Serviço de Atendimento Móvel de Urgência - FMS | C94: =IFERROR(VLOOKUP($A94,BD_Receita_PMSP_2BIM!$A:$S,15,0),0) -> 58,500,000 | D94: =IFERROR(VLOOKUP($A94,BD_Receita_PMSP_2BIM!$A:$S,10,0),0) -> 58,500,000 | E94: =IFERROR(VLOOKUP($A94,BD_Receita_PMSP_2BIM!$A:$S,13,0),0) -> 19,492,210 | F94: 33.32
A95: 1.7.1.3.50.2.1.08.00.000.000.11.01.000 | B95: =IFERROR(VLOOKUP(A95,BD_Receita_PMSP_2BIM!$A:$S,2,0),0) -> FAEC Nefrologia - FMS | C95: =IFERROR(VLOOKUP($A95,BD_Receita_PMSP_2BIM!$A:$S,15,0),0) -> 331,200,000 | D95: =IFERROR(VLOOKUP($A95,BD_Receita_PMSP_2BIM!$A:$S,10,0),0) -> 331,200,000 | E95: =IFERROR(VLOOKUP($A95,BD_Receita_PMSP_2BIM!$A:$S,13,0),0) -> 91,971,164 | F95: 27.77
A96: 1.7.1.3.50.2.1.09.00.000.000.11.01.000 | B96: =IFERROR(VLOOKUP(A96,BD_Receita_PMSP_2BIM!$A:$S,2,0),0) -> FAEC Transplantes - FMS | C96: =IFERROR(VLOOKUP($A96,BD_Receita_PMSP_2BIM!$A:$S,15,0),0) -> 186,960,000 | D96: =IFERROR(VLOOKUP($A96,BD_Receita_PMSP_2BIM!$A:$S,10,0),0) -> 186,960,000 | E96: =IFERROR(VLOOKUP($A96,BD_Receita_PMSP_2BIM!$A:$S,13,0),0) -> 47,246,339 | F96: 25.27
A97: 1.7.1.3.50.2.1.10.00.000.000.11.01.000 | B97: =IFERROR(VLOOKUP(A97,BD_Receita_PMSP_2BIM!$A:$S,2,0),0) -> Outros FAEC | C97: =IFERROR(VLOOKUP($A97,BD_Receita_PMSP_2BIM!$A:$S,15,0),0) -> 73,440,000 | D97: =IFERROR(VLOOKUP($A97,BD_Receita_PMSP_2BIM!$A:$S,10,0),0) -> 73,440,000 | E97: =IFERROR(VLOOKUP($A97,BD_Receita_PMSP_2BIM!$A:$S,13,0),0) -> 40,039,514 | F97: 54.52
A98: 1.7.1.3.50.2.1.11.00.001.000.11.01.000 | B98: =IFERROR(VLOOKUP(A98,BD_Receita_PMSP_2BIM!$A:$S,2,0),0) -> Transferências Advindas de Emenda Parlamentar -Incremento MAC (Assistê | C98: =IFERROR(VLOOKUP($A98,BD_Receita_PMSP_2BIM!$A:$S,15,0),0) -> 80,000,000 | D98: =IFERROR(VLOOKUP($A98,BD_Receita_PMSP_2BIM!$A:$S,10,0),0) -> 80,000,000 | E98: =IFERROR(VLOOKUP($A98,BD_Receita_PMSP_2BIM!$A:$S,13,0),0) -> 0 | F98: 0
A99: 1.7.1.3.50.2.1.12.00.000.000.11.01.000 | B99: =IFERROR(VLOOKUP(A99,BD_Receita_PMSP_2BIM!$A:$S,2,0),0) -> SMS/FMS/SMS/ITMAC/GAB - 21.885-5 | C99: =IFERROR(VLOOKUP($A99,BD_Receita_PMSP_2BIM!$A:$S,15,0),0) -> 0 | D99: =IFERROR(VLOOKUP($A99,BD_Receita_PMSP_2BIM!$A:$S,10,0),0) -> 0 | E99: =IFERROR(VLOOKUP($A99,BD_Receita_PMSP_2BIM!$A:$S,13,0),0) -> 1,650,000 | F99: 0
A100: 1.7.1.3.50.2.1.13.00.000.000.11.01.000 | B100: =IFERROR(VLOOKUP(A100,BD_Receita_PMSP_2BIM!$A:$S,2,0),0) -> PMSP/SMS/ENTID/15680003 - 21.891-X | C100: =IFERROR(VLOOKUP($A100,BD_Receita_PMSP_2BIM!$A:$S,15,0),0) -> 0 | D100: =IFERROR(VLOOKUP($A100,BD_Receita_PMSP_2BIM!$A:$S,10,0),0) -> 0 | E100: =IFERROR(VLOOKUP($A100,BD_Receita_PMSP_2BIM!$A:$S,13,0),0) -> 450,000 | F100: 0
A101: 1.7.1.3.50.2.1.14.00.000.000.11.01.000 | B101: =IFERROR(VLOOKUP(A101,BD_Receita_PMSP_2BIM!$A:$S,2,0),0) -> PMSP/SMS/ENTID/19970003 - 21.892-8 | C101: =IFERROR(VLOOKUP($A101,BD_Receita_PMSP_2BIM!$A:$S,15,0),0) -> 0 | D101: =IFERROR(VLOOKUP($A101,BD_Receita_PMSP_2BIM!$A:$S,10,0),0) -> 0 | E101: =IFERROR(VLOOKUP($A101,BD_Receita_PMSP_2BIM!$A:$S,13,0),0) -> 100,000 | F101: 0
A102: 1.7.1.3.50.2.1.15.00.000.000.11.01.000 | B102: =IFERROR(VLOOKUP(A102,BD_Receita_PMSP_2BIM!$A:$S,2,0),0) -> PMSP-SMS/FMS-ITMAC/GAB - 21.916-9 | C102: =IFERROR(VLOOKUP($A102,BD_Receita_PMSP_2BIM!$A:$S,15,0),0) -> 0 | D102: =IFERROR(VLOOKUP($A102,BD_Receita_PMSP_2BIM!$A:$S,10,0),0) -> 0 | E102: =IFERROR(VLOOKUP($A102,BD_Receita_PMSP_2BIM!$A:$S,13,0),0) -> 1,000,000 | F102: 0
A103: 1.7.1.3.50.2.1.16.00.000.000.11.01.000 | B103: =IFERROR(VLOOKUP(A103,BD_Receita_PMSP_2BIM!$A:$S,2,0),0) -> PMSP/SMS/FMS/ITMAC/GAB - 21.887-1 | C103: =IFERROR(VLOOKUP($A103,BD_Receita_PMSP_2BIM!$A:$S,15,0),0) -> 0 | D103: =IFERROR(VLOOKUP($A103,BD_Receita_PMSP_2BIM!$A:$S,10,0),0) -> 0 | E103: =IFERROR(VLOOKUP($A103,BD_Receita_PMSP_2BIM!$A:$S,13,0),0) -> 3,500,000 | F103: 0
A104: 1.7.1.3.50.2.1.17.00.000.000.11.01.000 | B104: =IFERROR(VLOOKUP(A104,BD_Receita_PMSP_2BIM!$A:$S,2,0),0) -> SMS/FMS/ITMAC/GAB - 21.886-3 | C104: =IFERROR(VLOOKUP($A104,BD_Receita_PMSP_2BIM!$A:$S,15,0),0) -> 0 | D104: =IFERROR(VLOOKUP($A104,BD_Receita_PMSP_2BIM!$A:$S,10,0),0) -> 0 | E104: =IFERROR(VLOOKUP($A104,BD_Receita_PMSP_2BIM!$A:$S,13,0),0) -> 955,697 | F104: 0
A105: 1.7.1.3.50.2.1.18.00.000.000.11.01.000 | B105: =IFERROR(VLOOKUP(A105,BD_Receita_PMSP_2BIM!$A:$S,2,0),0) -> PMSP/SMS/FMS/ITMAC/GAB - 21.890-1 | C105: =IFERROR(VLOOKUP($A105,BD_Receita_PMSP_2BIM!$A:$S,15,0),0) -> 0 | D105: =IFERROR(VLOOKUP($A105,BD_Receita_PMSP_2BIM!$A:$S,10,0),0) -> 0 | E105: =IFERROR(VLOOKUP($A105,BD_Receita_PMSP_2BIM!$A:$S,13,0),0) -> 300,000 | F105: 0
A106: 1.7.1.3.50.3.1.01.00.000.000.11.01.000 | B106: =IFERROR(VLOOKUP(A106,BD_Receita_PMSP_2BIM!$A:$S,2,0),0) -> Vigilância em Saúde Epidemiológica, Sanitária e Ambiental - FMS | C106: =IFERROR(VLOOKUP($A106,BD_Receita_PMSP_2BIM!$A:$S,15,0),0) -> 45,600,000 | D106: =IFERROR(VLOOKUP($A106,BD_Receita_PMSP_2BIM!$A:$S,10,0),0) -> 45,600,000 | E106: =IFERROR(VLOOKUP($A106,BD_Receita_PMSP_2BIM!$A:$S,13,0),0) -> 15,440,744 | F106: 33.86
A107: 1.7.1.3.50.3.1.02.00.000.000.11.01.000 | B107: =IFERROR(VLOOKUP(A107,BD_Receita_PMSP_2BIM!$A:$S,2,0),0) -> Vigilância DST/AIDS - Hepatites Virais - FMS | C107: =IFERROR(VLOOKUP($A107,BD_Receita_PMSP_2BIM!$A:$S,15,0),0) -> 8,640,000 | D107: =IFERROR(VLOOKUP($A107,BD_Receita_PMSP_2BIM!$A:$S,10,0),0) -> 8,640,000 | E107: =IFERROR(VLOOKUP($A107,BD_Receita_PMSP_2BIM!$A:$S,13,0),0) -> 4,001,663 | F107: 46.32
A108: 1.7.1.3.50.3.1.04.00.000.000.11.01.000 | B108: =IFERROR(VLOOKUP(A108,BD_Receita_PMSP_2BIM!$A:$S,2,0),0) -> Transf destinadas ao vencimento dos agentes de combate às endemias-ACE | C108: =IFERROR(VLOOKUP($A108,BD_Receita_PMSP_2BIM!$A:$S,15,0),0) -> 76,700,000 | D108: =IFERROR(VLOOKUP($A108,BD_Receita_PMSP_2BIM!$A:$S,10,0),0) -> 76,700,000 | E108: =IFERROR(VLOOKUP($A108,BD_Receita_PMSP_2BIM!$A:$S,13,0),0) -> 24,549,096 | F108: 32.01
A109: 1.7.1.3.50.4.1.01.00.000.000.11.01.000 | B109: =IFERROR(VLOOKUP(A109,BD_Receita_PMSP_2BIM!$A:$S,2,0),0) -> Componente Básico da Assistência Farmacêutica - FMS | C109: =IFERROR(VLOOKUP($A109,BD_Receita_PMSP_2BIM!$A:$S,15,0),0) -> 72,000,000 | D109: =IFERROR(VLOOKUP($A109,BD_Receita_PMSP_2BIM!$A:$S,10,0),0) -> 72,000,000 | E109: =IFERROR(VLOOKUP($A109,BD_Receita_PMSP_2BIM!$A:$S,13,0),0) -> 27,484,798 | F109: 38.17
A110: 1.7.1.3.50.5.1.01.00.000.000.11.01.000 | B110: =IFERROR(VLOOKUP(A110,BD_Receita_PMSP_2BIM!$A:$S,2,0),0) -> Gestão do SUS - Qualificação, Implantação e Implementação | C110: =IFERROR(VLOOKUP($A110,BD_Receita_PMSP_2BIM!$A:$S,15,0),0) -> 600,000 | D110: =IFERROR(VLOOKUP($A110,BD_Receita_PMSP_2BIM!$A:$S,10,0),0) -> 600,000 | E110: =IFERROR(VLOOKUP($A110,BD_Receita_PMSP_2BIM!$A:$S,13,0),0) -> 513,249 | F110: 85.54
A111: 1.7.1.3.50.9.1.01.00.000.000.11.01.000 | B111: =IFERROR(VLOOKUP(A111,BD_Receita_PMSP_2BIM!$A:$S,2,0),0) -> Outros Programas Financiados por Transferências Fundo a Fundo | C111: =IFERROR(VLOOKUP($A111,BD_Receita_PMSP_2BIM!$A:$S,15,0),0) -> 120,000 | D111: =IFERROR(VLOOKUP($A111,BD_Receita_PMSP_2BIM!$A:$S,10,0),0) -> 120,000 | E111: =IFERROR(VLOOKUP($A111,BD_Receita_PMSP_2BIM!$A:$S,13,0),0) -> 0 | F111: 0
A112: 1.7.1.3.50.9.1.08.00.000.000.11.01.000 | B112: =IFERROR(VLOOKUP(A112,BD_Receita_PMSP_2BIM!$A:$S,2,0),0) -> Ass fin União destinada complem. pagto pisos salariais prof enfermagem | C112: =IFERROR(VLOOKUP($A112,BD_Receita_PMSP_2BIM!$A:$S,15,0),0) -> 3,900,000 | D112: =IFERROR(VLOOKUP($A112,BD_Receita_PMSP_2BIM!$A:$S,10,0),0) -> 3,900,000 | E112: =IFERROR(VLOOKUP($A112,BD_Receita_PMSP_2BIM!$A:$S,13,0),0) -> 0 | F112: 0
A113: 1.7.1.3.99.0.1.01.00.000.000.11.01.000 | B113: =IFERROR(VLOOKUP(A113,BD_Receita_PMSP_2BIM!$A:$S,2,0),0) -> Outras Transferências de Recursos do Sistema Único de Saúde - SUS - Pr | C113: =IFERROR(VLOOKUP($A113,BD_Receita_PMSP_2BIM!$A:$S,15,0),0) -> 2,400 | D113: =IFERROR(VLOOKUP($A113,BD_Receita_PMSP_2BIM!$A:$S,10,0),0) -> 2,400 | E113: =IFERROR(VLOOKUP($A113,BD_Receita_PMSP_2BIM!$A:$S,13,0),0) -> 0 | F113: 0
A114: 1.7.1.7.50.0.1.01.00.000.000.11.01.000 | B114: =IFERROR(VLOOKUP(A114,BD_Receita_PMSP_2BIM!$A:$S,2,0),0) -> Outros convênios da União para a área da Saúde | C114: =IFERROR(VLOOKUP($A114,BD_Receita_PMSP_2BIM!$A:$S,15,0),0) -> 2,400 | D114: =IFERROR(VLOOKUP($A114,BD_Receita_PMSP_2BIM!$A:$S,10,0),0) -> 2,400 | E114: =IFERROR(VLOOKUP($A114,BD_Receita_PMSP_2BIM!$A:$S,13,0),0) -> 0 | F114: 0
A115: 1.9.2.2.01.1.1.05.00.000.000.11.01.000 | B115: =IFERROR(VLOOKUP(A115,BD_Receita_PMSP_2BIM!$A:$S,2,0),0) -> Restituição Oriunda de Entidades Parceiras - Recursos União | C115: =IFERROR(VLOOKUP($A115,BD_Receita_PMSP_2BIM!$A:$S,15,0),0) -> 4,800,000 | D115: =IFERROR(VLOOKUP($A115,BD_Receita_PMSP_2BIM!$A:$S,10,0),0) -> 4,800,000 | E115: =IFERROR(VLOOKUP($A115,BD_Receita_PMSP_2BIM!$A:$S,13,0),0) -> 2,470,745 | F115: 51.47
A116: 1.9.2.2.01.1.1.10.00.000.000.11.01.000 | B116: =IFERROR(VLOOKUP(A116,BD_Receita_PMSP_2BIM!$A:$S,2,0),0) -> Restituição de Entidade Parceira - União/Piso Enfermagem | C116: =IFERROR(VLOOKUP($A116,BD_Receita_PMSP_2BIM!$A:$S,15,0),0) -> 0 | D116: =IFERROR(VLOOKUP($A116,BD_Receita_PMSP_2BIM!$A:$S,10,0),0) -> 0 | E116: =IFERROR(VLOOKUP($A116,BD_Receita_PMSP_2BIM!$A:$S,13,0),0) -> 6,534 | F116: 0
A117: 2.4.1.1.50.9.1.01.00.000.000.11.01.000 | B117: =IFERROR(VLOOKUP(A117,BD_Receita_PMSP_2BIM!$A:$S,2,0),0) -> Transferência De Recursos Do SUS - Outros Programas Financiados Por Tr | C117: =IFERROR(VLOOKUP($A117,BD_Receita_PMSP_2BIM!$A:$S,15,0),0) -> 3,000,000 | D117: =IFERROR(VLOOKUP($A117,BD_Receita_PMSP_2BIM!$A:$S,10,0),0) -> 3,000,000 | E117: =IFERROR(VLOOKUP($A117,BD_Receita_PMSP_2BIM!$A:$S,13,0),0) -> 0 | F117: 0
A118: 2.4.1.1.51.2.1.01.00.000.000.11.01.000 | B118: =IFERROR(VLOOKUP(A118,BD_Receita_PMSP_2BIM!$A:$S,2,0),0) -> Transferência De Recursos Do Sistema Único De Saúde - SUS - Destinados | C118: =IFERROR(VLOOKUP($A118,BD_Receita_PMSP_2BIM!$A:$S,15,0),0) -> 3,000,000 | D118: =IFERROR(VLOOKUP($A118,BD_Receita_PMSP_2BIM!$A:$S,10,0),0) -> 3,000,000 | E118: =IFERROR(VLOOKUP($A118,BD_Receita_PMSP_2BIM!$A:$S,13,0),0) -> 0 | F118: 0
A119: 2.4.1.1.51.2.1.02.00.000.000.11.01.000 | B119: =IFERROR(VLOOKUP(A119,BD_Receita_PMSP_2BIM!$A:$S,2,0),0) -> PMSP/SMS/INVEST/24071 - 21.897-9 | C119: =IFERROR(VLOOKUP($A119,BD_Receita_PMSP_2BIM!$A:$S,15,0),0) -> 0 | D119: =IFERROR(VLOOKUP($A119,BD_Receita_PMSP_2BIM!$A:$S,10,0),0) -> 0 | E119: =IFERROR(VLOOKUP($A119,BD_Receita_PMSP_2BIM!$A:$S,13,0),0) -> 5,671,266 | F119: 0
A120: 2.4.1.1.51.2.1.03.00.000.000.11.01.000 | B120: =IFERROR(VLOOKUP(A120,BD_Receita_PMSP_2BIM!$A:$S,2,0),0) -> PMSP/SMS/INVEST/24086 - 21.888-X | C120: =IFERROR(VLOOKUP($A120,BD_Receita_PMSP_2BIM!$A:$S,15,0),0) -> 0 | D120: =IFERROR(VLOOKUP($A120,BD_Receita_PMSP_2BIM!$A:$S,10,0),0) -> 0 | E120: =IFERROR(VLOOKUP($A120,BD_Receita_PMSP_2BIM!$A:$S,13,0),0) -> 12,240 | F120: 0
A121: 2.4.1.1.51.2.1.04.00.000.000.11.01.000 | B121: =IFERROR(VLOOKUP(A121,BD_Receita_PMSP_2BIM!$A:$S,2,0),0) -> PMSP/SMS/INVEST/24087 - 21.889-8 | C121: =IFERROR(VLOOKUP($A121,BD_Receita_PMSP_2BIM!$A:$S,15,0),0) -> 0 | D121: =IFERROR(VLOOKUP($A121,BD_Receita_PMSP_2BIM!$A:$S,10,0),0) -> 0 | E121: =IFERROR(VLOOKUP($A121,BD_Receita_PMSP_2BIM!$A:$S,13,0),0) -> 1,871,408 | F121: 0
A122: 2.4.1.1.51.2.1.05.00.000.000.11.01.000 | B122: =IFERROR(VLOOKUP(A122,BD_Receita_PMSP_2BIM!$A:$S,2,0),0) -> PMSP/SMS/INVEST/24079 - 21.894-4 | C122: =IFERROR(VLOOKUP($A122,BD_Receita_PMSP_2BIM!$A:$S,15,0),0) -> 0 | D122: =IFERROR(VLOOKUP($A122,BD_Receita_PMSP_2BIM!$A:$S,10,0),0) -> 0 | E122: =IFERROR(VLOOKUP($A122,BD_Receita_PMSP_2BIM!$A:$S,13,0),0) -> 33,136 | F122: 0
A123: 2.4.1.1.51.2.1.06.00.000.000.11.01.000 | B123: =IFERROR(VLOOKUP(A123,BD_Receita_PMSP_2BIM!$A:$S,2,0),0) -> PMSP/SMS/INVEST/24082 - 21.893-6 | C123: =IFERROR(VLOOKUP($A123,BD_Receita_PMSP_2BIM!$A:$S,15,0),0) -> 0 | D123: =IFERROR(VLOOKUP($A123,BD_Receita_PMSP_2BIM!$A:$S,10,0),0) -> 0 | E123: =IFERROR(VLOOKUP($A123,BD_Receita_PMSP_2BIM!$A:$S,13,0),0) -> 182,000 | F123: 0
A124: 2.4.1.1.51.2.1.09.00.000.000.11.01.000 | B124: =IFERROR(VLOOKUP(A124,BD_Receita_PMSP_2BIM!$A:$S,2,0),0) -> PMSP/SMS/INVEST/24069 - 21.898-7 | C124: =IFERROR(VLOOKUP($A124,BD_Receita_PMSP_2BIM!$A:$S,15,0),0) -> 0 | D124: =IFERROR(VLOOKUP($A124,BD_Receita_PMSP_2BIM!$A:$S,10,0),0) -> 0 | E124: =IFERROR(VLOOKUP($A124,BD_Receita_PMSP_2BIM!$A:$S,13,0),0) -> 85,644 | F124: 0
A125: 2.4.1.4.50.0.1.07.00.000.000.11.01.000 | B125: =IFERROR(VLOOKUP(A125,BD_Receita_PMSP_2BIM!$A:$S,2,0),0) -> Convênios com o Ministério da Saúde -FMS | C125: =IFERROR(VLOOKUP($A125,BD_Receita_PMSP_2BIM!$A:$S,15,0),0) -> 28,000,000 | D125: =IFERROR(VLOOKUP($A125,BD_Receita_PMSP_2BIM!$A:$S,10,0),0) -> 28,000,000 | E125: =IFERROR(VLOOKUP($A125,BD_Receita_PMSP_2BIM!$A:$S,13,0),0) -> 0 | F125: 0
A126: 2.4.1.4.50.0.1.14.00.000.000.11.01.000 | B126: =IFERROR(VLOOKUP(A126,BD_Receita_PMSP_2BIM!$A:$S,2,0),0) -> Convênios com o Ministério da Saúde -FMS - Convênio 929522/2022 | C126: =IFERROR(VLOOKUP($A126,BD_Receita_PMSP_2BIM!$A:$S,15,0),0) -> 1,200 | D126: =IFERROR(VLOOKUP($A126,BD_Receita_PMSP_2BIM!$A:$S,10,0),0) -> 1,200 | E126: =IFERROR(VLOOKUP($A126,BD_Receita_PMSP_2BIM!$A:$S,13,0),0) -> 0 | F126: 0
A127: 2.4.1.9.51.0.1.53.01.003.000.11.01.000 | B127: =IFERROR(VLOOKUP(A127,BD_Receita_PMSP_2BIM!$A:$S,2,0),0) -> Transferência Especial Ofício 260/2024 | C127: =IFERROR(VLOOKUP($A127,BD_Receita_PMSP_2BIM!$A:$S,15,0),0) -> 0 | D127: =IFERROR(VLOOKUP($A127,BD_Receita_PMSP_2BIM!$A:$S,10,0),0) -> 0 | E127: =IFERROR(VLOOKUP($A127,BD_Receita_PMSP_2BIM!$A:$S,13,0),0) -> 1,349,000 | F127: 0
A128: 2.4.1.9.99.0.1.04.00.001.000.11.01.000 | B128: =IFERROR(VLOOKUP(A128,BD_Receita_PMSP_2BIM!$A:$S,2,0),0) -> Transferências Advindas de Emendas Parlamentares - Fundo a Fundo - FMS | C128: =IFERROR(VLOOKUP($A128,BD_Receita_PMSP_2BIM!$A:$S,15,0),0) -> 11,000,000 | D128: =IFERROR(VLOOKUP($A128,BD_Receita_PMSP_2BIM!$A:$S,10,0),0) -> 11,000,000 | E128: =IFERROR(VLOOKUP($A128,BD_Receita_PMSP_2BIM!$A:$S,13,0),0) -> 0 | F128: 0
F131: 0
F132: 0
F133: 0
F134: 0
F135: 0
F136: 0
A137: Fonte 03 | B137: Proveniente dos Estados | C137: =SUM(C138:C179) -> 19,504,400 | D137: =SUM(D138:D179) -> 19,652,687 | E137: =SUM(E138:E179) -> 8,955,445 | F137: =IFERROR(E137/D137*100,0) -> 45.57
A138: FILTROS:
A139: FONTE DE RECURSO ("AA")
A140: 03
A141: ÓRGÃO
A142: 84
A143: =IFERROR( _xlfn._xlws.FILTER( BD_Receita_PMSP_2BIM!$A:$A,( ( (LEFT(BD_Receita_PMSP_2BIM!$S:$S, LEN($A140)) = $A140)* (TEXT(BD_Receita_PMSP_2BIM!$E:$E, "00") = TEXT($A142, "00")) ) )), "(vazio)") -> 1.3.2.1.01.0.1.01.04.002.001.11.01.000 | B143: =IFERROR(VLOOKUP(A143,BD_Receita_PMSP_2BIM!$A:$S,2,0),0) -> Convênio 1307/2024-SMS/Reforma UBS Vila Renato-Maria das Graças Silva | C143: =IFERROR(VLOOKUP($A143,BD_Receita_PMSP_2BIM!$A:$S,15,0),0) -> 0 | D143: =IFERROR(VLOOKUP($A143,BD_Receita_PMSP_2BIM!$A:$S,10,0),0) -> 0 | E143: =IFERROR(VLOOKUP($A143,BD_Receita_PMSP_2BIM!$A:$S,13,0),0) -> 2,760 | F143: 0
A144: 1.3.2.1.01.0.1.01.04.002.002.11.01.000 | B144: =IFERROR(VLOOKUP(A144,BD_Receita_PMSP_2BIM!$A:$S,2,0),0) -> PMSP-SMS/CONVÊNIO SES/SP 070069-POUPANÇA | C144: =IFERROR(VLOOKUP($A144,BD_Receita_PMSP_2BIM!$A:$S,15,0),0) -> 0 | D144: =IFERROR(VLOOKUP($A144,BD_Receita_PMSP_2BIM!$A:$S,10,0),0) -> 0 | E144: =IFERROR(VLOOKUP($A144,BD_Receita_PMSP_2BIM!$A:$S,13,0),0) -> 1,861 | F144: 0
A145: 1.3.2.1.01.0.1.01.04.002.003.11.01.000 | B145: =IFERROR(VLOOKUP(A145,BD_Receita_PMSP_2BIM!$A:$S,2,0),0) -> PMSP-SMS/ Reforma da rede elétrica-UBS Jardim Jaraguá Kwaray Djekupé | C145: =IFERROR(VLOOKUP($A145,BD_Receita_PMSP_2BIM!$A:$S,15,0),0) -> 0 | D145: =IFERROR(VLOOKUP($A145,BD_Receita_PMSP_2BIM!$A:$S,10,0),0) -> 0 | E145: =IFERROR(VLOOKUP($A145,BD_Receita_PMSP_2BIM!$A:$S,13,0),0) -> 1,054 | F145: 0
A146: 1.3.2.1.01.0.1.01.04.002.004.11.01.000 | B146: =IFERROR(VLOOKUP(A146,BD_Receita_PMSP_2BIM!$A:$S,2,0),0) -> PMSP-SMS/Convênio SES/SP 070070-Poupança | C146: =IFERROR(VLOOKUP($A146,BD_Receita_PMSP_2BIM!$A:$S,15,0),0) -> 0 | D146: =IFERROR(VLOOKUP($A146,BD_Receita_PMSP_2BIM!$A:$S,10,0),0) -> 0 | E146: =IFERROR(VLOOKUP($A146,BD_Receita_PMSP_2BIM!$A:$S,13,0),0) -> 1,861 | F146: 0
A147: 1.3.2.1.01.0.1.01.04.002.005.11.01.000 | B147: =IFERROR(VLOOKUP(A147,BD_Receita_PMSP_2BIM!$A:$S,2,0),0) -> PMSP-SMS/Convênio SES/SP 069318-Poupança | C147: =IFERROR(VLOOKUP($A147,BD_Receita_PMSP_2BIM!$A:$S,15,0),0) -> 0 | D147: =IFERROR(VLOOKUP($A147,BD_Receita_PMSP_2BIM!$A:$S,10,0),0) -> 0 | E147: =IFERROR(VLOOKUP($A147,BD_Receita_PMSP_2BIM!$A:$S,13,0),0) -> 2,493 | F147: 0
A148: 1.3.2.1.01.0.1.01.04.004.060.11.01.000 | B148: =IFERROR(VLOOKUP(A148,BD_Receita_PMSP_2BIM!$A:$S,2,0),0) -> SMS/Constr cobertura-UBS V Esperança-Or. Cassio Bittencourt Filho-Poup | C148: =IFERROR(VLOOKUP($A148,BD_Receita_PMSP_2BIM!$A:$S,15,0),0) -> 0 | D148: =IFERROR(VLOOKUP($A148,BD_Receita_PMSP_2BIM!$A:$S,10,0),0) -> 0 | E148: =IFERROR(VLOOKUP($A148,BD_Receita_PMSP_2BIM!$A:$S,13,0),0) -> 611 | F148: 0
A149: 1.3.2.1.05.0.1.01.04.020.004.11.01.000 | B149: =IFERROR(VLOOKUP(A149,BD_Receita_PMSP_2BIM!$A:$S,2,0),0) -> Convênio n.º 000151/2025 - SMS/ Ampliação da UBS Fazenda da Juta 11 | C149: =IFERROR(VLOOKUP($A149,BD_Receita_PMSP_2BIM!$A:$S,15,0),0) -> 0 | D149: =IFERROR(VLOOKUP($A149,BD_Receita_PMSP_2BIM!$A:$S,10,0),0) -> 1,200 | E149: =IFERROR(VLOOKUP($A149,BD_Receita_PMSP_2BIM!$A:$S,13,0),0) -> 374 | F149: 31.14
A150: 1.3.2.1.05.0.1.01.04.027.002.11.01.000 | B150: =IFERROR(VLOOKUP(A150,BD_Receita_PMSP_2BIM!$A:$S,2,0),0) -> Secretaria de Estado da Saúde - SMS/FMS - PMSPSMS-FUNDO A FUNDO SES | C150: =IFERROR(VLOOKUP($A150,BD_Receita_PMSP_2BIM!$A:$S,15,0),0) -> 14,400,000 | D150: =IFERROR(VLOOKUP($A150,BD_Receita_PMSP_2BIM!$A:$S,10,0),0) -> 14,400,000 | E150: =IFERROR(VLOOKUP($A150,BD_Receita_PMSP_2BIM!$A:$S,13,0),0) -> 8,385,784 | F150: 58.23
A151: 1.3.2.1.05.0.1.01.04.027.011.11.01.000 | B151: =IFERROR(VLOOKUP(A151,BD_Receita_PMSP_2BIM!$A:$S,2,0),0) -> Secretaria de Estado da Saúde - SMS- Programa Meu Pet | C151: =IFERROR(VLOOKUP($A151,BD_Receita_PMSP_2BIM!$A:$S,15,0),0) -> 1,200 | D151: =IFERROR(VLOOKUP($A151,BD_Receita_PMSP_2BIM!$A:$S,10,0),0) -> 1,200 | E151: =IFERROR(VLOOKUP($A151,BD_Receita_PMSP_2BIM!$A:$S,13,0),0) -> 0 | F151: 0
A152: 1.3.2.1.05.0.1.01.04.027.012.11.01.000 | B152: =IFERROR(VLOOKUP(A152,BD_Receita_PMSP_2BIM!$A:$S,2,0),0) -> Transferência Especial - SMS//FMS/EP ESTADUAL | C152: =IFERROR(VLOOKUP($A152,BD_Receita_PMSP_2BIM!$A:$S,15,0),0) -> 60,000 | D152: =IFERROR(VLOOKUP($A152,BD_Receita_PMSP_2BIM!$A:$S,10,0),0) -> 60,000 | E152: =IFERROR(VLOOKUP($A152,BD_Receita_PMSP_2BIM!$A:$S,13,0),0) -> 34,619 | F152: 57.70
A153: 1.3.2.1.05.0.1.01.04.027.015.11.01.000 | B153: =IFERROR(VLOOKUP(A153,BD_Receita_PMSP_2BIM!$A:$S,2,0),0) -> SMS/Constução cobertura-UBS V Esperança-Or. Cassio Bittencourt Filho | C153: =IFERROR(VLOOKUP($A153,BD_Receita_PMSP_2BIM!$A:$S,15,0),0) -> 1,200 | D153: =IFERROR(VLOOKUP($A153,BD_Receita_PMSP_2BIM!$A:$S,10,0),0) -> 1,200 | E153: =IFERROR(VLOOKUP($A153,BD_Receita_PMSP_2BIM!$A:$S,13,0),0) -> 0 | F153: 0
A154: 1.3.2.1.05.0.1.01.04.027.016.11.01.000 | B154: =IFERROR(VLOOKUP(A154,BD_Receita_PMSP_2BIM!$A:$S,2,0),0) -> PMSP-SMS/ Ampliação da UBS Fazenda da Juta 11 | C154: =IFERROR(VLOOKUP($A154,BD_Receita_PMSP_2BIM!$A:$S,15,0),0) -> 1,200 | D154: =IFERROR(VLOOKUP($A154,BD_Receita_PMSP_2BIM!$A:$S,10,0),0) -> 0 | E154: =IFERROR(VLOOKUP($A154,BD_Receita_PMSP_2BIM!$A:$S,13,0),0) -> 0 | F154: 0
A155: 1.3.2.1.05.0.1.01.04.027.017.11.01.000 | B155: =IFERROR(VLOOKUP(A155,BD_Receita_PMSP_2BIM!$A:$S,2,0),0) -> PMSP-SMS/ Reforma da rede elétrica-UBS Jardim Jaraguá Kwaray Djekupé | C155: =IFERROR(VLOOKUP($A155,BD_Receita_PMSP_2BIM!$A:$S,15,0),0) -> 1,200 | D155: =IFERROR(VLOOKUP($A155,BD_Receita_PMSP_2BIM!$A:$S,10,0),0) -> 0 | E155: =IFERROR(VLOOKUP($A155,BD_Receita_PMSP_2BIM!$A:$S,13,0),0) -> 0 | F155: 0
A156: 1.3.2.1.05.0.1.01.04.027.018.11.01.000 | B156: =IFERROR(VLOOKUP(A156,BD_Receita_PMSP_2BIM!$A:$S,2,0),0) -> PMSP-SMS/Reforma e manutenção da UBS Jardim Santa Fé | C156: =IFERROR(VLOOKUP($A156,BD_Receita_PMSP_2BIM!$A:$S,15,0),0) -> 1,200 | D156: =IFERROR(VLOOKUP($A156,BD_Receita_PMSP_2BIM!$A:$S,10,0),0) -> 1,200 | E156: =IFERROR(VLOOKUP($A156,BD_Receita_PMSP_2BIM!$A:$S,13,0),0) -> 0 | F156: 0
A157: 1.3.2.1.05.0.1.01.04.027.020.11.01.000 | B157: =IFERROR(VLOOKUP(A157,BD_Receita_PMSP_2BIM!$A:$S,2,0),0) -> PMSP-SMS/Reforma da UBS Vila Renato-Maria das Graças da Silva | C157: =IFERROR(VLOOKUP($A157,BD_Receita_PMSP_2BIM!$A:$S,15,0),0) -> 1,200 | D157: =IFERROR(VLOOKUP($A157,BD_Receita_PMSP_2BIM!$A:$S,10,0),0) -> 1,200 | E157: =IFERROR(VLOOKUP($A157,BD_Receita_PMSP_2BIM!$A:$S,13,0),0) -> 425 | F157: 35.39
A158: 1.3.2.1.05.0.1.01.04.027.021.11.01.000 | B158: =IFERROR(VLOOKUP(A158,BD_Receita_PMSP_2BIM!$A:$S,2,0),0) -> SMS/Ampliação/Construção sala e cobertura-UBS A Jaraguá Kwaray Djekupé | C158: =IFERROR(VLOOKUP($A158,BD_Receita_PMSP_2BIM!$A:$S,15,0),0) -> 1,200 | D158: =IFERROR(VLOOKUP($A158,BD_Receita_PMSP_2BIM!$A:$S,10,0),0) -> 0 | E158: =IFERROR(VLOOKUP($A158,BD_Receita_PMSP_2BIM!$A:$S,13,0),0) -> 0 | F158: 0
A159: 1.3.2.1.05.0.1.01.04.027.024.11.01.000 | B159: =IFERROR(VLOOKUP(A159,BD_Receita_PMSP_2BIM!$A:$S,2,0),0) -> PMSP-SMS/CONVÊNIO SES/SP 070069 | C159: =IFERROR(VLOOKUP($A159,BD_Receita_PMSP_2BIM!$A:$S,15,0),0) -> 1,200 | D159: =IFERROR(VLOOKUP($A159,BD_Receita_PMSP_2BIM!$A:$S,10,0),0) -> 1,200 | E159: =IFERROR(VLOOKUP($A159,BD_Receita_PMSP_2BIM!$A:$S,13,0),0) -> 2,092 | F159: 174.32
A160: 1.3.2.1.05.0.1.01.04.027.025.11.01.000 | B160: =IFERROR(VLOOKUP(A160,BD_Receita_PMSP_2BIM!$A:$S,2,0),0) -> PMSP-SMS/ CONVÊNIO SES/SP 069318 | C160: =IFERROR(VLOOKUP($A160,BD_Receita_PMSP_2BIM!$A:$S,15,0),0) -> 1,200 | D160: =IFERROR(VLOOKUP($A160,BD_Receita_PMSP_2BIM!$A:$S,10,0),0) -> 1,200 | E160: =IFERROR(VLOOKUP($A160,BD_Receita_PMSP_2BIM!$A:$S,13,0),0) -> 3,654 | F160: 304.50
A161: 1.3.2.1.05.0.1.01.04.027.026.11.01.000 | B161: =IFERROR(VLOOKUP(A161,BD_Receita_PMSP_2BIM!$A:$S,2,0),0) -> PMSP-SMS/CONVÊNIO SES/SP 070070 | C161: =IFERROR(VLOOKUP($A161,BD_Receita_PMSP_2BIM!$A:$S,15,0),0) -> 1,200 | D161: =IFERROR(VLOOKUP($A161,BD_Receita_PMSP_2BIM!$A:$S,10,0),0) -> 1,200 | E161: =IFERROR(VLOOKUP($A161,BD_Receita_PMSP_2BIM!$A:$S,13,0),0) -> 2,059 | F161: 171.61
A162: 1.3.2.1.05.0.1.01.04.027.027.11.01.000 | B162: =IFERROR(VLOOKUP(A162,BD_Receita_PMSP_2BIM!$A:$S,2,0),0) -> PMSP-SMS/ Reforma da rede elétrica-UBS Jardim Jaraguá Kwaray Djekupé | C162: =IFERROR(VLOOKUP($A162,BD_Receita_PMSP_2BIM!$A:$S,15,0),0) -> 0 | D162: =IFERROR(VLOOKUP($A162,BD_Receita_PMSP_2BIM!$A:$S,10,0),0) -> 1,200 | E162: =IFERROR(VLOOKUP($A162,BD_Receita_PMSP_2BIM!$A:$S,13,0),0) -> 1,145 | F162: 95.46
A163: 1.3.2.1.05.0.1.01.04.027.052.11.01.000
A164: 1.7.2.3.50.0.1.02.00.000.000.11.01.000
A165: 1.7.2.4.50.0.1.01.03.001.000.11.01.000
A166: 1.7.2.4.50.0.1.01.07.000.000.11.01.000
A167: 1.7.2.4.50.0.1.01.08.000.000.11.01.000
A168: 1.7.2.9.99.0.1.01.00.000.000.11.01.000
A169: 1.7.2.9.99.0.1.09.00.000.000.11.01.000
A170: 1.7.2.9.99.0.1.10.00.000.000.11.01.000
A171: 1.9.2.2.01.1.1.06.00.000.000.11.01.000
A172: 2.4.2.1.50.0.1.01.00.000.000.11.01.000 | B172: =IFERROR(VLOOKUP(A172,BD_Receita_PMSP_2BIM!$A:$S,2,0),0) -> Secretaria de Estado da Saúde - SMS/FMS | C172: =IFERROR(VLOOKUP($A172,BD_Receita_PMSP_2BIM!$A:$S,15,0),0) -> 30,000 | D172: =IFERROR(VLOOKUP($A172,BD_Receita_PMSP_2BIM!$A:$S,10,0),0) -> 30,000 | E172: =IFERROR(VLOOKUP($A172,BD_Receita_PMSP_2BIM!$A:$S,13,0),0) -> 0 | F172: 0
A173: 2.4.2.2.50.0.1.08.00.001.000.11.01.000 | B173: =IFERROR(VLOOKUP(A173,BD_Receita_PMSP_2BIM!$A:$S,2,0),0) -> Transferências Advindas de Emendas Parlamentares - Convênio FMS X ESTA | C173: =IFERROR(VLOOKUP($A173,BD_Receita_PMSP_2BIM!$A:$S,15,0),0) -> 1,200 | D173: =IFERROR(VLOOKUP($A173,BD_Receita_PMSP_2BIM!$A:$S,10,0),0) -> 1,200 | E173: =IFERROR(VLOOKUP($A173,BD_Receita_PMSP_2BIM!$A:$S,13,0),0) -> 0 | F173: 0
A174: 2.4.2.2.50.0.1.10.00.001.000.11.01.000 | B174: =IFERROR(VLOOKUP(A174,BD_Receita_PMSP_2BIM!$A:$S,2,0),0) -> Transferências Advindas de Emendas Parlamentares - Convênio FMS X ESTA | C174: =IFERROR(VLOOKUP($A174,BD_Receita_PMSP_2BIM!$A:$S,15,0),0) -> 1,200 | D174: =IFERROR(VLOOKUP($A174,BD_Receita_PMSP_2BIM!$A:$S,10,0),0) -> 1,200 | E174: =IFERROR(VLOOKUP($A174,BD_Receita_PMSP_2BIM!$A:$S,13,0),0) -> 120,000 | F174: 10,000.00
A175: 2.4.2.2.50.0.1.13.00.000.000.11.01.000 | B175: =IFERROR(VLOOKUP(A175,BD_Receita_PMSP_2BIM!$A:$S,2,0),0) -> Transf. Advindas de Emendas Parlamentares - Convênio SES/SP 070069 | C175: =IFERROR(VLOOKUP($A175,BD_Receita_PMSP_2BIM!$A:$S,15,0),0) -> 0 | D175: =IFERROR(VLOOKUP($A175,BD_Receita_PMSP_2BIM!$A:$S,10,0),0) -> 149,487 | E175: =IFERROR(VLOOKUP($A175,BD_Receita_PMSP_2BIM!$A:$S,13,0),0) -> 150,000 | F175: 100.34
A176: 2.4.2.2.50.0.1.14.00.000.000.11.01.000 | B176: =IFERROR(VLOOKUP(A176,BD_Receita_PMSP_2BIM!$A:$S,2,0),0) -> Convênio n.º 000151/2025 - SMS/ Ampliação da UBS Fazenda da Juta 11 | C176: =IFERROR(VLOOKUP($A176,BD_Receita_PMSP_2BIM!$A:$S,15,0),0) -> 0 | D176: =IFERROR(VLOOKUP($A176,BD_Receita_PMSP_2BIM!$A:$S,10,0),0) -> 0 | E176: =IFERROR(VLOOKUP($A176,BD_Receita_PMSP_2BIM!$A:$S,13,0),0) -> 244,652 | F176: 0
A177: 2.4.2.9.99.0.1.02.00.001.000.11.01.000 | B177: =IFERROR(VLOOKUP(A177,BD_Receita_PMSP_2BIM!$A:$S,2,0),0) -> Transferências Advindas de Emendas Parlamentares - Fundo a Fundo/SES | C177: =IFERROR(VLOOKUP($A177,BD_Receita_PMSP_2BIM!$A:$S,15,0),0) -> 5,000,000 | D177: =IFERROR(VLOOKUP($A177,BD_Receita_PMSP_2BIM!$A:$S,10,0),0) -> 5,000,000 | E177: =IFERROR(VLOOKUP($A177,BD_Receita_PMSP_2BIM!$A:$S,13,0),0) -> 0 | F177: 0
B178: =IFERROR(VLOOKUP(A178,BD_Receita_PMSP_2BIM!$A:$S,2,0),0) -> 0 | C178: =IFERROR(VLOOKUP($A178,BD_Receita_PMSP_2BIM!$A:$S,15,0),0) -> 0 | D178: =IFERROR(VLOOKUP($A178,BD_Receita_PMSP_2BIM!$A:$S,10,0),0) -> 0 | E178: =IFERROR(VLOOKUP($A178,BD_Receita_PMSP_2BIM!$A:$S,13,0),0) -> 0 | F178: 0
F179: 0
F180: 0
B182: Proveniente de outros Municípios | C182: =C183 -> 0 | D182: =D183 -> 0 | E182: =E183 -> 0 | F182: 0
B183: 0 | F183: 0
F184: 0
A185: Fonte 01 | B185: RECEITA DE OPERAÇÕES DE CRÉDITO INTERNAS E EXTERNAS VINCULADAS A SAÚDE (XXIX) | C185: =SUM(C186:C192) -> 0 | D185: =SUM(D186:D192) -> 0 | E185: =SUM(E186:E192) -> 31,518 | F185: 0
A186: FILTROS:
A187: FONTE DE RECURSO ("AA") | F187: 0
A188: 01 | F188: 0
A189: ÓRGÃO
A190: 84
A191: =IFERROR( _xlfn._xlws.FILTER( BD_Receita_PMSP_2BIM!$A:$A,( ( (LEFT(BD_Receita_PMSP_2BIM!$S:$S, LEN($A188)) = $A188)* (TEXT(BD_Receita_PMSP_2BIM!$E:$E, "00") = TEXT($A190, "00")) ) )), "(vazio)") -> 1.3.2.1.05.0.1.01.02.001.001.11.01.000 | B191: =IFERROR(VLOOKUP(A191,BD_Receita_PMSP_2BIM!$A:$S,2,0),0) -> Contrato 4641/OC-BR - BID - Avança Saúde SP | C191: =IFERROR(VLOOKUP($A191,BD_Receita_PMSP_2BIM!$A:$S,15,0),0) -> 0 | D191: =IFERROR(VLOOKUP($A191,BD_Receita_PMSP_2BIM!$A:$S,10,0),0) -> 0 | E191: =IFERROR(VLOOKUP($A191,BD_Receita_PMSP_2BIM!$A:$S,13,0),0) -> 31,518 | F191: 0
A195: Demais Fontes - PMSP e HSPM | B195: OUTRAS RECEITAS (XXX) | C195: =SUM(C196, C229) -> 23,840,033 | D195: =SUM(D196, D229) -> 23,840,033 | E195: =SUM(E196, E229) -> 14,262,943 | F195: 59.83
A196: FILTROS: | B196: Outras Fontes - PMSP | C196: =SUM(C197:C227) -> 4,044,897 | D196: =SUM(D197:D227) -> 4,044,897 | E196: =SUM(E197:E227) -> 4,128,017 | F196: 102.05
A197: FONTE DE RECURSO ("AA")
A198: NÃO CONTÉM AS ANTERIORES
A199: ÓRGÃO
A200: 84
A201: =IFERROR( _xlfn._xlws.FILTER( BD_Receita_PMSP_2BIM!$A:$A,( (TEXT(BD_Receita_PMSP_2BIM!$E:$E, "00") = TEXT($A$200, "00")) * (BD_Receita_PMSP_2BIM!$S:$S <> "00") * (BD_Receita_PMSP_2BIM!$S:$S <> $A60) * (BD_Receita_PMSP_2BIM!$S:$S <> $A61) * (BD_Receita_PMSP_2BIM!$S:$S <> $A62) * (BD_Receita_PMSP_2BIM!$S:$S <> $A63) * (BD_Receita_PMSP_2BIM!$S:$S <> $A140) * (BD_Receita_PMSP_2BIM!$S:$S <> $A188) ) ), "(vazio)") -> 1.3.2.1.05.0.1.01.04.020.002.11.01.000 | B201: =IFERROR(VLOOKUP(A201,BD_Receita_PMSP_2BIM!$A:$S,2,0),0) -> PMSP-SMS/FMS/EQUIPOS/MPESP | C201: =IFERROR(VLOOKUP($A201,BD_Receita_PMSP_2BIM!$A:$S,15,0),0) -> 60,000 | D201: =IFERROR(VLOOKUP($A201,BD_Receita_PMSP_2BIM!$A:$S,10,0),0) -> 60,000 | E201: =IFERROR(VLOOKUP($A201,BD_Receita_PMSP_2BIM!$A:$S,13,0),0) -> 0 | F201: =IFERROR(E201/D201*100,0) -> 0
A202: 1.3.2.1.05.0.1.01.06.020.001.11.01.000 | B202: =IFERROR(VLOOKUP(A202,BD_Receita_PMSP_2BIM!$A:$S,2,0),0) -> Rendimentos Sobre Multas Previstas na Legislação Sanitária - FMS | C202: =IFERROR(VLOOKUP($A202,BD_Receita_PMSP_2BIM!$A:$S,15,0),0) -> 900,000 | D202: =IFERROR(VLOOKUP($A202,BD_Receita_PMSP_2BIM!$A:$S,10,0),0) -> 900,000 | E202: =IFERROR(VLOOKUP($A202,BD_Receita_PMSP_2BIM!$A:$S,13,0),0) -> 421,530 | F202: 46.84
A203: 1.3.2.1.05.0.1.01.06.020.004.11.01.000 | B203: =IFERROR(VLOOKUP(A203,BD_Receita_PMSP_2BIM!$A:$S,2,0),0) -> Acordo MP - UPA Pediatra Menino Jesus | C203: =IFERROR(VLOOKUP($A203,BD_Receita_PMSP_2BIM!$A:$S,15,0),0) -> 600,000 | D203: =IFERROR(VLOOKUP($A203,BD_Receita_PMSP_2BIM!$A:$S,10,0),0) -> 600,000 | E203: =IFERROR(VLOOKUP($A203,BD_Receita_PMSP_2BIM!$A:$S,13,0),0) -> 58,347 | F203: 9.72
A204: 1.3.2.1.05.0.1.01.06.020.005.11.01.000 | B204: =IFERROR(VLOOKUP(A204,BD_Receita_PMSP_2BIM!$A:$S,2,0),0) -> Combate à COVID-19 | C204: =IFERROR(VLOOKUP($A204,BD_Receita_PMSP_2BIM!$A:$S,15,0),0) -> 21,600 | D204: =IFERROR(VLOOKUP($A204,BD_Receita_PMSP_2BIM!$A:$S,10,0),0) -> 21,600 | E204: =IFERROR(VLOOKUP($A204,BD_Receita_PMSP_2BIM!$A:$S,13,0),0) -> 4,668 | F204: 21.61
A205: 1.3.2.1.05.0.1.01.06.020.006.11.01.000 | B205: =IFERROR(VLOOKUP(A205,BD_Receita_PMSP_2BIM!$A:$S,2,0),0) -> MPU/MPT - Combate à COVID-19 | C205: =IFERROR(VLOOKUP($A205,BD_Receita_PMSP_2BIM!$A:$S,15,0),0) -> 1,200 | D205: =IFERROR(VLOOKUP($A205,BD_Receita_PMSP_2BIM!$A:$S,10,0),0) -> 1,200 | E205: =IFERROR(VLOOKUP($A205,BD_Receita_PMSP_2BIM!$A:$S,13,0),0) -> 900 | F205: 75.01
A206: 1.3.2.1.05.0.1.01.06.020.008.11.01.000 | B206: =IFERROR(VLOOKUP(A206,BD_Receita_PMSP_2BIM!$A:$S,2,0),0) -> Rendimentos sobre Auto de Infração - VIG COVISA | C206: =IFERROR(VLOOKUP($A206,BD_Receita_PMSP_2BIM!$A:$S,15,0),0) -> 0 | D206: =IFERROR(VLOOKUP($A206,BD_Receita_PMSP_2BIM!$A:$S,10,0),0) -> 0 | E206: =IFERROR(VLOOKUP($A206,BD_Receita_PMSP_2BIM!$A:$S,13,0),0) -> 8,807 | F206: 0
A207: 1.3.2.1.05.0.1.01.06.027.010.11.01.000 | B207: =IFERROR(VLOOKUP(A207,BD_Receita_PMSP_2BIM!$A:$S,2,0),0) -> Instituições Privadas x SMS - PMSP-SMS FMS DOA SHELL V | C207: =IFERROR(VLOOKUP($A207,BD_Receita_PMSP_2BIM!$A:$S,15,0),0) -> 12,000 | D207: =IFERROR(VLOOKUP($A207,BD_Receita_PMSP_2BIM!$A:$S,10,0),0) -> 12,000 | E207: =IFERROR(VLOOKUP($A207,BD_Receita_PMSP_2BIM!$A:$S,13,0),0) -> 5,762 | F207: 48.02
A208: 1.3.2.1.05.0.1.01.09.020.001.11.01.000 | B208: =IFERROR(VLOOKUP(A208,BD_Receita_PMSP_2BIM!$A:$S,2,0),0) -> Combate à COVID-19 | C208: =IFERROR(VLOOKUP($A208,BD_Receita_PMSP_2BIM!$A:$S,15,0),0) -> 36,000 | D208: =IFERROR(VLOOKUP($A208,BD_Receita_PMSP_2BIM!$A:$S,10,0),0) -> 36,000 | E208: =IFERROR(VLOOKUP($A208,BD_Receita_PMSP_2BIM!$A:$S,13,0),0) -> 8,629 | F208: 23.97
A209: 1.3.2.1.05.0.1.01.09.020.002.11.01.000 | B209: =IFERROR(VLOOKUP(A209,BD_Receita_PMSP_2BIM!$A:$S,2,0),0) -> Fundo Municipal de Saúde - 8.730-0 | C209: =IFERROR(VLOOKUP($A209,BD_Receita_PMSP_2BIM!$A:$S,15,0),0) -> 0 | D209: =IFERROR(VLOOKUP($A209,BD_Receita_PMSP_2BIM!$A:$S,10,0),0) -> 0 | E209: =IFERROR(VLOOKUP($A209,BD_Receita_PMSP_2BIM!$A:$S,13,0),0) -> 1,423,789 | F209: 0
A210: 1.7.4.1.99.0.1.14.00.001.000.11.01.000 | B210: =IFERROR(VLOOKUP(A210,BD_Receita_PMSP_2BIM!$A:$S,2,0),0) -> Transferências Instituições Privadas COM Fins Lucrativos -Fms - Art. 1 | C210: =IFERROR(VLOOKUP($A210,BD_Receita_PMSP_2BIM!$A:$S,15,0),0) -> 494,400 | D210: =IFERROR(VLOOKUP($A210,BD_Receita_PMSP_2BIM!$A:$S,10,0),0) -> 494,400 | E210: =IFERROR(VLOOKUP($A210,BD_Receita_PMSP_2BIM!$A:$S,13,0),0) -> 166,263 | F210: 33.63
A211: 1.7.4.1.99.0.1.14.00.002.000.11.01.000 | B211: =IFERROR(VLOOKUP(A211,BD_Receita_PMSP_2BIM!$A:$S,2,0),0) -> Transferências Instituições Privadas SEM Fins Lucrativos -Fms - Art. 1 | C211: =IFERROR(VLOOKUP($A211,BD_Receita_PMSP_2BIM!$A:$S,15,0),0) -> 1,200 | D211: =IFERROR(VLOOKUP($A211,BD_Receita_PMSP_2BIM!$A:$S,10,0),0) -> 1,200 | E211: =IFERROR(VLOOKUP($A211,BD_Receita_PMSP_2BIM!$A:$S,13,0),0) -> 0
A212: 1.7.5.9.99.0.1.02.00.000.000.11.01.000 | B212: =IFERROR(VLOOKUP(A212,BD_Receita_PMSP_2BIM!$A:$S,2,0),0) -> Transferências de Outras Instituições Públicas - MPU/MPT X FMS - COVID | C212: =IFERROR(VLOOKUP($A212,BD_Receita_PMSP_2BIM!$A:$S,15,0),0) -> 4,080 | D212: =IFERROR(VLOOKUP($A212,BD_Receita_PMSP_2BIM!$A:$S,10,0),0) -> 4,080 | E212: =IFERROR(VLOOKUP($A212,BD_Receita_PMSP_2BIM!$A:$S,13,0),0) -> 6,550
A213: 1.7.5.9.99.0.1.03.00.000.000.11.01.000 | B213: =IFERROR(VLOOKUP(A213,BD_Receita_PMSP_2BIM!$A:$S,2,0),0) -> Transferências de Outras Instituições Públicas - MP-SP/TJESP X FMS - C | C213: =IFERROR(VLOOKUP($A213,BD_Receita_PMSP_2BIM!$A:$S,15,0),0) -> 336,000 | D213: =IFERROR(VLOOKUP($A213,BD_Receita_PMSP_2BIM!$A:$S,10,0),0) -> 336,000 | E213: =IFERROR(VLOOKUP($A213,BD_Receita_PMSP_2BIM!$A:$S,13,0),0) -> 95,286
A214: 1.9.1.1.01.0.1.02.02.000.000.11.01.000 | B214: =IFERROR(VLOOKUP(A214,BD_Receita_PMSP_2BIM!$A:$S,2,0),0) -> Multas Previstas na Legislação Sanitária - FMS | C214: =IFERROR(VLOOKUP($A214,BD_Receita_PMSP_2BIM!$A:$S,15,0),0) -> 900,000 | D214: =IFERROR(VLOOKUP($A214,BD_Receita_PMSP_2BIM!$A:$S,10,0),0) -> 900,000 | E214: =IFERROR(VLOOKUP($A214,BD_Receita_PMSP_2BIM!$A:$S,13,0),0) -> 443,751 | F214: =IFERROR(E214/D214*100,0) -> 49.31
... 27 more rows

Sheet Despesas_ASPS
O1: DESPESAS COM SAÚDE QUE COMPÕEM O CÁLCULO DO MÍNIMO
O3: DESPESAS COM AÇÕES E SERVIÇOS PÚBLICOS DE SAÚDE (ASPS) – POR SUBFUNÇÃO E CATEGORIA ECONÔMICA | P3: DOTAÇÃO INICIAL | Q3: DOTAÇÃO ATUALIZADA | R3: DESPESAS EMPENHADAS | S3: DESPESAS LIQUIDADAS | T3: DESPESAS PAGAS
N4: CÓD
N5: 301 | O5: ATENÇÃO BÁSICA (XXX) | P5: =P6+P7 -> 7,953,763,446.00 | Q5: =Q6+Q7 -> 7,965,069,370.01 | R5: =R6+R7 -> 3,883,617,887.72 | S5: =S6+S7 -> 2,714,064,427.83 | T5: =T6+T7 -> 2,542,797,893.13
N6: 301.3 | O6: Despesas Correntes | P6: =SUMIF($A:$A,$N6,D:D) -> 7,888,278,428.00 | Q6: =SUMIF($A:$A,$N6,E:E) -> 7,886,198,238.05 | R6: =SUMIF($A:$A,$N6,F:F)-SUMIF(Itens_Excluidos_Tabela!$A:$A,$N6,Itens_Excluidos_Tabela!C:C) -> 3,864,530,292.04 | S6: =SUMIF($A:$A,$N6,G:G)-SUMIF(Itens_Excluidos_Tabela!$A:$A,$N6,Itens_Excluidos_Tabela!D:D) -> 2,711,567,811.12 | T6: =SUMIF($A:$A,$N6,H:H)-SUMIF(Itens_Excluidos_Tabela!$A:$A,$N6,Itens_Excluidos_Tabela!E:E) -> 2,541,123,315.22
N7: 301.4 | O7: Despesas de Capital | P7: =SUMIF($A:$A,$N7,D:D) -> 65,485,018.00 | Q7: =SUMIF($A:$A,$N7,E:E) -> 78,871,131.96 | R7: =SUMIF($A:$A,$N7,F:F)-SUMIF(Itens_Excluidos_Tabela!$A:$A,$N7,Itens_Excluidos_Tabela!C:C) -> 19,087,595.68 | S7: =SUMIF($A:$A,$N7,G:G)-SUMIF(Itens_Excluidos_Tabela!$A:$A,$N7,Itens_Excluidos_Tabela!D:D) -> 2,496,616.71 | T7: =SUMIF($A:$A,$N7,H:H)-SUMIF(Itens_Excluidos_Tabela!$A:$A,$N7,Itens_Excluidos_Tabela!E:E) -> 1,674,577.91
N8: 302 | O8: ASSISTÊNCIA HOSPITALAR E AMBULATORIAL (XXXI) | P8: =P9+P10 -> 6,137,512,971.00 | Q8: =Q9+Q10 -> 6,139,967,698.24 | R8: =R9+R10 -> 3,936,211,794.95 | S8: =S9+S10 -> 2,278,767,578.62 | T8: =T9+T10 -> 2,208,283,538.00
N9: 302.3 | O9: Despesas Correntes | P9: =SUMIF($A:$A,$N9,D:D) -> 6,129,055,780.00 | Q9: =SUMIF($A:$A,$N9,E:E) -> 6,096,107,385.02 | R9: =SUMIF($A:$A,$N9,F:F)-SUMIF(Itens_Excluidos_Tabela!$A:$A,$N9,Itens_Excluidos_Tabela!C:C) -> 3,904,192,531.58 | S9: =SUMIF($A:$A,$N9,G:G)-SUMIF(Itens_Excluidos_Tabela!$A:$A,$N9,Itens_Excluidos_Tabela!D:D) -> 2,273,713,770.90 | T9: =SUMIF($A:$A,$N9,H:H)-SUMIF(Itens_Excluidos_Tabela!$A:$A,$N9,Itens_Excluidos_Tabela!E:E) -> 2,203,233,338.97
N10: 302.4 | O10: Despesas de Capital | P10: =SUMIF($A:$A,$N10,D:D) -> 8,457,191.00 | Q10: =SUMIF($A:$A,$N10,E:E) -> 43,860,313.22 | R10: =SUMIF($A:$A,$N10,F:F)-SUMIF(Itens_Excluidos_Tabela!$A:$A,$N10,Itens_Excluidos_Tabela!C:C) -> 32,019,263.37 | S10: =SUMIF($A:$A,$N10,G:G)-SUMIF(Itens_Excluidos_Tabela!$A:$A,$N10,Itens_Excluidos_Tabela!D:D) -> 5,053,807.72 | T10: =SUMIF($A:$A,$N10,H:H)-SUMIF(Itens_Excluidos_Tabela!$A:$A,$N10,Itens_Excluidos_Tabela!E:E) -> 5,050,199.03
N11: 303 | O11: SUPORTE PROFILÁTICO E TERAPÊUTICO (XXXII) | P11: =P12+P13 -> 453,390,546.00 | Q11: =Q12+Q13 -> 453,390,546.00 | R11: =R12+R13 -> 250,536,062.61 | S11: =S12+S13 -> 165,478,716.92 | T11: =T12+T13 -> 154,429,602.08
N12: 303.3 | O12: Despesas Correntes | P12: =SUMIF($A:$A,$N12,D:D) -> 453,390,546.00 | Q12: =SUMIF($A:$A,$N12,E:E) -> 453,390,546.00 | R12: =SUMIF($A:$A,$N12,F:F)-SUMIF(Itens_Excluidos_Tabela!$A:$A,$N12,Itens_Excluidos_Tabela!C:C) -> 250,536,062.61 | S12: =SUMIF($A:$A,$N12,G:G)-SUMIF(Itens_Excluidos_Tabela!$A:$A,$N12,Itens_Excluidos_Tabela!D:D) -> 165,478,716.92 | T12: =SUMIF($A:$A,$N12,H:H)-SUMIF(Itens_Excluidos_Tabela!$A:$A,$N12,Itens_Excluidos_Tabela!E:E) -> 154,429,602.08
N13: 303.4 | O13: Despesas de Capital | P13: =SUMIF($A:$A,$N13,D:D) -> 0 | Q13: =SUMIF($A:$A,$N13,E:E) -> 0 | R13: =SUMIF($A:$A,$N13,F:F)-SUMIF(Itens_Excluidos_Tabela!$A:$A,$N13,Itens_Excluidos_Tabela!C:C) -> 0 | S13: =SUMIF($A:$A,$N13,G:G)-SUMIF(Itens_Excluidos_Tabela!$A:$A,$N13,Itens_Excluidos_Tabela!D:D) -> 0 | T13: =SUMIF($A:$A,$N13,H:H)-SUMIF(Itens_Excluidos_Tabela!$A:$A,$N13,Itens_Excluidos_Tabela!E:E) -> 0
N14: 304 | O14: VIGILÂNCIA SANITÁRIA (XXXIII) | P14: =P15+P16 -> 108,512,728.00 | Q14: =Q15+Q16 -> 108,512,728.00 | R14: =R15+R16 -> 53,547,505.51 | S14: =S15+S16 -> 23,976,258.95 | T14: =T15+T16 -> 18,558,832.92
N15: 304.3 | O15: Despesas Correntes | P15: =SUMIF($A:$A,$N15,D:D) -> 107,154,317.00 | Q15: =SUMIF($A:$A,$N15,E:E) -> 107,154,317.00 | R15: =SUMIF($A:$A,$N15,F:F)-SUMIF(Itens_Excluidos_Tabela!$A:$A,$N15,Itens_Excluidos_Tabela!C:C) -> 53,475,857.96 | S15: =SUMIF($A:$A,$N15,G:G)-SUMIF(Itens_Excluidos_Tabela!$A:$A,$N15,Itens_Excluidos_Tabela!D:D) -> 23,966,103.95 | T15: =SUMIF($A:$A,$N15,H:H)-SUMIF(Itens_Excluidos_Tabela!$A:$A,$N15,Itens_Excluidos_Tabela!E:E) -> 18,558,832.92
B16: Número Ano | C16: 2025 | N16: 304.4 | O16: Despesas de Capital | P16: =SUMIF($A:$A,$N16,D:D) -> 1,358,411.00 | Q16: =SUMIF($A:$A,$N16,E:E) -> 1,358,411.00 | R16: =SUMIF($A:$A,$N16,F:F)-SUMIF(Itens_Excluidos_Tabela!$A:$A,$N16,Itens_Excluidos_Tabela!C:C) -> 71,647.55 | S16: =SUMIF($A:$A,$N16,G:G)-SUMIF(Itens_Excluidos_Tabela!$A:$A,$N16,Itens_Excluidos_Tabela!D:D) -> 10,155.00 | T16: =SUMIF($A:$A,$N16,H:H)-SUMIF(Itens_Excluidos_Tabela!$A:$A,$N16,Itens_Excluidos_Tabela!E:E) -> 0
B17: Número Ano Execução | C17: 2025 | N17: 305 | O17: VIGILÂNCIA EPIDEMIOLÓGICA (XXXIV) | P17: =P18+P19 -> 0 | Q17: =Q18+Q19 -> 0 | R17: =SUMIF($A:$A,$N17,F:F)-SUMIF(Itens_Excluidos_Tabela!$A:$A,$N17,Itens_Excluidos_Tabela!C:C) -> 0 | S17: =SUMIF($A:$A,$N17,G:G)-SUMIF(Itens_Excluidos_Tabela!$A:$A,$N17,Itens_Excluidos_Tabela!D:D) -> 0 | T17: =SUMIF($A:$A,$N17,H:H)-SUMIF(Itens_Excluidos_Tabela!$A:$A,$N17,Itens_Excluidos_Tabela!E:E) -> 0
B18: Número Mês | C18: (Vários itens) | D18: 1 a 4 | N18: 305.3 | O18: Despesas Correntes | P18: =SUMIF($A:$A,$N18,D:D) -> 0 | Q18: =SUMIF($A:$A,$N18,E:E) -> 0 | R18: =SUMIF($A:$A,$N18,F:F)-SUMIF(Itens_Excluidos_Tabela!$A:$A,$N18,Itens_Excluidos_Tabela!C:C) -> 0 | S18: =SUMIF($A:$A,$N18,G:G)-SUMIF(Itens_Excluidos_Tabela!$A:$A,$N18,Itens_Excluidos_Tabela!D:D) -> 0 | T18: =SUMIF($A:$A,$N18,H:H)-SUMIF(Itens_Excluidos_Tabela!$A:$A,$N18,Itens_Excluidos_Tabela!E:E) -> 0
B19: Código Órgão Empresa | C19: (Vários itens) | D19: 84 - FMS e 28 - EGM | N19: 305.4 | O19: Despesas de Capital | P19: =SUMIF($A:$A,$N19,D:D) -> 0 | Q19: =SUMIF($A:$A,$N19,E:E) -> 0 | R19: =SUMIF($A:$A,$N19,F:F)-SUMIF(Itens_Excluidos_Tabela!$A:$A,$N19,Itens_Excluidos_Tabela!C:C) -> 0 | S19: =SUMIF($A:$A,$N19,G:G)-SUMIF(Itens_Excluidos_Tabela!$A:$A,$N19,Itens_Excluidos_Tabela!D:D) -> 0 | T19: =SUMIF($A:$A,$N19,H:H)-SUMIF(Itens_Excluidos_Tabela!$A:$A,$N19,Itens_Excluidos_Tabela!E:E) -> 0
B20: Código Função | C20: 10 | D20: Saúde | N20: 306 | O20: ALIMENTAÇÃO E NUTRIÇÃO (XXXV) | P20: =P21+P22 -> 0 | Q20: =Q21+Q22 -> 0 | R20: =R21+R22 -> 0 | S20: =S21+S22 -> 0 | T20: =T21+T22 -> 0
B21: Código Projeto Atividade | C21: (Vários itens) | D21: Excluídos 1530, 1531, 2501, 4121,>=8000; Despesas com veterinária, servidores comissionados do HSPM, emendas | N21: 306.3 | O21: Despesas Correntes | P21: =SUMIF($A:$A,$N21,D:D) -> 0 | Q21: =SUMIF($A:$A,$N21,E:E) -> 0 | R21: =SUMIF($A:$A,$N21,F:F)-SUMIF(Itens_Excluidos_Tabela!$A:$A,$N21,Itens_Excluidos_Tabela!C:C) -> 0 | S21: =SUMIF($A:$A,$N21,G:G)-SUMIF(Itens_Excluidos_Tabela!$A:$A,$N21,Itens_Excluidos_Tabela!D:D) -> 0 | T21: =SUMIF($A:$A,$N21,H:H)-SUMIF(Itens_Excluidos_Tabela!$A:$A,$N21,Itens_Excluidos_Tabela!E:E) -> 0
B22: Código Elemento Despesa | C22: (Vários itens) | D22: Excluídos 08, 82, 86, 97; Benefícios assistenciais do servidor, Aporte de recursos em favor de parceiro privado em PPP, Compensações em regime de previdência e Aporte para cobertura de déficit atuarial do RPPS | N22: 306.4 | O22: Despesas de Capital | P22: =SUMIF($A:$A,$N22,D:D) -> 0 | Q22: =SUMIF($A:$A,$N22,E:E) -> 0 | R22: =SUMIF($A:$A,$N22,F:F)-SUMIF(Itens_Excluidos_Tabela!$A:$A,$N22,Itens_Excluidos_Tabela!C:C) -> 0 | S22: =SUMIF($A:$A,$N22,G:G)-SUMIF(Itens_Excluidos_Tabela!$A:$A,$N22,Itens_Excluidos_Tabela!D:D) -> 0 | T22: =SUMIF($A:$A,$N22,H:H)-SUMIF(Itens_Excluidos_Tabela!$A:$A,$N22,Itens_Excluidos_Tabela!E:E) -> 0
B23: Código Fonte de Recurso | C23: 00 | D23: Tesouro Municipal - Receitas de Impostos Municipais | N23: Outras | O23: OUTRAS SUBFUNÇÕES (XXXVI) | P23: =P24+P25 -> 3,714,476,217.00 | Q23: =Q24+Q25 -> 3,714,215,620.37 | R23: =R24+R25 -> 1,894,103,976.42 | S23: =S24+S25 -> 1,068,560,022.49 | T23: =T24+T25 -> 1,055,747,418.78
N24: Outras.3 | O24: Despesas Correntes | P24: =SUM(P27+P30+P33+P36+P39+P42+P45+P48+P51) -> 3,704,933,694.00 | Q24: 3,704,707,971.37 | R24: 1,893,944,573.10 | S24: 1,068,543,107.79 | T24: 1,055,744,725.80
D25: Valores | N25: Outras.4 | O25: Despesas de Capital | P25: 9,542,523.00 | Q25: 9,507,649.00 | R25: 159,403.32 | S25: 16,914.70 | T25: 2,692.98
A26: CÓD | B26: Descrição Sub Função | C26: Descrição Categoria Econômica | D26: Valor Orçado Anual | E26: Valor Orçado Atualizado | F26: Valor Empenhado | G26: Valor Liquidado | H26: Valor Pago | N26: 122 | O26: ADMINISTRAÇÃO GERAL | P26: =P27+P28 -> 2,586,679,832.00 | Q26: =Q27+Q28 -> 2,586,420,235.37 | R26: =R27+R28 -> 832,979,540.21 | S26: =S27+S28 -> 734,446,201.08 | T26: =T27+T28 -> 729,841,251.45
A27: =CONCATENATE(LEFT(B27,3),".", LEFT(C27,1)) -> 122.3 | B27: 122 - ADMINISTRAÇÃO GERAL | C27: 3-DESPESAS CORRENTES | D27: 2,584,835,743.00 | E27: 2,584,610,020.37 | F27: 833,682,897.53 | G27: 734,989,425.46 | H27: 730,378,480.01 | N27: 122.3 | O27: Despesas Correntes | P27: =SUMIF($A:$A,$N27,D:D) -> 2,584,835,743.00 | Q27: =SUMIF($A:$A,$N27,E:E) -> 2,584,610,020.37 | R27: =SUMIF($A:$A,$N27,F:F)-SUMIF(Itens_Excluidos_Tabela!$A:$A,$N27,Itens_Excluidos_Tabela!C:C) -> 832,860,732.83 | S27: =SUMIF($A:$A,$N27,G:G)-SUMIF(Itens_Excluidos_Tabela!$A:$A,$N27,Itens_Excluidos_Tabela!D:D) -> 734,429,286.38 | T27: =SUMIF($A:$A,$N27,H:H)-SUMIF(Itens_Excluidos_Tabela!$A:$A,$N27,Itens_Excluidos_Tabela!E:E) -> 729,838,558.47
A28: =CONCATENATE(LEFT(B28,3),".", LEFT(C28,1)) -> 122.4 | B28: 122 - ADMINISTRAÇÃO GERAL | C28: 4-DESPESAS DE CAPITAL | D28: 1,844,089.00 | E28: 1,810,215.00 | F28: 118,807.38 | G28: 16,914.70 | H28: 2,692.98 | N28: 122.4 | O28: Despesas de Capital | P28: =SUMIF($A:$A,$N28,D:D) -> 1,844,089.00 | Q28: =SUMIF($A:$A,$N28,E:E) -> 1,810,215.00 | R28: =SUMIF($A:$A,$N28,F:F)-SUMIF(Itens_Excluidos_Tabela!$A:$A,$N28,Itens_Excluidos_Tabela!C:C) -> 118,807.38 | S28: =SUMIF($A:$A,$N28,G:G)-SUMIF(Itens_Excluidos_Tabela!$A:$A,$N28,Itens_Excluidos_Tabela!D:D) -> 16,914.70 | T28: =SUMIF($A:$A,$N28,H:H)-SUMIF(Itens_Excluidos_Tabela!$A:$A,$N28,Itens_Excluidos_Tabela!E:E) -> 2,692.98
A29: 126.3 | B29: 126 - TECNOLOGIA DA INFORMAÇÃO | C29: 3-DESPESAS CORRENTES | D29: 309,636,818.00 | E29: 309,636,818.00 | F29: 251,138,877.27 | G29: 113,505,003.19 | H29: 105,297,349.11 | N29: 126 | O29: TECNOLOGIA DA INFORMAÇÃO | P29: =P30+P31 -> 317,215,349.00 | Q29: =Q30+Q31 -> 317,214,349.00 | R29: =R30+R31 -> 251,179,473.21 | S29: =S30+S31 -> 113,505,003.19 | T29: =T30+T31 -> 105,297,349.11
A30: 126.4 | B30: 126 - TECNOLOGIA DA INFORMAÇÃO | C30: 4-DESPESAS DE CAPITAL | D30: 7,578,531.00 | E30: 7,577,531.00 | F30: 40,595.94 | G30: 0 | H30: 0 | N30: 126.3 | O30: Despesas Correntes | P30: =SUMIF($A:$A,$N30,D:D) -> 309,636,818.00 | Q30: =SUMIF($A:$A,$N30,E:E) -> 309,636,818.00 | R30: =SUMIF($A:$A,$N30,F:F)-SUMIF(Itens_Excluidos_Tabela!$A:$A,$N30,Itens_Excluidos_Tabela!C:C) -> 251,138,877.27 | S30: =SUMIF($A:$A,$N30,G:G)-SUMIF(Itens_Excluidos_Tabela!$A:$A,$N30,Itens_Excluidos_Tabela!D:D) -> 113,505,003.19 | T30: =SUMIF($A:$A,$N30,H:H)-SUMIF(Itens_Excluidos_Tabela!$A:$A,$N30,Itens_Excluidos_Tabela!E:E) -> 105,297,349.11
A31: 128.3 | B31: 128 - FORMAÇÃO DE RECURSOS HUMANOS | C31: 3-DESPESAS CORRENTES | D31: 172,625.00 | E31: 172,625.00 | F31: 0 | G31: 0 | H31: 0 | N31: 126.4 | O31: Despesas de Capital | P31: =SUMIF($A:$A,$N31,D:D) -> 7,578,531.00 | Q31: =SUMIF($A:$A,$N31,E:E) -> 7,577,531.00 | R31: =SUMIF($A:$A,$N31,F:F)-SUMIF(Itens_Excluidos_Tabela!$A:$A,$N31,Itens_Excluidos_Tabela!C:C) -> 40,595.94 | S31: =SUMIF($A:$A,$N31,G:G)-SUMIF(Itens_Excluidos_Tabela!$A:$A,$N31,Itens_Excluidos_Tabela!D:D) -> 0 | T31: =SUMIF($A:$A,$N31,H:H)-SUMIF(Itens_Excluidos_Tabela!$A:$A,$N31,Itens_Excluidos_Tabela!E:E) -> 0
A32: 128.4 | B32: 128 - FORMAÇÃO DE RECURSOS HUMANOS | C32: 4-DESPESAS DE CAPITAL | D32: 119,903.00 | E32: 119,903.00 | F32: 0 | G32: 0 | H32: 0 | N32: 128 | O32: FORMAÇÃO DE RECURSOS HUMANOS | P32: =P33+P34 -> 292,528.00 | Q32: =Q33+Q34 -> 292,528.00 | R32: =R33+R34 -> 0 | S32: =S33+S34 -> 0 | T32: =T33+T34 -> 0
A33: 131.3 | B33: 131 - COMUNICAÇÃO SOCIAL | C33: 3-DESPESAS CORRENTES | D33: 287,207.00 | E33: 287,207.00 | F33: 0 | G33: 0 | H33: 0 | N33: 128.3 | O33: Despesas Correntes | P33: =SUMIF($A:$A,$N33,D:D) -> 172,625.00 | Q33: =SUMIF($A:$A,$N33,E:E) -> 172,625.00 | R33: =SUMIF($A:$A,$N33,F:F)-SUMIF(Itens_Excluidos_Tabela!$A:$A,$N33,Itens_Excluidos_Tabela!C:C) -> 0 | S33: =SUMIF($A:$A,$N33,G:G)-SUMIF(Itens_Excluidos_Tabela!$A:$A,$N33,Itens_Excluidos_Tabela!D:D) -> 0 | T33: =SUMIF($A:$A,$N33,H:H)-SUMIF(Itens_Excluidos_Tabela!$A:$A,$N33,Itens_Excluidos_Tabela!E:E) -> 0
A34: 271.3 | B34: 271 - PREVIDÊNCIA BÁSICA | C34: 3-DESPESAS CORRENTES | D34: 809,944,963.00 | E34: 809,944,963.00 | F34: 809,944,963.00 | G34: 220,608,818.22 | H34: 220,608,818.22 | N34: 128.4 | O34: Despesas de Capital | P34: =SUMIF($A:$A,$N34,D:D) -> 119,903.00 | Q34: =SUMIF($A:$A,$N34,E:E) -> 119,903.00 | R34: =SUMIF($A:$A,$N34,F:F)-SUMIF(Itens_Excluidos_Tabela!$A:$A,$N34,Itens_Excluidos_Tabela!C:C) -> 0 | S34: =SUMIF($A:$A,$N34,G:G)-SUMIF(Itens_Excluidos_Tabela!$A:$A,$N34,Itens_Excluidos_Tabela!D:D) -> 0 | T34: =SUMIF($A:$A,$N34,H:H)-SUMIF(Itens_Excluidos_Tabela!$A:$A,$N34,Itens_Excluidos_Tabela!E:E) -> 0
A35: 301.3 | B35: 301 - ATENÇÃO BÁSICA | C35: 3-DESPESAS CORRENTES | D35: 7,888,278,428.00 | E35: 7,886,198,238.05 | F35: 3,883,229,368.88 | G35: 2,722,117,408.66 | H35: 2,550,784,008.61 | N35: 131 | O35: COMUNICAÇÃO SOCIAL | P35: =P36+P37 -> 287,207.00 | Q35: =Q36+Q37 -> 287,207.00 | R35: =R36+R37 -> 0 | S35: =S36+S37 -> 0 | T35: =T36+T37 -> 0
A36: 301.4 | B36: 301 - ATENÇÃO BÁSICA | C36: 4-DESPESAS DE CAPITAL | D36: 65,485,018.00 | E36: 78,871,131.96 | F36: 19,087,595.68 | G36: 2,496,616.71 | H36: 1,674,577.91 | N36: 131.3 | O36: Despesas Correntes | P36: =SUMIF($A:$A,$N36,D:D) -> 287,207.00 | Q36: =SUMIF($A:$A,$N36,E:E) -> 287,207.00 | R36: =SUMIF($A:$A,$N36,F:F)-SUMIF(Itens_Excluidos_Tabela!$A:$A,$N36,Itens_Excluidos_Tabela!C:C) -> 0 | S36: =SUMIF($A:$A,$N36,G:G)-SUMIF(Itens_Excluidos_Tabela!$A:$A,$N36,Itens_Excluidos_Tabela!D:D) -> 0 | T36: =SUMIF($A:$A,$N36,H:H)-SUMIF(Itens_Excluidos_Tabela!$A:$A,$N36,Itens_Excluidos_Tabela!E:E) -> 0
A37: 302.3 | B37: 302 - ASSISTÊNCIA HOSPITALAR E AMBULATORIAL | C37: 3-DESPESAS CORRENTES | D37: 6,129,055,780.00 | E37: 6,096,107,385.02 | F37: 3,904,677,631.09 | G37: 2,273,725,280.53 | H37: 2,203,244,848.60 | N37: 131.4 | O37: Despesas de Capital | P37: =SUMIF($A:$A,$N37,D:D) -> 0 | Q37: =SUMIF($A:$A,$N37,E:E) -> 0 | R37: =SUMIF($A:$A,$N37,F:F)-SUMIF(Itens_Excluidos_Tabela!$A:$A,$N37,Itens_Excluidos_Tabela!C:C) -> 0 | S37: =SUMIF($A:$A,$N37,G:G)-SUMIF(Itens_Excluidos_Tabela!$A:$A,$N37,Itens_Excluidos_Tabela!D:D) -> 0 | T37: =SUMIF($A:$A,$N37,H:H)-SUMIF(Itens_Excluidos_Tabela!$A:$A,$N37,Itens_Excluidos_Tabela!E:E) -> 0
A38: 302.4 | B38: 302 - ASSISTÊNCIA HOSPITALAR E AMBULATORIAL | C38: 4-DESPESAS DE CAPITAL | D38: 8,457,191.00 | E38: 43,860,313.22 | F38: 32,019,263.37 | G38: 5,053,807.72 | H38: 5,050,199.03 | N38: 241 | O38: ASSISTÊNCIA AO IDOSO | P38: =P39+P40 -> 0 | Q38: =Q39+Q40 -> 0 | R38: =R39+R40 -> 0 | S38: =S39+S40 -> 0 | T38: =T39+T40 -> 0
A39: 303.3 | B39: 303 - SUPORTE PROFILÁTICO E TERAPÊUTICO | C39: 3-DESPESAS CORRENTES | D39: 453,390,546.00 | E39: 453,390,546.00 | F39: 250,536,062.61 | G39: 165,478,716.92 | H39: 154,429,602.08 | N39: 241.3 | O39: Despesas Correntes | P39: =SUMIF($A:$A,$N39,D:D) -> 0 | Q39: =SUMIF($A:$A,$N39,E:E) -> 0 | R39: =SUMIF($A:$A,$N39,F:F)-SUMIF(Itens_Excluidos_Tabela!$A:$A,$N39,Itens_Excluidos_Tabela!C:C) -> 0 | S39: =SUMIF($A:$A,$N39,G:G)-SUMIF(Itens_Excluidos_Tabela!$A:$A,$N39,Itens_Excluidos_Tabela!D:D) -> 0 | T39: =SUMIF($A:$A,$N39,H:H)-SUMIF(Itens_Excluidos_Tabela!$A:$A,$N39,Itens_Excluidos_Tabela!E:E) -> 0
A40: 304.3 | B40: 304 - VIGILÂNCIA SANITÁRIA | C40: 3-DESPESAS CORRENTES | D40: 107,154,317.00 | E40: 107,154,317.00 | F40: 61,199,727.89 | G40: 27,445,985.47 | H40: 21,698,265.23 | N40: 241.4 | O40: Despesas de Capital | P40: =SUMIF($A:$A,$N40,D:D) -> 0 | Q40: =SUMIF($A:$A,$N40,E:E) -> 0 | R40: =SUMIF($A:$A,$N40,F:F)-SUMIF(Itens_Excluidos_Tabela!$A:$A,$N40,Itens_Excluidos_Tabela!C:C) -> 0 | S40: =SUMIF($A:$A,$N40,G:G)-SUMIF(Itens_Excluidos_Tabela!$A:$A,$N40,Itens_Excluidos_Tabela!D:D) -> 0 | T40: =SUMIF($A:$A,$N40,H:H)-SUMIF(Itens_Excluidos_Tabela!$A:$A,$N40,Itens_Excluidos_Tabela!E:E) -> 0
A41: 304.4 | B41: 304 - VIGILÂNCIA SANITÁRIA | C41: 4-DESPESAS DE CAPITAL | D41: 1,358,411.00 | E41: 1,358,411.00 | F41: 71,647.55 | G41: 10,155.00 | H41: 0 | N41: 242 | O41: ASSISTÊNCIA AO PORTADOR DE DEFICIÊNCIA | P41: =P42+P43 -> 0 | Q41: =Q42+Q43 -> 0 | R41: =R42+R43 -> 0 | S41: =S42+S43 -> 0 | T41: =T42+T43 -> 0
A42: 422.3 | B42: 422 - DIREITOS INDIVIDUAIS, COLETIVOS E DIFUSOS | C42: 3-DESPESAS CORRENTES | D42: 56,338.00 | E42: 56,338.00 | F42: 0 | G42: 0 | H42: 0 | N42: 242.3 | O42: Despesas Correntes | P42: =SUMIF($A:$A,$N42,D:D) -> 0 | Q42: =SUMIF($A:$A,$N42,E:E) -> 0 | R42: =SUMIF($A:$A,$N42,F:F)-SUMIF(Itens_Excluidos_Tabela!$A:$A,$N42,Itens_Excluidos_Tabela!C:C) -> 0 | S42: =SUMIF($A:$A,$N42,G:G)-SUMIF(Itens_Excluidos_Tabela!$A:$A,$N42,Itens_Excluidos_Tabela!D:D) -> 0 | T42: =SUMIF($A:$A,$N42,H:H)-SUMIF(Itens_Excluidos_Tabela!$A:$A,$N42,Itens_Excluidos_Tabela!E:E) -> 0
B43: Total Geral | D43: 18,367,655,908.00 | E43: 18,381,155,962.62 | F43: 10,045,747,438.19 | G43: 6,265,448,132.58 | H43: 5,993,168,841.78 | N43: 242.4 | O43: Despesas de Capital | P43: =SUMIF($A:$A,$N43,D:D) -> 0 | Q43: =SUMIF($A:$A,$N43,E:E) -> 0 | R43: =SUMIF($A:$A,$N43,F:F)-SUMIF(Itens_Excluidos_Tabela!$A:$A,$N43,Itens_Excluidos_Tabela!C:C) -> 0 | S43: =SUMIF($A:$A,$N43,G:G)-SUMIF(Itens_Excluidos_Tabela!$A:$A,$N43,Itens_Excluidos_Tabela!D:D) -> 0 | T43: =SUMIF($A:$A,$N43,H:H)-SUMIF(Itens_Excluidos_Tabela!$A:$A,$N43,Itens_Excluidos_Tabela!E:E) -> 0
A44: . | N44: 422 | O44: DIREITOS INDIVIDUAIS, COLETIVOS E DIFUSOS | P44: =P45+P46 -> 56,338.00 | Q44: =Q45+Q46 -> 56,338.00 | R44: =R45+R46 -> 0 | S44: =S45+S46 -> 0 | T44: =T45+T46 -> 0
N45: 422.3 | O45: Despesas Correntes | P45: =SUMIF($A:$A,$N45,D:D) -> 56,338.00 | Q45: =SUMIF($A:$A,$N45,E:E) -> 56,338.00 | R45: =SUMIF($A:$A,$N45,F:F)-SUMIF(Itens_Excluidos_Tabela!$A:$A,$N45,Itens_Excluidos_Tabela!C:C) -> 0 | S45: =SUMIF($A:$A,$N45,G:G)-SUMIF(Itens_Excluidos_Tabela!$A:$A,$N45,Itens_Excluidos_Tabela!D:D) -> 0 | T45: =SUMIF($A:$A,$N45,H:H)-SUMIF(Itens_Excluidos_Tabela!$A:$A,$N45,Itens_Excluidos_Tabela!E:E) -> 0
N46: 422.4 | O46: Despesas de Capital | P46: =SUMIF($A:$A,$N46,D:D) -> 0 | Q46: =SUMIF($A:$A,$N46,E:E) -> 0 | R46: =SUMIF($A:$A,$N46,F:F)-SUMIF(Itens_Excluidos_Tabela!$A:$A,$N46,Itens_Excluidos_Tabela!C:C) -> 0 | S46: =SUMIF($A:$A,$N46,G:G)-SUMIF(Itens_Excluidos_Tabela!$A:$A,$N46,Itens_Excluidos_Tabela!D:D) -> 0 | T46: =SUMIF($A:$A,$N46,H:H)-SUMIF(Itens_Excluidos_Tabela!$A:$A,$N46,Itens_Excluidos_Tabela!E:E) -> 0
A47: Somatório Conferência | D47: =SUMIF(B17:B46, "Total Geral", D17:D46) -> 18,367,655,908.00 | E47: =SUMIF(B17:B46, "Total Geral", E17:E46) -> 18,381,155,962.62 | F47: =SUMIF(B17:B46,"Total Geral",F17:F46)-SUMIF(Itens_Excluidos_Tabela!$A:$A, "Total Geral", Itens_Excluidos_Tabela!C:C) -> 10,018,017,227.21 | G47: =SUMIF(B17:B46,"Total Geral",G17:G46)-SUMIF(Itens_Excluidos_Tabela!$A:$A, "Total Geral", Itens_Excluidos_Tabela!D:D) -> 6,250,847,004.81 | H47: =SUMIF(B17:B46,"Total Geral",H17:H46)-SUMIF(Itens_Excluidos_Tabela!$A:$A, "Total Geral", Itens_Excluidos_Tabela!E:E) -> 5,979,817,284.91 | N47: 271 | O47: PREVIDÊNCIA BÁSICA | P47: =P48+P49 -> 809,944,963.00 | Q47: =Q48+Q49 -> 809,944,963.00 | R47: =R48+R49 -> 809,944,963.00 | S47: =S48+S49 -> 220,608,818.22 | T47: =T48+T49 -> 220,608,818.22
A48: Variação | D48: =D47-P54 -> 0 | E48: =E47-Q54 -> 0 | F48: =F47-R54 -> 0 | G48: =G47-S54 -> 0 | H48: =H47-T54 -> 0 | N48: 271.3 | O48: Despesas Correntes | P48: =SUMIF($A:$A,$N48,D:D) -> 809,944,963.00 | Q48: =SUMIF($A:$A,$N48,E:E) -> 809,944,963.00 | R48: =SUMIF($A:$A,$N48,F:F)-SUMIF(Itens_Excluidos_Tabela!$A:$A,$N48,Itens_Excluidos_Tabela!C:C) -> 809,944,963.00 | S48: =SUMIF($A:$A,$N48,G:G)-SUMIF(Itens_Excluidos_Tabela!$A:$A,$N48,Itens_Excluidos_Tabela!D:D) -> 220,608,818.22 | T48: =SUMIF($A:$A,$N48,H:H)-SUMIF(Itens_Excluidos_Tabela!$A:$A,$N48,Itens_Excluidos_Tabela!E:E) -> 220,608,818.22
N49: 271.4 | O49: Despesas de Capital | P49: =SUMIF($A:$A,$N49,D:D) -> 0 | Q49: =SUMIF($A:$A,$N49,E:E) -> 0 | R49: =SUMIF($A:$A,$N49,F:F)-SUMIF(Itens_Excluidos_Tabela!$A:$A,$N49,Itens_Excluidos_Tabela!C:C) -> 0 | S49: =SUMIF($A:$A,$N49,G:G)-SUMIF(Itens_Excluidos_Tabela!$A:$A,$N49,Itens_Excluidos_Tabela!D:D) -> 0 | T49: =SUMIF($A:$A,$N49,H:H)-SUMIF(Itens_Excluidos_Tabela!$A:$A,$N49,Itens_Excluidos_Tabela!E:E) -> 0
N50: 331 | O50: PROTEÇÃO E BENEFÍCIOS AO TRABALHADOR | P50: =P51+P52 -> 0 | Q50: =Q51+Q52 -> 0 | R50: =R51+R52 -> 0 | S50: =S51+S52 -> 0 | T50: =T51+T52 -> 0
N51: 331.3 | O51: Despesas Correntes | P51: =SUMIF($A:$A,$N51,D:D) -> 0 | Q51: =SUMIF($A:$A,$N51,E:E) -> 0 | R51: =SUMIF($A:$A,$N51,F:F)-SUMIF(Itens_Excluidos_Tabela!$A:$A,$N51,Itens_Excluidos_Tabela!C:C) -> 0 | S51: =SUMIF($A:$A,$N51,G:G)-SUMIF(Itens_Excluidos_Tabela!$A:$A,$N51,Itens_Excluidos_Tabela!D:D) -> 0 | T51: =SUMIF($A:$A,$N51,H:H)-SUMIF(Itens_Excluidos_Tabela!$A:$A,$N51,Itens_Excluidos_Tabela!E:E) -> 0
O52: Despesas de Capital | P52: =SUMIF($A:$A,$N52,D:D) -> 0 | Q52: =SUMIF($A:$A,$N52,E:E) -> 0 | R52: =SUMIF($A:$A,$N52,F:F)-SUMIF(Itens_Excluidos_Tabela!$A:$A,$N52,Itens_Excluidos_Tabela!C:C) -> 0 | S52: =SUMIF($A:$A,$N52,G:G)-SUMIF(Itens_Excluidos_Tabela!$A:$A,$N52,Itens_Excluidos_Tabela!D:D) -> 0 | T52: =SUMIF($A:$A,$N52,H:H)-SUMIF(Itens_Excluidos_Tabela!$A:$A,$N52,Itens_Excluidos_Tabela!E:E) -> 0
O53: TOTAL (XI) = (IV + V + VI + VII + VIII + IX + X)
P54: =SUM(P5,P8,P11,P14,P17,P20,P23) -> 18,367,655,908.00 | Q54: =SUM(Q5,Q8,Q11,Q14,Q17,Q20,Q23) -> 18,381,155,962.62 | R54: =SUM(R5,R8,R11,R14,R17,R20,R23) -> 10,018,017,227.21 | S54: =SUM(S5,S8,S11,S14,S17,S20,S23) -> 6,250,847,004.81 | T54: =SUM(T5,T8,T11,T14,T17,T20,T23) -> 5,979,817,284.91
O55: Variação | P55: =P54-Anexo12_Saúde!H55 -> 0 | Q55: =Q54-Anexo12_Saúde!I55 -> 0 | R55: =R54-Anexo12_Saúde!J55 -> 0 | S55: =S54-Anexo12_Saúde!L55 -> 0 | T55: =T54-Anexo12_Saúde!N55 -> 0

Sheet OutrasDespesas
A1: Projeto Atividade: | B1: Apenas >=8000; Ações excluídas de despesas com ASPS | O1: DESPESAS COM SAÚDE NÃO COMPUTADAS NO CÁLCULO DO MÍNIMO
B2: Número Ano | C2: 2025
B3: Número Ano Execução | C3: 2025 | O3: DESPESAS COM SAUDE POR SUBFUNÇÕES E CATEGORIA ECONÔMICA NÃO COMPUTADAS NO CÁLCULO DO MÍNIMO | P3: DOTAÇÃO INICIAL | Q3: DOTAÇÃO ATUALIZADA | R3: DESPESAS EMPENHADAS | S3: DESPESAS LIQUIDADAS | T3: DESPESAS PAGAS
B4: Número Mês | C4: (Vários itens) | D4: 01 a 04 | N4: CÓD
B5: Código Órgão Empresa | C5: 84 | D5: FMS | N5: 301 | O5: ATENÇÃO BÁSICA (XXX) | P5: =P6+P7 -> 1,608,755,340.00 | Q5: =Q6+Q7 -> 1,561,167,399.70 | R5: =R6+R7 -> 656,850,256.02 | S5: =S6+S7 -> 496,499,185.94 | T5: =T6+T7 -> 414,673,901.73
B6: Código Função | C6: 10 | D6: Saúde | N6: 301.3 | O6: Despesas Correntes | P6: =SUMIF($A:$A,$N6,E:E) -> 1,371,704,400.00 | Q6: =SUMIF($A:$A,$N6,F:F) -> 1,437,494,597.07 | R6: =SUMIF($A:$A,$N6,G:G)+SUMIF(Itens_Excluidos_Tabela!$A:$A, $N6, Itens_Excluidos_Tabela!C:C) -> 614,526,080.75 | S6: =SUMIF($A:$A,$N6,H:H)+SUMIF(Itens_Excluidos_Tabela!$A:$A, $N6, Itens_Excluidos_Tabela!D:D) -> 484,905,907.86 | T6: =SUMIF($A:$A,$N6,I:I)+SUMIF(Itens_Excluidos_Tabela!$A:$A, $N6, Itens_Excluidos_Tabela!E:E) -> 412,580,321.14
B7: Código Elemento Despesa | C7: (Vários itens) | D7: Excluídos 08, 82, 86 e 97; Mantido filtro de elementos excluídos de despesas com ASPS | N7: 301.4 | O7: Despesas de Capital | P7: =SUMIF($A:$A,$N7,E:E) -> 237,050,940.00 | Q7: =SUMIF($A:$A,$N7,F:F) -> 123,672,802.63 | R7: =SUMIF($A:$A,$N7,G:G)+SUMIF(Itens_Excluidos_Tabela!$A:$A, $N7, Itens_Excluidos_Tabela!C:C) -> 42,324,175.27 | S7: =SUMIF($A:$A,$N7,H:H)+SUMIF(Itens_Excluidos_Tabela!$A:$A, $N7, Itens_Excluidos_Tabela!D:D) -> 11,593,278.08 | T7: =SUMIF($A:$A,$N7,I:I)+SUMIF(Itens_Excluidos_Tabela!$A:$A, $N7, Itens_Excluidos_Tabela!E:E) -> 2,093,580.59
B8: Código Fonte de Recurso | C8: 00 | D8: Tesouro Municipal - Receitas de Impostos Municipais | N8: 302 | O8: ASSISTÊNCIA HOSPITALAR E AMBULATORIAL (XXXI) | P8: =P9+P10 -> 2,250,408,867.00 | Q8: =Q9+Q10 -> 2,555,024,150.55 | R8: =R9+R10 -> 1,493,723,256.12 | S8: =S9+S10 -> 652,748,383.68 | T8: =T9+T10 -> 603,135,964.45
N9: 302.3 | O9: Despesas Correntes | P9: =SUMIF($A:$A,$N9,E:E) -> 2,198,935,187.00 | Q9: =SUMIF($A:$A,$N9,F:F) -> 2,379,196,555.50 | R9: =SUMIF($A:$A,$N9,G:G)+SUMIF(Itens_Excluidos_Tabela!$A:$A, $N9, Itens_Excluidos_Tabela!C:C) -> 1,471,405,501.15 | S9: =SUMIF($A:$A,$N9,H:H)+SUMIF(Itens_Excluidos_Tabela!$A:$A, $N9, Itens_Excluidos_Tabela!D:D) -> 648,193,911.37 | T9: =SUMIF($A:$A,$N9,I:I)+SUMIF(Itens_Excluidos_Tabela!$A:$A, $N9, Itens_Excluidos_Tabela!E:E) -> 601,835,342.03
E10: Valores | N10: 302.4 | O10: Despesas de Capital | P10: =SUMIF($A:$A,$N10,E:E) -> 51,473,680.00 | Q10: =SUMIF($A:$A,$N10,F:F) -> 175,827,595.05 | R10: =SUMIF($A:$A,$N10,G:G)+SUMIF(Itens_Excluidos_Tabela!$A:$A, $N10, Itens_Excluidos_Tabela!C:C) -> 22,317,754.97 | S10: =SUMIF($A:$A,$N10,H:H)+SUMIF(Itens_Excluidos_Tabela!$A:$A, $N10, Itens_Excluidos_Tabela!D:D) -> 4,554,472.31 | T10: =SUMIF($A:$A,$N10,I:I)+SUMIF(Itens_Excluidos_Tabela!$A:$A, $N10, Itens_Excluidos_Tabela!E:E) -> 1,300,622.42
A11: CÓD | B11: Descrição Sub Função | C11: Descrição Categoria Econômica | D11: Código Projeto Atividade | E11: Valor Orçado Anual | F11: Valor Orçado Atualizado | G11: Valor Empenhado | H11: Valor Liquidado | I11: Valor Pago | N11: 303 | O11: SUPORTE PROFILÁTICO E TERAPÊUTICO (XXXII) | P11: =P12+P13 -> 159,906,600.00 | Q11: =Q12+Q13 -> 185,815,319.35 | R11: =R12+R13 -> 82,517,585.38 | S11: =S12+S13 -> 66,944,937.83 | T11: =T12+T13 -> 58,782,269.01
A12: =CONCATENATE(LEFT(B12,3),".",LEFT(C12,1)) -> 128.3 | B12: 128 - FORMAÇÃO DE RECURSOS HUMANOS | C12: 3-DESPESAS CORRENTES | D12: 8003 | E12: 50,000.00 | F12: 50,000.00 | G12: 0 | H12: 0 | I12: 0 | N12: 303.3 | O12: Despesas Correntes | P12: =SUMIF($A:$A,$N12,E:E) -> 159,906,600.00 | Q12: =SUMIF($A:$A,$N12,F:F) -> 185,815,319.35 | R12: =SUMIF($A:$A,$N12,G:G)+SUMIF(Itens_Excluidos_Tabela!$A:$A, $N12, Itens_Excluidos_Tabela!C:C) -> 82,517,585.38 | S12: =SUMIF($A:$A,$N12,H:H)+SUMIF(Itens_Excluidos_Tabela!$A:$A, $N12, Itens_Excluidos_Tabela!D:D) -> 66,944,937.83 | T12: =SUMIF($A:$A,$N12,I:I)+SUMIF(Itens_Excluidos_Tabela!$A:$A, $N12, Itens_Excluidos_Tabela!E:E) -> 58,782,269.01
A13: =CONCATENATE(LEFT(B13,3),".",LEFT(C13,1)) -> 128.3 | B13: 128 - FORMAÇÃO DE RECURSOS HUMANOS | C13: 3-DESPESAS CORRENTES | D13: 8004 | E13: 80,000.00 | F13: 80,000.00 | G13: 0 | H13: 0 | I13: 0 | N13: 303.4 | O13: Despesas de Capital | P13: =SUMIF($A:$A,$N13,E:E) -> 0 | Q13: =SUMIF($A:$A,$N13,F:F) -> 0 | R13: =SUMIF($A:$A,$N13,G:G)+SUMIF(Itens_Excluidos_Tabela!$A:$A, $N13, Itens_Excluidos_Tabela!C:C) -> 0 | S13: =SUMIF($A:$A,$N13,H:H)+SUMIF(Itens_Excluidos_Tabela!$A:$A, $N13, Itens_Excluidos_Tabela!D:D) -> 0 | T13: =SUMIF($A:$A,$N13,I:I)+SUMIF(Itens_Excluidos_Tabela!$A:$A, $N13, Itens_Excluidos_Tabela!E:E) -> 0
A14: 301.3 | B14: 301 - ATENÇÃO BÁSICA | C14: 3-DESPESAS CORRENTES | D14: 8007 | E14: 2,000,000.00 | F14: 2,000,000.00 | G14: 0 | H14: 0 | I14: 0 | N14: 304 | O14: VIGILÂNCIA SANITÁRIA (XXXIII) | P14: =P15+P16 -> 194,560,792.00 | Q14: =Q15+Q16 -> 274,181,059.06 | R14: =R15+R16 -> 151,108,048.31 | S14: =S15+S16 -> 49,100,762.95 | T14: =T15+T16 -> 47,601,204.09
A15: 301.3 | B15: 301 - ATENÇÃO BÁSICA | C15: 3-DESPESAS CORRENTES | D15: 8008 | E15: 30,000.00 | F15: 30,000.00 | G15: 0 | H15: 0 | I15: 0 | N15: 304.3 | O15: Despesas Correntes | P15: =SUMIF($A:$A,$N15,E:E) -> 185,068,592.00 | Q15: =SUMIF($A:$A,$N15,F:F) -> 263,290,874.68 | R15: =SUMIF($A:$A,$N15,G:G)+SUMIF(Itens_Excluidos_Tabela!$A:$A, $N15, Itens_Excluidos_Tabela!C:C) -> 149,817,479.68 | S15: =SUMIF($A:$A,$N15,H:H)+SUMIF(Itens_Excluidos_Tabela!$A:$A, $N15, Itens_Excluidos_Tabela!D:D) -> 49,037,735.49 | T15: =SUMIF($A:$A,$N15,I:I)+SUMIF(Itens_Excluidos_Tabela!$A:$A, $N15, Itens_Excluidos_Tabela!E:E) -> 47,541,587.19
A16: 301.3 | B16: 301 - ATENÇÃO BÁSICA | C16: 3-DESPESAS CORRENTES | D16: 8009 | E16: 30,000.00 | F16: 30,000.00 | G16: 0 | H16: 0 | I16: 0 | N16: 304.4 | O16: Despesas de Capital | P16: =SUMIF($A:$A,$N16,E:E) -> 9,492,200.00 | Q16: =SUMIF($A:$A,$N16,F:F) -> 10,890,184.38 | R16: =SUMIF($A:$A,$N16,G:G)+SUMIF(Itens_Excluidos_Tabela!$A:$A, $N16, Itens_Excluidos_Tabela!C:C) -> 1,290,568.63 | S16: =SUMIF($A:$A,$N16,H:H)+SUMIF(Itens_Excluidos_Tabela!$A:$A, $N16, Itens_Excluidos_Tabela!D:D) -> 63,027.46 | T16: =SUMIF($A:$A,$N16,I:I)+SUMIF(Itens_Excluidos_Tabela!$A:$A, $N16, Itens_Excluidos_Tabela!E:E) -> 59,616.90
A17: 301.3 | B17: 301 - ATENÇÃO BÁSICA | C17: 3-DESPESAS CORRENTES | D17: 8011 | E17: 1,000.00 | F17: 1,000.00 | G17: 0 | H17: 0 | I17: 0 | N17: 305 | O17: VIGILÂNCIA EPIDEMIOLÓGICA (XXXIV) | P17: =P18+P19 -> 0 | Q17: =Q18+Q19 -> 0 | R17: =R18+R19 -> 0 | S17: =S18+S19 -> 0 | T17: =T18+T19 -> 0
A18: 301.3 | B18: 301 - ATENÇÃO BÁSICA | C18: 3-DESPESAS CORRENTES | D18: 8016 | E18: 1,000.00 | F18: 1,000.00 | G18: 0 | H18: 0 | I18: 0 | N18: 305.3 | O18: Despesas Correntes | P18: =SUMIF($A:$A,$N18,E:E) -> 0 | Q18: =SUMIF($A:$A,$N18,F:F) -> 0 | R18: =SUMIF($A:$A,$N18,G:G)+SUMIF(Itens_Excluidos_Tabela!$A:$A, $N18, Itens_Excluidos_Tabela!C:C) -> 0 | S18: =SUMIF($A:$A,$N18,H:H)+SUMIF(Itens_Excluidos_Tabela!$A:$A, $N18, Itens_Excluidos_Tabela!D:D) -> 0 | T18: =SUMIF($A:$A,$N18,I:I)+SUMIF(Itens_Excluidos_Tabela!$A:$A, $N18, Itens_Excluidos_Tabela!E:E) -> 0
A19: 301.3 | B19: 301 - ATENÇÃO BÁSICA | C19: 3-DESPESAS CORRENTES | D19: 8017 | E19: 1,000.00 | F19: 1,000.00 | G19: 0 | H19: 0 | I19: 0 | N19: 305.4 | O19: Despesas de Capital | P19: =SUMIF($A:$A,$N19,E:E) -> 0 | Q19: =SUMIF($A:$A,$N19,F:F) -> 0 | R19: =SUMIF($A:$A,$N19,G:G)+SUMIF(Itens_Excluidos_Tabela!$A:$A, $N19, Itens_Excluidos_Tabela!C:C) -> 0 | S19: =SUMIF($A:$A,$N19,H:H)+SUMIF(Itens_Excluidos_Tabela!$A:$A, $N19, Itens_Excluidos_Tabela!D:D) -> 0 | T19: =SUMIF($A:$A,$N19,I:I)+SUMIF(Itens_Excluidos_Tabela!$A:$A, $N19, Itens_Excluidos_Tabela!E:E) -> 0
A20: 301.3 | B20: 301 - ATENÇÃO BÁSICA | C20: 3-DESPESAS CORRENTES | D20: 8019 | E20: 1,000.00 | F20: 1,000.00 | G20: 0 | H20: 0 | I20: 0 | N20: 306 | O20: ALIMENTAÇÃO E NUTRIÇÃO (XXXV) | P20: =P21+P22 -> 0 | Q20: =Q21+Q22 -> 0 | R20: =R21+R22 -> 0 | S20: =S21+S22 -> 0 | T20: =T21+T22 -> 0
A21: 301.3 | B21: 301 - ATENÇÃO BÁSICA | C21: 3-DESPESAS CORRENTES | D21: 8020 | E21: 1,000.00 | F21: 1,000.00 | G21: 0 | H21: 0 | I21: 0 | N21: 306.3 | O21: Despesas Correntes | P21: =SUMIF($A:$A,$N21,E:E) -> 0 | Q21: =SUMIF($A:$A,$N21,F:F) -> 0 | R21: =SUMIF($A:$A,$N21,G:G)+SUMIF(Itens_Excluidos_Tabela!$A:$A, $N21, Itens_Excluidos_Tabela!C:C) -> 0 | S21: =SUMIF($A:$A,$N21,H:H)+SUMIF(Itens_Excluidos_Tabela!$A:$A, $N21, Itens_Excluidos_Tabela!D:D) -> 0 | T21: =SUMIF($A:$A,$N21,I:I)+SUMIF(Itens_Excluidos_Tabela!$A:$A, $N21, Itens_Excluidos_Tabela!E:E) -> 0
A22: 301.3 | B22: 301 - ATENÇÃO BÁSICA | C22: 3-DESPESAS CORRENTES | D22: 8021 | E22: 1,000.00 | F22: 1,000.00 | G22: 0 | H22: 0 | I22: 0 | N22: 306.4 | O22: Despesas de Capital | P22: =SUMIF($A:$A,$N22,E:E) -> 0 | Q22: =SUMIF($A:$A,$N22,F:F) -> 0 | R22: =SUMIF($A:$A,$N22,G:G)+SUMIF(Itens_Excluidos_Tabela!$A:$A, $N22, Itens_Excluidos_Tabela!C:C) -> 0 | S22: =SUMIF($A:$A,$N22,H:H)+SUMIF(Itens_Excluidos_Tabela!$A:$A, $N22, Itens_Excluidos_Tabela!D:D) -> 0 | T22: =SUMIF($A:$A,$N22,I:I)+SUMIF(Itens_Excluidos_Tabela!$A:$A, $N22, Itens_Excluidos_Tabela!E:E) -> 0
A23: 301.3 | B23: 301 - ATENÇÃO BÁSICA | C23: 3-DESPESAS CORRENTES | D23: 8022 | E23: 1,000.00 | F23: 1,000.00 | G23: 0 | H23: 0 | I23: 0 | N23: Outras | O23: OUTRAS SUBFUNÇÕES (XXXVI) | P23: =P24+P25 -> 371,161,914.00 | Q23: =Q24+Q25 -> 416,194,346.57 | R23: =R24+R25 -> 131,680,813.81 | S23: =S24+S25 -> 109,391,850.10 | T23: =T24+T25 -> 108,746,998.68
A24: 301.3 | B24: 301 - ATENÇÃO BÁSICA | C24: 3-DESPESAS CORRENTES | D24: 8024 | E24: 500,000.00 | F24: 500,000.00 | G24: 0 | H24: 0 | I24: 0 | N24: Outras.3 | O24: Despesas Correntes | P24: =SUM(P27+P30+P33+P36+P39+P42+P45) -> 366,660,914.00 | Q24: 397,934,171.55 | R24: 129,147,063.57 | S24: 108,806,129.41 | T24: =SUM(T27+T30+T33+T36+T39+T42+T45) -> 108,258,376.87
A25: 301.4 | B25: 301 - ATENÇÃO BÁSICA | C25: 4-DESPESAS DE CAPITAL | D25: 8015 | E25: 1,000.00 | F25: 1,000.00 | G25: 0 | H25: 0 | I25: 0 | N25: Outras.4 | O25: Despesas de Capital | P25: 4,501,000.00 | Q25: 18,260,175.02 | R25: 2,533,750.24 | S25: 585,720.69 | T25: =SUM(T28+T31+T34+T37+T40+T43+T46) -> 488,621.81
A26: 301.4 | B26: 301 - ATENÇÃO BÁSICA | C26: 4-DESPESAS DE CAPITAL | D26: 9000 | E26: 25,000,000.00 | F26: 0 | G26: 0 | H26: 0 | I26: 0 | N26: 122 | O26: ADMINISTRAÇÃO GERAL | P26: =P27+P28 -> 331,151,314.00 | Q26: =Q27+Q28 -> 335,989,408.02 | R26: =R27+R28 -> 101,553,347.10 | S26: =S27+S28 -> 96,901,706.37 | T26: =T27+T28 -> 96,614,004.80
A27: 301.4 | B27: 301 - ATENÇÃO BÁSICA | C27: 4-DESPESAS DE CAPITAL | D27: 9003 | E27: 38,000.00 | F27: 0 | G27: 0 | H27: 0 | I27: 0 | N27: 122.3 | O27: Despesas Correntes | P27: =SUMIF($A:$A,$N27,E:E) -> 331,151,314.00 | Q27: =SUMIF($A:$A,$N27,F:F) -> 331,151,314.00 | R27: =SUMIF($A:$A,$N27,G:G)+SUMIF(Itens_Excluidos_Tabela!$A:$A, $N27, Itens_Excluidos_Tabela!C:C) -> 100,903,390.16 | S27: =SUMIF($A:$A,$N27,H:H)+SUMIF(Itens_Excluidos_Tabela!$A:$A, $N27, Itens_Excluidos_Tabela!D:D) -> 96,623,153.40 | T27: =SUMIF($A:$A,$N27,I:I)+SUMIF(Itens_Excluidos_Tabela!$A:$A, $N27, Itens_Excluidos_Tabela!E:E) -> 96,380,805.41
A28: 301.4 | B28: 301 - ATENÇÃO BÁSICA | C28: 4-DESPESAS DE CAPITAL | D28: 9007 | E28: 100,000.00 | F28: 0 | G28: 0 | H28: 0 | I28: 0 | N28: 122.4 | O28: Despesas de Capital | P28: =SUMIF($A:$A,$N28,E:E) -> 0 | Q28: =SUMIF($A:$A,$N28,F:F) -> 4,838,094.02 | R28: =SUMIF($A:$A,$N28,G:G)+SUMIF(Itens_Excluidos_Tabela!$A:$A, $N28, Itens_Excluidos_Tabela!C:C) -> 649,956.94 | S28: =SUMIF($A:$A,$N28,H:H)+SUMIF(Itens_Excluidos_Tabela!$A:$A, $N28, Itens_Excluidos_Tabela!D:D) -> 278,552.97 | T28: =SUMIF($A:$A,$N28,I:I)+SUMIF(Itens_Excluidos_Tabela!$A:$A, $N28, Itens_Excluidos_Tabela!E:E) -> 233,199.39
A29: 301.4 | B29: 301 - ATENÇÃO BÁSICA | C29: 4-DESPESAS DE CAPITAL | D29: 9008 | E29: 300,000.00 | F29: 0 | G29: 0 | H29: 0 | I29: 0 | N29: 126 | O29: TECNOLOGIA DA INFORMAÇÃO | P29: =P30+P31 -> 38,663,000.00 | Q29: =Q30+Q31 -> 67,037,193.34 | R29: =R30+R31 -> 19,651,533.57 | S29: =S30+S31 -> 2,064,908.19 | T29: =T30+T31 -> 1,712,510.34
A30: 301.4 | B30: 301 - ATENÇÃO BÁSICA | C30: 4-DESPESAS DE CAPITAL | D30: 9009 | E30: 400,000.00 | F30: 0 | G30: 0 | H30: 0 | I30: 0 | N30: 126.3 | O30: Despesas Correntes | P30: =SUMIF($A:$A,$N30,E:E) -> 34,662,000.00 | Q30: =SUMIF($A:$A,$N30,F:F) -> 54,115,112.34 | R30: =SUMIF($A:$A,$N30,G:G)+SUMIF(Itens_Excluidos_Tabela!$A:$A, $N30, Itens_Excluidos_Tabela!C:C) -> 17,767,740.27 | S30: =SUMIF($A:$A,$N30,H:H)+SUMIF(Itens_Excluidos_Tabela!$A:$A, $N30, Itens_Excluidos_Tabela!D:D) -> 1,757,740.47 | T30: =SUMIF($A:$A,$N30,I:I)+SUMIF(Itens_Excluidos_Tabela!$A:$A, $N30, Itens_Excluidos_Tabela!E:E) -> 1,457,087.92
A31: 301.4 | B31: 301 - ATENÇÃO BÁSICA | C31: 4-DESPESAS DE CAPITAL | D31: 9010 | E31: 250,000.00 | F31: 0 | G31: 0 | H31: 0 | I31: 0 | N31: 126.4 | O31: Despesas de Capital | P31: =SUMIF($A:$A,$N31,E:E) -> 4,001,000.00 | Q31: =SUMIF($A:$A,$N31,F:F) -> 12,922,081.00 | R31: =SUMIF($A:$A,$N31,G:G)+SUMIF(Itens_Excluidos_Tabela!$A:$A, $N31, Itens_Excluidos_Tabela!C:C) -> 1,883,793.30 | S31: =SUMIF($A:$A,$N31,H:H)+SUMIF(Itens_Excluidos_Tabela!$A:$A, $N31, Itens_Excluidos_Tabela!D:D) -> 307,167.72 | T31: =SUMIF($A:$A,$N31,I:I)+SUMIF(Itens_Excluidos_Tabela!$A:$A, $N31, Itens_Excluidos_Tabela!E:E) -> 255,422.42
A32: 301.4 | B32: 301 - ATENÇÃO BÁSICA | C32: 4-DESPESAS DE CAPITAL | D32: 9011 | E32: 50,000.00 | F32: 0 | G32: 0 | H32: 0 | I32: 0 | N32: 128 | O32: FORMAÇÃO DE RECURSOS HUMANOS | P32: =P33+P34 -> 1,347,600.00 | Q32: =Q33+Q34 -> 13,167,745.21 | R32: =R33+R34 -> 10,475,933.14 | S32: =S33+S34 -> 10,425,235.54 | T32: =T33+T34 -> 10,420,483.54
A33: 301.4 | B33: 301 - ATENÇÃO BÁSICA | C33: 4-DESPESAS DE CAPITAL | D33: 9012 | E33: 250,000.00 | F33: 0 | G33: 0 | H33: 0 | I33: 0 | N33: 128.3 | O33: Despesas Correntes | P33: =SUMIF($A:$A,$N33,E:E) -> 847,600.00 | Q33: =SUMIF($A:$A,$N33,F:F) -> 12,667,745.21 | R33: =SUMIF($A:$A,$N33,G:G)+SUMIF(Itens_Excluidos_Tabela!$A:$A, $N33, Itens_Excluidos_Tabela!C:C) -> 10,475,933.14 | S33: =SUMIF($A:$A,$N33,H:H)+SUMIF(Itens_Excluidos_Tabela!$A:$A, $N33, Itens_Excluidos_Tabela!D:D) -> 10,425,235.54 | T33: =SUMIF($A:$A,$N33,I:I)+SUMIF(Itens_Excluidos_Tabela!$A:$A, $N33, Itens_Excluidos_Tabela!E:E) -> 10,420,483.54
A34: 301.4 | B34: 301 - ATENÇÃO BÁSICA | C34: 4-DESPESAS DE CAPITAL | D34: 9013 | E34: 100,000.00 | F34: 0 | G34: 0 | H34: 0 | I34: 0 | N34: 128.4 | O34: Despesas de Capital | P34: =SUMIF($A:$A,$N34,E:E) -> 500,000.00 | Q34: =SUMIF($A:$A,$N34,F:F) -> 500,000.00 | R34: =SUMIF($A:$A,$N34,G:G)+SUMIF(Itens_Excluidos_Tabela!$A:$A, $N34, Itens_Excluidos_Tabela!C:C) -> 0 | S34: =SUMIF($A:$A,$N34,H:H)+SUMIF(Itens_Excluidos_Tabela!$A:$A, $N34, Itens_Excluidos_Tabela!D:D) -> 0 | T34: =SUMIF($A:$A,$N34,I:I)+SUMIF(Itens_Excluidos_Tabela!$A:$A, $N34, Itens_Excluidos_Tabela!E:E) -> 0
A35: 301.4 | B35: 301 - ATENÇÃO BÁSICA | C35: 4-DESPESAS DE CAPITAL | D35: 9014 | E35: 250,000.00 | F35: 0 | G35: 0 | H35: 0 | I35: 0 | N35: 131 | O35: COMUNICAÇÃO SOCIAL | P35: =P36+P37 -> 0 | Q35: =Q36+Q37 -> 0 | R35: =R36+R37 -> 0 | S35: =S36+S37 -> 0 | T35: =T36+T37 -> 0
A36: 301.4 | B36: 301 - ATENÇÃO BÁSICA | C36: 4-DESPESAS DE CAPITAL | D36: 9015 | E36: 400,000.00 | F36: 0 | G36: 0 | H36: 0 | I36: 0 | N36: 131.3 | O36: Despesas Correntes | P36: =SUMIF($A:$A,$N36,E:E) -> 0 | Q36: =SUMIF($A:$A,$N36,F:F) -> 0 | R36: =SUMIF($A:$A,$N36,G:G)+SUMIF(Itens_Excluidos_Tabela!$A:$A, $N36, Itens_Excluidos_Tabela!C:C) -> 0 | S36: =SUMIF($A:$A,$N36,H:H)+SUMIF(Itens_Excluidos_Tabela!$A:$A, $N36, Itens_Excluidos_Tabela!D:D) -> 0 | T36: =SUMIF($A:$A,$N36,I:I)+SUMIF(Itens_Excluidos_Tabela!$A:$A, $N36, Itens_Excluidos_Tabela!E:E) -> 0
A37: 301.4 | B37: 301 - ATENÇÃO BÁSICA | C37: 4-DESPESAS DE CAPITAL | D37: 9016 | E37: 400,000.00 | F37: 0 | G37: 0 | H37: 0 | I37: 0 | N37: 131.4 | O37: Despesas de Capital | P37: =SUMIF($A:$A,$N37,E:E) -> 0 | Q37: =SUMIF($A:$A,$N37,F:F) -> 0 | R37: =SUMIF($A:$A,$N37,G:G)+SUMIF(Itens_Excluidos_Tabela!$A:$A, $N37, Itens_Excluidos_Tabela!C:C) -> 0 | S37: =SUMIF($A:$A,$N37,H:H)+SUMIF(Itens_Excluidos_Tabela!$A:$A, $N37, Itens_Excluidos_Tabela!D:D) -> 0 | T37: =SUMIF($A:$A,$N37,I:I)+SUMIF(Itens_Excluidos_Tabela!$A:$A, $N37, Itens_Excluidos_Tabela!E:E) -> 0
A38: 301.4 | B38: 301 - ATENÇÃO BÁSICA | C38: 4-DESPESAS DE CAPITAL | D38: 9017 | E38: 550,000.00 | F38: 0 | G38: 0 | H38: 0 | I38: 0 | N38: 241 | O38: ASSISTÊNCIA AO IDOSO | P38: =P39+P40 -> 0 | Q38: =Q39+Q40 -> 0 | R38: =R39+R40 -> 0 | S38: =S39+S40 -> 0 | T38: =T39+T40 -> 0
A39: 301.4 | B39: 301 - ATENÇÃO BÁSICA | C39: 4-DESPESAS DE CAPITAL | D39: 9018 | E39: 50,000.00 | F39: 0 | G39: 0 | H39: 0 | I39: 0 | N39: 241.3 | O39: Despesas Correntes | P39: =SUMIF($A:$A,$N39,E:E) -> 0 | Q39: =SUMIF($A:$A,$N39,F:F) -> 0 | R39: =SUMIF($A:$A,$N39,G:G)+SUMIF(Itens_Excluidos_Tabela!$A:$A, $N39, Itens_Excluidos_Tabela!C:C) -> 0 | S39: =SUMIF($A:$A,$N39,H:H)+SUMIF(Itens_Excluidos_Tabela!$A:$A, $N39, Itens_Excluidos_Tabela!D:D) -> 0 | T39: =SUMIF($A:$A,$N39,I:I)+SUMIF(Itens_Excluidos_Tabela!$A:$A, $N39, Itens_Excluidos_Tabela!E:E) -> 0
A40: 301.4 | B40: 301 - ATENÇÃO BÁSICA | C40: 4-DESPESAS DE CAPITAL | D40: 9019 | E40: 300,000.00 | F40: 0 | G40: 0 | H40: 0 | I40: 0 | N40: 241.4 | O40: Despesas de Capital | P40: =SUMIF($A:$A,$N40,E:E) -> 0 | Q40: =SUMIF($A:$A,$N40,F:F) -> 0 | R40: =SUMIF($A:$A,$N40,G:G)+SUMIF(Itens_Excluidos_Tabela!$A:$A, $N40, Itens_Excluidos_Tabela!C:C) -> 0 | S40: =SUMIF($A:$A,$N40,H:H)+SUMIF(Itens_Excluidos_Tabela!$A:$A, $N40, Itens_Excluidos_Tabela!D:D) -> 0 | T40: =SUMIF($A:$A,$N40,I:I)+SUMIF(Itens_Excluidos_Tabela!$A:$A, $N40, Itens_Excluidos_Tabela!E:E) -> 0
A41: 301.4 | B41: 301 - ATENÇÃO BÁSICA | C41: 4-DESPESAS DE CAPITAL | D41: 9020 | E41: 50,000.00 | F41: 0 | G41: 0 | H41: 0 | I41: 0 | N41: 242 | O41: ASSISTÊNCIA AO PORTADOR DE DEFICIÊNCIA | P41: =P42+P43 -> 0 | Q41: =Q42+Q43 -> 0 | R41: =R42+R43 -> 0 | S41: =S42+S43 -> 0 | T41: =T42+T43 -> 0
A42: 301.4 | B42: 301 - ATENÇÃO BÁSICA | C42: 4-DESPESAS DE CAPITAL | D42: 9021 | E42: 15,000.00 | F42: 0 | G42: 0 | H42: 0 | I42: 0 | N42: 242.3 | O42: Despesas Correntes | P42: =SUMIF($A:$A,$N42,E:E) -> 0 | Q42: =SUMIF($A:$A,$N42,F:F) -> 0 | R42: =SUMIF($A:$A,$N42,G:G)+SUMIF(Itens_Excluidos_Tabela!$A:$A, $N42, Itens_Excluidos_Tabela!C:C) -> 0 | S42: =SUMIF($A:$A,$N42,H:H)+SUMIF(Itens_Excluidos_Tabela!$A:$A, $N42, Itens_Excluidos_Tabela!D:D) -> 0 | T42: =SUMIF($A:$A,$N42,I:I)+SUMIF(Itens_Excluidos_Tabela!$A:$A, $N42, Itens_Excluidos_Tabela!E:E) -> 0
A43: 301.4 | B43: 301 - ATENÇÃO BÁSICA | C43: 4-DESPESAS DE CAPITAL | D43: 9022 | E43: 250,000.00 | F43: 0 | G43: 0 | H43: 0 | I43: 0 | N43: 242.4 | O43: Despesas de Capital | P43: =SUMIF($A:$A,$N43,E:E) -> 0 | Q43: =SUMIF($A:$A,$N43,F:F) -> 0 | R43: =SUMIF($A:$A,$N43,G:G)+SUMIF(Itens_Excluidos_Tabela!$A:$A, $N43, Itens_Excluidos_Tabela!C:C) -> 0 | S43: =SUMIF($A:$A,$N43,H:H)+SUMIF(Itens_Excluidos_Tabela!$A:$A, $N43, Itens_Excluidos_Tabela!D:D) -> 0 | T43: =SUMIF($A:$A,$N43,I:I)+SUMIF(Itens_Excluidos_Tabela!$A:$A, $N43, Itens_Excluidos_Tabela!E:E) -> 0
A44: 301.4 | B44: 301 - ATENÇÃO BÁSICA | C44: 4-DESPESAS DE CAPITAL | D44: 9025 | E44: 200,000.00 | F44: 0 | G44: 0 | H44: 0 | I44: 0 | N44: 422 | O44: DIREITOS INDIVIDUAIS, COLETIVOS E DIFUSOS | P44: =P45+P46 -> 0 | Q44: =Q45+Q46 -> 0 | R44: =R45+R46 -> 0 | S44: =S45+S46 -> 0 | T44: =T45+T46 -> 0
A45: 301.4 | B45: 301 - ATENÇÃO BÁSICA | C45: 4-DESPESAS DE CAPITAL | D45: 9026 | E45: 50,000.00 | F45: 0 | G45: 0 | H45: 0 | I45: 0 | N45: 422.3 | O45: Despesas Correntes | P45: =SUMIF($A:$A,$N45,E:E) -> 0 | Q45: =SUMIF($A:$A,$N45,F:F) -> 0 | R45: =SUMIF($A:$A,$N45,G:G)+SUMIF(Itens_Excluidos_Tabela!$A:$A, $N45, Itens_Excluidos_Tabela!C:C) -> 0 | S45: =SUMIF($A:$A,$N45,H:H)+SUMIF(Itens_Excluidos_Tabela!$A:$A, $N45, Itens_Excluidos_Tabela!D:D) -> 0 | T45: =SUMIF($A:$A,$N45,I:I)+SUMIF(Itens_Excluidos_Tabela!$A:$A, $N45, Itens_Excluidos_Tabela!E:E) -> 0
A46: 301.4 | B46: 301 - ATENÇÃO BÁSICA | C46: 4-DESPESAS DE CAPITAL | D46: 9027 | E46: 250,000.00 | F46: 0 | G46: 0 | H46: 0 | I46: 0 | N46: 422.4 | O46: Despesas de Capital | P46: =SUMIF($A:$A,$N46,E:E) -> 0 | Q46: =SUMIF($A:$A,$N46,F:F) -> 0 | R46: =SUMIF($A:$A,$N46,G:G)+SUMIF(Itens_Excluidos_Tabela!$A:$A, $N46, Itens_Excluidos_Tabela!C:C) -> 0 | S46: =SUMIF($A:$A,$N46,H:H)+SUMIF(Itens_Excluidos_Tabela!$A:$A, $N46, Itens_Excluidos_Tabela!D:D) -> 0 | T46: =SUMIF($A:$A,$N46,I:I)+SUMIF(Itens_Excluidos_Tabela!$A:$A, $N46, Itens_Excluidos_Tabela!E:E) -> 0
A47: 301.4 | B47: 301 - ATENÇÃO BÁSICA | C47: 4-DESPESAS DE CAPITAL | D47: 9030 | E47: 1,000.00 | F47: 1,000.00 | G47: 0 | H47: 0 | I47: 0 | O47: TOTAL DAS DESPESAS NÃO COMPUTADAS NO CÁLCULO DO MÍNIMO (XXXVII) = (XXXII + XXXIII + XXXIV + XXXV + XXXVI + XXXVII + XXXVIII)
A48: 301.4 | B48: 301 - ATENÇÃO BÁSICA | C48: 4-DESPESAS DE CAPITAL | D48: 9031 | E48: 1,000.00 | F48: 1,000.00 | G48: 0 | H48: 0 | I48: 0 | P48: =SUM(P5,P8,P11,P14,P17,P20,P23) -> 4,584,793,513.00 | Q48: =SUM(Q5,Q8,Q11,Q14,Q17,Q20,Q23) -> 4,992,382,275.23 | R48: =SUM(R5,R8,R11,R14,R17,R20,R23) -> 2,515,879,959.64 | S48: =SUM(S5,S8,S11,S14,S17,S20,S23) -> 1,374,685,120.50 | T48: =SUM(T5,T8,T11,T14,T17,T20,T23) -> 1,232,940,337.96
A49: 301.4 | B49: 301 - ATENÇÃO BÁSICA | C49: 4-DESPESAS DE CAPITAL | D49: 9034 | E49: 1,000.00 | F49: 1,000.00 | G49: 0 | H49: 0 | I49: 0 | O49: Variação | P49: =P48-Anexo12_Saúde!H132 -> 0 | Q49: =Q48-Anexo12_Saúde!I132 -> 0 | R49: =R48-Anexo12_Saúde!J132 -> 0 | S49: =S48-Anexo12_Saúde!L132 -> 0 | T49: =T48-Anexo12_Saúde!N132 -> 0
A50: 301.4 | B50: 301 - ATENÇÃO BÁSICA | C50: 4-DESPESAS DE CAPITAL | D50: 9035 | E50: 1,000.00 | F50: 1,000.00 | G50: 0 | H50: 0 | I50: 0
A51: 301.4 | B51: 301 - ATENÇÃO BÁSICA | C51: 4-DESPESAS DE CAPITAL | D51: 9036 | E51: 1,000.00 | F51: 1,000.00 | G51: 0 | H51: 0 | I51: 0
A52: 301.4 | B52: 301 - ATENÇÃO BÁSICA | C52: 4-DESPESAS DE CAPITAL | D52: 9037 | E52: 1,000.00 | F52: 1,000.00 | G52: 0 | H52: 0 | I52: 0
A53: 301.4 | B53: 301 - ATENÇÃO BÁSICA | C53: 4-DESPESAS DE CAPITAL | D53: 9038 | E53: 1,000.00 | F53: 1,000.00 | G53: 0 | H53: 0 | I53: 0
A54: 301.4 | B54: 301 - ATENÇÃO BÁSICA | C54: 4-DESPESAS DE CAPITAL | D54: 9040 | E54: 1,000.00 | F54: 1,000.00 | G54: 0 | H54: 0 | I54: 0
A55: 301.4 | B55: 301 - ATENÇÃO BÁSICA | C55: 4-DESPESAS DE CAPITAL | D55: 9041 | E55: 1,000.00 | F55: 1,000.00 | G55: 0 | H55: 0 | I55: 0
A56: 301.4 | B56: 301 - ATENÇÃO BÁSICA | C56: 4-DESPESAS DE CAPITAL | D56: 9042 | E56: 800,000.00 | F56: 0 | G56: 0 | H56: 0 | I56: 0
A57: 301.4 | B57: 301 - ATENÇÃO BÁSICA | C57: 4-DESPESAS DE CAPITAL | D57: 9046 | E57: 5,000,000.00 | F57: 0 | G57: 0 | H57: 0 | I57: 0
A58: 301.4 | B58: 301 - ATENÇÃO BÁSICA | C58: 4-DESPESAS DE CAPITAL | D58: 9047 | E58: 5,000,000.00 | F58: 0 | G58: 0 | H58: 0 | I58: 0
A59: 301.4 | B59: 301 - ATENÇÃO BÁSICA | C59: 4-DESPESAS DE CAPITAL | D59: 9050 | E59: 5,000,000.00 | F59: 0 | G59: 0 | H59: 0 | I59: 0
A60: 301.4 | B60: 301 - ATENÇÃO BÁSICA | C60: 4-DESPESAS DE CAPITAL | D60: 9051 | E60: 1,000,000.00 | F60: 0 | G60: 0 | H60: 0 | I60: 0
A61: 301.4 | B61: 301 - ATENÇÃO BÁSICA | C61: 4-DESPESAS DE CAPITAL | D61: 9052 | E61: 1,000,000.00 | F61: 0 | G61: 0 | H61: 0 | I61: 0
A62: 301.4 | B62: 301 - ATENÇÃO BÁSICA | C62: 4-DESPESAS DE CAPITAL | D62: 9053 | E62: 100,000.00 | F62: 0 | G62: 0 | H62: 0 | I62: 0
A63: 301.4 | B63: 301 - ATENÇÃO BÁSICA | C63: 4-DESPESAS DE CAPITAL | D63: 9259 | E63: 1,000,000.00 | F63: 0 | G63: 0 | H63: 0 | I63: 0
A64: 302.3 | B64: 302 - ASSISTÊNCIA HOSPITALAR E AMBULATORIAL | C64: 3-DESPESAS CORRENTES | D64: 8014 | E64: 1,000.00 | F64: 1,000.00 | G64: 0 | H64: 0 | I64: 0
A65: 302.3 | B65: 302 - ASSISTÊNCIA HOSPITALAR E AMBULATORIAL | C65: 3-DESPESAS CORRENTES | D65: 8018 | E65: 1,000.00 | F65: 1,000.00 | G65: 0 | H65: 0 | I65: 0
A66: 302.3 | B66: 302 - ASSISTÊNCIA HOSPITALAR E AMBULATORIAL | C66: 3-DESPESAS CORRENTES | D66: 8027 | E66: 100,000.00 | F66: 100,000.00 | G66: 0 | H66: 0 | I66: 0
A67: 302.3 | B67: 302 - ASSISTÊNCIA HOSPITALAR E AMBULATORIAL | C67: 3-DESPESAS CORRENTES | D67: 8028 | E67: 100,000.00 | F67: 100,000.00 | G67: 0 | H67: 0 | I67: 0
A68: 302.4 | B68: 302 - ASSISTÊNCIA HOSPITALAR E AMBULATORIAL | C68: 4-DESPESAS DE CAPITAL | D68: 9001 | E68: 80,000.00 | F68: 0 | G68: 0 | H68: 0 | I68: 0
A69: 302.4 | B69: 302 - ASSISTÊNCIA HOSPITALAR E AMBULATORIAL | C69: 4-DESPESAS DE CAPITAL | D69: 9002 | E69: 30,000.00 | F69: 0 | G69: 0 | H69: 0 | I69: 0
A70: 302.4 | B70: 302 - ASSISTÊNCIA HOSPITALAR E AMBULATORIAL | C70: 4-DESPESAS DE CAPITAL | D70: 9023 | E70: 200,000.00 | F70: 0 | G70: 0 | H70: 0 | I70: 0
A71: 302.4 | B71: 302 - ASSISTÊNCIA HOSPITALAR E AMBULATORIAL | C71: 4-DESPESAS DE CAPITAL | D71: 9024 | E71: 250,000.00 | F71: 0 | G71: 0 | H71: 0 | I71: 0
A72: 302.4 | B72: 302 - ASSISTÊNCIA HOSPITALAR E AMBULATORIAL | C72: 4-DESPESAS DE CAPITAL | D72: 9028 | E72: 1,000.00 | F72: 1,000.00 | G72: 0 | H72: 0 | I72: 0
A73: 302.4 | B73: 302 - ASSISTÊNCIA HOSPITALAR E AMBULATORIAL | C73: 4-DESPESAS DE CAPITAL | D73: 9029 | E73: 1,000.00 | F73: 1,000.00 | G73: 0 | H73: 0 | I73: 0
A74: 302.4 | B74: 302 - ASSISTÊNCIA HOSPITALAR E AMBULATORIAL | C74: 4-DESPESAS DE CAPITAL | D74: 9032 | E74: 1,000.00 | F74: 1,000.00 | G74: 0 | H74: 0 | I74: 0
A75: 302.4 | B75: 302 - ASSISTÊNCIA HOSPITALAR E AMBULATORIAL | C75: 4-DESPESAS DE CAPITAL | D75: 9033 | E75: 1,000.00 | F75: 1,000.00 | G75: 0 | H75: 0 | I75: 0
A76: 302.4 | B76: 302 - ASSISTÊNCIA HOSPITALAR E AMBULATORIAL | C76: 4-DESPESAS DE CAPITAL | D76: 9039 | E76: 1,000.00 | F76: 1,000.00 | G76: 0 | H76: 0 | I76: 0
A77: =CONCATENATE(LEFT(B77,3),".",LEFT(C77,1)) -> 302.4 | B77: 302 - ASSISTÊNCIA HOSPITALAR E AMBULATORIAL | C77: 4-DESPESAS DE CAPITAL | D77: 9043 | E77: 10,000,000.00 | F77: 9,643,000.00 | G77: 0 | H77: 0 | I77: 0
A78: 302.4 | B78: 302 - ASSISTÊNCIA HOSPITALAR E AMBULATORIAL | C78: 4-DESPESAS DE CAPITAL | D78: 9044 | E78: 300,000.00 | F78: 0 | G78: 0 | H78: 0 | I78: 0
A79: 302.4 | B79: 302 - ASSISTÊNCIA HOSPITALAR E AMBULATORIAL | C79: 4-DESPESAS DE CAPITAL | D79: 9048 | E79: 300,000.00 | F79: 0 | G79: 0 | H79: 0 | I79: 0
A80: 302.4 | B80: 302 - ASSISTÊNCIA HOSPITALAR E AMBULATORIAL | C80: 4-DESPESAS DE CAPITAL | D80: 9049 | E80: 30,000.00 | F80: 0 | G80: 0 | H80: 0 | I80: 0
A81: 302.4 | B81: 302 - ASSISTÊNCIA HOSPITALAR E AMBULATORIAL | C81: 4-DESPESAS DE CAPITAL | D81: 9133 | E81: 300,000.00 | F81: 0 | G81: 0 | H81: 0 | I81: 0
A82: 303.3 | B82: 303 - SUPORTE PROFILÁTICO E TERAPÊUTICO | C82: 3-DESPESAS CORRENTES | D82: 8010 | E82: 1,000.00 | F82: 1,000.00 | G82: 0 | H82: 0 | I82: 0
A83: 304.3 | B83: 304 - VIGILÂNCIA SANITÁRIA | C83: 3-DESPESAS CORRENTES | D83: 8001 | E83: 5,000,000.00 | F83: 5,000,000.00 | G83: 0 | H83: 0 | I83: 0
A84: 304.3 | B84: 304 - VIGILÂNCIA SANITÁRIA | C84: 3-DESPESAS CORRENTES | D84: 8002 | E84: 5,000,000.00 | F84: 5,000,000.00 | G84: 0 | H84: 0 | I84: 0
A85: 304.3 | B85: 304 - VIGILÂNCIA SANITÁRIA | C85: 3-DESPESAS CORRENTES | D85: 8012 | E85: 1,000.00 | F85: 1,000.00 | G85: 0 | H85: 0 | I85: 0
A86: 304.4 | B86: 304 - VIGILÂNCIA SANITÁRIA | C86: 4-DESPESAS DE CAPITAL | D86: 8013 | E86: 1,000.00 | F86: 1,000.00 | G86: 0 | H86: 0 | I86: 0
A87: 304.4 | B87: 304 - VIGILÂNCIA SANITÁRIA | C87: 4-DESPESAS DE CAPITAL | D87: 8025 | E87: 1,500,000.00 | F87: 1,500,000.00 | G87: 0 | H87: 0 | I87: 0
A88: 304.4 | B88: 304 - VIGILÂNCIA SANITÁRIA | C88: 4-DESPESAS DE CAPITAL | D88: 8026 | E88: 1,500,000.00 | F88: 1,500,000.00 | G88: 0 | H88: 0 | I88: 0
B89: Total Geral | E89: 75,560,000.00 | F89: 25,560,000.00 | G89: 0 | H89: 0 | I89: 0
A93: Projeto Atividade: | B93: Apenas 1530, 1531, 2501,4121; Ações excluídas de despesas com ASPS
B94: Número Ano | C94: 2025
B95: Número Ano Execução | C95: 2025
B96: Número Mês | C96: (Vários itens) | D96: 01 a 04
B97: Código Órgão Empresa | C97: 84 | D97: FMS
B98: Código Função | C98: 10 | D98: Saúde
B99: Código Elemento Despesa | C99: (Vários itens) | D99: Excluídos 08, 82, 86 e 97; Mantido filtro de elementos excluídos de despesas com ASPS
B100: Código Fonte de Recurso | C100: 00 | D100: Tesouro Municipal - Receitas de Impostos Municipais
E102: Valores
A103: CÓD | B103: Descrição Sub Função | C103: Descrição Categoria Econômica | D103: Código Projeto Atividade | E103: Valor Orçado Anual | F103: Valor Orçado Atualizado | G103: Valor Empenhado | H103: Valor Liquidado | I103: Valor Pago
A104: =CONCATENATE(LEFT(B104,3),".",LEFT(C104,1)) -> 302.3 | B104: 302 - ASSISTÊNCIA HOSPITALAR E AMBULATORIAL | C104: 3-DESPESAS CORRENTES | D104: 4121 | E104: 21,602,700.00 | F104: 21,602,700.00 | G104: 5,690,078.97 | H104: 5,690,078.97 | I104: 5,690,078.97
